Workbook

Sheet Home
A1: Update | D1: ="แบบฟอร์มเสนอขอตั้งงบประมาณทำการประจำปี "&A_Budget_year -> แบบฟอร์มเสนอขอตั้งงบประมาณทำการประจำปี 2567 | I1: หมายเหตุ
A2: 2022-06-30 | B2: กลุ่ม | C2: รหัสบัญชี | D2: ชื่อบัญชี | E2: งานประจำ | F2: งานตามแผน | G2: ธุรกิจเสริม | H2: 1) | I2: ไม่ต้องตั้งงบประมาณสำหรับค่า Smart device ในบัญชี "ค่าตอบแทนอื่น-พนักงาน" (รหัสบัญชี 52010990) (Sheet E110)
B3: รายได้ | C3: 4X-XX-XX-XX | E3: R100 | H3: 2) | I3: งบประมาณกลุ่มบัญชีค่าวิจัยและที่ปรึกษา (Sheet E250) สำหรับงานต่อเนื่อง โปรดกรอกช่องค่าใช้จ่ายจริง และประมาณจ่ายปี 2566 ให้ครบถ้วนด้วย
B4: ต้นทุนจากการจำหน่ายกระแสไฟฟ้าและบริการ | C4: 51-XX-XX-XX | E4: R100 | F4: E200 | G4: E300 | H4: 3) | I4: ขอความร่วมมือศึกษาคู่มือก่อนใช้ไฟล์ตั้งงบประมาณ หรือศึกษาคู่มือควบคู่กับการทดลองใช้ไฟล์ตั้งงบประมาณก่อนตั้งงบประมาณจริง | T4: R001 | Y4: E001
C5: 51-XX-XX-XX | X5: E100
C6: 51-XX-XX-XX | I6: ข้อควรระวัง | V6: R100 | X6: E200 | Z6: E300
B7: ค่าใช้จ่ายเกี่ยวกับบุคคลากร | C7: 52-XX-XX-XX | E7: E110 | F7: E200 | G7: E300 | H7: 1) | I7: ไฟล์ตั้งงบประมาณนี้สามารถใช้ได้กับ Microsoft Excel ตั้งแต่ version 2010 ขึ้นไปเท่านั้น | V7: E110
C8: 52-XX-XX-XX | H8: 2) | I8: ห้าม Move sheet ออกจากไฟล์ตั้งงบประมาณ หรือนำ sheet จากไฟล์ตั้งงบประมาณไฟล์อื่นมาแทรก เนื่องจากมีการผูกสูตรดึงตัวเลขเอาไว้ | U8: E121 | V8: E120 | Y8: E210
C9: 52-XX-XX-XX | I9: หากหน่วยงานแบ่งหน้าที่การตั้งงบประมาณให้พนักงานหลายคน ให้แต่ละคนนำข้อมูลมากรอกไว้ในไฟล์เดียวกัน | Y9: E220
C10: 52-XX-XX-XX | D10: ประชุมชี้แจง | E10: E220 | H10: 3) | I10: การกรอกตัวเลขที่มีค่าเป็นศูนย์ ให้กรอกเลข “0” ห้ามกรอกเครื่องหมายขีด (“-”) | Y10: E230
B11: ค่าใช้จ่ายในการดำเนินงาน | C11: 53-XX-XX-XX | E11: E120 | F11: E200 | G11: E300 | H11: 4) | I11: ปุ่มต่าง ๆ ที่อยู่ในแต่ละแบบฟอร์ม เมื่อกดแล้วจะไม่สามารถกด Undo เพื่อย้อนกลับได้ ให้ระวังการกดปุ่ม “Delete roll” เป็นพิเศษ | Y11: E240
C12: 53-XX-XX-XX | H12: 5) | I12: ให้เตรียมข้อมูลในหน่วยบาทเท่านั้น หากหน่วยงานในส่วนภูมิภาคเขตใดที่เตรียมข้อมูลในหลักล้านบาทเอาไว้ ยังสามารถใช้ข้อมูลในหลักล้านบาทนั้นได้ | Y12: E250
C13: 53-XX-XX-XX | D13: ประชาสัมพันธ์ | E13: E230 | I13: โดยให้เติม 0 ให้ครบจนเป็นหน่วยบาทด้วย
C14: 53-XX-XX-XX | D14: กิจกรรมเพื่อสังคม | E14: E240 | H14: 6) | I14: การรวมตัวเลขทุก ๆ จุดในไฟล์ตั้งงบประมาณ ให้ใช้ function “SUBTOTAL” โดยใช้ Function_num = 109
C15: 53-XX-XX-XX | D15: วิจัยและที่ปรึกษา | E15: E250 | I15: การใช้สูตร “SUM” ในบางจุดจะทำให้ตัวเลขรวมคลาดเคลื่อนได้ (เบิ้ล)
C16: 53-XX-XX-XX | D16: ตัดต้นไม้ ป้องกันระบบจำหน่าย | E16: E121 | F16: E200
C17: 54-XX-XX-XX | E17: E120 | F17: E200
C18: 55-XX-XX-XX

Sheet Cover
B1: ข้อมูลทั่วไปสำหรับตั้งงบประมาณ | N1: HO/ Branch | O1: =IF(C3=N5,"HO",IF(C3=N4,"BR","")) -> BR | AI1: **ก่อนส่งไฟล์กลับให้แผนกงบประมาณเพื่อรวบรวม ให้กดปุ่ม "Change sheet name" ก่อนส่ง
A2: 1) | B2: ปีงบประมาณ | C2: 2567 | N2: To header | O2: =IF(C3=N5,B5&": ",IF(C3=N4,B4&": ","")) -> เขต: | P2: =IF(C3=N5,division,IF(C3=N4,C4&" - "&division,"")) -> กฟน.3 - 07 | Q2: Unit | R2: =IF(C3=N5,"บาท",IF(C3=N4,"ล้านบาท","")) -> ล้านบาท | S2: =IF(C3=N5,"B",IF(C3=N4,"MB","")) -> MB | AI2: หน่วยงานย่อย (ส่วนภูมิภาค)
A3: 2) | B3: สำนักงานใหญ่/ ส่วนภูมิภาค | C3: ส่วนภูมิภาค | N3: สายงาน | O3: N1 | P3: N2 | Q3: N3 | R3: E1 | S3: E2 | T3: E3 | U3: C1 | V3: C2 | W3: C3 | X3: S1 | Y3: S2 | Z3: S3 | AI3: ลำดับที่ | AJ3: ชื่อ
B4: =IF(C3=N4,"เขต","สายงาน") -> เขต | C4: กฟน.3 | N4: ส่วนภูมิภาค | O4: กฟน.1 | P4: กฟน.2 | Q4: กฟน.3 | R4: กฟฉ.1 | S4: กฟฉ.2 | T4: กฟฉ.3 | U4: กฟก.1 | V4: กฟก.2 | W4: กฟก.3 | X4: กฟต.1 | Y4: กฟต.2 | Z4: กฟต.3 | AI4: 01 | AJ4: กฟจ.ลบ.
B5: =IF(C3=N4,"ลำดับที่หน่วยงานย่อย","หน่วยงาน") -> ลำดับที่หน่วยงานย่อย | C5: 07 | H5: =INDEX(O3:Z4,1,MATCH(Cover_สายเขต2,เขต,0))&"-"&division -> N3-07 | N5: สำนักงานใหญ่ | O5: ผวก. | P5: สดท. | Q5: ฝวก. | R5: สตภ. | S5: ย. | T5: ว. | U5: วศ. | V5: กบ. | W5: ป. | X5: ธต. | Y5: ภ.1 | Z5: ภ.2 | AA5: ภ.3 | AB5: ภ.4 | AC5: ทส. | AD5: บ. | AE5: บก. | AF5: สอ. | AI5: 02 | AJ5: กฟจ.นว.
B6: =IF(C3=N4,"ชื่อหน่วยงานย่อย","") -> ชื่อหน่วยงานย่อย | C6: =IFERROR(VLOOKUP(division,AI3:AJ102,2,0),"") -> กฟอ.นผ. | H6: =C6 -> กฟอ.นผ. | O6: ผวก. | P6: สดท. | Q6: ฝวก. | R6: สตภ. | S6: สรก.(ย) | T6: สรก(ว). | U6: สรก.(วศ) | V6: สรก.(กบ) | W6: สรก.(ป) | X6: สรก.(ธต) | Y6: สรก.(ภ 1) | Z6: สรก.(ภ 2) | AA6: สรก.(ภ 3) | AB6: สรก.(ภ 4) | AC6: สรก.(ทส) | AD6: สรก.(บ) | AE6: สรก.(บก) | AF6: สรก.(สอ) | AI6: 03 | AJ6: กฟจ.อน.
P7: ฝดข. | Q7: กนพ. | R7: ฝวต. | S7: สชก.(ย) | T7: สชก(ว). | U7: สชก.(วศ) | V7: สชก.(กบ) | W7: สชก.(ป) | X7: สชก.(ธต) | Y7: ฝอภ.(ภ1) | Z7: ฝอภ.(ภ2) | AA7: ฝอภ.(ภ3) | AB7: ฝอภ.(ภ4) | AC7: สชก.(ทส) | AD7: สชก.(บ) | AE7: สชก.(บก-ท) | AF7: สชก.(สอ) | AI7: 04 | AJ7: กฟจ.ชน.
A8: 3) | B8: ข้อมูลสำหรับบัญชีเงินเดือนและบัญชีอื่น ๆ ที่เกี่ยวกับเงินเดือนและพนักงาน | P8: กดท. | Q8: กกก. | R8: กปต. | S8: สชก.(ย-กอ) | T8: ฝวร. | U8: ฝวศ. | V8: ฝกส. | W8: ฝคฟ. | X8: ฝบว. | Y8: กจง.(ภ1) | Z8: กจง.(ภ2) | AA8: กจง.(ภ3) | AB8: กจง.(ภ4) | AC8: ฝพท. | AD8: ฝกง. | AE8: สชก.(บก-กม) | AF8: ฝจห. | AI8: 05 | AJ8: กฟจ.สห.
B9: ระดับ | C9: จำนวนพนักงาน | P9: กจข. | Q9: กปก. | R9: กวพ. | S9: ฝนย. | T9: กคก. | U9: กวฟ. | V9: กกส. | W9: กจฟ. | X9: กบศ. | Y9: กวศ.(ภ1) | Z9: กวศ.(ภ2) | AA9: กวศ.(ภ3) | AB9: กวศ.(ภ4) | AC9: กสส. | AD9: กกง. | AE9: ฝบค. | AF9: กวผ. | AI9: 06 | AJ9: กฟจ.พช.
C10: =$G$10-2 -> 2565 | D10: =$G$10-2 -> 2565 | E10: =+G10-1 -> 2566 | F10: =+G10-1 -> 2566 | G10: =A_Budget_year -> 2567 | H10: =A_Budget_year -> 2567 | P10: ฝพจ. | R10: กตส. | S10: กผส. | T10: กวร. | U10: กวค. | V10: กทอ. | W10: กอค. | X10: กบจ. | AC10: กพก. | AD10: กตจ. | AE10: กงบ. | AF10: กจพ.1 | AI10: 07 | AJ10: กฟอ.นผ.
C11: ยกมา | D11: เกษียณ | E11: ยกมา | F11: เกษียณ | G11: ยกมา | H11: เกษียณ | J11: โทรศัพท์บ้าน | K11: โทรศัพท์มือถือ | P11: กวบ. | R11: ฝตล. | S11: กวป. | T11: กผร. | U11: ฝยธ. | V11: กสง. | W11: ศสฟ. | X11: กรษ. | AC11: กพล. | AD11: กภษ. | AE11: กรบ. | AF11: กจพ.2 | AI11: 08 | AJ11: กฟอ.คสร.
B12: สำหรับสำนักงานใหญ่ | P12: กอพ. | R12: กตผ. | S12: กรอ. | T12: กผอ. | U12: กอย. | V12: ฝกร. | W12: ฝบร. | X12: กธพ. | AC12: ฝสท. | AD12: กรด. | AE12: ฝพบ. | AF12: ฝพด. | AI12: 09 | AJ12: กฟอ.สมส.
B13: รผก. | E13: =C13-D13 -> 0 | G13: =E13-F13 -> 0 | J13: 400 | K13: 2000 | R13: กตบ. | S13: ฝนศ. | T13: ฝวพ. | U13: กจก. | V13: กกฟ.1 | W13: กบส. | X13: ฝพธ. | AC13: กอส. | AD13: ฝบช. | AE13: กพค. | AF13: กคพ.1 | AI13: 10 | AJ13: กฟอ.ตค.
B14: ผชก. | E14: =C14-D14 -> 0 | G14: =E14-F14 -> 0 | J14: 400 | K14: 2000 | R14: กตค. | S14: กอธ. | T14: กวจ. | U14: กบย. | V14: กกฟ.2 | W14: กอร. | X14: กธส. | AC14: กคข. | AD14: กบบ. | AE14: รรช. | AF14: กคพ.2 | AI14: 11 | AJ14: กฟอ.ลยว.
B15: อฝ. | E15: =C15-D15 -> 0 | G15: 0 | J15: 400 | K15: 1000 | R15: กตล. | S15: กศฟ. | T15: กนว. | U15: ฝสฟ. | V15: กผภ. | W15: กบร. | X15: กธม. | AC15: กมส. | AD15: กบช. | AE15: ศฝฟ. | AF15: กคพ.3 | AI15: 12 | AJ15: กฟอ.พฒ.
B16: รฝ. | E16: =C16-D16 -> 0 | G16: 0 | J16: 400 | K16: 1000 | R16: ฝตส. | S16: กซฟ. | T16: กมอ. | U16: กอฟ. | V16: ฝบก.1 | W16: ฝมป. | X16: ฝลต. | AC16: ฝสค. | AD16: กทส. | AE16: กฝช. | AF16: กคพ.4 | AI16: 13 | AJ16: กฟอ.ชบด.
B17: อก. | E17: 0 | G17: 0 | J17: 400 | K17: 1000 | R17: กตง. | S17: กสร. | T17: ฝสอ. | U17: กจส. | V17: กจค.1(บก1) | W17: กมต. | X17: กกต. | AC17: กอบ. | AD17: กทค. | AE17: ฝบบ. | AF17: ฝธก. | AI17: 14 | AJ17: สชก.
B18: รก. | E18: 0 | G18: 0 | J18: 400 | R18: กตอ. | S18: ฝลส. | T18: กสผ. | U18: ฝรฟ. | V18: กจค.2(บก1) | W18: กมป. | X18: กลพ. | AC18: กบอ. | AD18: ฝงป. | AE18: กสก. | AF18: กนก. | AI18: 15 | AJ18: กอก.
B19: ชก. | E19: 0 | G19: 0 | R19: กตท. | S19: กผบ. | T19: กสพ. | U19: กรฟ.(น.ฉ.ต.) | V19: กจค.3(บก1) | W19: กพร. | AC19: กบข. | AD19: กงป. | AE19: กพบ. | AF19: กบก. | AI19: 16 | AJ19: ฝวบ.
R20: กตซ. | S20: กปน. | U20: กรฟ.(ก) | V20: ฝบก.2 | W20: ฝบผ. | AD20: กปง. | AE20: กทช. | AF20: กพม. | AI20: 17 | AJ20: กบล.
B21: สำหรับส่วนภูมิภาค | N21: โทรศัพท์บ้าน | O21: โทรศัพท์มือถือ | S21: กกท. | U21: กจร. | V21: กจค.1(บก2) | W21: กบค. | AD21: กคจ. | AE21: กปภ. | AI21: 18 | AJ21: กวว.
B22: ผชก. | E22: =C22-D22 -> 0 | G22: =E22-F22 -> 0 | J22: 400 | K22: 2000 | N22: 400 | O22: 2000 | S22: ฝปส. | V22: กจค.2(บก2) | W22: กคบ. | AE22: ฝนก. | AI22: 19 | AJ22: กกค.
B23: อฝ. | E23: 0 | G23: 0 | J23: 400 | K23: 1000 | N23: 400 | O23: 1000 | S23: กปส. | V23: กจค.3(บก2) | AE23: กนต. | AI23: 20 | AJ23: ฝบพ.
B24: รฝ. | E24: 0 | G24: 0 | J24: 400 | K24: 1000 | N24: 400 | O24: 1000 | S24: กสอ. | V24: ฝคพ. | AE24: กปร. | AI24: 21 | AJ24: กบญ.
B25: อก. | E25: 0 | G25: 0 | J25: 400 | K25: 1000 | N25: 400 | O25: 1000 | S25: ฝสส. | V25: กจค.1(คพ) | AE25: ฝคส. | AI25: 22 | AJ25: กซข.
B26: รก. | E26: 0 | G26: 0 | J26: 400 | K26: x | N26: 400 | O26: 0 | S26: กพส. | V26: กจค.2(คพ) | AE26: กนส. | AI26: 23 | AJ26: กรท.
B27: ผจก. กฟฟ. ชั้น 1,2,3 | C27: 1 | E27: 1 | G27: 1 | J27: 400 | K27: 1000 | N27: 400 | O27: 1000 | S27: กคส. | AE27: กคด. | AI27: 24 | AJ27: ฝปบ.
B28: ชจก. กฟฟ. ชั้น 1,2,3 (*) | C28: 2 | E28: 2 | G28: 2 | J28: เลือก (400) | N28: 400 | O28: 400 | AI28: 25 | AJ28: กปบ.
B29: ผจก. กฟส. | C29: 3 | E29: 3 | G29: 3 | J29: 400 | K29: 1000 | N29: 400 | O29: 1000 | AI29: 26 | AJ29: กบษ.
B30: ผจก. กฟย. (*) | C30: 1 | E30: 1 | G30: 1 | J30: เลือก (400) | N30: 400 | O30: 400 | Q30: ชจก. และ ผจก. กฟย. | AI30: 27 | AJ30: กรส.
AI31: 28 | AJ31: แผนปฏิบัติ
B32: สำหรับทั้งสำนักงานใหญ่ และส่วนภูมิภาค | AI32: 29 | AJ32: ธุรกิจเสริม
B33: ระดับ 13 | E33: 0 | G33: =E33-F33 -> 0 | J33: 400 | K33: 2000 | AI33: 30
B34: ระดับ 12 | E34: 0 | G34: 0 | J34: 400 | K34: 1000 | AI34: 31
B35: ระดับ 11 | E35: 0 | G35: 0 | J35: 400 | K35: x | N35: 400 | O35: 400 | P35: หน้างานไม่มีมือถือ | AI35: 32
B36: ระดับ 10 | E36: 0 | G36: 0 | J36: 400 | K36: x | N36: 400 | O36: 400 | P36: หน้างานไม่มีมือถือ | AI36: 33
B37: ระดับ 4-9 | C37: 86 | D37: 2 | E37: 84 | F37: 1 | G37: 83 | H37: 3 | N37: เบิกค่าโทรบ้าน | O37: 10 up | AI37: 34
B38: ตำแหน่ง/ ระดับอื่น ๆ ที่ไม่ได้ระบุไว้ | C38: 11 | E38: 11 | G38: 11 | O38: ตำแหน่ง ชจก. ผจก. และ กฟย.* | AI38: 35
B39: รวม | C39: =SUM(C13:C38) -> 104 | D39: 2 | E39: 102 | F39: 1 | G39: 101 | H39: 3 | AI39: 36
AI40: 37
B41: (*) ค่าโทรศัพท์บ้านพักและค่าโทรศัพท์เคลื่อนที่ - ผู้บริหาร (สำหรับส่วนภูมิภาค) | AI41: 38
B42: พนักงานในตำแหน่ง ชจก. กฟฟ. ชั้น 1,2,3/ ผจก. และ ผจก. กฟย. (กฟฟ. หน้างาน) หากไม่มีค่าโทรศัพท์บ้านพัก | AI42: 39
B43: สามารถเลือกเบิกค่าโทรศัพท์เคลื่อนที่ได้ ในอัตราเดียวกัน รายละเอียดดังนี้ | AI43: 40
B44: ตำแหน่ง | C44: จำนวน | E44: เลือกเบิกในบัญชีค่าโทรศัพท์เคลื่อนที่ | G44: คงเหลือ | AI44: 41
B45: ชจก. กฟฟ. ชั้น 1,2,3 (*) | C45: =C28 -> 2 | D45: คน | E45: 2 | F45: คน | G45: =C45-E45 -> 0 | H45: คน | AI45: 42
B46: ผจก. กฟย. (*) | C46: =C30 -> 1 | D46: คน | E46: 1 | F46: คน | G46: =C46-E46 -> 0 | H46: คน | AI46: 43
AI47: 44
B48: ="เงินเดือนของพนักงานปี "&A_Budget_year-2&" ของ" -> เงินเดือนของพนักงานปี 2565 ของ | AI48: 45
B49: - พนักงานทั้งหมด (รวมผู้เกษียณ) | C49: 3811883 | D49: บาท | E49: (1 เดือน ณ เดือน กรกฏาคม / เปิดจาก SAP ) | AI49: 46
B50: =" - พนักงานที่จะเกษียณอายุในปี "&A_Budget_year-2 -> - พนักงานที่จะเกษียณอายุในปี 2565 | C50: 274776 | D50: บาท | E50: (1 เดือน ณ เดือน กรกฏาคม) | AI50: 47
B51: =" - พนักงานที่จะเกษียณอายุในปี "&A_Budget_year-1 -> - พนักงานที่จะเกษียณอายุในปี 2566 | C51: 55100 | D51: บาท | E51: (1 เดือน ณ เดือน กรกฏาคม) | AI51: 48
B52: =" - พนักงานที่จะเกษียณอายุในปี "&A_Budget_year -> - พนักงานที่จะเกษียณอายุในปี 2567 | C52: 202040 | D52: บาท | E52: (1 เดือน ณ เดือน กรกฏาคม) | AI52: 49
AI53: 50
AI54: 51
B55: ="เงินเดือนของพนักงานเข้าใหม่หลัง 31 ก.ค. "&A_Budget_year-2 -> เงินเดือนของพนักงานเข้าใหม่หลัง 31 ก.ค. 2565 | AI55: 52
B56: จำนวนคน | C56: 1 | D56: คน | AI56: 53
B57: เงินเดือนรวม | C57: 16480 | D57: บาท | AI57: 54
AI58: 55
AI59: 56
A60: 4) | B60: ข้อมูลสำหรับบัญชีเงินเพิ่มพิเศษวิชาชีพ | AI60: 57
B61: จำนวนพนักงานที่ได้รับเงินเพิ่มพิเศษวิชาชีพในหน่วยงาน แยกตามวิชาชีพ | AI61: 58
B62: วิชาชีพ | C62: จำนวน (คน) | AI62: 59
B63: วิศวกรรมศาสตร์ | C63: 5 | AI63: 60
B64: สถาปัตยกรรมศาสตร์ | C64: 0 | AI64: 61
B65: คอมพิวเตอร์ | C65: 0 | AI65: 62
B66: รวม | C66: =SUM(C63:C65) -> 5 | AI66: 63
B67: *สำหรับพนักงานระดับ 4 - 11 เท่านั้น | O67: Alert in Msgbox | AI67: 64
O68: โปรดตรวจสอบว่าได้เลือกทั้งบรรทัดแล้วสำหรับข้อมูลที่จะลบ | AI68: 65
A69: 5) | B69: ข้อมูลสำหรับบัญชีค่าจ้างรายเดือนลูกจ้างและสวัสดิการลูกจ้าง | O69: เมื่อลบแล้วจะไม่สามารถกด Undo ได้ | AI69: 66
C70: จำนวนลูกจ้าง | O70: ดำเนินการต่อไป? | AI70: 67
C71: =A_Budget_year-2 -> 2565 | D71: =A_Budget_year-2 -> 2565 | E71: =A_Budget_year-1 -> 2566 | F71: =A_Budget_year-1 -> 2566 | G71: =A_Budget_year -> 2567 | H71: =A_Budget_year -> 2567 | AI71: 68
C72: ยกมา | D72: เกษียณ | E72: ยกมา | F72: เกษียณ | G72: ยกมา | H72: เกษียณ | AI72: 69
B73: ลูกจ้าง | C73: 25 | D73: 0 | E73: =C73-D73 -> 25 | F73: 0 | G73: =E73-F73 -> 25 | H73: 0 | AI73: 70
AI74: 71
B75: ="ค่าจ้างรายเดือนลูกจ้างปี "&A_Budget_year-2&" ของ" -> ค่าจ้างรายเดือนลูกจ้างปี 2565 ของ | AI75: 72
B76: - ลูกจ้างทั้งหมด (รวมผู้เกษียณ) | C76: 486328 | D76: บาท | E76: (1 เดือน ณ เดือน กรกฏาคม / เปิดจาก SAP ) | AI76: 73
B77: =" - ลูกจ้างที่จะเกษียณอายุในปี "&A_Budget_year-2 -> - ลูกจ้างที่จะเกษียณอายุในปี 2565 | C77: 0 | D77: บาท | E77: (1 เดือน ณ เดือน กรกฏาคม) | AI77: 74
B78: =" - ลูกจ้างที่จะเกษียณอายุในปี "&A_Budget_year-1 -> - ลูกจ้างที่จะเกษียณอายุในปี 2566 | C78: 0 | D78: บาท | E78: (1 เดือน ณ เดือน กรกฏาคม) | AI78: 75
B79: =" - ลูกจ้างที่จะเกษียณอายุในปี "&A_Budget_year -> - ลูกจ้างที่จะเกษียณอายุในปี 2567 | C79: 0 | D79: บาท | E79: (1 เดือน ณ เดือน กรกฏาคม) | AI79: 76
AI80: 77
AI81: 78
A82: 6) | B82: ข้อมูลสำหรับบัญชีเงินช่วยเหลือบุตร | AI82: 79
B83: จำนวนบุตรที่มีสิทธิได้รับเงินช่วยเหลือตามระเบียบ กฟภ. ว่าด้วยเงิน ช่วยเหลือบุตรพนักงาน (ฉบับที่ 2) | H83: 60 | I83: คน | AI83: 80
AI84: 81
A85: 7) | B85: ข้อมูลสำหรับบัญชีเงินช่วยเหลือค่าไฟฟ้า | AI85: 82
B86: เงินช่วยเหลือค่ากระแสไฟฟ้ารวมของหน่วยงาน (1 เดือน เปิดจาก SAP ณ เดือน กรกฏาคม) | H86: 755579.84 | I86: บาท | AI86: 83
AI87: 84
A88: 8) | B88: ค่าตอบแทนอยู่เวรแก้ไฟฟ้าขัดข้อง | AI88: 85
B89: จำนวนผู้อยู่เวรแยกตามช่วงเวลา | AI89: 86
B90: วัน/ เวลา | C90: จำนวนผู้ปฏิบัติงาน | D90: จำนวนวัน (ทั้งปี) | E90: วันทำงาน/ ปี | AI90: 87
B91: พนักงานช่าง | AI91: 88
B92: วันทำการ (16:30 - 8:30) | C92: 4 | D92: 239 | E92: =+C92*D92 -> 956 | AI92: 89
B93: วันหยุดฯ (8:30 - 16:30) | C93: 4 | D93: 126 | E93: =+C93*D93 -> 504 | AI93: 90
B94: วันหยุดฯ (16:30 - 8:30) | C94: 4 | D94: 126 | E94: =+C94*D94 -> 504 | AI94: 91
AI95: 92
B96: หัวหน้าชุดงาน | AI96: 93
B97: วันทำการ (16:30 - 8:30) | C97: 4 | D97: 239 | E97: =+C97*D97 -> 956 | AI97: 94
B98: วันหยุดฯ (8:30 - 16:30) | C98: 4 | D98: 126 | E98: =+C98*D98 -> 504 | AI98: 95
B99: วันหยุดฯ (16:30 - 8:30) | C99: 4 | D99: 126 | E99: =+C99*D99 -> 504 | AI99: 96
AI100: 97
A101: 9) | B101: เงินเพิ่มฮอทไลน์ | AI101: 98
B102: จำนวนพนักงานปฏิบัติงานฮอทไลน์และจำนวนวันที่ทำงาน | AI102: 99
B103: พนักงาน | C103: จำนวนพนักงาน | D103: วันทำงาน (ทั้งปี) | E103: วันทำงาน/ ปี
B104: พนักงานฮอทไลน์ | C104: 7 | D104: 315 | E104: =+C104*D104 -> 2205
B105: พนักงานเชื่อมสาย | C105: 12 | D105: 170 | E105: =+C105*D105 -> 2040
A107: 10) | B107: เงินยังชีพ (14 จังหวัดภาคใต้)
B108: จำนวนพนักงานที่ปฎิบัติงานอยู่ในเขต14 จังหวัดภาคใต้ ตามอัตราเงินเดือนที่กำหนด
B109: อัตราเงินเดือน (บาท) | C109: จำนวนพนักงาน
B110: น้อยกว่า 10,440 บาท
B111: มากกว่า 10,440 บาท
A113: 11) | B113: ข้อมูลสำหรับบัญชีเงินช่วยเหลือค่าเครื่องแบบพนักงาน
B114: จำนวนพนักงานที่มีสิทธิได้รับเงินช่วยเหลือ แยกตามกลุ่ม
B115: กลุ่ม | C115: จำนวน (คน)
B116: พนักงานช่าง | C116: 6
B117: พนักงาน | C117: 0
B118: ลูกจ้างช่าง | C118: 2
B119: รวม | C119: =SUM(C116:C118) -> 8
A121: 12) | B121: ค่าเช่าบ้าน
B122: จำนวนพนักงานที่ได้รับสิทธิค่าเช่าบ้านตามตามคำสั่ง กฟภ. แยกตามระดับเงินเดือน
B123: อัตราเงินเดือน (บาท) | C123: จำนวนพนักงาน
B124: ไม่เกิน 15,000 บาท
B125: 15,001 - 25,000 | C125: 4
B126: 25,001 - 35,000 | C126: 3
B127: 35,001 - 50,000 | C127: 1
B128: 50,000 บาทขึ้นไป | C128: 6
B129: รวม | C129: =SUM(C124:C128) -> 14
B131: จำนวนผู้ใช้ไฟ แยกตามประเภทค่าตอบแทน
B132: ประเภทค่าตอบแทน | C132: จำนวนผู้ใช้ไฟ | D132: อัตรา | E132: (บาท/ ราย)
A133: 13) | B133: ค่าตอบแทน-การจดหน่วยการใช้ไฟฟ้า
A134: 14) | B134: ค่าตอบแทน-การจดหน่วยพร้อมแจ้งค่าไฟฟ้า | C134: 122500 | D134: 7
A135: 15) | B135: ค่าตอบแทน-การเก็บเงินค่าไฟฟ้า
A137: 16) | B137: ข้อมูลสำหรับบัญชีค่าเชื้อเพลิงยานพาหนะ
B138: ประมาณการปริมาณเชื้อเพลิงที่หน่วยงานคาดว่าจะใช้ | H138: 201000 | I138: ลิตร
A140: 17) | B140: ข้อมูลสำหรับบัญชีค่าซ่อมแซมบำรุงรักษา-คอมฯ&อุปกรณ์ต่อพ่วง
B141: อุปกรณ์ในหน่วยงาน ที่หมดระยะเวลาประกันแล้ว
B142: อุปกรณ์ | C142: จำนวน
B143: Computer | C143: 51
B144: Notebook | C144: 1
B145: Printer | C145: 31
B146: Scaner | C146: 10
B147: รวม | C147: =SUM(C143:C146) -> 93
B149: ผู้จัดทำ/ ผู้รับผิดชอบ | C149: เบอรโทรศัพท์ | D149: รายละเอียด/ ส่วนที่รับผิดชอบ (ไม่จำเป็นต้องระบุหากไม่มี)
A150: 1 | B150: น.ส.ภวิกา แซ่หย่ง | C150: 095-3517916
A151: 2
A152: 3

Sheet Rate
A1: รหัสบัญชี | B1: ชื่อบัญชี | E1: อัตรา
A2: 52010070 | B2: สวัสดิการลูกจ้าง | C2: บาท/ คน/ ปี | E2: 27000
A3: 52011020 | B3: เงินสมทบกองทุนสำรองเลี้ยงชีพ | C3: ร้อยละของเงินดือนที่ขอตั้ง | E3: 0.105
A4: 52012010 | B4: เงินเพิ่มพิเศษวิชาชีพ | C4: บาท/ คน/ เดือน | E4: 1900
A5: 52012060 | B5: ค่าโทรศัพท์บ้านพัก- ผู้บริหาร | C5: บาท/ คน/ เดือน | E5: 400
B6: สำหรับตำแหน่งต่อไปนี้
A7: 1) | B7: รก. - รผก. | C7: (สำนักงานใหญ่)
A8: 2) | B8: ผจก. กฟฟ. ชั้น 1,2,3 | C8: (ส่วนภูมิภาค)
A9: 3) | B9: ชจก. กฟฟ. ชั้น 1,2,3/ ผจก. กฟส. และ ผจก. กฟย. | C9: (ส่วนภูมิภาค) *มีสิทธิเลือกเบิกในบัญชีค่าโทรศัพท์เคลื่อนที่
A10: 4) | B10: นักวิชาการระดับ 10 - ผู้เชี่ยวชาญระดับ 13 | C10: (ทั้งหมด)
A12: 52012070 | B12: ค่าโทรศัพท์เคลื่อนที่ -ผู้บริหาร | C12: บาท/ คน/ ปี | E12: ขึ้นอยู่กับระดับ
B14: ระดับ/ ตำแหน่ง
B15: ตำแหน่ง รผก. ผชก. และระดับ 13 | E15: 2000
B16: ตำแหน่ง อก. ถึง อฝ. และระดับ 12 | E16: 1000
B17: ตำแหน่ง ผจก.กฟฟ. ชั้น 1,2,3 | E17: 1000
A19: 52020030 | B19: เงินช่วยเหลือค่าเล่าเรียนบุตร | C19: บาท/ คน/ ปี | E19: ขึ้นอยู่กับระดับและสถาบัน
B21: ระดับ | C21: รัฐบาล | D21: เอกชนไม่รับงินอุดหนุน | E21: เอกชนรับเงินอุดหนุน | H21: ระดับ | I21: AA (อนุบาล - ม.ปลาย)
C22: A.1 | D22: A.2 | E22: A.3 | H22: AA) อนุบาลหรือเทียบเท่า | I22: A.1) รัฐบาล | J22: A.1 | K22: -
A23: A | B23: อนุบาลหรือเทียบเท่า | C23: 5800 | D23: 13600 | E23: 4800 | H23: AA) ประถมศึกษาหรือเทียบเท่า | I23: A.2) เอกชนไม่รับงินอุดหนุน | J23: A.2 | K23: -
A24: A | B24: ประถมศึกษาหรือเทียบเท่า | C24: 4000 | D24: 13200 | E24: 4200 | H24: AA) มัธยมศึกษาตอนต้นหรือเทียบเท่า | I24: A.3) เอกชนรับเงินอุดหนุน | J24: A.3 | K24: -
A25: A | B25: มัธยมศึกษาตอนต้นหรือเทียบเท่า | C25: 4800 | D25: 15800 | E25: 3300 | H25: AA) มัธยมศึกษาตอนปลายหรือเทียบเท่า
A26: A | B26: มัธยมศึกษาตอนปลายหรือเทียบเท่า | C26: 4800 | D26: 16200 | E26: 3200 | H26: BB) ปวช. | I26: BB (ปวช)
A27: B | B27: ปวช. | C27: 4800 | D27: ขึ้นอยู่กับสายวิชา | H27: CC) ปวส. (หรือเทียบเท่า)/ ปวท. | I27: B.1) รัฐบาล | J27: B.1 | K27: -
A28: C | B28: ปวส. หรือเทียบเท่า/ ปวท. | C28: N/A | D28: ขึ้นอยู่กับสายวิชา | H28: DD) อนุปริญญาหรือเทียบเท่า | I28: B.2) เอกชนไม่รับงินอุดหนุน | J28: B.2 | K28: B) คหกรรม หรือคหกรรมศาสตร์ | L28: B) พาณิชยกรรม หรือบริหารธุรกิจ | M28: B) ศิลปหัตถกรรม หรือศิลปกรรม | N28: B) เกษตรกรรม หรือเกษตรศาสตร์ | O28: B) ช่างอุตสาหกรรม หรืออุตสาหกรรม | P28: B) ประมง | Q28: B) อุตสาหกรรมการท่องเที่ยว | R28: B) อุตสาหกรรมสิ่งทอ
A29: D | B29: อนุปริญญาหรือเทียบเท่า | C29: 13700 | D29: N/A | E29: N/A | H29: EE) ปริญญาตรี | I29: B.3) เอกชนรับเงินอุดหนุน | J29: B.3 | K29: B) คหกรรม หรือคหกรรมศาสตร์ | L29: B) พาณิชยกรรม หรือบริหารธุรกิจ | M29: B) ศิลปหัตถกรรม หรือศิลปกรรม | N29: B) เกษตรกรรม หรือเกษตรศาสตร์ | O29: B) ช่างอุตสาหกรรม หรืออุตสาหกรรม | P29: B) ประมง | Q29: B) อุตสาหกรรมการท่องเที่ยว | R29: B) อุตสาหกรรมสิ่งทอ
A30: E | B30: ปริญญาตรี | C30: 25000 | D30: เบิกได้ครึ่งหนึ่งแต่ไม่เกิน 25,000 บาท
B32: สายวิชาของ ปวช | D32: เอกชนไม่รับงินอุดหนุน | E32: เอกชนรับเงินอุดหนุน | I32: CC (ปวส. หรือเทียบเท่า/ ปวท.)
D33: B.2 | E33: B.3 | I33: C.1) เอกชน | J33: C.1 | K33: C.1) ช่างอุตสาหกรรม | L33: C.1) อุตสาหกรรมเทคโนโลยีสารสนเทศและการสื่อสาร | M33: C.1) ทัศนศาสตร์ | N33: C.1) พาณิชยกรรม หรือบริหารธุรกิจ | O33: C.1) ศิลปหัตถกรรม หรือศิลปกรรม | P33: C.1) เกษตรกรรม หรือเกษตรศาสตร์ | Q33: C.1) คหกรรมหรือคหกรรมศาสตร์ | R33: C.1) อุตสาหกรรมการท่องเที่ยว
A34: B | B34: B) คหกรรม หรือคหกรรมศาสตร์ | D34: 16500 | E34: 3400
A35: B | B35: B) พาณิชยกรรม หรือบริหารธุรกิจ | D35: 19900 | E35: 5100 | I35: DD (อนุปริญญาหรือเทียบเท่า)
A36: B | B36: B) ศิลปหัตถกรรม หรือศิลปกรรม | D36: 20000 | E36: 3600 | I36: D.1) รัฐบาล | J36: D.1 | K36: -
A37: B | B37: B) เกษตรกรรม หรือเกษตรศาสตร์ | D37: 21000 | E37: 5000
A38: B | B38: B) ช่างอุตสาหกรรม หรืออุตสาหกรรม | D38: 24400 | E38: 7200 | I38: EE (ปริญญาตรี)
A39: B | B39: B) ประมง | D39: 21100 | E39: 5000 | I39: E.1) รัฐบาล | J39: E.1 | K39: -
A40: B | B40: B) อุตสาหกรรมการท่องเที่ยว | D40: 19900 | E40: 5100 | I40: E.2) เอกชน | J40: E.2 | K40: -
A41: B | B41: B) อุตสาหกรรมสิ่งทอ | D41: 24400 | E41: 7200
B43: สายวิชาของ ปวส | D43: เอกชน
D44: C.1
A45: C | B45: C.1) ช่างอุตสาหกรรม | D45: 30000
A46: C | B46: C.1) อุตสาหกรรมเทคโนโลยีสารสนเทศและการสื่อสาร | D46: 30000
A47: C | B47: C.1) ทัศนศาสตร์ | D47: 30000
A48: C | B48: C.1) พาณิชยกรรม หรือบริหารธุรกิจ | D48: 25000
A49: C | B49: C.1) ศิลปหัตถกรรม หรือศิลปกรรม | D49: 25000
A50: C | B50: C.1) เกษตรกรรม หรือเกษตรศาสตร์ | D50: 25000
A51: C | B51: C.1) คหกรรมหรือคหกรรมศาสตร์ | D51: 25000
A52: C | B52: C.1) อุตสาหกรรมการท่องเที่ยว | D52: 25000
A54: 52020040 | B54: เงินช่วยเหลือบุตร | D54: บาท/ คน/ เดือน | E54: 500
A55: 52021010 | B55: ค่ารักษาพยาบาล-พนักงาน | D55: บาท/ คน/ ปี | E55: 18600
A56: 52021020 | B56: ค่ารักษาพยาบาล-ครอบครัวพนักงาน | D56: บาท/ คน/ ปี | E56: 19000
A57: 52022020 | B57: ค่าเบี้ยเลี้ยง-พนักงาน | D57: บาท/ คน/ วัน | E57: ขึ้นอยู่กับระดับ
A58: 52022030 | B58: ค่าที่พัก-พนักงาน | D58: บาท/ คน/ คืน | E58: ขึ้นอยู่กับระดับ
H59: PD_house
B60: ตำแหน่ง | D60: เบี้ยเลี้ยพนักงาน | E60: ที่พักพนักงาน | H60: ขอบ | I60: ระดับ | J60: เบี้ยเลี้ยพนักงาน | K60: ที่พักพนักงาน
B61: ระดับ 1 - 3 | D61: 255 | E61: 445 | H61: 1 | I61: 1 - 3 | J61: 255 | K61: 445
B62: ระดับ 4 - 6 | D62: 255 | E62: 500 | H62: 4 | I62: 4 - 6 | J62: 255 | K62: 500
B63: ชผ./ หผ./ ชก./ ผจก. กฟย./ ชจก. กฟฟ. ชั้น 3 / ผจก. กฟส./ หรือ ระดับ 7 - 9 | D63: 315 | E63: 750 | H63: 7 | I63: 7 - 9 | J63: 315 | K63: 750
B64: รก./ อก./ รฝ./ อฝ./ ชจก. กฟฟ. ชั้น 1-2/ ผจก. กฟฟ ชั้น 1-3 หรือ ดับ 10 - 12 | D64: 315 | E64: 875 | H64: 10 | I64: 10 - 12 | J64: 315 | K64: 875
B65: ระดับ 13 | D65: 390 | E65: 2000 | H65: 13 | I65: 13 | J65: 390 | K65: 2000
B66: รผก. หรือ ผชก. | D66: 2000 | E66: 2000 | H66: รผก. หรือ ผชก. | I66: รผก. หรือ ผชก. | J66: 2000 | K66: 2000
A68: 52022060 | B68: ค่าพาหนะเดินทางไปปฏิบัติงานต่างท้องที่-ลูกจ้าง | D68: บาท/ คน/ ปี | E68: 1300
A69: 52022070 | B69: ค่าเบี้ยเลี้ยง-ลูกจ้าง | D69: บาท/ คน/ ปี | E69: 1300
A70: 52022080 | B70: ค่าที่พัก-ลูกจ้าง | D70: บาท/ คน/ ปี | E70: 1300
A71: 52030020 | B71: ค่าใช้จ่ายในการอบรมสัมมนา-นอกแผน | D71: บาท/ คน/ ปี | E71: 2200
A74: 53051060 | B74: ค่าซ่อมแซมบำรุงรักษา-คอมฯ&อุปกรณ์ต่อพ่วง | D74: บาท/ เครื่อง/ เดือน | E74: 120
A75: 53039010 | B75: ค่าเชื้อเพลิงยานพาหนะ | D75: บาท/ ลิตร | E75: 35
A77: 52010040 | B77: ค่าตอบแทนอยู่เวรแก้ไฟฟ้าขัดข้อง
D78: อัตราค่าตอบแทน (บาท/ วันทำงาน)
B79: วัน/ เวลา | D79: พนักงานช่าง | E79: หัวหน้าชุดงาน
B80: วันทำการ (16:30 - 8:30) | D80: 150 | E80: 180
B81: วันหยุดฯ (8:30 - 16:30) | D81: 175 | E81: 205
B82: วันหยุดฯ (16:30 - 8:30) | D82: 150 | E82: 180
A84: 52012020 | B84: เงินเพิ่มฮอทไลน์
B85: พนักงาน | D85: อัตราเงินเพิ่ม | E85: (บาท/ วันทำงาน)
B86: พนักงานฮอทไลน์ | D86: 150
B87: พนักงานเชื่อมสาย | D87: 150
A89: 52012040 | B89: เงินยังชีพ (14 จังหวัดภาคใต้)
B91: อัตราเงินเดือน (บาท) | D91: อัตราเงินยังชีพ | E91: (บาท/ เดือน)
B92: น้อยกว่า 10,440 บาท | D92: 50
B93: มากกว่า 10,440 บาท | D93: 100
A95: 52020020 | B95: เงินช่วยเหลือค่าเครื่องแบบพนักงาน
B97: กลุ่ม | C97: อัตรา | D97: (บาท/ ปี)
B98: พนักงานช่าง | C98: 1500
B99: พนักงาน | C99: 1500
B100: ลูกจ้างช่าง | C100: 1500
A102: 52029010 | B102: ค่าเช่าบ้าน
B104: อัตราเงินเดือน (บาท) | D104: อัตราค่าเช่าบ้าน | E104: (บาท/ เดือน)
B105: ไม่เกิน 15,000 บาท | D105: 2500
B106: 15,001 - 25,000 | D106: 3500
B107: 25,001 - 35,000 | D107: 4000
B108: 35,001 - 50,000 | D108: 5000
B109: 50,000 บาทขึ้นไป | D109: 6000

Sheet SAP
A1: รายได้ | L1: ค่าใช้จ่าย
A2: =A_Budget_year-3 -> 2564 | C2: =A_Budget_year-2 -> 2565 | G2: =A_Budget_year-1 -> 2566 | L2: =A_Budget_year-3 -> 2564 | N2: =A_Budget_year-2 -> 2565 | R2: =A_Budget_year-1 -> 2566
A3: รหัสบัญชี | B3: รายได้จริง | C3: รหัสบัญชี | D3: ค่าจริงจาก SAP | E3: ประมาณเพิ่ม | F3: รายได้ประมาณการ | G3: รหัสบัญชี | H3: วงเงินที่ได้รับ | L3: รหัสบัญชี | M3: ค่าใช้จ่ายจริง | N3: รหัสบัญชี | O3: ค่าจริงจาก SAP | P3: ประมาณเพิ่ม | Q3: ค่าใช้จ่ายประมาณการ | R3: รหัสบัญชี | S3: วงเงินที่ได้รับ
A4: 41010010 | B4: 1709067830 | C4: 41010010 | D4: 1091464091 | E4: =D4/7*5 -> 779617207.9 | F4: =SUM(D4:E4) -> 1871081299 | I4: 55555555 | J4: 55555555 | K4: 55555555 | L4: 51011010 | M4: 17905.23 | N4: 51011010 | O4: 74172 | P4: =O4/7*5 -> 52980 | Q4: =SUM(O4:P4) -> 127152
A5: 41010020 | B5: 168691.76 | C5: 41010020 | D5: 103084.26 | E5: =D5/7*5 -> 73631.61429 | F5: =SUM(D5:E5) -> 176715.8743 | L5: 51011020 | M5: 0 | N5: 51011020 | O5: 0 | P5: =O5/7*5 -> 0 | Q5: =SUM(O5:P5) -> 0
A6: 41012020 | B6: 116722969.2 | C6: 41012020 | D6: 6839556.51 | E6: 4885397.507 | F6: 11724954.02 | L6: 52010030 | M6: 1176645.52 | N6: 52010030 | O6: 769452.24 | P6: =O6/7*5 -> 549608.7429 | Q6: 1319060.983
A7: 41020040 | B7: -52011749.97 | C7: 41020040 | D7: 0 | E7: 0 | F7: 0 | L7: 52010040 | M7: 645800 | N7: 52010040 | O7: 346580 | P7: =O7/7*5 -> 247557.1429 | Q7: 594137.1429
A8: 41020050 | B8: -81116962.93 | C8: 41020050 | D8: 0 | E8: 0 | F8: 0 | L8: 52010990 | M8: 158194.82 | N8: 52010990 | O8: 145000 | P8: 103571.4286 | Q8: 248571.4286
A9: 41020060 | B9: 0 | C9: 41020060 | D9: -6839556.51 | E9: -4885397.507 | F9: -11724954.02 | L9: 52012010 | M9: 52956 | N9: 52012010 | O9: 33075 | P9: 23625 | Q9: 56700
A10: 41035010 | B10: 25345346.1 | C10: 41035010 | D10: 11591678.63 | E10: 8279770.45 | F10: 19871449.08 | L10: 52012020 | M10: 503850 | N10: 52012020 | O10: 260100 | P10: 185785.7143 | Q10: 445885.7143
A11: 41035019 | B11: 2490010.67 | C11: 41035019 | D11: 564380.51 | E11: 403128.9357 | F11: 967509.4457 | L11: 52012030 | M11: 0 | N11: 52012030 | O11: 0 | P11: 0 | Q11: 0
A12: 41030990 | B12: 0 | C12: 41030990 | D12: 1023.57 | E12: 731.1214286 | F12: 1754.691429 | L12: 52012040 | M12: 0 | N12: 52012040 | O12: 0 | P12: 0 | Q12: 0
A13: 41031010 | B13: 7506364.8 | C13: 41031010 | D13: 3433672.81 | E13: 2452623.436 | F13: 5886296.246 | L13: 52012050 | M13: 636361.83 | N13: 52012050 | O13: 357231.84 | P13: 255165.6 | Q13: 612397.44
A14: 41031020 | B14: 81516.85 | C14: 41031020 | D14: 44246.79 | E14: 31604.85 | F14: 75851.64 | L14: 52012060 | M14: 0 | N14: 52012060 | O14: 0 | P14: 0 | Q14: 0
A15: 41031990 | B15: 1240 | C15: 41031990 | D15: 24360 | E15: 17400 | F15: 41760 | L15: 52012070 | M15: 60000 | N15: 52012070 | O15: 36400 | P15: 26000 | Q15: 62400
A16: 41032010 | B16: 2074900 | C16: 41032010 | D16: 1002750 | E16: 716250 | F16: 1719000 | L16: 52012990 | M16: 0 | N16: 52012990 | O16: 0 | P16: 0 | Q16: 0
A17: 41032019 | B17: -82300 | C17: 41032019 | D17: 42100 | E17: 30071.42857 | F17: 72171.42857 | L17: 52020020 | M17: 6000 | N17: 52020020 | O17: 0 | P17: 0 | Q17: 0
A18: 41032020 | B18: 861080 | C18: 41032020 | D18: 305780 | E18: 218414.2857 | F18: 524194.2857 | L18: 52020030 | M18: 316635 | N18: 52020030 | O18: 227291.5 | P18: 162351.0714 | Q18: 389642.5714
A19: 41032029 | B19: -420080 | C19: 41032029 | D19: 22540 | E19: 16100 | F19: 38640 | L19: 52020040 | M19: 266500 | N19: 52020040 | O19: 162500 | P19: 116071.4286 | Q19: 278571.4286
A20: 41033020 | B20: 50000 | C20: 41033020 | D20: 50000 | E20: 35714.28571 | F20: 85714.28571 | L20: 52020990 | M20: 131440 | N20: 52020990 | O20: 1200 | P20: 857.1428571 | Q20: 2057.142857
A21: 41034020 | B21: 201280 | C21: 41034020 | D21: 142120 | E21: 101514.2857 | F21: 243634.2857 | L21: 52022010 | M21: 22588 | N21: 52022010 | O21: 17043 | P21: 12173.57143 | Q21: 29216.57143
A22: 41034030 | B22: 46000 | C22: 41034030 | D22: 555700 | E22: 396928.5714 | F22: 952628.5714 | L22: 52022020 | M22: 517290 | N22: 52022020 | O22: 423575 | P22: 302553.5714 | Q22: 726128.5714
A23: 41034040 | B23: 3750 | C23: 41034040 | D23: 46600 | E23: 33285.71429 | F23: 79885.71429 | L23: 52022030 | M23: 1058580 | N23: 52022030 | O23: 892655 | P23: 637610.7143 | Q23: 1530265.714
A24: 41034990 | B24: -400 | C24: 41034990 | D24: 0 | E24: 0 | F24: 0 | L24: 52022040 | M24: 0 | N24: 52022040 | O24: 0 | P24: 0 | Q24: 0
A25: 41036030 | B25: 1399662.45 | C25: 41036030 | D25: 473365.8 | E25: 338118.4286 | F25: 811484.2286 | L25: 52022050 | M25: 0 | N25: 52022050 | O25: 0 | P25: 0 | Q25: 0
A26: 41036010 | B26: 13605048.66 | C26: 41036010 | D26: 8013508.09 | E26: 5723934.35 | F26: 13737442.44 | L26: 52022060 | M26: 832 | N26: 52022060 | O26: 396 | P26: 282.8571429 | Q26: 678.8571429
A27: 41036017 | B27: 3828.93 | C27: 41036017 | D27: -3828.93 | E27: -2734.95 | F27: -6563.88 | L27: 52022070 | M27: 4845 | N27: 52022070 | O27: 1530 | P27: 1092.857143 | Q27: 2622.857143
A28: 41032030 | B28: 1791290.58 | C28: 41032030 | D28: 840264.54 | E28: 600188.9571 | F28: 1440453.497 | L28: 52022080 | M28: 2670 | N28: 52022080 | O28: 890 | P28: 635.7142857 | Q28: 1525.714286
A29: 41032039 | B29: -157750.09 | C29: 41032039 | D29: -168960.91 | E29: -120686.3643 | F29: -289647.2743 | L29: 52029010 | M29: 599550 | N29: 52029010 | O29: 276000 | P29: 197142.8571 | Q29: 473142.8571
A30: 41035020 | B30: 213247.34 | C30: 41035020 | D30: 894737.55 | E30: 639098.25 | F30: 1533835.8 | L30: 52029990 | M30: 0 | N30: 52029990 | O30: 0 | P30: 0 | Q30: 0
A31: 41035029 | B31: -41151 | C31: 41035029 | D31: 30895.5 | E31: 22068.21429 | F31: 52963.71429 | L31: 52030010 | M31: 0 | N31: 52030010 | O31: 0 | P31: 0 | Q31: 0
A32: 41039010 | B32: 235000 | C32: 41039010 | D32: 160000 | E32: 114285.7143 | F32: 274285.7143 | L32: 52030020 | M32: 3183 | N32: 52030020 | O32: 5260 | P32: 3757.142857 | Q32: 9017.142857
A33: 41039030 | B33: 67010 | C33: 41039030 | D33: 14506 | E33: 10361.42857 | F33: 24867.42857 | L33: 52030030 | M33: 9375 | N33: 52030030 | O33: 13890 | P33: 9921.428571 | Q33: 23811.42857
A34: 41039039 | B34: -13656 | C34: 41039039 | D34: 21062 | E34: 15044.28571 | F34: 36106.28571 | L34: 53010010 | M34: 0 | N34: 53010010 | O34: 0 | P34: 0 | Q34: 0
A35: 41039110 | B35: 11111462.83 | C35: 41039110 | D35: 6711287.01 | E35: 4793776.436 | F35: 11505063.45 | L35: 53010020 | M35: 9267551.2 | N35: 53010020 | O35: 5027062.8 | P35: 3590759.143 | Q35: 8617821.943
A36: 41039160 | B36: 8000 | C36: 41039160 | D36: 2000 | E36: 1428.571429 | F36: 3428.571429 | L36: 53010030 | M36: 0 | N36: 53010030 | O36: 0 | P36: 0 | Q36: 0
A37: 41039169 | B37: -4000 | C37: 41039169 | D37: 2000 | E37: 1428.571429 | F37: 3428.571429 | L37: 53010040 | M37: 121838 | N37: 53010040 | O37: 1123793 | P37: 802709.2857 | Q37: 1926502.286
A38: 41039020 | B38: 44650.52 | C38: 41039020 | D38: 63870.43 | E38: 45621.73571 | F38: 109492.1657 | L38: 53010050 | M38: 0 | N38: 53010050 | O38: 0 | P38: 0 | Q38: 0
A39: 41039029 | B39: 0 | C39: 41039029 | D39: -3000 | E39: -2142.857143 | F39: -5142.857143 | L39: 53010070 | M39: 9640247.8 | N39: 53010070 | O39: 5655925.6 | P39: 4039946.857 | Q39: 9695872.457
A40: 41039090 | B40: 299441.5 | C40: 41039090 | D40: 424328.8 | E40: 303092 | F40: 727420.8 | L40: 53010080 | M40: 2819236 | N40: 53010080 | O40: 1582750 | P40: 1130535.714 | Q40: 2713285.714
A41: 41039099 | B41: 0 | C41: 41039099 | D41: -119400 | E41: -85285.71429 | F41: -204685.7143 | L41: 53010090 | M41: 5200754.65 | N41: 53010090 | O41: 3229592.7 | P41: 2306851.929 | Q41: 5536444.629
A42: 41038010 | B42: 4037.28 | C42: 41038010 | D42: 2355.08 | E42: 1682.2 | F42: 4037.28 | L42: 53010100 | M42: 2281008.7 | N42: 53010100 | O42: 1079128.68 | P42: 770806.2 | Q42: 1849934.88
A43: 41039990 | B43: 87618.76 | C43: 41039990 | D43: 194500.53 | E43: 138928.95 | F43: 333429.48 | L43: 53011010 | M43: 0 | N43: 53011010 | O43: 0 | P43: 0 | Q43: 0
A44: 41012010 | B44: 38638591.75 | C44: 41012010 | D44: 23773476.73 | E44: 16981054.81 | F44: 40754531.54 | L44: 53011020 | M44: 0 | N44: 53011020 | O44: 0 | P44: 0 | Q44: 0
A45: 49020020 | B45: 99279.4 | C45: 49020020 | D45: 617.52 | E45: 441.0857143 | F45: 1058.605714 | L45: 53011030 | M45: 0 | N45: 53011030 | O45: 0 | P45: 0 | Q45: 0
A46: 49020040 | B46: 26552.2 | C46: 49020040 | D46: 16140 | E46: 11528.57143 | F46: 27668.57143 | L46: 53011040 | M46: 0 | N46: 53011040 | O46: 0 | P46: 0 | Q46: 0
A47: 49020990 | B47: 39.45 | C47: 49020990 | D47: 0 | E47: 0 | F47: 0 | L47: 53011990 | M47: 0 | N47: 53011990 | O47: 0 | P47: 0 | Q47: 0
A48: 41039040 | B48: 81000 | C48: 41039040 | D48: 468000 | E48: 334285.7143 | F48: 802285.7143 | L48: 53012010 | M48: 0 | N48: 53012010 | O48: 0 | P48: 0 | Q48: 0
A49: 41039050 | B49: 195761.2 | C49: 41039050 | D49: 155421.45 | E49: 111015.3214 | F49: 266436.7714 | L49: 53012030 | M49: 0 | N49: 53012030 | O49: 0 | P49: 0 | Q49: 0
A50: 41039060 | B50: 199864.77 | C50: 41039060 | D50: 161289.62 | E50: 115206.8714 | F50: 276496.4914 | L50: 53012040 | M50: 0 | N50: 53012040 | O50: 0 | P50: 0 | Q50: 0
A51: 41039130 | B51: 567504.31 | C51: 41039130 | D51: 0 | E51: 0 | F51: 0 | L51: 53012990 | M51: 0 | N51: 53012990 | O51: 0 | P51: 0 | Q51: 0
A52: 49040010 | B52: 397729.11 | C52: 49040010 | D52: 0 | E52: 0 | F52: 0 | L52: 53019990 | M52: 1500 | N52: 53019990 | O52: 0 | P52: 0 | Q52: 0
A53: 49041010 | B53: 21184355.34 | C53: 49041010 | D53: 0 | E53: 0 | F53: 0 | L53: 53021010 | M53: 39066.67 | N53: 53021010 | O53: 34953 | P53: 24966.42857 | Q53: 59919.42857
A54: 49050010 | B54: 97 | C54: 49050010 | D54: 0 | E54: 0 | F54: 0 | L54: 53021020 | M54: 145289.27 | N54: 53021020 | O54: 83204.42 | P54: 59431.72857 | Q54: 142636.1486
A55: 49050070 | B55: 303037.68 | C55: 49050070 | D55: 431135.53 | E55: 307953.95 | F55: 739089.48 | L55: 53021030 | M55: 0 | N55: 53021030 | O55: 21210 | P55: 15150 | Q55: 36360
A56: 49059990 | B56: 60111.45 | C56: 49059990 | D56: 56643.14 | E56: 40459.38571 | F56: 97102.52571 | L56: 53030010 | M56: 894144.09 | N56: 53030010 | O56: 544564.98 | P56: 388974.9857 | Q56: 933539.9657
A57: 49010010 | B57: 11899.68 | C57: 49010010 | D57: 6469.65 | E57: 4621.178571 | F57: 11090.82857 | L57: 53030030 | M57: 197570.46 | N57: 53030030 | O57: 80980.37 | P57: 57843.12143 | Q57: 138823.4914
A58: 49019010 | B58: 1545287.51 | C58: 49019010 | D58: 766172.53 | E58: 547266.0929 | F58: 1313438.623 | L58: 53031010 | M58: 91630.92 | N58: 53031010 | O58: 50088.22 | P58: 35777.3 | Q58: 85865.52
A59: 49040010 | B59: 0 | C59: 49040010 | D59: -13748.3 | E59: -9820.214286 | F59: -23568.51429 | L59: 53031020 | M59: 273038.75 | N59: 53031020 | O59: 93568.75 | P59: 66834.82143 | Q59: 160403.5714
A60: 49041010 | B60: 0 | C60: 49041010 | D60: -3153865.47 | E60: -2252761.05 | F60: -5406626.52 | L60: 53031030 | M60: 856874.47 | N60: 53031030 | O60: 558150.22 | P60: 398678.7286 | Q60: 956828.9486
A61: 49050010 | B61: 0 | C61: 49050010 | D61: -234.6 | E61: -167.5714286 | F61: -402.1714286 | L61: 53032010 | M61: 10126.11 | N61: 53032010 | O61: 4276.5 | P61: 3054.642857 | Q61: 7331.142857
F62: 0 | L62: 53032020 | M62: 47464.09 | N62: 53032020 | O62: 25790 | P62: 18421.42857 | Q62: 44211.42857
F63: 0 | L63: 53032030 | M63: 0 | N63: 53032030 | O63: 0 | P63: 0 | Q63: 0
F64: 0 | L64: 53032050 | M64: 9880 | N64: 53032050 | O64: 0 | P64: 0 | Q64: 0
F65: 0 | L65: 53032060 | M65: 127842 | N65: 53032060 | O65: 47471 | P65: 33907.85714 | Q65: 81378.85714
F66: 0 | L66: 53032070 | M66: 0 | N66: 53032070 | O66: 0 | P66: 0 | Q66: 0
F67: 0 | L67: 53032080 | M67: 38767 | N67: 53032080 | O67: 21298 | P67: 15212.85714 | Q67: 36510.85714
F68: 0 | L68: 53032990 | M68: 19950 | N68: 53032990 | O68: 9576 | P68: 6840 | Q68: 16416
F69: =SUM(D69:E69) -> 0 | L69: 53033010 | M69: 73000 | N69: 53033010 | O69: 24000 | P69: 17142.85714 | Q69: =SUM(O69:P69) -> 41142.85714
F70: 0 | L70: 53033020 | M70: 0 | N70: 53033020 | O70: 0 | P70: 0 | Q70: 0
F71: 0 | L71: 53033030 | M71: 0 | N71: 53033030 | O71: 0 | P71: =O71/7*5 -> 0 | Q71: 0
F72: 0 | L72: 53033040 | M72: 0 | N72: 53033040 | O72: 0 | P72: 0 | Q72: 0
F73: 0 | L73: 53033050 | M73: 0 | N73: 53033050 | O73: 0 | P73: 0 | Q73: 0
F74: 0 | L74: 53033060 | M74: 0 | N74: 53033060 | O74: 0 | P74: 0 | Q74: 0
F75: 0 | L75: 53033070 | M75: 5000 | N75: 53033070 | O75: 4000 | P75: 2857.142857 | Q75: 6857.142857
F76: 0 | L76: 53033990 | M76: 0 | N76: 53033990 | O76: 0 | P76: 0 | Q76: 0
F77: 0 | L77: 53034010 | M77: 609956 | N77: 53034010 | O77: 326986 | P77: 233561.4286 | Q77: 560547.4286
F78: 0 | L78: 53034030 | M78: 16285 | N78: 53034030 | O78: 8500 | P78: 6071.428571 | Q78: 14571.42857
F79: 0 | L79: 53034040 | M79: 143853.01 | N79: 53034040 | O79: 120928.45 | P79: 86377.46429 | Q79: 207305.9143
F80: 0 | L80: 53039010 | M80: 3846217.63 | N80: 53039010 | O80: 2615214.15 | P80: 1868010.107 | Q80: 4483224.257
F81: 0 | L81: 53039020 | M81: 7580 | N81: 53039020 | O81: 0 | P81: 0 | Q81: 0
F82: 0 | L82: 53039990 | M82: 135913.54 | N82: 53039990 | O82: 35220.31 | P82: 25157.36429 | Q82: 60377.67429
F83: 0 | L83: 53050010 | M83: 1201085 | N83: 53050010 | O83: 1122435 | P83: 801739.2857 | Q83: 1924174.286
F84: 0 | L84: 53050020 | M84: 6882369.3 | N84: 53050020 | O84: 3537101.75 | P84: 2526501.25 | Q84: 6063603
F85: 0 | L85: 53051010 | M85: 3805580.46 | N85: 53051010 | O85: 2834060.06 | P85: 2024328.614 | Q85: 4858388.674
F86: 0 | L86: 53051030 | M86: 392320 | N86: 53051030 | O86: 0 | P86: 0 | Q86: 0
F87: 0 | L87: 53051040 | M87: 149586.45 | N87: 53051040 | O87: 181815 | P87: 129867.8571 | Q87: 311682.8571
F88: 0 | L88: 53051050 | M88: 1883396.61 | N88: 53051050 | O88: 637797.27 | P88: 455569.4786 | Q88: 1093366.749
F89: 0 | L89: 53051060 | M89: 7965.1 | N89: 53051060 | O89: 1306.35 | P89: 933.1071429 | Q89: 2239.457143
F90: 0 | L90: 53051070 | M90: 0 | N90: 53051070 | O90: 0 | P90: 0 | Q90: 0
F91: 0 | L91: 53051090 | M91: 189997.09 | N91: 53051090 | O91: 53229.86 | P91: 38021.32857 | Q91: 91251.18857
F92: 0 | L92: 53051100 | M92: 296754.72 | N92: 53051100 | O92: 49200.84 | P92: 35143.45714 | Q92: 84344.29714
F93: 0 | L93: 53051110 | M93: 0 | N93: 53051110 | O93: 0 | P93: 0 | Q93: 0
F94: 0 | L94: 53051120 | M94: 0 | N94: 53051120 | O94: 0 | P94: 0 | Q94: 0
F95: 0 | L95: 53051990 | M95: 126386.22 | N95: 53051990 | O95: 203855.2 | P95: 145610.8571 | Q95: 349466.0571
F96: 0 | L96: 53061010 | M96: 0 | N96: 53061010 | O96: 0 | P96: 0 | Q96: 0
F97: 0 | L97: 53061020 | M97: 0 | N97: 53061020 | O97: 0 | P97: 0 | Q97: 0
F98: 0 | L98: 53061030 | M98: 0 | N98: 53061030 | O98: 0 | P98: 0 | Q98: 0
F99: 0 | L99: 53061040 | M99: 0 | N99: 53061040 | O99: 0 | P99: 0 | Q99: 0
F100: 0 | L100: 53061050 | M100: 0 | N100: 53061050 | O100: 0 | P100: 0 | Q100: 0
F101: 0 | L101: 53061090 | M101: 0 | N101: 53061090 | O101: 0 | P101: 0 | Q101: 0
F102: 0 | L102: 53062010 | M102: 0 | N102: 53062010 | O102: 0 | P102: 0 | Q102: 0
F103: 0 | L103: 53062020 | M103: 144147.47 | N103: 53062020 | O103: 55684.68 | P103: 39774.77143 | Q103: 95459.45143
F104: 0 | L104: 53062030 | M104: 0 | N104: 53062030 | O104: 0 | P104: 0 | Q104: 0
F105: 0 | L105: 53062040 | M105: 0 | N105: 53062040 | O105: 0 | P105: 0 | Q105: 0
F106: 0 | L106: 53062990 | M106: 0 | N106: 53062990 | O106: 0 | P106: 0 | Q106: 0
F107: 0 | L107: 53063010 | M107: 39840 | N107: 53063010 | O107: 0 | P107: 0 | Q107: 0
F108: 0 | L108: 53064010 | M108: 14858.97 | N108: 53064010 | O108: 120603.18 | P108: 86145.12857 | Q108: 206748.3086
F109: 0 | L109: 53064020 | M109: 85140 | N109: 53064020 | O109: 48385.98 | P109: 34561.41429 | Q109: 82947.39429
F110: 0 | L110: 53065050 | M110: 0 | N110: 53065050 | O110: 0 | P110: 0 | Q110: 0
F111: 0 | L111: 53065990 | M111: 0 | N111: 53065990 | O111: 0 | P111: 0 | Q111: 0
F112: 0 | L112: 53066010 | M112: 0 | N112: 53066010 | O112: 0 | P112: 0 | Q112: 0
F113: 0 | L113: 53066020 | M113: 0 | N113: 53066020 | O113: 0 | P113: 0 | Q113: 0
F114: 0 | L114: 53066030 | M114: 0 | N114: 53066030 | O114: 0 | P114: 0 | Q114: 0
F115: 0 | L115: 53066040 | M115: 0 | N115: 53066040 | O115: 0 | P115: 0 | Q115: 0
F116: 0 | L116: 53069020 | M116: 4000 | N116: 53069020 | O116: 0 | P116: 0 | Q116: 0
F117: 0 | L117: 53069030 | M117: 0 | N117: 53069030 | O117: 0 | P117: 0 | Q117: 0
F118: 0 | L118: 53069040 | M118: 0 | N118: 53069040 | O118: 0 | P118: 0 | Q118: 0
F119: 0 | L119: 53069060 | M119: 50 | N119: 53069060 | O119: 34 | P119: 24.28571429 | Q119: 58.28571429
F120: 0 | L120: 53069070 | M120: 48501.58 | N120: 53069070 | O120: 22942 | P120: 16387.14286 | Q120: 39329.14286
F121: 0 | L121: 53069080 | M121: 8446 | N121: 53069080 | O121: 23786 | P121: 16990 | Q121: 40776
F122: 0 | L122: 53069090 | M122: 0 | N122: 53069090 | O122: 0 | P122: 0 | Q122: 0
F123: 0 | L123: 53069110 | M123: 1185 | N123: 53069110 | O123: 350 | P123: 250 | Q123: 600
F124: 0 | L124: 53069120 | M124: 0 | N124: 53069120 | O124: 0 | P124: 0 | Q124: 0
F125: 0 | L125: 53069160 | M125: 0 | N125: 53069160 | O125: 0 | P125: 0 | Q125: 0
F126: 0 | L126: 53069990 | M126: 179329.82 | N126: 53069990 | O126: 37808.8 | P126: 27006.28571 | Q126: 64815.08571
F127: 0 | L127: 51010010 | M127: 716066114.1 | N127: 51010010 | O127: 538840468.3 | P127: 384886048.8 | Q127: 923726517.1
F128: 0 | L128: 51010018 | M128: -1474036.77 | N128: 51010018 | O128: -1003329.43 | P128: -716663.8786 | Q128: -1719993.309
F129: 0 | L129: 51010030 | M129: 815580809.8 | N129: 51010030 | O129: 480515102.6 | P129: 343225073.3 | Q129: 823740175.9
F130: 0 | L130: 51010060 | M130: 2119853.04 | N130: 51010060 | O130: 1255096.14 | P130: 896497.2429 | Q130: 2151593.383
F131: 0 | L131: 51010090 | M131: 2374880.69 | N131: 51010090 | O131: 1185026.84 | P131: 846447.7429 | Q131: 2031474.583
F132: 0 | L132: 51010100 | M132: 949952.27 | N132: 51010100 | O132: 474010.75 | P132: 338579.1071 | Q132: 812589.8571
F133: =SUM(D133:E133) -> 0 | L133: 51021010 | M133: 8597.49 | N133: 51021010 | O133: 46542.81 | P133: 33244.86429 | Q133: =SUM(O133:P133) -> 79787.67429
F134: 0 | L134: 52010010 | M134: 48754049.03 | N134: 52010010 | O134: 26590981.94 | P134: 18993558.53 | Q134: 45584540.47
F135: 0 | L135: 52010020 | M135: 5925441.92 | N135: 52010020 | O135: 3542838.33 | P135: =O135/7*5 -> 2530598.807 | Q135: 6073437.137
F136: 0 | L136: 52010050 | N136: 52010050 | P136: 0 | Q136: 0
F137: 0 | L137: 52010070 | M137: 1247788.75 | N137: 52010070 | O137: 984706.77 | P137: 703361.9786 | Q137: 1688068.749
F138: 0 | L138: 52011020 | M138: 5103364.23 | N138: 52011020 | O138: 2767591.14 | P138: 1976850.814 | Q138: 4744441.954
F139: 0 | L139: 52013010 | N139: 52020010 | O139: 5099778.59 | P139: 3642698.993 | Q139: 8742477.583
F140: 0 | L140: 52020010 | M140: 8476113.83 | N140: 52021010 | O140: 1680524.78 | P140: 1200374.843 | Q140: 2880899.623
F141: 0 | L141: 52021010 | M141: 4017411.68 | N141: 52021020 | O141: 1219273.3 | P141: 870909.5 | Q141: 2090182.8
F142: 0 | L142: 52021020 | M142: 3334101.42 | N142: 52040010 | O142: 3060360.24 | P142: 2185971.6 | Q142: 5246331.84
F143: 0 | L143: 52040010 | M143: 5773175 | N143: 52040020 | O143: 81188.94 | P143: 57992.1 | Q143: 139181.04
F144: 0 | L144: 52040020 | M144: 162709 | N144: 53034020 | O144: 1312000 | P144: 937142.8571 | Q144: 2249142.857
F145: 0 | L145: 53034020 | M145: 2378000 | N145: 53052030 | P145: 0 | Q145: 0
F146: 0 | L146: 53052030 | N146: 53060010 | O146: 14903.77 | P146: 10645.55 | Q146: 25549.32
F147: 0 | L147: 53060010 | M147: 3668.11 | N147: 53060020 | O147: 6196860.93 | P147: 4426329.236 | Q147: 10623190.17
F148: 0 | L148: 53060020 | M148: -1687229.61 | N148: 53065080 | O148: 44860.69 | P148: 32043.35 | Q148: 76904.04
F149: 0 | L149: 53065010 | M149: 28500 | N149: 53065090 | O149: 156288.41 | P149: 111634.5786 | Q149: 267922.9886
F150: 0 | L150: 53065080 | M150: 76903.95 | N150: 53069100 | O150: 7244.6 | P150: 5174.714286 | Q150: 12419.31429
F151: 0 | L151: 53065090 | M151: 121201.03 | N151: 53069170 | O151: 73730.63 | P151: 52664.73571 | Q151: 126395.3657
F152: 0 | L152: 53069100 | M152: 7748.7 | N152: 54011010 | O152: 119121.65 | P152: 85086.89286 | Q152: 204208.5429
F153: 0 | L153: 53069170 | M153: 79754.65 | N153: 54020010 | O153: 106276.16 | P153: 75911.54286 | Q153: 182187.7029
F154: 0 | L154: 54011010 | M154: 175824.23 | N154: 54020020 | O154: 980167.04 | P154: 700119.3143 | Q154: 1680286.354
F155: 0 | L155: 54020010 | M155: 168954.64 | N155: 54020030 | O155: 37838.42 | P155: 27027.44286 | Q155: 64865.86286
F156: 0 | L156: 54020020 | M156: 1687551.78 | N156: 54021010 | O156: 68155.58 | P156: 48682.55714 | Q156: 116838.1371
F157: 0 | L157: 54020030 | M157: 65146.37 | N157: 54029990 | O157: 53184.01 | P157: 37988.57857 | Q157: 91172.58857
F158: 0 | L158: 54021010 | M158: 117343.33 | N158: 54030010 | O158: 49950.68 | P158: 35679.05714 | Q158: 85629.73714
F159: 0 | L159: 54029990 | M159: 97010.98 | N159: 54040010 | O159: 48083546.79 | P159: 34345390.56 | Q159: 82428937.35
F160: 0 | L160: 54030010 | M160: 86000 | N160: 54040020 | O160: 498.9 | P160: 356.3571429 | Q160: 855.2571429
F161: 0 | L161: 54040010 | M161: 79914130.4 | N161: 54040030 | O161: 89198.26 | P161: 63713.04286 | Q161: 152911.3029
F162: 0 | L162: 54040020 | M162: 5240.39 | N162: 54040040 | O162: 2565924.27 | P162: 1832803.05 | Q162: 4398727.32
F163: 0 | L163: 54040030 | M163: 76390.26 | N163: 54040050 | O163: 2609131.32 | P163: 1863665.229 | Q163: 4472796.549
F164: 0 | L164: 54040040 | M164: 4230236.7 | N164: 54050010 | O164: 350109.12 | P164: 250077.9429 | Q164: 600187.0629
F165: 0 | L165: 54040050 | M165: 4816278.38 | N165: 54050020 | O165: 5819.09 | P165: 4156.492857 | Q165: 9975.582857
F166: 0 | L166: 54050010 | M166: 566439.43 | N166: 54050030 | O166: 103569.29 | P166: 73978.06429 | Q166: 177547.3543
F167: 0 | L167: 54050020 | M167: 10018.7 | N167: 54050040 | O167: 495276.6 | P167: 353769 | Q167: 849045.6
F168: 0 | L168: 54050030 | M168: 177568.53 | N168: 54051010 | O168: 207005.09 | P168: 147860.7786 | Q168: 354865.8686
F169: 0 | L169: 54050040 | M169: 909039.16 | N169: 54051020 | O169: 421810.3 | P169: 301293.0714 | Q169: 723103.3714
F170: 0 | L170: 54051010 | M170: 390541.51 | N170: 54051040 | O170: 24388.95 | P170: 17420.67857 | Q170: 41809.62857
F171: 0 | L171: 54051020 | M171: 684126.88 | N171: 54052010 | O171: 239185.76 | P171: 170846.9714 | Q171: 410032.7314
F172: 0 | L172: 54051040 | M172: 26362.19 | N172: 54052020 | O172: 175118.95 | P172: 125084.9643 | Q172: 300203.9143
F173: 0 | L173: 54052010 | M173: 389246.43 | N173: 54052030 | O173: 265811.36 | P173: 189865.2571 | Q173: 455676.6171
F174: 0 | L174: 54052020 | M174: 305999.41 | N174: 54060030 | O174: 1257625.19 | P174: 898303.7071 | Q174: 2155928.897
F175: 0 | L175: 54052030 | M175: 680239.44 | N175: 54060040 | O175: 49927.43 | P175: 35662.45 | Q175: 85589.88
F176: 0 | L176: 54060030 | M176: 1784834.99 | N176: 54080010 | O176: 257850.85 | P176: 184179.1786 | Q176: 442030.0286
F177: 0 | L177: 54060040 | M177: 24257.2 | N177: 54080020 | O177: 61303.86 | P177: 43788.47143 | Q177: 105092.3314
F178: 0 | L178: 54070010 | N178: 54080060 | O178: 1183040.95 | P178: 845029.25 | Q178: 2028070.2
F179: 0 | L179: 54080010 | M179: 388098.19 | N179: 55020030 | O179: 109409.01 | P179: 78149.29286 | Q179: 187558.3029
F180: 0 | L180: 54080020 | M180: 105546.73 | Q180: 0
F181: 0 | L181: 54080060 | M181: 1997153.21 | Q181: 0
F182: 0 | L182: 55020030 | M182: 275212.85 | Q182: 0
F183: 0 | Q183: 0
F184: 0 | Q184: 0
F185: 0 | Q185: 0
F186: 0 | Q186: 0
F187: 0 | Q187: 0
F188: 0 | Q188: 0
F189: 0 | Q189: 0
F190: 0 | Q190: 0
F191: 0 | Q191: 0
F192: 0 | Q192: 0
F193: 0 | Q193: 0
F194: 0 | Q194: 0
F195: 0 | Q195: 0
F196: 0 | Q196: 0
F197: =SUM(D197:E197) -> 0 | Q197: =SUM(O197:P197) -> 0
F198: 0 | Q198: 0
F199: 0 | Q199: 0
F200: 0 | Q200: 0
... 798 more rows

Sheet R001
A1: ="งบประมาณทำการประจำปี "&A_Budget_year -> งบประมาณทำการประจำปี 2567 | J1: งป.001
A2: =Cover!C3 -> ส่วนภูมิภาค
A3: ประมาณการรายได้
A4: =Unit_eng -> MB | I4: =Head_division -> เขต: | J4: =Head_division2 -> กฟน.3 - 07
I5: หน่วย: | J5: บาท
A6: (1) | B6: (2) | F6: (3) | G6: (4) | H6: (5) | I6: (6) | J6: (7)
A7: รหัสบัญชี | B7: ชื่อบัญชี | F7: รายได้จริง | G7: รายได้จริง | H7: วงเงินที่ได้รับ | I7: ประมาณการ | J7: คำชี้แจงประกอบ
F8: ="ปี "&A_Budget_year-3 -> ปี 2564 | G8: ="ปี "&A_Budget_year-2 -> ปี 2565 | H8: ="ปี "&A_Budget_year-1 -> ปี 2566 | I8: ="ปี "&A_Budget_year -> ปี 2567
B9: รายได้จากการดำเนินงาน | K9: =IF(SUM(K10:K17)>0,1,0) -> 1
B10: รายได้จากการจำหน่ายกระแสไฟฟ้า | K10: =IF(SUM(K11:K17)>0,1,0) -> 1
A11: 41010010 | D11: รายได้จากการจำหน่ายไฟฟ้า | F11: =IFERROR(VLOOKUP(A11,SAP!A:B,2,0),0) -> 1709067830 | G11: =IFERROR(VLOOKUP(A11,SAP!C:F,4,0),0) -> 1871081299 | H11: =IFERROR(VLOOKUP(A11,SAP!G:H,2,0),0) -> 0 | I11: =IFERROR(VLOOKUP(A11,'R100'!A:J,10,0),0) -> 2065000000 | K11: =IF(SUM(F11:I11)>0,1,0) -> 1
A12: 41010020 | D12: ปรับปรุงรายได้จากการจำหน่ายไฟฟ้า | F12: =IFERROR(VLOOKUP(A12,SAP!A:B,2,0),0) -> 168691.76 | G12: =IFERROR(VLOOKUP(A12,SAP!C:F,4,0),0) -> 176715.8743 | H12: =IFERROR(VLOOKUP(A12,SAP!G:H,2,0),0) -> 0 | I12: =IFERROR(VLOOKUP(A12,'R100'!A:J,10,0),0) -> 193500 | K12: =IF(SUM(F12:I12)>0,1,0) -> 1
A13: 41010118 | D13: รายได้จากการจำหน่ายไฟฟ้า ประเภทไฟชั่วคราวแบบเหมา | F13: =IFERROR(VLOOKUP(A13,SAP!A:B,2,0),0) -> 0 | G13: =IFERROR(VLOOKUP(A13,SAP!C:F,4,0),0) -> 0 | H13: =IFERROR(VLOOKUP(A13,SAP!G:H,2,0),0) -> 0 | I13: =IFERROR(VLOOKUP(A13,'R100'!A:J,10,0),0) -> 0 | K13: 0
A14: 41010990 | D14: ปรับปรุงรายได้จากการจำหน่ายไฟฟ้า GL | F14: =IFERROR(VLOOKUP(A14,SAP!A:B,2,0),0) -> 0 | G14: =IFERROR(VLOOKUP(A14,SAP!C:F,4,0),0) -> 0 | H14: =IFERROR(VLOOKUP(A14,SAP!G:H,2,0),0) -> 0 | I14: =IFERROR(VLOOKUP(A14,'R100'!A:J,10,0),0) -> 0 | K14: 0
A15: 41011040 | D15: รายได้จากการให้บริการสถานีอัดประจุไฟฟ้า | F15: =IFERROR(VLOOKUP(A15,SAP!A:B,2,0),0) -> 0 | G15: =IFERROR(VLOOKUP(A15,SAP!C:F,4,0),0) -> 0 | H15: =IFERROR(VLOOKUP(A15,SAP!G:H,2,0),0) -> 0 | I15: =IFERROR(VLOOKUP(A15,'R100'!A:J,10,0),0) -> 0 | K15: 0
A16: 41012010 | D16: เงินชดเชยรายได้ | F16: =IFERROR(VLOOKUP(A16,SAP!A:B,2,0),0) -> 38638591.75 | G16: =IFERROR(VLOOKUP(A16,SAP!C:F,4,0),0) -> 40754531.54 | H16: =IFERROR(VLOOKUP(A16,SAP!G:H,2,0),0) -> 0 | I16: =IFERROR(VLOOKUP(A16,'R100'!A:J,10,0),0) -> 46000000 | K16: 1
A17: 41012020 | D17: เงินสนับสนุนมาตรการรัฐ | F17: =IFERROR(VLOOKUP(A17,SAP!A:B,2,0),0) -> 116722969.2 | G17: =IFERROR(VLOOKUP(A17,SAP!C:F,4,0),0) -> 11724954.02 | H17: =IFERROR(VLOOKUP(A17,SAP!G:H,2,0),0) -> 0 | I17: =IFERROR(VLOOKUP(A17,'R100'!A:J,10,0),0) -> 13100000 | K17: =IF(SUM(F17:I17)>0,1,0) -> 1
B18: รวมรายได้จากการจำหน่ายไฟฟ้า | F18: =SUBTOTAL(109,F11:F17) -> 1864598083 | G18: =SUBTOTAL(109,G11:G17) -> 1923737500 | H18: 0 | I18: 2124293500 | K18: =K9 -> 1
B19: ส่วนลดค่าไฟฟ้า | K19: =IF(SUM(K20:K22)>0,1,0) -> 0
A20: 41020030 | D20: ส่วนลดค่าไฟฟ้า 3% | F20: =IFERROR(VLOOKUP(A20,SAP!A:B,2,0),0) -> 0 | G20: =IFERROR(VLOOKUP(A20,SAP!C:F,4,0),0) -> 0 | H20: =IFERROR(VLOOKUP(A20,SAP!G:H,2,0),0) -> 0 | I20: =IFERROR(VLOOKUP(A20,'R100'!A:J,10,0),0) -> 0 | K20: =IF(SUM(F20:I20)>0,1,0) -> 0
A21: 41020040 | D21: ส่วนลดหน่วยไฟฟ้า | F21: =IFERROR(VLOOKUP(A21,SAP!A:B,2,0),0) -> -52011749.97 | G21: =IFERROR(VLOOKUP(A21,SAP!C:F,4,0),0) -> 0 | H21: =IFERROR(VLOOKUP(A21,SAP!G:H,2,0),0) -> 0 | I21: =IFERROR(VLOOKUP(A21,'R100'!A:J,10,0),0) -> 0 | K21: 0
A22: 41020050 | D22: ส่วนลดหน่วยไฟฟ้าฟรี | F22: =IFERROR(VLOOKUP(A22,SAP!A:B,2,0),0) -> -81116962.93 | G22: =IFERROR(VLOOKUP(A22,SAP!C:F,4,0),0) -> 0 | H22: =IFERROR(VLOOKUP(A22,SAP!G:H,2,0),0) -> 0 | I22: =IFERROR(VLOOKUP(A22,'R100'!A:J,10,0),0) -> 0 | K22: 0
B23: รายได้อื่นจากการดำเนินงาน | K23: =IF(SUM(K24:K102)>0,1,0) -> 1
C24: รายได้จากการจำหน่ายอุปกรณ์ไฟฟ้า | K24: =IF(SUM(K25:K30)>0,1,0) -> 1
A25: 41030010 | B25: (ส) | D25: รายได้จากการขายหม้อแปลง | F25: =IFERROR(VLOOKUP(A25,SAP!A:B,2,0),0) -> 0 | G25: =IFERROR(VLOOKUP(A25,SAP!C:F,4,0),0) -> 0 | H25: =IFERROR(VLOOKUP(A25,SAP!G:H,2,0),0) -> 0 | I25: =IFERROR(VLOOKUP(A25,'R100'!A:J,10,0),0) -> 0 | K25: =IF(SUM(F25:I25)>0,1,0) -> 0
A26: 41030020 | B26: (ส) | D26: รายได้จากการขายมิเตอร์ | F26: =IFERROR(VLOOKUP(A26,SAP!A:B,2,0),0) -> 0 | G26: =IFERROR(VLOOKUP(A26,SAP!C:F,4,0),0) -> 0 | H26: =IFERROR(VLOOKUP(A26,SAP!G:H,2,0),0) -> 0 | I26: =IFERROR(VLOOKUP(A26,'R100'!A:J,10,0),0) -> 0 | K26: 0
A27: 41030030 | B27: (ส) | D27: รายได้จากการขายคาปาซิเตอร์ | F27: =IFERROR(VLOOKUP(A27,SAP!A:B,2,0),0) -> 0 | G27: =IFERROR(VLOOKUP(A27,SAP!C:F,4,0),0) -> 0 | H27: =IFERROR(VLOOKUP(A27,SAP!G:H,2,0),0) -> 0 | I27: =IFERROR(VLOOKUP(A27,'R100'!A:J,10,0),0) -> 0 | K27: 0
A28: 41030040 | B28: (ส) | D28: รายได้จากการขายเสา | F28: =IFERROR(VLOOKUP(A28,SAP!A:B,2,0),0) -> 0 | G28: =IFERROR(VLOOKUP(A28,SAP!C:F,4,0),0) -> 0 | H28: =IFERROR(VLOOKUP(A28,SAP!G:H,2,0),0) -> 0 | I28: =IFERROR(VLOOKUP(A28,'R100'!A:J,10,0),0) -> 0 | K28: 0
A29: 41030050 | B29: (ส) | D29: รายได้จากการจัดจำหน่ายผลิตภัณฑ์ | F29: =IFERROR(VLOOKUP(A29,SAP!A:B,2,0),0) -> 0 | G29: =IFERROR(VLOOKUP(A29,SAP!C:F,4,0),0) -> 0 | H29: =IFERROR(VLOOKUP(A29,SAP!G:H,2,0),0) -> 0 | I29: =IFERROR(VLOOKUP(A29,'R100'!A:J,10,0),0) -> 0 | K29: 0
A30: 41030990 | B30: (ส) | D30: รายได้จากการขายอุปกรณ์ไฟฟ้าอื่น ๆ | F30: =IFERROR(VLOOKUP(A30,SAP!A:B,2,0),0) -> 0 | G30: =IFERROR(VLOOKUP(A30,SAP!C:F,4,0),0) -> 1754.691429 | H30: =IFERROR(VLOOKUP(A30,SAP!G:H,2,0),0) -> 0 | I30: =IFERROR(VLOOKUP(A30,'R100'!A:J,10,0),0) -> 0 | K30: 1
C31: รายได้จากการให้เช่าหรือใช้สินทรัพย์ | K31: =IF(SUM(K32:K38)>0,1,0) -> 1
A32: 41031010 | B32: (ส) | D32: รายได้จากการให้ใช้เสาไฟฟ้า | F32: =IFERROR(VLOOKUP(A32,SAP!A:B,2,0),0) -> 7506364.8 | G32: =IFERROR(VLOOKUP(A32,SAP!C:F,4,0),0) -> 5886296.246 | H32: =IFERROR(VLOOKUP(A32,SAP!G:H,2,0),0) -> 0 | I32: =IFERROR(VLOOKUP(A32,'R100'!A:J,10,0),0) -> 0 | K32: =IF(SUM(F32:I32)>0,1,0) -> 1
A33: 41031020 | B33: (ส) | D33: รายได้จากการให้เช่าหม้อแปลง | F33: =IFERROR(VLOOKUP(A33,SAP!A:B,2,0),0) -> 81516.85 | G33: =IFERROR(VLOOKUP(A33,SAP!C:F,4,0),0) -> 75851.64 | H33: =IFERROR(VLOOKUP(A33,SAP!G:H,2,0),0) -> 0 | I33: =IFERROR(VLOOKUP(A33,'R100'!A:J,10,0),0) -> 0 | K33: 1
A34: 41031030 | B34: (ส) | D34: รายได้จากการให้เช่าชุดเครื่องยนต์กำเนิดไฟฟ้า | F34: =IFERROR(VLOOKUP(A34,SAP!A:B,2,0),0) -> 0 | G34: =IFERROR(VLOOKUP(A34,SAP!C:F,4,0),0) -> 0 | H34: =IFERROR(VLOOKUP(A34,SAP!G:H,2,0),0) -> 0 | I34: =IFERROR(VLOOKUP(A34,'R100'!A:J,10,0),0) -> 0 | K34: 0
A35: 41031040 | B35: (ส) | D35: รายได้จากการให้ใช้บริการเส้นใยแก้วนำแสง | F35: =IFERROR(VLOOKUP(A35,SAP!A:B,2,0),0) -> 0 | G35: =IFERROR(VLOOKUP(A35,SAP!C:F,4,0),0) -> 0 | H35: =IFERROR(VLOOKUP(A35,SAP!G:H,2,0),0) -> 0 | I35: =IFERROR(VLOOKUP(A35,'R100'!A:J,10,0),0) -> 0 | K35: 0
A36: 41031050 | B36: (ส) | D36: รายได้จากการให้เช่าอสังหาริมทรัพย์ | F36: =IFERROR(VLOOKUP(A36,SAP!A:B,2,0),0) -> 0 | G36: =IFERROR(VLOOKUP(A36,SAP!C:F,4,0),0) -> 0 | H36: =IFERROR(VLOOKUP(A36,SAP!G:H,2,0),0) -> 0 | I36: =IFERROR(VLOOKUP(A36,'R100'!A:J,10,0),0) -> 0 | K36: 0
A37: 41031060 | D37: รายได้จากการใช้ระบบโครงข่ายไฟฟ้า | F37: =IFERROR(VLOOKUP(A37,SAP!A:B,2,0),0) -> 0 | G37: =IFERROR(VLOOKUP(A37,SAP!C:F,4,0),0) -> 0 | H37: =IFERROR(VLOOKUP(A37,SAP!G:H,2,0),0) -> 0 | I37: =IFERROR(VLOOKUP(A37,'R100'!A:J,10,0),0) -> 0 | K37: 0
A38: 41031990 | B38: (ส) | D38: รายได้จากการให้เช่าหรือใช้สินทรัพย์อื่น ๆ | F38: =IFERROR(VLOOKUP(A38,SAP!A:B,2,0),0) -> 1240 | G38: =IFERROR(VLOOKUP(A38,SAP!C:F,4,0),0) -> 41760 | H38: =IFERROR(VLOOKUP(A38,SAP!G:H,2,0),0) -> 0 | I38: =IFERROR(VLOOKUP(A38,'R100'!A:J,10,0),0) -> 0 | K38: 1
C39: รายได้ค่าติดตั้ง ตรวจการติดตั้งอุปกรณ์ไฟฟ้า | K39: =IF(SUM(K40:K45)>0,1,0) -> 1
A40: 41032010 | D40: รายได้ติดตั้ง ตรวจการติดตั้งมิเตอร์ | F40: =IFERROR(VLOOKUP(A40,SAP!A:B,2,0),0) -> 2074900 | G40: =IFERROR(VLOOKUP(A40,SAP!C:F,4,0),0) -> 1719000 | H40: =IFERROR(VLOOKUP(A40,SAP!G:H,2,0),0) -> 0 | I40: =IFERROR(VLOOKUP(A40,'R100'!A:J,10,0),0) -> 2000000 | K40: =IF(SUM(F40:I40)>0,1,0) -> 1
A41: 41032019 | D41: ปรับปรุงรายได้ติดตั้ง ตรวจการติดตั้งมิเตอร์ | F41: =IFERROR(VLOOKUP(A41,SAP!A:B,2,0),0) -> -82300 | G41: =IFERROR(VLOOKUP(A41,SAP!C:F,4,0),0) -> 72171.42857 | H41: =IFERROR(VLOOKUP(A41,SAP!G:H,2,0),0) -> 0 | I41: =IFERROR(VLOOKUP(A41,'R100'!A:J,10,0),0) -> 83000 | K41: 1
A42: 41032020 | D42: รายได้ติดตั้งมิเตอร์ TOU/TOD | F42: =IFERROR(VLOOKUP(A42,SAP!A:B,2,0),0) -> 861080 | G42: =IFERROR(VLOOKUP(A42,SAP!C:F,4,0),0) -> 524194.2857 | H42: =IFERROR(VLOOKUP(A42,SAP!G:H,2,0),0) -> 0 | I42: =IFERROR(VLOOKUP(A42,'R100'!A:J,10,0),0) -> 580000 | K42: 1
A43: 41032029 | D43: ปรับปรุงรายได้ติดตั้งมิเตอร์ TOU/TOD | F43: =IFERROR(VLOOKUP(A43,SAP!A:B,2,0),0) -> -420080 | G43: =IFERROR(VLOOKUP(A43,SAP!C:F,4,0),0) -> 38640 | H43: =IFERROR(VLOOKUP(A43,SAP!G:H,2,0),0) -> 0 | I43: =IFERROR(VLOOKUP(A43,'R100'!A:J,10,0),0) -> 40000 | K43: 0
A44: 41032030 | B44: (ส) | D44: รายได้ค่าบริการงานด้านฮอทไลน์และเชื่อมสายแรงสูง | F44: =IFERROR(VLOOKUP(A44,SAP!A:B,2,0),0) -> 1791290.58 | G44: =IFERROR(VLOOKUP(A44,SAP!C:F,4,0),0) -> 1440453.497 | H44: =IFERROR(VLOOKUP(A44,SAP!G:H,2,0),0) -> 0 | I44: =IFERROR(VLOOKUP(A44,'R100'!A:J,10,0),0) -> 0 | K44: 1
A45: 41032039 | D45: ปรับปรุงรายได้ค่าบริการงานด้านฮอทไลน์และเชื่อมสายแรงสูง | F45: =IFERROR(VLOOKUP(A45,SAP!A:B,2,0),0) -> -157750.09 | G45: =IFERROR(VLOOKUP(A45,SAP!C:F,4,0),0) -> -289647.2743 | H45: =IFERROR(VLOOKUP(A45,SAP!G:H,2,0),0) -> 0 | I45: =IFERROR(VLOOKUP(A45,'R100'!A:J,10,0),0) -> 0 | K45: 0
C46: รายได้ค่าทดสอบอุปกรณ์ไฟฟ้า | K46: =IF(SUM(K47:K50)>0,1,0) -> 1
A47: 41033010 | B47: (ส) | D47: รายได้ค่าทดสอบผลิตภัณฑ์คอนกรีต | F47: =IFERROR(VLOOKUP(A47,SAP!A:B,2,0),0) -> 0 | G47: =IFERROR(VLOOKUP(A47,SAP!C:F,4,0),0) -> 0 | H47: =IFERROR(VLOOKUP(A47,SAP!G:H,2,0),0) -> 0 | I47: =IFERROR(VLOOKUP(A47,'R100'!A:J,10,0),0) -> 0 | K47: =IF(SUM(F47:I47)>0,1,0) -> 0
A48: 41033019 | D48: ปรับปรุงรายได้ค่าทดสอบผลิตภัณฑ์คอนกรีต | F48: =IFERROR(VLOOKUP(A48,SAP!A:B,2,0),0) -> 0 | G48: =IFERROR(VLOOKUP(A48,SAP!C:F,4,0),0) -> 0 | H48: =IFERROR(VLOOKUP(A48,SAP!G:H,2,0),0) -> 0 | I48: =IFERROR(VLOOKUP(A48,'R100'!A:J,10,0),0) -> 0 | K48: 0
A49: 41033020 | B49: (ส) | D49: รายได้ค่าทดสอบอุปกรณ์ไฟฟ้า | F49: =IFERROR(VLOOKUP(A49,SAP!A:B,2,0),0) -> 50000 | G49: =IFERROR(VLOOKUP(A49,SAP!C:F,4,0),0) -> 85714.28571 | H49: =IFERROR(VLOOKUP(A49,SAP!G:H,2,0),0) -> 0 | I49: =IFERROR(VLOOKUP(A49,'R100'!A:J,10,0),0) -> 0 | K49: 1
A50: 41033029 | D50: ปรับปรุงรายได้ค่าทดสอบอุปกรณ์ไฟฟ้า | F50: =IFERROR(VLOOKUP(A50,SAP!A:B,2,0),0) -> 0 | G50: =IFERROR(VLOOKUP(A50,SAP!C:F,4,0),0) -> 0 | H50: =IFERROR(VLOOKUP(A50,SAP!G:H,2,0),0) -> 0 | I50: =IFERROR(VLOOKUP(A50,'R100'!A:J,10,0),0) -> 0 | K50: 0
C51: รายได้ค่าธรรมเนียม | K51: =IF(SUM(K52:K56)>0,1,0) -> 1
A52: 41034010 | D52: รายได้ค่าธรรมเนียมต่อไฟ | F52: =IFERROR(VLOOKUP(A52,SAP!A:B,2,0),0) -> 0 | G52: =IFERROR(VLOOKUP(A52,SAP!C:F,4,0),0) -> 0 | H52: =IFERROR(VLOOKUP(A52,SAP!G:H,2,0),0) -> 0 | I52: =IFERROR(VLOOKUP(A52,'R100'!A:J,10,0),0) -> 0 | K52: =IF(SUM(F52:I52)>0,1,0) -> 0
A53: 41034020 | D53: รายได้ค่าธรรมเนียมพาดสายสื่อสารฯ | F53: =IFERROR(VLOOKUP(A53,SAP!A:B,2,0),0) -> 201280 | G53: =IFERROR(VLOOKUP(A53,SAP!C:F,4,0),0) -> 243634.2857 | H53: =IFERROR(VLOOKUP(A53,SAP!G:H,2,0),0) -> 0 | I53: =IFERROR(VLOOKUP(A53,'R100'!A:J,10,0),0) -> 275000 | K53: 1
A54: 41034030 | D54: รายได้ค่าต่อกลับมิเตอร์ | F54: =IFERROR(VLOOKUP(A54,SAP!A:B,2,0),0) -> 46000 | G54: =IFERROR(VLOOKUP(A54,SAP!C:F,4,0),0) -> 952628.5714 | H54: =IFERROR(VLOOKUP(A54,SAP!G:H,2,0),0) -> 0 | I54: =IFERROR(VLOOKUP(A54,'R100'!A:J,10,0),0) -> 1060000 | K54: 1
A55: 41034040 | D55: รายได้ขอผ่อนผันการงดจ่ายไฟ | F55: =IFERROR(VLOOKUP(A55,SAP!A:B,2,0),0) -> 3750 | G55: =IFERROR(VLOOKUP(A55,SAP!C:F,4,0),0) -> 79885.71429 | H55: =IFERROR(VLOOKUP(A55,SAP!G:H,2,0),0) -> 0 | I55: =IFERROR(VLOOKUP(A55,'R100'!A:J,10,0),0) -> 95000 | K55: 1
A56: 41034990 | D56: รายได้ค่าธรรมเนียมอื่น ๆ | F56: =IFERROR(VLOOKUP(A56,SAP!A:B,2,0),0) -> -400 | G56: =IFERROR(VLOOKUP(A56,SAP!C:F,4,0),0) -> 0 | H56: =IFERROR(VLOOKUP(A56,SAP!G:H,2,0),0) -> 0 | I56: =IFERROR(VLOOKUP(A56,'R100'!A:J,10,0),0) -> 0 | K56: 0
C57: รายได้จากการก่อสร้างให้ผู้ใช้ไฟ | K57: =IF(SUM(K58:K62)>0,1,0) -> 1
A58: 41035010 | B58: (ส) | D58: รายได้จากการก่อสร้างให้ผู้ใช้ไฟ | F58: =IFERROR(VLOOKUP(A58,SAP!A:B,2,0),0) -> 25345346.1 | G58: =IFERROR(VLOOKUP(A58,SAP!C:F,4,0),0) -> 19871449.08 | H58: =IFERROR(VLOOKUP(A58,SAP!G:H,2,0),0) -> 0 | I58: =IFERROR(VLOOKUP(A58,'R100'!A:J,10,0),0) -> 0 | K58: =IF(SUM(F58:I58)>0,1,0) -> 1
A59: 41035017 | D59: ปรับปรุงรายได้จากการก่อสร้างให้ผู้ใช้ไฟสิ้นงวด | F59: =IFERROR(VLOOKUP(A59,SAP!A:B,2,0),0) -> 0 | G59: =IFERROR(VLOOKUP(A59,SAP!C:F,4,0),0) -> 0 | H59: =IFERROR(VLOOKUP(A59,SAP!G:H,2,0),0) -> 0 | I59: =IFERROR(VLOOKUP(A59,'R100'!A:J,10,0),0) -> 0 | K59: 0
A60: 41035019 | D60: ปรับปรุงรายได้จากการก่อสร้างให้ผู้ใช้ไฟ | F60: =IFERROR(VLOOKUP(A60,SAP!A:B,2,0),0) -> 2490010.67 | G60: =IFERROR(VLOOKUP(A60,SAP!C:F,4,0),0) -> 967509.4457 | H60: =IFERROR(VLOOKUP(A60,SAP!G:H,2,0),0) -> 0 | I60: =IFERROR(VLOOKUP(A60,'R100'!A:J,10,0),0) -> 0 | K60: 1
A61: 41035020 | B61: (ส) | D61: รายได้ค่าบริการด้านวิศวกรรม | F61: =IFERROR(VLOOKUP(A61,SAP!A:B,2,0),0) -> 213247.34 | G61: =IFERROR(VLOOKUP(A61,SAP!C:F,4,0),0) -> 1533835.8 | H61: =IFERROR(VLOOKUP(A61,SAP!G:H,2,0),0) -> 0 | I61: =IFERROR(VLOOKUP(A61,'R100'!A:J,10,0),0) -> 0 | K61: 1
A62: 41035029 | D62: ปรับปรุงรายได้ค่าบริการด้านวิศวกรรม | F62: =IFERROR(VLOOKUP(A62,SAP!A:B,2,0),0) -> -41151 | G62: =IFERROR(VLOOKUP(A62,SAP!C:F,4,0),0) -> 52963.71429 | H62: =IFERROR(VLOOKUP(A62,SAP!G:H,2,0),0) -> 0 | I62: =IFERROR(VLOOKUP(A62,'R100'!A:J,10,0),0) -> 0 | K62: 1
C63: รายได้จากเงินช่วยเหลือเพื่อการก่อสร้าง | K63: =IF(SUM(K64:K67)>0,1,0) -> 1
A64: 41036010 | D64: รายได้จากเงินช่วยเหลือเพื่อการก่อสร้าง | F64: =IFERROR(VLOOKUP(A64,SAP!A:B,2,0),0) -> 13605048.66 | G64: =IFERROR(VLOOKUP(A64,SAP!C:F,4,0),0) -> 13737442.44 | H64: =IFERROR(VLOOKUP(A64,SAP!G:H,2,0),0) -> 0 | I64: =IFERROR(VLOOKUP(A64,'R100'!A:J,10,0),0) -> 0 | K64: =IF(SUM(F64:I64)>0,1,0) -> 1
A65: 41036017 | D65: ปรับปรุงรายได้จากเงินช่วยเหลือเพื่อการก่อสร้าง | F65: =IFERROR(VLOOKUP(A65,SAP!A:B,2,0),0) -> 3828.93 | G65: =IFERROR(VLOOKUP(A65,SAP!C:F,4,0),0) -> -6563.88 | H65: =IFERROR(VLOOKUP(A65,SAP!G:H,2,0),0) -> 0 | I65: =IFERROR(VLOOKUP(A65,'R100'!A:J,10,0),0) -> 0 | K65: 0
A66: 41036020 | D66: รายได้ค่าส่วนเฉลี่ยการใช้พลังไฟฟ้า | F66: =IFERROR(VLOOKUP(A66,SAP!A:B,2,0),0) -> 0 | G66: =IFERROR(VLOOKUP(A66,SAP!C:F,4,0),0) -> 0 | H66: =IFERROR(VLOOKUP(A66,SAP!G:H,2,0),0) -> 0 | I66: =IFERROR(VLOOKUP(A66,'R100'!A:J,10,0),0) -> 0 | K66: 0
A67: 41036030 | D67: รายได้จากเงินสมทบระบบจำหน่ายพาดสายสื่อสาร | F67: =IFERROR(VLOOKUP(A67,SAP!A:B,2,0),0) -> 1399662.45 | G67: =IFERROR(VLOOKUP(A67,SAP!C:F,4,0),0) -> 811484.2286 | H67: =IFERROR(VLOOKUP(A67,SAP!G:H,2,0),0) -> 0 | I67: =IFERROR(VLOOKUP(A67,'R100'!A:J,10,0),0) -> 950000 | K67: 1
C68: รายได้จากการให้บริการนวัตกรรม | K68: =IF(SUM(K69:K69)>0,1,0) -> 0
A69: 41037010 | B69: (ส) | D69: รายได้ค่าบริการแอปพลิเคชัน | F69: =IFERROR(VLOOKUP(A69,SAP!A:B,2,0),0) -> 0 | G69: =IFERROR(VLOOKUP(A69,SAP!C:F,4,0),0) -> 0 | H69: =IFERROR(VLOOKUP(A69,SAP!G:H,2,0),0) -> 0 | I69: =IFERROR(VLOOKUP(A69,'R100'!A:J,10,0),0) -> 0 | K69: =IF(SUM(F69:I69)>0,1,0) -> 0
C70: รายได้จากการรับโอนสินทรัพย์ดำเนินงาน | K70: =IF(SUM(K71:K71)>0,1,0) -> 1
A71: 41038010 | D71: รายได้จากการรับโอนสินทรัพย์ดำเนินงาน | F71: =IFERROR(VLOOKUP(A71,SAP!A:B,2,0),0) -> 4037.28 | G71: =IFERROR(VLOOKUP(A71,SAP!C:F,4,0),0) -> 4037.28 | H71: =IFERROR(VLOOKUP(A71,SAP!G:H,2,0),0) -> 0 | I71: =IFERROR(VLOOKUP(A71,'R100'!A:J,10,0),0) -> 5000 | K71: =IF(SUM(F71:I71)>0,1,0) -> 1
C72: รายได้อื่นจากการดำเนินงาน | K72: =IF(SUM(K73:K97)>0,1,0) -> 1
A73: 41039010 | D73: รายได้ค่าตรวจจุดเขียนผัง | F73: =IFERROR(VLOOKUP(A73,SAP!A:B,2,0),0) -> 235000 | G73: =IFERROR(VLOOKUP(A73,SAP!C:F,4,0),0) -> 274285.7143 | H73: =IFERROR(VLOOKUP(A73,SAP!G:H,2,0),0) -> 0 | I73: =IFERROR(VLOOKUP(A73,'R100'!A:J,10,0),0) -> 330000 | K73: =IF(SUM(F73:I73)>0,1,0) -> 1
A74: 41039020 | B74: (ส) | D74: รายได้ค่าตรวจสอบและบำรุงรักษาหม้อแปลง | F74: =IFERROR(VLOOKUP(A74,SAP!A:B,2,0),0) -> 44650.52 | G74: =IFERROR(VLOOKUP(A74,SAP!C:F,4,0),0) -> 109492.1657 | H74: =IFERROR(VLOOKUP(A74,SAP!G:H,2,0),0) -> 0 | I74: =IFERROR(VLOOKUP(A74,'R100'!A:J,10,0),0) -> 0 | K74: 1
A75: 41039029 | D75: ปรับปรุงรายได้ค่าตรวจสอบและบำรุงรักษาหม้อแปลง | F75: =IFERROR(VLOOKUP(A75,SAP!A:B,2,0),0) -> 0 | G75: =IFERROR(VLOOKUP(A75,SAP!C:F,4,0),0) -> -5142.857143 | H75: =IFERROR(VLOOKUP(A75,SAP!G:H,2,0),0) -> 0 | I75: =IFERROR(VLOOKUP(A75,'R100'!A:J,10,0),0) -> 0 | K75: 0
A76: 41039030 | B76: (ส) | D76: รายได้ค่าติดตั้ง รื้อถอน ซ่อมแซมหม้อแปลง | F76: =IFERROR(VLOOKUP(A76,SAP!A:B,2,0),0) -> 67010 | G76: =IFERROR(VLOOKUP(A76,SAP!C:F,4,0),0) -> 24867.42857 | H76: =IFERROR(VLOOKUP(A76,SAP!G:H,2,0),0) -> 0 | I76: =IFERROR(VLOOKUP(A76,'R100'!A:J,10,0),0) -> 0 | K76: 1
A77: 41039039 | D77: ปรับปรุงรายได้ค่าติดตั้ง รื้อถอน ซ่อมแซมหม้อแปลง | F77: =IFERROR(VLOOKUP(A77,SAP!A:B,2,0),0) -> -13656 | G77: =IFERROR(VLOOKUP(A77,SAP!C:F,4,0),0) -> 36106.28571 | H77: =IFERROR(VLOOKUP(A77,SAP!G:H,2,0),0) -> 0 | I77: =IFERROR(VLOOKUP(A77,'R100'!A:J,10,0),0) -> 0 | K77: 1
A78: 41039040 | D78: รายได้ค่าละเมิดสิทธิ | F78: =IFERROR(VLOOKUP(A78,SAP!A:B,2,0),0) -> 81000 | G78: =IFERROR(VLOOKUP(A78,SAP!C:F,4,0),0) -> 802285.7143 | H78: =IFERROR(VLOOKUP(A78,SAP!G:H,2,0),0) -> 0 | I78: =IFERROR(VLOOKUP(A78,'R100'!A:J,10,0),0) -> 895000 | K78: 1
A79: 41039050 | D79: รายได้ค่าชดใช้มิเตอร์ชำรุดและอุปกรณ์ประกอบ | F79: =IFERROR(VLOOKUP(A79,SAP!A:B,2,0),0) -> 195761.2 | G79: =IFERROR(VLOOKUP(A79,SAP!C:F,4,0),0) -> 266436.7714 | H79: =IFERROR(VLOOKUP(A79,SAP!G:H,2,0),0) -> 0 | I79: =IFERROR(VLOOKUP(A79,'R100'!A:J,10,0),0) -> 295000 | K79: 1
A80: 41039060 | D80: รายได้ชดใช้รถยนต์ชนเสา | F80: =IFERROR(VLOOKUP(A80,SAP!A:B,2,0),0) -> 199864.77 | G80: =IFERROR(VLOOKUP(A80,SAP!C:F,4,0),0) -> 276496.4914 | H80: =IFERROR(VLOOKUP(A80,SAP!G:H,2,0),0) -> 0 | I80: =IFERROR(VLOOKUP(A80,'R100'!A:J,10,0),0) -> 320000 | K80: 1
A81: 41039080 | B81: (ส) | D81: รายได้ค่าตรวจสอบและบำรุงรักษาเคเบิลใต้ดิน | F81: =IFERROR(VLOOKUP(A81,SAP!A:B,2,0),0) -> 0 | G81: =IFERROR(VLOOKUP(A81,SAP!C:F,4,0),0) -> 0 | H81: =IFERROR(VLOOKUP(A81,SAP!G:H,2,0),0) -> 0 | I81: =IFERROR(VLOOKUP(A81,'R100'!A:J,10,0),0) -> 0 | K81: 0
A82: 41039089 | D82: ปรับปรุงรายได้ค่าตรวจสอบและบำรุงรักษาเคเบิลใต้ดิน | F82: =IFERROR(VLOOKUP(A82,SAP!A:B,2,0),0) -> 0 | G82: =IFERROR(VLOOKUP(A82,SAP!C:F,4,0),0) -> 0 | H82: =IFERROR(VLOOKUP(A82,SAP!G:H,2,0),0) -> 0 | I82: =IFERROR(VLOOKUP(A82,'R100'!A:J,10,0),0) -> 0 | K82: 0
A83: 41039090 | B83: (ส) | D83: รายได้ค่าติดตั้ง ตรวจสอบและค่าบำรุงรักษาระบบไฟฟ้า | F83: =IFERROR(VLOOKUP(A83,SAP!A:B,2,0),0) -> 299441.5 | G83: =IFERROR(VLOOKUP(A83,SAP!C:F,4,0),0) -> 727420.8 | H83: =IFERROR(VLOOKUP(A83,SAP!G:H,2,0),0) -> 0 | I83: =IFERROR(VLOOKUP(A83,'R100'!A:J,10,0),0) -> 0 | K83: 1
A84: 41039099 | D84: ปรับปรุงรายได้ค่าติดตั้ง ตรวจสอบและค่าบำรุงรักษาระบบไฟฟ้า | F84: =IFERROR(VLOOKUP(A84,SAP!A:B,2,0),0) -> 0 | G84: =IFERROR(VLOOKUP(A84,SAP!C:F,4,0),0) -> -204685.7143 | H84: =IFERROR(VLOOKUP(A84,SAP!G:H,2,0),0) -> 0 | I84: =IFERROR(VLOOKUP(A84,'R100'!A:J,10,0),0) -> 0 | K84: 0
A85: 41039100 | B85: (ส) | D85: รายได้ค่าบำรุงรักษาระบบไฟฟ้าแบบครบวงจร | F85: =IFERROR(VLOOKUP(A85,SAP!A:B,2,0),0) -> 0 | G85: =IFERROR(VLOOKUP(A85,SAP!C:F,4,0),0) -> 0 | H85: =IFERROR(VLOOKUP(A85,SAP!G:H,2,0),0) -> 0 | I85: =IFERROR(VLOOKUP(A85,'R100'!A:J,10,0),0) -> 0 | K85: 0
A86: 41039109 | D86: ปรับปรุงรายได้ค่าบำรุงรักษาระบบไฟฟ้าแบบครบวงจร | F86: =IFERROR(VLOOKUP(A86,SAP!A:B,2,0),0) -> 0 | G86: =IFERROR(VLOOKUP(A86,SAP!C:F,4,0),0) -> 0 | H86: =IFERROR(VLOOKUP(A86,SAP!G:H,2,0),0) -> 0 | I86: =IFERROR(VLOOKUP(A86,'R100'!A:J,10,0),0) -> 0 | K86: 0
A87: 41039110 | D87: รายได้ค่าดำเนินการโครงการรับซื้อไฟฟ้าจากVSPP | F87: =IFERROR(VLOOKUP(A87,SAP!A:B,2,0),0) -> 11111462.83 | G87: =IFERROR(VLOOKUP(A87,SAP!C:F,4,0),0) -> 11505063.45 | H87: =IFERROR(VLOOKUP(A87,SAP!G:H,2,0),0) -> 0 | I87: =IFERROR(VLOOKUP(A87,'R100'!A:J,10,0),0) -> 12804000 | K87: 1
A88: 41039120 | B88: (ส) | D88: รายได้ค่าบริการติดตั้งอุปกรณ์สื่อสาร | F88: =IFERROR(VLOOKUP(A88,SAP!A:B,2,0),0) -> 0 | G88: =IFERROR(VLOOKUP(A88,SAP!C:F,4,0),0) -> 0 | H88: =IFERROR(VLOOKUP(A88,SAP!G:H,2,0),0) -> 0 | I88: =IFERROR(VLOOKUP(A88,'R100'!A:J,10,0),0) -> 0 | K88: 0
A89: 41039129 | D89: ปรับปรุงรายได้ค่าบริการติดตั้งอุปกรณ์สื่อสาร | F89: =IFERROR(VLOOKUP(A89,SAP!A:B,2,0),0) -> 0 | G89: =IFERROR(VLOOKUP(A89,SAP!C:F,4,0),0) -> 0 | H89: =IFERROR(VLOOKUP(A89,SAP!G:H,2,0),0) -> 0 | I89: =IFERROR(VLOOKUP(A89,'R100'!A:J,10,0),0) -> 0 | K89: 0
A90: 41039130 | D90: รายได้ค่าพาดสายก่อนได้รับอนุญาต | F90: =IFERROR(VLOOKUP(A90,SAP!A:B,2,0),0) -> 567504.31 | G90: =IFERROR(VLOOKUP(A90,SAP!C:F,4,0),0) -> 0 | H90: =IFERROR(VLOOKUP(A90,SAP!G:H,2,0),0) -> 0 | I90: =IFERROR(VLOOKUP(A90,'R100'!A:J,10,0),0) -> 0 | K90: 1
A91: 41039140 | B91: (ส) | D91: รายได้ค่าบริการฝึกอบรม | F91: =IFERROR(VLOOKUP(A91,SAP!A:B,2,0),0) -> 0 | G91: =IFERROR(VLOOKUP(A91,SAP!C:F,4,0),0) -> 0 | H91: =IFERROR(VLOOKUP(A91,SAP!G:H,2,0),0) -> 0 | I91: =IFERROR(VLOOKUP(A91,'R100'!A:J,10,0),0) -> 0 | K91: 0
A92: 41039149 | D92: ปรับปรุงรายได้ค่าบริการฝึกอบรม | F92: =IFERROR(VLOOKUP(A92,SAP!A:B,2,0),0) -> 0 | G92: =IFERROR(VLOOKUP(A92,SAP!C:F,4,0),0) -> 0 | H92: =IFERROR(VLOOKUP(A92,SAP!G:H,2,0),0) -> 0 | I92: =IFERROR(VLOOKUP(A92,'R100'!A:J,10,0),0) -> 0 | K92: 0
A93: 41039150 | B93: (ส) | D93: รายได้บริการจัดการพลังงาน | F93: =IFERROR(VLOOKUP(A93,SAP!A:B,2,0),0) -> 0 | G93: =IFERROR(VLOOKUP(A93,SAP!C:F,4,0),0) -> 0 | H93: =IFERROR(VLOOKUP(A93,SAP!G:H,2,0),0) -> 0 | I93: =IFERROR(VLOOKUP(A93,'R100'!A:J,10,0),0) -> 0 | K93: 0
A94: 41039159 | D94: ปรับปรุงรายได้บริการจัดการพลังงาน | F94: =IFERROR(VLOOKUP(A94,SAP!A:B,2,0),0) -> 0 | G94: =IFERROR(VLOOKUP(A94,SAP!C:F,4,0),0) -> 0 | H94: =IFERROR(VLOOKUP(A94,SAP!G:H,2,0),0) -> 0 | I94: =IFERROR(VLOOKUP(A94,'R100'!A:J,10,0),0) -> 0 | K94: 0
A95: 41039160 | B95: (ส) | D95: รายได้ค่าบริการเชื่อมต่อระบบโครงข่ายไฟฟ้า | F95: =IFERROR(VLOOKUP(A95,SAP!A:B,2,0),0) -> 8000 | G95: =IFERROR(VLOOKUP(A95,SAP!C:F,4,0),0) -> 3428.571429 | H95: =IFERROR(VLOOKUP(A95,SAP!G:H,2,0),0) -> 0 | I95: =IFERROR(VLOOKUP(A95,'R100'!A:J,10,0),0) -> 0 | K95: 1
A96: 41039169 | D96: ปรับปรุงรายได้ค่าบริการเชื่อมต่อระบบโครงข่ายไฟฟ้า | F96: =IFERROR(VLOOKUP(A96,SAP!A:B,2,0),0) -> -4000 | G96: =IFERROR(VLOOKUP(A96,SAP!C:F,4,0),0) -> 3428.571429 | H96: =IFERROR(VLOOKUP(A96,SAP!G:H,2,0),0) -> 0 | I96: =IFERROR(VLOOKUP(A96,'R100'!A:J,10,0),0) -> 0 | K96: 0
A97: 41039990 | D97: รายได้อื่น ๆ จากการดำเนินงาน | F97: =IFERROR(VLOOKUP(A97,SAP!A:B,2,0),0) -> 87618.76 | G97: =IFERROR(VLOOKUP(A97,SAP!C:F,4,0),0) -> 333429.48 | H97: =IFERROR(VLOOKUP(A97,SAP!G:H,2,0),0) -> 0 | I97: =IFERROR(VLOOKUP(A97,'R100'!A:J,10,0),0) -> 380000 | K97: 1
C98: รายได้เกี่ยวเนื่องจากการให้เช่าหรือใช้สินทรัพย์ | K98: =IF(SUM(K99:K102)>0,1,0) -> 0
A99: 41040010 | D99: รายได้ค่าบริการสาธารณูปโภค | F99: =IFERROR(VLOOKUP(A99,SAP!A:B,2,0),0) -> 0 | G99: =IFERROR(VLOOKUP(A99,SAP!C:F,4,0),0) -> 0 | H99: =IFERROR(VLOOKUP(A99,SAP!G:H,2,0),0) -> 0 | I99: =IFERROR(VLOOKUP(A99,'R100'!A:J,10,0),0) -> 0 | K99: 0
A100: 41040020 | D100: รายได้ค่าบริการบุคลากร | F100: =IFERROR(VLOOKUP(A100,SAP!A:B,2,0),0) -> 0 | G100: =IFERROR(VLOOKUP(A100,SAP!C:F,4,0),0) -> 0 | H100: =IFERROR(VLOOKUP(A100,SAP!G:H,2,0),0) -> 0 | I100: =IFERROR(VLOOKUP(A100,'R100'!A:J,10,0),0) -> 0 | K100: 0
A101: 41040030 | D101: รายได้ค่าบริการภาษีโรงเรือนและที่ดิน | F101: =IFERROR(VLOOKUP(A101,SAP!A:B,2,0),0) -> 0 | G101: =IFERROR(VLOOKUP(A101,SAP!C:F,4,0),0) -> 0 | H101: =IFERROR(VLOOKUP(A101,SAP!G:H,2,0),0) -> 0 | I101: =IFERROR(VLOOKUP(A101,'R100'!A:J,10,0),0) -> 0 | K101: 0
A102: 41040090 | D102: รายได้อื่นจากการให้เช่าหรือใช้สินทรัพย์ | F102: =IFERROR(VLOOKUP(A102,SAP!A:B,2,0),0) -> 0 | G102: =IFERROR(VLOOKUP(A102,SAP!C:F,4,0),0) -> 0 | H102: =IFERROR(VLOOKUP(A102,SAP!G:H,2,0),0) -> 0 | I102: =IFERROR(VLOOKUP(A102,'R100'!A:J,10,0),0) -> 0 | K102: 0
B103: รวมรายได้จากการดำเนินงาน | F103: =SUBTOTAL(109,F19:F102) -> -65272132.44 | G103: =SUBTOTAL(109,G19:G102) -> 61997408.35 | H103: =SUBTOTAL(109,H19:H102) -> 0 | I103: =SUBTOTAL(109,I19:I102) -> 20112000 | K103: =K19+K23 -> 1
B104: รายได้ที่ไม่เกี่ยวกับการดำเนินงาน | K104: =IF(SUM(K105:K151)>0,1,0) -> 1
B105: รายได้ดอกเบี้ย | K105: =IF(SUM(K106:K114)>0,1,0) -> 1
A106: 49010010 | D106: ดอกเบี้ยรับเงินฝากธนาคาร | F106: =IFERROR(VLOOKUP(A106,SAP!A:B,2,0),0) -> 11899.68 | G106: =IFERROR(VLOOKUP(A106,SAP!C:F,4,0),0) -> 11090.82857 | H106: =IFERROR(VLOOKUP(A106,SAP!G:H,2,0),0) -> 0 | I106: =IFERROR(VLOOKUP(A106,'R100'!A:J,10,0),0) -> 20000 | K106: =IF(SUM(F106:I106)>0,1,0) -> 1
A107: 49010020 | D107: ดอกเบี้ยรับเงินฝากธนาคาร-กองทุนเงินประกันการใช้ไฟฯ | F107: =IFERROR(VLOOKUP(A107,SAP!A:B,2,0),0) -> 0 | G107: =IFERROR(VLOOKUP(A107,SAP!C:F,4,0),0) -> 0 | H107: =IFERROR(VLOOKUP(A107,SAP!G:H,2,0),0) -> 0 | I107: =IFERROR(VLOOKUP(A107,'R100'!A:J,10,0),0) -> 0 | K107: 0
A108: 49010030 | D108: ดอกเบี้ยรับเงินฝากธนาคาร-Kfw. | F108: =IFERROR(VLOOKUP(A108,SAP!A:B,2,0),0) -> 0 | G108: =IFERROR(VLOOKUP(A108,SAP!C:F,4,0),0) -> 0 | H108: =IFERROR(VLOOKUP(A108,SAP!G:H,2,0),0) -> 0 | I108: =IFERROR(VLOOKUP(A108,'R100'!A:J,10,0),0) -> 0 | K108: 0
A109: 49010040 | D109: ดอกเบี้ยรับเงินฝากธนาคาร-ดอกผลกองทุนเงินประกันฯ | F109: =IFERROR(VLOOKUP(A109,SAP!A:B,2,0),0) -> 0 | G109: =IFERROR(VLOOKUP(A109,SAP!C:F,4,0),0) -> 0 | H109: =IFERROR(VLOOKUP(A109,SAP!G:H,2,0),0) -> 0 | I109: =IFERROR(VLOOKUP(A109,'R100'!A:J,10,0),0) -> 0 | K109: 0
A110: 49011010 | D110: ดอกเบี้ยรับเงินให้กู้ซื้อ/สร้างบ้านฯ-หลักทรัพย์ประกัน | F110: =IFERROR(VLOOKUP(A110,SAP!A:B,2,0),0) -> 0 | G110: =IFERROR(VLOOKUP(A110,SAP!C:F,4,0),0) -> 0 | H110: =IFERROR(VLOOKUP(A110,SAP!G:H,2,0),0) -> 0 | I110: =IFERROR(VLOOKUP(A110,'R100'!A:J,10,0),0) -> 0 | K110: 0
A111: 49012010 | D111: ผลตอบแทนจากการลงทุน | F111: =IFERROR(VLOOKUP(A111,SAP!A:B,2,0),0) -> 0 | G111: =IFERROR(VLOOKUP(A111,SAP!C:F,4,0),0) -> 0 | H111: =IFERROR(VLOOKUP(A111,SAP!G:H,2,0),0) -> 0 | I111: =IFERROR(VLOOKUP(A111,'R100'!A:J,10,0),0) -> 0 | K111: 0
A112: 49013010 | D112: ดอกเบี้ยรับตามสัญญาบริการแบบผ่อนชำระ | F112: =IFERROR(VLOOKUP(A112,SAP!A:B,2,0),0) -> 0 | G112: =IFERROR(VLOOKUP(A112,SAP!C:F,4,0),0) -> 0 | H112: =IFERROR(VLOOKUP(A112,SAP!G:H,2,0),0) -> 0 | I112: =IFERROR(VLOOKUP(A112,'R100'!A:J,10,0),0) -> 0 | K112: 0
A113: 49013020 | D113: ดอกเบี้ยรับตามสัญญาเช่า | F113: =IFERROR(VLOOKUP(A113,SAP!A:B,2,0),0) -> 0 | G113: =IFERROR(VLOOKUP(A113,SAP!C:F,4,0),0) -> 0 | H113: =IFERROR(VLOOKUP(A113,SAP!G:H,2,0),0) -> 0 | I113: =IFERROR(VLOOKUP(A113,'R100'!A:J,10,0),0) -> 0 | K113: 0
A114: 49019010 | D114: ดอกเบี้ยรับชำระหนี้เกินกำหนด | F114: =IFERROR(VLOOKUP(A114,SAP!A:B,2,0),0) -> 1545287.51 | G114: =IFERROR(VLOOKUP(A114,SAP!C:F,4,0),0) -> 1313438.623 | H114: =IFERROR(VLOOKUP(A114,SAP!G:H,2,0),0) -> 0 | I114: =IFERROR(VLOOKUP(A114,'R100'!A:J,10,0),0) -> 1466000 | K114: 1
B115: รายได้ค่าปรับ ค่าธรรมเนียม | K115: =IF(SUM(K116:K124)>0,1,0) -> 1
C116: รายได้ค่าปรับผิดสัญญาและส่งของเกินกำหนด | K116: =IF(SUM(K117:K124)>0,1,0) -> 1
A117: 49020010 | D117: รายได้ค่าปรับผิดสัญญาซื้อขาย | F117: =IFERROR(VLOOKUP(A117,SAP!A:B,2,0),0) -> 0 | G117: =IFERROR(VLOOKUP(A117,SAP!C:F,4,0),0) -> 0 | H117: =IFERROR(VLOOKUP(A117,SAP!G:H,2,0),0) -> 0 | I117: =IFERROR(VLOOKUP(A117,'R100'!A:J,10,0),0) -> 0 | K117: =IF(SUM(F117:I117)>0,1,0) -> 0
A118: 49020020 | D118: รายได้ค่าปรับผิดสัญญาจ้าง/ให้บริการ | F118: =IFERROR(VLOOKUP(A118,SAP!A:B,2,0),0) -> 99279.4 | G118: =IFERROR(VLOOKUP(A118,SAP!C:F,4,0),0) -> 1058.605714 | H118: =IFERROR(VLOOKUP(A118,SAP!G:H,2,0),0) -> 0 | I118: =IFERROR(VLOOKUP(A118,'R100'!A:J,10,0),0) -> 4000 | K118: 1
A119: 49020030 | D119: รายได้ค่าปรับผิดสัญญาตัวแทนจดหน่วย | F119: =IFERROR(VLOOKUP(A119,SAP!A:B,2,0),0) -> 0 | G119: =IFERROR(VLOOKUP(A119,SAP!C:F,4,0),0) -> 0 | H119: =IFERROR(VLOOKUP(A119,SAP!G:H,2,0),0) -> 0 | I119: =IFERROR(VLOOKUP(A119,'R100'!A:J,10,0),0) -> 0 | K119: 0
A120: 49020040 | D120: รายได้ค่าปรับผิดสัญญาตัวแทนจดหน่วยแจ้งหนี้ | F120: =IFERROR(VLOOKUP(A120,SAP!A:B,2,0),0) -> 26552.2 | G120: =IFERROR(VLOOKUP(A120,SAP!C:F,4,0),0) -> 27668.57143 | H120: =IFERROR(VLOOKUP(A120,SAP!G:H,2,0),0) -> 0 | I120: =IFERROR(VLOOKUP(A120,'R100'!A:J,10,0),0) -> 35000 | K120: 1
A121: 49020050 | D121: รายได้ค่าปรับผิดสัญญาตัวแทนตัดและติดกลับมิเตอร์ | F121: =IFERROR(VLOOKUP(A121,SAP!A:B,2,0),0) -> 0 | G121: =IFERROR(VLOOKUP(A121,SAP!C:F,4,0),0) -> 0 | H121: =IFERROR(VLOOKUP(A121,SAP!G:H,2,0),0) -> 0 | I121: =IFERROR(VLOOKUP(A121,'R100'!A:J,10,0),0) -> 0 | K121: 0
A122: 49020060 | D122: รายได้ค่าปรับผิดสัญญาตัวแทนเก็บเงิน | F122: =IFERROR(VLOOKUP(A122,SAP!A:B,2,0),0) -> 0 | G122: =IFERROR(VLOOKUP(A122,SAP!C:F,4,0),0) -> 0 | H122: =IFERROR(VLOOKUP(A122,SAP!G:H,2,0),0) -> 0 | I122: =IFERROR(VLOOKUP(A122,'R100'!A:J,10,0),0) -> 0 | K122: 0
A123: 49020070 | D123: รายได้ค่าปรับผิดสัญญาตัวแทนรับชำระค่าไฟฟ้า | F123: =IFERROR(VLOOKUP(A123,SAP!A:B,2,0),0) -> 0 | G123: =IFERROR(VLOOKUP(A123,SAP!C:F,4,0),0) -> 0 | H123: =IFERROR(VLOOKUP(A123,SAP!G:H,2,0),0) -> 0 | I123: =IFERROR(VLOOKUP(A123,'R100'!A:J,10,0),0) -> 0 | K123: 0
A124: 49020990 | D124: รายได้ค่าปรับอื่น ๆ | F124: =IFERROR(VLOOKUP(A124,SAP!A:B,2,0),0) -> 39.45 | G124: =IFERROR(VLOOKUP(A124,SAP!C:F,4,0),0) -> 0 | H124: =IFERROR(VLOOKUP(A124,SAP!G:H,2,0),0) -> 0 | I124: =IFERROR(VLOOKUP(A124,'R100'!A:J,10,0),0) -> 0 | K124: 1
C125: รายได้จากการรับบริจาค | K125: =IF(SUM(K126:K126)>0,1,0) -> 0
A126: 49030010 | D126: รายได้จากการรับบริจาค | F126: =IFERROR(VLOOKUP(A126,SAP!A:B,2,0),0) -> 0 | G126: =IFERROR(VLOOKUP(A126,SAP!C:F,4,0),0) -> 0 | H126: =IFERROR(VLOOKUP(A126,SAP!G:H,2,0),0) -> 0 | I126: =IFERROR(VLOOKUP(A126,'R100'!A:J,10,0),0) -> 0 | K126: =IF(SUM(F126:I126)>0,1,0) -> 0
C127: กำไร(ขาดทุน)จากการจำหน่ายเศษวัสดุ | K127: =IF(SUM(K128:K130)>0,1,0) -> 1
A128: 49040010 | D128: กำไร(ขาดทุน)จากการขายเศษเหล็ก เศษวัสดุ | F128: =IFERROR(VLOOKUP(A128,SAP!A:B,2,0),0) -> 397729.11 | G128: =IFERROR(VLOOKUP(A128,SAP!C:F,4,0),0) -> 0 | H128: =IFERROR(VLOOKUP(A128,SAP!G:H,2,0),0) -> 0 | I128: =IFERROR(VLOOKUP(A128,'R100'!A:J,10,0),0) -> -23000 | K128: =IF(SUM(F128:I128)>0,1,0) -> 1
A129: 49040020 | D129: กำไร(ขาดทุน)จากการตรวจนับ/ปป.วัสดุและสินค้าคงเหลือ | F129: =IFERROR(VLOOKUP(A129,SAP!A:B,2,0),0) -> 0 | G129: =IFERROR(VLOOKUP(A129,SAP!C:F,4,0),0) -> 0 | H129: =IFERROR(VLOOKUP(A129,SAP!G:H,2,0),0) -> 0 | I129: =IFERROR(VLOOKUP(A129,'R100'!A:J,10,0),0) -> 0 | K129: 0
A130: 49040030 | D130: กำไร(ขาดทุน)จากการตัดจำหน่ายวัสดุ | F130: =IFERROR(VLOOKUP(A130,SAP!A:B,2,0),0) -> 0 | G130: =IFERROR(VLOOKUP(A130,SAP!C:F,4,0),0) -> 0 | H130: =IFERROR(VLOOKUP(A130,SAP!G:H,2,0),0) -> 0 | I130: =IFERROR(VLOOKUP(A130,'R100'!A:J,10,0),0) -> 0 | K130: 0
C131: กำไร(ขาดทุน)จากการจำหน่ายสินทรัพย์ถาวร | K131: =IF(SUM(K132:K135)>0,1,0) -> 1
A132: 49041010 | D132: กำไร(ขาดทุน)จากการตัดจำหน่ายสินทรัพย์ถาวร | F132: =IFERROR(VLOOKUP(A132,SAP!A:B,2,0),0) -> 21184355.34 | G132: =IFERROR(VLOOKUP(A132,SAP!C:F,4,0),0) -> 0 | H132: =IFERROR(VLOOKUP(A132,SAP!G:H,2,0),0) -> 0 | I132: =IFERROR(VLOOKUP(A132,'R100'!A:J,10,0),0) -> -240000 | K132: =IF(SUM(F132:I132)>0,1,0) -> 1
A133: 49041020 | D133: กำไร(ขาดทุน)จากการขายสินทรัพย์ถาวร | F133: =IFERROR(VLOOKUP(A133,SAP!A:B,2,0),0) -> 0 | G133: =IFERROR(VLOOKUP(A133,SAP!C:F,4,0),0) -> 0 | H133: =IFERROR(VLOOKUP(A133,SAP!G:H,2,0),0) -> 0 | I133: =IFERROR(VLOOKUP(A133,'R100'!A:J,10,0),0) -> 0 | K133: 0
A134: 49041040 | D134: กำไร(ขาดทุน)จากการปรับค่าเสื่อมราคาสินทรัพย์ถาวร | F134: =IFERROR(VLOOKUP(A134,SAP!A:B,2,0),0) -> 0 | G134: =IFERROR(VLOOKUP(A134,SAP!C:F,4,0),0) -> 0 | H134: =IFERROR(VLOOKUP(A134,SAP!G:H,2,0),0) -> 0 | I134: =IFERROR(VLOOKUP(A134,'R100'!A:J,10,0),0) -> 0 | K134: 0
A135: 49041050 | D135: กำไร(ขาดทุน)จากการปรับมูลค่าสินทรัพย์ถาวร | F135: =IFERROR(VLOOKUP(A135,SAP!A:B,2,0),0) -> 0 | G135: =IFERROR(VLOOKUP(A135,SAP!C:F,4,0),0) -> 0 | H135: =IFERROR(VLOOKUP(A135,SAP!G:H,2,0),0) -> 0 | I135: =IFERROR(VLOOKUP(A135,'R100'!A:J,10,0),0) -> 0 | K135: 0
B136: รายได้อื่นที่ไม่เกี่ยวกับการดำเนินงาน | K136: =IF(SUM(K137:K151)>0,1,0) -> 1
A137: 49050010 | D137: กำไร(ขาดทุน)ค่าปัดเศษจากการเก็บเงิน | F137: =IFERROR(VLOOKUP(A137,SAP!A:B,2,0),0) -> 97 | G137: =IFERROR(VLOOKUP(A137,SAP!C:F,4,0),0) -> 0 | H137: =IFERROR(VLOOKUP(A137,SAP!G:H,2,0),0) -> 0 | I137: =IFERROR(VLOOKUP(A137,'R100'!A:J,10,0),0) -> -2000 | K137: =IF(SUM(F137:I137)>0,1,0) -> 0
A138: 49050020 | D138: รายได้เงินชดใช้ค่าเสียหาย | F138: =IFERROR(VLOOKUP(A138,SAP!A:B,2,0),0) -> 0 | G138: =IFERROR(VLOOKUP(A138,SAP!C:F,4,0),0) -> 0 | H138: =IFERROR(VLOOKUP(A138,SAP!G:H,2,0),0) -> 0 | I138: =IFERROR(VLOOKUP(A138,'R100'!A:J,10,0),0) -> 0 | K138: 0
A139: 49050040 | D139: กำไร(ขาดทุน)จากอัตราแลกเปลี่ยนเกิดขึ้นจริง-เงินกู้ | F139: =IFERROR(VLOOKUP(A139,SAP!A:B,2,0),0) -> 0 | G139: =IFERROR(VLOOKUP(A139,SAP!C:F,4,0),0) -> 0 | H139: =IFERROR(VLOOKUP(A139,SAP!G:H,2,0),0) -> 0 | I139: =IFERROR(VLOOKUP(A139,'R100'!A:J,10,0),0) -> 0 | K139: 0
A140: 49050050 | D140: กำไร(ขาดทุน)จากอัตราแลกเปลี่ยนเกิดจริง-ลน./จน. ตปท. | F140: =IFERROR(VLOOKUP(A140,SAP!A:B,2,0),0) -> 0 | G140: =IFERROR(VLOOKUP(A140,SAP!C:F,4,0),0) -> 0 | H140: =IFERROR(VLOOKUP(A140,SAP!G:H,2,0),0) -> 0 | I140: =IFERROR(VLOOKUP(A140,'R100'!A:J,10,0),0) -> 0 | K140: 0
A141: 49050060 | D141: กำไร(ขาดทุน)จากอัตราแลกเปลี่ยนยังไม่เกิดขึ้นจริง-เงินกู้ | F141: =IFERROR(VLOOKUP(A141,SAP!A:B,2,0),0) -> 0 | G141: =IFERROR(VLOOKUP(A141,SAP!C:F,4,0),0) -> 0 | H141: =IFERROR(VLOOKUP(A141,SAP!G:H,2,0),0) -> 0 | I141: =IFERROR(VLOOKUP(A141,'R100'!A:J,10,0),0) -> 0 | K141: 0
A142: 49050070 | D142: รายได้เงินประกันผู้ใช้ไฟไม่รับคืน | F142: =IFERROR(VLOOKUP(A142,SAP!A:B,2,0),0) -> 303037.68 | G142: =IFERROR(VLOOKUP(A142,SAP!C:F,4,0),0) -> 739089.48 | H142: =IFERROR(VLOOKUP(A142,SAP!G:H,2,0),0) -> 0 | I142: =IFERROR(VLOOKUP(A142,'R100'!A:J,10,0),0) -> 820000 | K142: 1
A143: 49050090 | D143: กำไร(ขาดทุน)จากอัตราแลกเปลี่ยนเกิดจริง-เงินลงทุน | F143: =IFERROR(VLOOKUP(A143,SAP!A:B,2,0),0) -> 0 | G143: =IFERROR(VLOOKUP(A143,SAP!C:F,4,0),0) -> 0 | H143: =IFERROR(VLOOKUP(A143,SAP!G:H,2,0),0) -> 0 | I143: =IFERROR(VLOOKUP(A143,'R100'!A:J,10,0),0) -> 0 | K143: 0
A144: 49050100 | D144: กำไร(ขาดทุน)จากอัตราแลกเปลี่ยนไม่เกิดจริง-เงินลงทุน | F144: =IFERROR(VLOOKUP(A144,SAP!A:B,2,0),0) -> 0 | G144: =IFERROR(VLOOKUP(A144,SAP!C:F,4,0),0) -> 0 | H144: =IFERROR(VLOOKUP(A144,SAP!G:H,2,0),0) -> 0 | I144: =IFERROR(VLOOKUP(A144,'R100'!A:J,10,0),0) -> 0 | K144: 0
A145: 49050110 | D145: กำไร(ขาดทุน)อัตราแลกเปลี่ยนไม่เกิดจริง-ลน./จน. ตปท. | F145: =IFERROR(VLOOKUP(A145,SAP!A:B,2,0),0) -> 0 | G145: =IFERROR(VLOOKUP(A145,SAP!C:F,4,0),0) -> 0 | H145: =IFERROR(VLOOKUP(A145,SAP!G:H,2,0),0) -> 0 | I145: =IFERROR(VLOOKUP(A145,'R100'!A:J,10,0),0) -> 0 | K145: 0
A146: 49050120 | D146: กำไร(ขาดทุน)จากอัตราแลกเปลี่ยนเกิดจริง-สัญญาอนุพันธ์ | F146: =IFERROR(VLOOKUP(A146,SAP!A:B,2,0),0) -> 0 | G146: =IFERROR(VLOOKUP(A146,SAP!C:F,4,0),0) -> 0 | H146: =IFERROR(VLOOKUP(A146,SAP!G:H,2,0),0) -> 0 | I146: =IFERROR(VLOOKUP(A146,'R100'!A:J,10,0),0) -> 0 | K146: 0
A147: 49050130 | D147: กำไร(ขาดทุน)จากอัตราแลกเปลี่ยนยังไม่เกิดจริง-สัญญาอนุพันธ์ | F147: =IFERROR(VLOOKUP(A147,SAP!A:B,2,0),0) -> 0 | G147: =IFERROR(VLOOKUP(A147,SAP!C:F,4,0),0) -> 0 | H147: =IFERROR(VLOOKUP(A147,SAP!G:H,2,0),0) -> 0 | I147: =IFERROR(VLOOKUP(A147,'R100'!A:J,10,0),0) -> 0 | K147: 0
A148: 49050140 | D148: กำไร(ขาดทุน)จากจากการผลิตผลิตภัณฑ์คอนกรีต | F148: =IFERROR(VLOOKUP(A148,SAP!A:B,2,0),0) -> 0 | G148: =IFERROR(VLOOKUP(A148,SAP!C:F,4,0),0) -> 0 | H148: =IFERROR(VLOOKUP(A148,SAP!G:H,2,0),0) -> 0 | I148: =IFERROR(VLOOKUP(A148,'R100'!A:J,10,0),0) -> 0 | K148: 0
A149: 49050150 | D149: กำไร(ขาดทุน)จากการผลิตพัสดุรับเข้าคลัง | F149: =IFERROR(VLOOKUP(A149,SAP!A:B,2,0),0) -> 0 | G149: =IFERROR(VLOOKUP(A149,SAP!C:F,4,0),0) -> 0 | H149: =IFERROR(VLOOKUP(A149,SAP!G:H,2,0),0) -> 0 | I149: =IFERROR(VLOOKUP(A149,'R100'!A:J,10,0),0) -> 0 | K149: 0
A150: 49050160 | D150: กำไร(ขาดทุน)จากการประมาณการรื้อถอน | F150: =IFERROR(VLOOKUP(A150,SAP!A:B,2,0),0) -> 0 | G150: =IFERROR(VLOOKUP(A150,SAP!C:F,4,0),0) -> 0 | H150: =IFERROR(VLOOKUP(A150,SAP!G:H,2,0),0) -> 0 | I150: =IFERROR(VLOOKUP(A150,'R100'!A:J,10,0),0) -> 0 | K150: 0
A151: 49059990 | D151: รายได้อื่นที่ไม่เกี่ยวกับการดำเนินงาน | F151: =IFERROR(VLOOKUP(A151,SAP!A:B,2,0),0) -> 60111.45 | G151: =IFERROR(VLOOKUP(A151,SAP!C:F,4,0),0) -> 97102.52571 | H151: =IFERROR(VLOOKUP(A151,SAP!G:H,2,0),0) -> 0 | I151: =IFERROR(VLOOKUP(A151,'R100'!A:J,10,0),0) -> 115000 | K151: 1
B152: รวมรายได้ที่ไม่เกี่ยวกับการดำเนินงาน | F152: =SUBTOTAL(109,F106:F151) -> 23628388.82 | G152: =SUBTOTAL(109,G106:G151) -> 2189448.634 | H152: 0 | I152: 2195000 | K152: =K104 -> 1
B153: รวมรายได้ทั้งสิ้น | F153: =SUBTOTAL(109,F11:F152) -> 1822954339 | G153: =SUBTOTAL(109,G11:G152) -> 1987924357 | H153: =SUBTOTAL(109,H11:H152) -> 0 | I153: =SUBTOTAL(109,I11:I152) -> 2146600500
B154: รวมรายได้ธุรกิจเสริม (บัญชีที่ระบุ "ส") | F154: =SUMIF($B$9:$B$153,"(ส)",F$9:F$153) -> 35408107.69 | G154: =SUMIF($B$9:$B$153,"(ส)",G$9:G$153) -> 29802324.21 | H154: =SUMIF($B$9:$B$153,"(ส)",H$9:H$153) -> 0 | I154: =SUMIF($B$9:$B$153,"(ส)",I$9:I$153) -> 0

Sheet E001
A1: ="งบประมาณทำการประจำปี "&A_Budget_year -> งบประมาณทำการประจำปี 2567 | M1: งป.002
A2: =Cover!C3 -> ส่วนภูมิภาค
A3: ประมาณการรายจ่าย
A4: =Unit_eng -> MB | L4: =Head_division -> เขต: | M4: =Head_division2 -> กฟน.3 - 07
L5: หน่วย: | M5: บาท
A6: (1) | B6: (2) | F6: (3) | G6: (4) | H6: (5) | I6: (6) | M6: (7)
A7: รหัสบัญชี | B7: ชื่อบัญชี | F7: ค่าใช้จ่ายจริง | G7: ค่าใช้จ่ายจริง | H7: วงเงินที่ได้รับ | I7: ="ประมาณการค่าใช้จ่ายปี "&A_Budget_year -> ประมาณการค่าใช้จ่ายปี 2567 | M7: คำชี้แจงประกอบ
F8: ="ปี "&A_Budget_year-3 -> ปี 2564 | G8: ="ปี "&A_Budget_year-2 -> ปี 2565 | H8: ="ปี "&A_Budget_year-1 -> ปี 2566 | I8: งานประจำ | J8: งานตามแผนฯ | K8: ธุรกิจเสริม | L8: รวม
B9: ต้นทุนและค่าใช้จ่ายบริหาร
B10: ต้นทุนผลิตและต้นทุนขาย | N10: =IF(SUM(N11:N30)>0,1,0) -> 1
C11: ต้นทุนค่าไฟฟ้า | N11: =IF(SUM(N12:N25)>0,1,0) -> 1
A12: 51010010 | D12: ค่าซื้อไฟฟ้า-การไฟฟ้าฝ่ายผลิตแห่งประเทศไทย | F12: =IFERROR(VLOOKUP(A12,SAP!L:M,2,0),0) -> 716066114.1 | G12: =IFERROR(VLOOKUP(A12,SAP!N:Q,4,0),0) -> 923726517.1 | H12: =IFERROR(VLOOKUP(A12,SAP!R:S,2,0),0) -> 0 | I12: =IFERROR(VLOOKUP(A12,'R100'!A:J,10,0),0) -> 1401000000 | J12: =ROUNDUP(SUMIF('E200'!A:A,A12,'E200'!E:E),-1) -> 0 | K12: =ROUNDUP(SUMIF('E300'!A:A,A12,'E300'!J:J),-1) -> 0 | L12: =SUM(I12:K12) -> 1401000000 | N12: =IF(SUM(F12:K12)>0,1,0) -> 1
A13: 51010018 | D13: ปรับปรุงค่าซื้อไฟฟ้า | F13: =IFERROR(VLOOKUP(A13,SAP!L:M,2,0),0) -> -1474036.77 | G13: =IFERROR(VLOOKUP(A13,SAP!N:Q,4,0),0) -> -1719993.309 | H13: =IFERROR(VLOOKUP(A13,SAP!R:S,2,0),0) -> 0 | I13: =IFERROR(VLOOKUP(A13,'R100'!A:J,10,0),0) -> 0 | J13: =ROUNDUP(SUMIF('E200'!A:A,A13,'E200'!E:E),-1) -> 0 | K13: =ROUNDUP(SUMIF('E300'!A:A,A13,'E300'!J:J),-1) -> 0 | L13: 0 | N13: 0
A14: 51010020 | D14: ค่าซื้อไฟฟ้า-กรมพัฒนาพลังงานทดแทนฯ(พพ.) | F14: =IFERROR(VLOOKUP(A14,SAP!L:M,2,0),0) -> 0 | G14: =IFERROR(VLOOKUP(A14,SAP!N:Q,4,0),0) -> 0 | H14: =IFERROR(VLOOKUP(A14,SAP!R:S,2,0),0) -> 0 | I14: =IFERROR(VLOOKUP(A14,'R100'!A:J,10,0),0) -> 0 | J14: =ROUNDUP(SUMIF('E200'!A:A,A14,'E200'!E:E),-1) -> 0 | K14: =ROUNDUP(SUMIF('E300'!A:A,A14,'E300'!J:J),-1) -> 0 | L14: 0 | N14: 0
A15: 51010030 | D15: ค่าซื้อไฟฟ้า-ผู้ผลิตไฟฟ้าขนาดเล็กมาก | F15: =IFERROR(VLOOKUP(A15,SAP!L:M,2,0),0) -> 815580809.8 | G15: =IFERROR(VLOOKUP(A15,SAP!N:Q,4,0),0) -> 823740175.9 | H15: =IFERROR(VLOOKUP(A15,SAP!R:S,2,0),0) -> 0 | I15: =IFERROR(VLOOKUP(A15,'R100'!A:J,10,0),0) -> 877650000 | J15: =ROUNDUP(SUMIF('E200'!A:A,A15,'E200'!E:E),-1) -> 0 | K15: =ROUNDUP(SUMIF('E300'!A:A,A15,'E300'!J:J),-1) -> 0 | L15: 877650000 | N15: 1
A16: 51010060 | D16: ค่าซื้อไฟฟ้า-พลังงานแสงอาทิตย์ | F16: =IFERROR(VLOOKUP(A16,SAP!L:M,2,0),0) -> 2119853.04 | G16: =IFERROR(VLOOKUP(A16,SAP!N:Q,4,0),0) -> 2151593.383 | H16: =IFERROR(VLOOKUP(A16,SAP!R:S,2,0),0) -> 0 | I16: =IFERROR(VLOOKUP(A16,'R100'!A:J,10,0),0) -> 2318000 | J16: =ROUNDUP(SUMIF('E200'!A:A,A16,'E200'!E:E),-1) -> 0 | K16: =ROUNDUP(SUMIF('E300'!A:A,A16,'E300'!J:J),-1) -> 0 | L16: 2318000 | N16: 1
A17: 51010070 | D17: ค่าชดเชยโครงการ Demand Response | F17: =IFERROR(VLOOKUP(A17,SAP!L:M,2,0),0) -> 0 | G17: =IFERROR(VLOOKUP(A17,SAP!N:Q,4,0),0) -> 0 | H17: =IFERROR(VLOOKUP(A17,SAP!R:S,2,0),0) -> 0 | I17: =IFERROR(VLOOKUP(A17,'R100'!A:J,10,0),0) -> 0 | J17: =ROUNDUP(SUMIF('E200'!A:A,A17,'E200'!E:E),-1) -> 0 | K17: =ROUNDUP(SUMIF('E300'!A:A,A17,'E300'!J:J),-1) -> 0 | L17: 0 | N17: 0
A18: 51010080 | D18: เงินนำส่งกองทุนพัฒนาไฟฟ้าจากการผลิตไฟฟ้า | F18: =IFERROR(VLOOKUP(A18,SAP!L:M,2,0),0) -> 0 | G18: =IFERROR(VLOOKUP(A18,SAP!N:Q,4,0),0) -> 0 | H18: =IFERROR(VLOOKUP(A18,SAP!R:S,2,0),0) -> 0 | I18: =IFERROR(VLOOKUP(A18,'R100'!A:J,10,0),0) -> 0 | J18: =ROUNDUP(SUMIF('E200'!A:A,A18,'E200'!E:E),-1) -> 0 | K18: =ROUNDUP(SUMIF('E300'!A:A,A18,'E300'!J:J),-1) -> 0 | L18: 0 | N18: 0
A19: 51010090 | D19: เงินนำส่งกองทุนพัฒนาไฟฟ้าเพื่อพลังงานหมุนเวียน | F19: =IFERROR(VLOOKUP(A19,SAP!L:M,2,0),0) -> 2374880.69 | G19: =IFERROR(VLOOKUP(A19,SAP!N:Q,4,0),0) -> 2031474.583 | H19: =IFERROR(VLOOKUP(A19,SAP!R:S,2,0),0) -> 0 | I19: =IFERROR(VLOOKUP(A19,'R100'!A:J,10,0),0) -> 2110000 | J19: =ROUNDUP(SUMIF('E200'!A:A,A19,'E200'!E:E),-1) -> 0 | K19: =ROUNDUP(SUMIF('E300'!A:A,A19,'E300'!J:J),-1) -> 0 | L19: 2110000 | N19: 1
A20: 51010100 | D20: เงินนำส่งกองทุนพัฒนาไฟฟ้าเพื่อส่งเสริมสังคม | F20: =IFERROR(VLOOKUP(A20,SAP!L:M,2,0),0) -> 949952.27 | G20: =IFERROR(VLOOKUP(A20,SAP!N:Q,4,0),0) -> 812589.8571 | H20: =IFERROR(VLOOKUP(A20,SAP!R:S,2,0),0) -> 0 | I20: =IFERROR(VLOOKUP(A20,'R100'!A:J,10,0),0) -> 852000 | J20: =ROUNDUP(SUMIF('E200'!A:A,A20,'E200'!E:E),-1) -> 0 | K20: =ROUNDUP(SUMIF('E300'!A:A,A20,'E300'!J:J),-1) -> 0 | L20: 852000 | N20: 1
A21: 51010110 | D21: ค่าปรับจากการลงทุนที่ต่ำกว่าแผน | F21: =IFERROR(VLOOKUP(A21,SAP!L:M,2,0),0) -> 0 | G21: =IFERROR(VLOOKUP(A21,SAP!N:Q,4,0),0) -> 0 | H21: =IFERROR(VLOOKUP(A21,SAP!R:S,2,0),0) -> 0 | I21: =IFERROR(VLOOKUP(A21,'R100'!A:J,10,0),0) -> 0 | J21: =ROUNDUP(SUMIF('E200'!A:A,A21,'E200'!E:E),-1) -> 0 | K21: =ROUNDUP(SUMIF('E300'!A:A,A21,'E300'!J:J),-1) -> 0 | L21: 0 | N21: 0
A22: 51010120 | D22: เงินคืนรายได้ | F22: =IFERROR(VLOOKUP(A22,SAP!L:M,2,0),0) -> 0 | G22: =IFERROR(VLOOKUP(A22,SAP!N:Q,4,0),0) -> 0 | H22: =IFERROR(VLOOKUP(A22,SAP!R:S,2,0),0) -> 0 | I22: =IFERROR(VLOOKUP(A22,'R100'!A:J,10,0),0) -> 0 | J22: =ROUNDUP(SUMIF('E200'!A:A,A22,'E200'!E:E),-1) -> 0 | K22: =ROUNDUP(SUMIF('E300'!A:A,A22,'E300'!J:J),-1) -> 0 | L22: 0 | N22: 0
A23: 51010130 | D23: ต้นทุนจำหน่ายไฟฟ้าของสถานีอัดประจุ | F23: =IFERROR(VLOOKUP(A23,SAP!L:M,2,0),0) -> 0 | G23: =IFERROR(VLOOKUP(A23,SAP!N:Q,4,0),0) -> 0 | H23: =IFERROR(VLOOKUP(A23,SAP!R:S,2,0),0) -> 0 | I23: =IFERROR(VLOOKUP(A23,'R100'!A:J,10,0),0) -> 0 | J23: =ROUNDUP(SUMIF('E200'!A:A,A23,'E200'!E:E),-1) -> 0 | K23: =ROUNDUP(SUMIF('E300'!A:A,A23,'E300'!J:J),-1) -> 0 | L23: =SUM(I23:K23) -> 0 | N23: =IF(SUM(F23:K23)>0,1,0) -> 0
A24: 51011010 | D24: ค่าเชื้อเพลิงผลิตกระแสไฟฟ้า | F24: =IFERROR(VLOOKUP(A24,SAP!L:M,2,0),0) -> 17905.23 | G24: =IFERROR(VLOOKUP(A24,SAP!N:Q,4,0),0) -> 127152 | H24: =IFERROR(VLOOKUP(A24,SAP!R:S,2,0),0) -> 0 | I24: =IFERROR(VLOOKUP(A24,'R100'!A:J,10,0),0) -> 30000 | J24: =ROUNDUP(SUMIF('E200'!A:A,A24,'E200'!E:E),-1) -> 0 | K24: =ROUNDUP(SUMIF('E300'!A:A,A24,'E300'!J:J),-1) -> 0 | L24: =SUM(I24:K24) -> 30000 | N24: =IF(SUM(F24:K24)>0,1,0) -> 1
A25: 51011020 | D25: ค่าสารหล่อลื่นผลิตกระแสไฟฟ้า | F25: =IFERROR(VLOOKUP(A25,SAP!L:M,2,0),0) -> 0 | G25: =IFERROR(VLOOKUP(A25,SAP!N:Q,4,0),0) -> 0 | H25: =IFERROR(VLOOKUP(A25,SAP!R:S,2,0),0) -> 0 | I25: =IFERROR(VLOOKUP(A25,'R100'!A:J,10,0),0) -> 0 | J25: =ROUNDUP(SUMIF('E200'!A:A,A25,'E200'!E:E),-1) -> 0 | K25: =ROUNDUP(SUMIF('E300'!A:A,A25,'E300'!J:J),-1) -> 0 | L25: =SUM(I25:K25) -> 0 | N25: =IF(SUM(F25:K25)>0,1,0) -> 0
C26: ต้นทุนขายและบริการอื่น | N26: =IF(SUM(N27:N30)>0,1,0) -> 1
A27: 51020010 | D27: ต้นทุนจากการจำหน่ายอุปกรณ์ไฟฟ้า | F27: =IFERROR(VLOOKUP(A27,SAP!L:M,2,0),0) -> 0 | G27: =IFERROR(VLOOKUP(A27,SAP!N:Q,4,0),0) -> 0 | H27: =IFERROR(VLOOKUP(A27,SAP!R:S,2,0),0) -> 0 | I27: =IFERROR(VLOOKUP(A27,'R100'!A:J,10,0),0) -> 0 | J27: =ROUNDUP(SUMIF('E200'!A:A,A27,'E200'!E:E),-1) -> 0 | K27: =ROUNDUP(SUMIF('E300'!A:A,A27,'E300'!J:J),-1) -> 0 | L27: =SUM(I27:K27) -> 0 | N27: =IF(SUM(F27:K27)>0,1,0) -> 0
A28: 51020020 | D28: ต้นทุนผลิตภัณฑ์คอนกรีต | F28: =IFERROR(VLOOKUP(A28,SAP!L:M,2,0),0) -> 0 | G28: =IFERROR(VLOOKUP(A28,SAP!N:Q,4,0),0) -> 0 | H28: =IFERROR(VLOOKUP(A28,SAP!R:S,2,0),0) -> 0 | I28: =IFERROR(VLOOKUP(A28,'R100'!A:J,10,0),0) -> 0 | J28: =ROUNDUP(SUMIF('E200'!A:A,A28,'E200'!E:E),-1) -> 0 | K28: =ROUNDUP(SUMIF('E300'!A:A,A28,'E300'!J:J),-1) -> 0 | L28: =SUM(I28:K28) -> 0 | N28: =IF(SUM(F28:K28)>0,1,0) -> 0
A29: 51020040 | D29: ต้นทุนจากการจัดจำหน่ายผลิตภัณฑ์ | F29: =IFERROR(VLOOKUP(A29,SAP!L:M,2,0),0) -> 0 | G29: =IFERROR(VLOOKUP(A29,SAP!N:Q,4,0),0) -> 0 | H29: =IFERROR(VLOOKUP(A29,SAP!R:S,2,0),0) -> 0 | I29: =IFERROR(VLOOKUP(A29,'R100'!A:J,10,0),0) -> 0 | J29: =ROUNDUP(SUMIF('E200'!A:A,A29,'E200'!E:E),-1) -> 0 | K29: =ROUNDUP(SUMIF('E300'!A:A,A29,'E300'!J:J),-1) -> 0 | L29: =SUM(I29:K29) -> 0 | N29: =IF(SUM(F29:K29)>0,1,0) -> 0
A30: 51021010 | D30: ผลต่างราคาพัสดุ | F30: =IFERROR(VLOOKUP(A30,SAP!L:M,2,0),0) -> 8597.49 | G30: =IFERROR(VLOOKUP(A30,SAP!N:Q,4,0),0) -> 79787.67429 | H30: =IFERROR(VLOOKUP(A30,SAP!R:S,2,0),0) -> 0 | I30: =IFERROR(VLOOKUP(A30,'R100'!A:J,10,0),0) -> 0 | J30: =ROUNDUP(SUMIF('E200'!A:A,A30,'E200'!E:E),-1) -> 0 | K30: =ROUNDUP(SUMIF('E300'!A:A,A30,'E300'!J:J),-1) -> 0 | L30: =SUM(I30:K30) -> 0 | N30: =IF(SUM(F30:K30)>0,1,0) -> 1
B31: รวมต้นทุนจากการจำหน่ายกระแสไฟฟ้าและบริการ | F31: =SUBTOTAL(109,F9:F30) -> 1535644076 | G31: 1750949297 | H31: 0 | I31: 2283960000 | J31: 0 | K31: 0 | L31: 2283960000 | N31: =N10 -> 1
B32: ค่าใช้จ่ายเกี่ยวกับบุคคลากร | N32: =IF(SUM(N33:N87)>0,1,0) -> 1
B33: เงินเดือน ค่าจ้าง ค่าตอบแทนพนักงาน | N33: =IF(SUM(N34:N58)>0,1,0) -> 1
C34: เงินเดือน ค่าจ้าง ค่าตอบแทน | N34: =IF(SUM(N35:N42)>0,1,0) -> 1
A35: 52010010 | D35: เงินเดือนพนักงาน | F35: =IFERROR(VLOOKUP(A35,SAP!L:M,2,0),0) -> 48754049.03 | G35: =IFERROR(VLOOKUP(A35,SAP!N:Q,4,0),0) -> 45584540.47 | H35: =IFERROR(VLOOKUP(A35,SAP!R:S,2,0),0) -> 0 | I35: =IFERROR(VLOOKUP(A35,'E110'!A:I,9,0),0) -> 47812890 | J35: =ROUNDUP(SUMIF('E200'!A:A,A35,'E200'!E:E),-1) -> 0 | K35: =ROUNDUP(SUMIF('E300'!A:A,A35,'E300'!J:J),-1) -> 0 | L35: =SUM(I35:K35) -> 47812890 | N35: =IF(SUM(F35:K35)>0,1,0) -> 1
A36: 52010020 | D36: ค่าจ้างรายเดือนลูกจ้าง | F36: =IFERROR(VLOOKUP(A36,SAP!L:M,2,0),0) -> 5925441.92 | G36: =IFERROR(VLOOKUP(A36,SAP!N:Q,4,0),0) -> 6073437.137 | H36: =IFERROR(VLOOKUP(A36,SAP!R:S,2,0),0) -> 0 | I36: =IFERROR(VLOOKUP(A36,'E110'!A:I,9,0),0) -> 6744160 | J36: =ROUNDUP(SUMIF('E200'!A:A,A36,'E200'!E:E),-1) -> 0 | K36: =ROUNDUP(SUMIF('E300'!A:A,A36,'E300'!J:J),-1) -> 0 | L36: 6744160 | N36: 1
A37: 52010030 | D37: ค่าล่วงเวลาพนักงาน | F37: =IFERROR(VLOOKUP(A37,SAP!L:M,2,0),0) -> 1176645.52 | G37: =IFERROR(VLOOKUP(A37,SAP!N:Q,4,0),0) -> 1319060.983 | H37: =IFERROR(VLOOKUP(A37,SAP!R:S,2,0),0) -> 0 | I37: =IFERROR(VLOOKUP(A37,'E110'!A:I,9,0),0) -> 700000 | J37: =ROUNDUP(SUMIF('E200'!A:A,A37,'E200'!E:E),-1) -> 0 | K37: =ROUNDUP(SUMIF('E300'!A:A,A37,'E300'!J:J),-1) -> 0 | L37: 700000 | N37: 1
A38: 52010040 | D38: ค่าตอบแทนอยู่เวรแก้ไฟฟ้าขัดข้อง | F38: =IFERROR(VLOOKUP(A38,SAP!L:M,2,0),0) -> 645800 | G38: =IFERROR(VLOOKUP(A38,SAP!N:Q,4,0),0) -> 594137.1429 | H38: =IFERROR(VLOOKUP(A38,SAP!R:S,2,0),0) -> 0 | I38: =IFERROR(VLOOKUP(A38,'E110'!A:I,9,0),0) -> 673320 | J38: =ROUNDUP(SUMIF('E200'!A:A,A38,'E200'!E:E),-1) -> 0 | K38: =ROUNDUP(SUMIF('E300'!A:A,A38,'E300'!J:J),-1) -> 0 | L38: 673320 | N38: 1
A39: 52010050 | D39: เงินโบนัสพนักงาน | F39: =IFERROR(VLOOKUP(A39,SAP!L:M,2,0),0) -> 0 | G39: =IFERROR(VLOOKUP(A39,SAP!N:Q,4,0),0) -> 0 | H39: =IFERROR(VLOOKUP(A39,SAP!R:S,2,0),0) -> 0 | I39: 0 | J39: 0 | K39: 0 | L39: 0 | M39: ไม่ต้องตั้งงบประมาณ | N39: 0
A40: 52010060 | D40: ค่าครองชีพพนักงาน | F40: =IFERROR(VLOOKUP(A40,SAP!L:M,2,0),0) -> 0 | G40: =IFERROR(VLOOKUP(A40,SAP!N:Q,4,0),0) -> 0 | H40: =IFERROR(VLOOKUP(A40,SAP!R:S,2,0),0) -> 0 | I40: 0 | J40: 0 | K40: 0 | L40: =SUM(I40:K40) -> 0 | M40: ไม่ต้องตั้งงบประมาณ | N40: 0
A41: 52010070 | D41: สวัสดิการและค่าตอบแทนอื่น- ลูกจ้าง | F41: =IFERROR(VLOOKUP(A41,SAP!L:M,2,0),0) -> 1247788.75 | G41: =IFERROR(VLOOKUP(A41,SAP!N:Q,4,0),0) -> 1688068.749 | H41: =IFERROR(VLOOKUP(A41,SAP!R:S,2,0),0) -> 0 | I41: =IFERROR(VLOOKUP(A41,'E110'!A:I,9,0),0) -> 675000 | J41: =ROUNDUP(SUMIF('E200'!A:A,A41,'E200'!E:E),-1) -> 0 | K41: =ROUNDUP(SUMIF('E300'!A:A,A41,'E300'!J:J),-1) -> 0 | L41: 675000 | N41: 1
A42: 52010990 | D42: ค่าตอบแทนอื่น-พนักงาน | F42: =IFERROR(VLOOKUP(A42,SAP!L:M,2,0),0) -> 158194.82 | G42: =IFERROR(VLOOKUP(A42,SAP!N:Q,4,0),0) -> 248571.4286 | H42: =IFERROR(VLOOKUP(A42,SAP!R:S,2,0),0) -> 0 | I42: =IFERROR(VLOOKUP(A42,'E110'!A:I,9,0),0) -> 24000 | J42: =ROUNDUP(SUMIF('E200'!A:A,A42,'E200'!E:E),-1) -> 0 | K42: =ROUNDUP(SUMIF('E300'!A:A,A42,'E300'!J:J),-1) -> 0 | L42: 24000 | N42: 1
C43: เงินจ่ายสมทบกองทุน | N43: =IF(SUM(N44:N45)>0,1,0) -> 1
A44: 52011010 | D44: เงินสมทบกองทุนสงเคราะห์ผู้ปฏิบัติงาน กฟภ. | F44: =IFERROR(VLOOKUP(A44,SAP!L:M,2,0),0) -> 0 | G44: =IFERROR(VLOOKUP(A44,SAP!N:Q,4,0),0) -> 0 | H44: =IFERROR(VLOOKUP(A44,SAP!R:S,2,0),0) -> 0 | I44: =IFERROR(VLOOKUP(A44,'E110'!A:I,9,0),0) -> 0 | J44: =ROUNDUP(SUMIF('E200'!A:A,A44,'E200'!E:E),-1) -> 0 | K44: =ROUNDUP(SUMIF('E300'!A:A,A44,'E300'!J:J),-1) -> 0 | L44: =SUM(I44:K44) -> 0 | N44: =IF(SUM(F44:K44)>0,1,0) -> 0
A45: 52011020 | D45: เงินสมทบกองทุนสำรองเลี้ยงชีพ | F45: =IFERROR(VLOOKUP(A45,SAP!L:M,2,0),0) -> 5103364.23 | G45: =IFERROR(VLOOKUP(A45,SAP!N:Q,4,0),0) -> 4744441.954 | H45: =IFERROR(VLOOKUP(A45,SAP!R:S,2,0),0) -> 0 | I45: =IFERROR(VLOOKUP(A45,'E110'!A:I,9,0),0) -> 5020360 | J45: =ROUNDUP(SUMIF('E200'!A:A,A45,'E200'!E:E),-1) -> 0 | K45: =ROUNDUP(SUMIF('E300'!A:A,A45,'E300'!J:J),-1) -> 0 | L45: =SUM(I45:K45) -> 5020360 | N45: 1
C46: เงินเพิ่มพิเศษ | N46: =IF(SUM(N47:N54)>0,1,0) -> 1
A47: 52012010 | D47: เงินเพิ่มพิเศษวิชาชีพ | F47: =IFERROR(VLOOKUP(A47,SAP!L:M,2,0),0) -> 52956 | G47: =IFERROR(VLOOKUP(A47,SAP!N:Q,4,0),0) -> 56700 | H47: =IFERROR(VLOOKUP(A47,SAP!R:S,2,0),0) -> 0 | I47: =IFERROR(VLOOKUP(A47,'E110'!A:I,9,0),0) -> 114000 | J47: =ROUNDUP(SUMIF('E200'!A:A,A47,'E200'!E:E),-1) -> 0 | K47: =ROUNDUP(SUMIF('E300'!A:A,A47,'E300'!J:J),-1) -> 0 | L47: =SUM(I47:K47) -> 114000 | N47: =IF(SUM(F47:K47)>0,1,0) -> 1
A48: 52012020 | D48: เงินเพิ่มฮอทไลน์ | F48: =IFERROR(VLOOKUP(A48,SAP!L:M,2,0),0) -> 503850 | G48: =IFERROR(VLOOKUP(A48,SAP!N:Q,4,0),0) -> 445885.7143 | H48: =IFERROR(VLOOKUP(A48,SAP!R:S,2,0),0) -> 0 | I48: =IFERROR(VLOOKUP(A48,'E110'!A:I,9,0),0) -> 636750 | J48: =ROUNDUP(SUMIF('E200'!A:A,A48,'E200'!E:E),-1) -> 0 | K48: =ROUNDUP(SUMIF('E300'!A:A,A48,'E300'!J:J),-1) -> 0 | L48: =SUM(I48:K48) -> 636750 | N48: =IF(SUM(F48:K48)>0,1,0) -> 1
A49: 52012030 | D49: เงินเพิ่มสู้รบ (พสร.) | F49: =IFERROR(VLOOKUP(A49,SAP!L:M,2,0),0) -> 0 | G49: =IFERROR(VLOOKUP(A49,SAP!N:Q,4,0),0) -> 0 | H49: =IFERROR(VLOOKUP(A49,SAP!R:S,2,0),0) -> 0 | I49: =IFERROR(VLOOKUP(A49,'E110'!A:I,9,0),0) -> 0 | J49: =ROUNDUP(SUMIF('E200'!A:A,A49,'E200'!E:E),-1) -> 0 | K49: =ROUNDUP(SUMIF('E300'!A:A,A49,'E300'!J:J),-1) -> 0 | L49: 0 | N49: 0
A50: 52012040 | D50: เงินยังชีพ (14 จังหวัดภาคใต้) | F50: =IFERROR(VLOOKUP(A50,SAP!L:M,2,0),0) -> 0 | G50: =IFERROR(VLOOKUP(A50,SAP!N:Q,4,0),0) -> 0 | H50: =IFERROR(VLOOKUP(A50,SAP!R:S,2,0),0) -> 0 | I50: =IFERROR(VLOOKUP(A50,'E110'!A:I,9,0),0) -> 0 | J50: =ROUNDUP(SUMIF('E200'!A:A,A50,'E200'!E:E),-1) -> 0 | K50: =ROUNDUP(SUMIF('E300'!A:A,A50,'E300'!J:J),-1) -> 0 | L50: 0 | N50: 0
A51: 52012050 | D51: เงินเพิ่มพิเศษสำหรับผู้ทำงานอยู่กะ | F51: =IFERROR(VLOOKUP(A51,SAP!L:M,2,0),0) -> 636361.83 | G51: =IFERROR(VLOOKUP(A51,SAP!N:Q,4,0),0) -> 612397.44 | H51: =IFERROR(VLOOKUP(A51,SAP!R:S,2,0),0) -> 0 | I51: =IFERROR(VLOOKUP(A51,'E110'!A:I,9,0),0) -> 0 | J51: =ROUNDUP(SUMIF('E200'!A:A,A51,'E200'!E:E),-1) -> 0 | K51: =ROUNDUP(SUMIF('E300'!A:A,A51,'E300'!J:J),-1) -> 0 | L51: 0 | N51: 1
A52: 52012060 | D52: ค่าโทรศัพท์บ้านพัก- ผู้บริหาร | F52: =IFERROR(VLOOKUP(A52,SAP!L:M,2,0),0) -> 0 | G52: =IFERROR(VLOOKUP(A52,SAP!N:Q,4,0),0) -> 0 | H52: =IFERROR(VLOOKUP(A52,SAP!R:S,2,0),0) -> 0 | I52: =IFERROR(VLOOKUP(A52,'E110'!A:I,9,0),0) -> 19200 | J52: =ROUNDUP(SUMIF('E200'!A:A,A52,'E200'!E:E),-1) -> 0 | K52: =ROUNDUP(SUMIF('E300'!A:A,A52,'E300'!J:J),-1) -> 0 | L52: 19200 | N52: 1
A53: 52012070 | D53: ค่าโทรศัพท์เคลื่อนที่ -ผู้บริหาร | F53: =IFERROR(VLOOKUP(A53,SAP!L:M,2,0),0) -> 60000 | G53: =IFERROR(VLOOKUP(A53,SAP!N:Q,4,0),0) -> 62400 | H53: =IFERROR(VLOOKUP(A53,SAP!R:S,2,0),0) -> 0 | I53: =IFERROR(VLOOKUP(A53,'E110'!A:I,9,0),0) -> 62400 | J53: =ROUNDUP(SUMIF('E200'!A:A,A53,'E200'!E:E),-1) -> 0 | K53: =ROUNDUP(SUMIF('E300'!A:A,A53,'E300'!J:J),-1) -> 0 | L53: 62400 | N53: 1
A54: 52012990 | D54: เงินเพิ่มพิเศษอื่น | F54: =IFERROR(VLOOKUP(A54,SAP!L:M,2,0),0) -> 0 | G54: =IFERROR(VLOOKUP(A54,SAP!N:Q,4,0),0) -> 0 | H54: =IFERROR(VLOOKUP(A54,SAP!R:S,2,0),0) -> 0 | I54: =IFERROR(VLOOKUP(A54,'E110'!A:I,9,0),0) -> 0 | J54: =ROUNDUP(SUMIF('E200'!A:A,A54,'E200'!E:E),-1) -> 0 | K54: =ROUNDUP(SUMIF('E300'!A:A,A54,'E300'!J:J),-1) -> 0 | L54: 0 | N54: 0
C55: เงินชดเชย | N55: =IF(SUM(N56:N58)>0,1,0) -> 0
A56: 52013010 | D56: เงินชดเชยตามกฎหมาย-พนักงานเกษียณอายุหรือให้ออก | F56: =IFERROR(VLOOKUP(A56,SAP!L:M,2,0),0) -> 0 | G56: =IFERROR(VLOOKUP(A56,SAP!N:Q,4,0),0) -> 0 | H56: =IFERROR(VLOOKUP(A56,SAP!R:S,2,0),0) -> 0 | I56: 0 | J56: 0 | K56: 0 | L56: =SUM(I56:K56) -> 0 | M56: ไม่ต้องตั้งงบประมาณ | N56: =IF(SUM(F56:K56)>0,1,0) -> 0
A57: 52013020 | D57: เงินตอบแทนพิเศษ-พนักงานเกษียณก่อนอายุ | F57: =IFERROR(VLOOKUP(A57,SAP!L:M,2,0),0) -> 0 | G57: =IFERROR(VLOOKUP(A57,SAP!N:Q,4,0),0) -> 0 | H57: =IFERROR(VLOOKUP(A57,SAP!R:S,2,0),0) -> 0 | I57: 0 | J57: 0 | K57: 0 | L57: 0 | M57: ไม่ต้องตั้งงบประมาณ | N57: 0
A58: 52013030 | D58: เงินชดเชย-พนักงานเกษียณก่อนอายุ | F58: =IFERROR(VLOOKUP(A58,SAP!L:M,2,0),0) -> 0 | G58: =IFERROR(VLOOKUP(A58,SAP!N:Q,4,0),0) -> 0 | H58: =IFERROR(VLOOKUP(A58,SAP!R:S,2,0),0) -> 0 | I58: 0 | J58: 0 | K58: 0 | L58: 0 | M58: ไม่ต้องตั้งงบประมาณ | N58: 0
B59: สวัสดิการพนักงาน | N59: =IF(SUM(N60:N80)>0,1,0) -> 1
C60: เงินช่วยเหลือพนักงาน | N60: =IF(SUM(N61:N65)>0,1,0) -> 1
A61: 52020010 | D61: เงินช่วยเหลือค่าไฟฟ้า | F61: =IFERROR(VLOOKUP(A61,SAP!L:M,2,0),0) -> 8476113.83 | G61: =IFERROR(VLOOKUP(A61,SAP!N:Q,4,0),0) -> 8742477.583 | H61: =IFERROR(VLOOKUP(A61,SAP!R:S,2,0),0) -> 0 | I61: =IFERROR(VLOOKUP(A61,'E110'!A:I,9,0),0) -> 9477330 | J61: =ROUNDUP(SUMIF('E200'!A:A,A61,'E200'!E:E),-1) -> 0 | K61: =ROUNDUP(SUMIF('E300'!A:A,A61,'E300'!J:J),-1) -> 0 | L61: =SUM(I61:K61) -> 9477330 | N61: =IF(SUM(F61:K61)>0,1,0) -> 1
A62: 52020020 | D62: เงินช่วยเหลือค่าเครื่องแบบพนักงาน | F62: =IFERROR(VLOOKUP(A62,SAP!L:M,2,0),0) -> 6000 | G62: =IFERROR(VLOOKUP(A62,SAP!N:Q,4,0),0) -> 0 | H62: =IFERROR(VLOOKUP(A62,SAP!R:S,2,0),0) -> 0 | I62: =IFERROR(VLOOKUP(A62,'E110'!A:I,9,0),0) -> 12000 | J62: =ROUNDUP(SUMIF('E200'!A:A,A62,'E200'!E:E),-1) -> 0 | K62: =ROUNDUP(SUMIF('E300'!A:A,A62,'E300'!J:J),-1) -> 0 | L62: =SUM(I62:K62) -> 12000 | N62: =IF(SUM(F62:K62)>0,1,0) -> 1
A63: 52020030 | D63: เงินช่วยเหลือค่าเล่าเรียนบุตร | F63: =IFERROR(VLOOKUP(A63,SAP!L:M,2,0),0) -> 316635 | G63: =IFERROR(VLOOKUP(A63,SAP!N:Q,4,0),0) -> 389642.5714 | H63: =IFERROR(VLOOKUP(A63,SAP!R:S,2,0),0) -> 0 | I63: =IFERROR(VLOOKUP(A63,'E110'!A:I,9,0),0) -> 603100 | J63: =ROUNDUP(SUMIF('E200'!A:A,A63,'E200'!E:E),-1) -> 0 | K63: =ROUNDUP(SUMIF('E300'!A:A,A63,'E300'!J:J),-1) -> 0 | L63: =SUM(I63:K63) -> 603100 | N63: =IF(SUM(F63:K63)>0,1,0) -> 1
A64: 52020040 | D64: เงินช่วยเหลือบุตร | F64: =IFERROR(VLOOKUP(A64,SAP!L:M,2,0),0) -> 266500 | G64: =IFERROR(VLOOKUP(A64,SAP!N:Q,4,0),0) -> 278571.4286 | H64: =IFERROR(VLOOKUP(A64,SAP!R:S,2,0),0) -> 0 | I64: =IFERROR(VLOOKUP(A64,'E110'!A:I,9,0),0) -> 360000 | J64: =ROUNDUP(SUMIF('E200'!A:A,A64,'E200'!E:E),-1) -> 0 | K64: =ROUNDUP(SUMIF('E300'!A:A,A64,'E300'!J:J),-1) -> 0 | L64: =SUM(I64:K64) -> 360000 | N64: =IF(SUM(F64:K64)>0,1,0) -> 1
A65: 52020990 | D65: เงินช่วยเหลืออื่น | F65: =IFERROR(VLOOKUP(A65,SAP!L:M,2,0),0) -> 131440 | G65: =IFERROR(VLOOKUP(A65,SAP!N:Q,4,0),0) -> 2057.142857 | H65: =IFERROR(VLOOKUP(A65,SAP!R:S,2,0),0) -> 0 | I65: =IFERROR(VLOOKUP(A65,'E110'!A:I,9,0),0) -> 20000 | J65: =ROUNDUP(SUMIF('E200'!A:A,A65,'E200'!E:E),-1) -> 0 | K65: =ROUNDUP(SUMIF('E300'!A:A,A65,'E300'!J:J),-1) -> 0 | L65: =SUM(I65:K65) -> 20000 | N65: =IF(SUM(F65:K65)>0,1,0) -> 1
C66: ค่ารักษาพยาบาล | N66: =IF(SUM(N67:N68)>0,1,0) -> 1
A67: 52021010 | D67: ค่ารักษาพยาบาล-พนักงาน | F67: =IFERROR(VLOOKUP(A67,SAP!L:M,2,0),0) -> 4017411.68 | G67: =IFERROR(VLOOKUP(A67,SAP!N:Q,4,0),0) -> 2880899.623 | H67: =IFERROR(VLOOKUP(A67,SAP!R:S,2,0),0) -> 0 | I67: =IFERROR(VLOOKUP(A67,'E110'!A:I,9,0),0) -> 1897200 | J67: =ROUNDUP(SUMIF('E200'!A:A,A67,'E200'!E:E),-1) -> 0 | K67: =ROUNDUP(SUMIF('E300'!A:A,A67,'E300'!J:J),-1) -> 0 | L67: =SUM(I67:K67) -> 1897200 | N67: =IF(SUM(F67:K67)>0,1,0) -> 1
A68: 52021020 | D68: ค่ารักษาพยาบาล-ครอบครัวพนักงาน | F68: =IFERROR(VLOOKUP(A68,SAP!L:M,2,0),0) -> 3334101.42 | G68: =IFERROR(VLOOKUP(A68,SAP!N:Q,4,0),0) -> 2090182.8 | H68: =IFERROR(VLOOKUP(A68,SAP!R:S,2,0),0) -> 0 | I68: =IFERROR(VLOOKUP(A68,'E110'!A:I,9,0),0) -> 1938000 | J68: =ROUNDUP(SUMIF('E200'!A:A,A68,'E200'!E:E),-1) -> 0 | K68: =ROUNDUP(SUMIF('E300'!A:A,A68,'E300'!J:J),-1) -> 0 | L68: =SUM(I68:K68) -> 1938000 | N68: =IF(SUM(F68:K68)>0,1,0) -> 1
C69: ค่าพาหนะ เบี้ยเลี้ยงเดินทาง | N69: =IF(SUM(N70:N77)>0,1,0) -> 1
A70: 52022010 | D70: ค่าพาหนะเดินทางไปปฏิบัติงานต่างท้องที่-พนักงาน | F70: =IFERROR(VLOOKUP(A70,SAP!L:M,2,0),0) -> 22588 | G70: =IFERROR(VLOOKUP(A70,SAP!N:Q,4,0),0) -> 29216.57143 | H70: =IFERROR(VLOOKUP(A70,SAP!R:S,2,0),0) -> 0 | I70: =IFERROR(VLOOKUP(A70,'E110'!A:I,9,0),0) -> 127000 | J70: =ROUNDUP(SUMIF('E200'!A:A,A70,'E200'!E:E),-1) -> 0 | K70: =ROUNDUP(SUMIF('E300'!A:A,A70,'E300'!J:J),-1) -> 0 | L70: =SUM(I70:K70) -> 127000 | N70: =IF(SUM(F70:K70)>0,1,0) -> 1
A71: 52022020 | D71: ค่าเบี้ยเลี้ยง-พนักงาน | F71: =IFERROR(VLOOKUP(A71,SAP!L:M,2,0),0) -> 517290 | G71: =IFERROR(VLOOKUP(A71,SAP!N:Q,4,0),0) -> 726128.5714 | H71: =IFERROR(VLOOKUP(A71,SAP!R:S,2,0),0) -> 0 | I71: =IFERROR(VLOOKUP(A71,'E110'!A:I,9,0),0) -> 802320 | J71: =ROUNDUP(SUMIF('E200'!A:A,A71,'E200'!E:E),-1) -> 0 | K71: =ROUNDUP(SUMIF('E300'!A:A,A71,'E300'!J:J),-1) -> 0 | L71: 802320 | N71: 1
A72: 52022030 | D72: ค่าที่พัก-พนักงาน | F72: =IFERROR(VLOOKUP(A72,SAP!L:M,2,0),0) -> 1058580 | G72: =IFERROR(VLOOKUP(A72,SAP!N:Q,4,0),0) -> 1530265.714 | H72: =IFERROR(VLOOKUP(A72,SAP!R:S,2,0),0) -> 0 | I72: =IFERROR(VLOOKUP(A72,'E110'!A:I,9,0),0) -> 1575880 | J72: =ROUNDUP(SUMIF('E200'!A:A,A72,'E200'!E:E),-1) -> 0 | K72: =ROUNDUP(SUMIF('E300'!A:A,A72,'E300'!J:J),-1) -> 0 | L72: 1575880 | N72: 1
A73: 52022040 | D73: ค่าเครื่องแต่งกายสำหรับปฏิบัติงานต่างประเทศ | F73: =IFERROR(VLOOKUP(A73,SAP!L:M,2,0),0) -> 0 | G73: =IFERROR(VLOOKUP(A73,SAP!N:Q,4,0),0) -> 0 | H73: =IFERROR(VLOOKUP(A73,SAP!R:S,2,0),0) -> 0 | I73: 0 | J73: 0 | K73: 0 | L73: =SUM(I73:K73) -> 0 | M73: ไม่ต้องตั้งงบประมาณ | N73: 0
A74: 52022050 | D74: ค่าชดเชยการใช้ยานพาหนะส่วนตัว | F74: =IFERROR(VLOOKUP(A74,SAP!L:M,2,0),0) -> 0 | G74: =IFERROR(VLOOKUP(A74,SAP!N:Q,4,0),0) -> 0 | H74: =IFERROR(VLOOKUP(A74,SAP!R:S,2,0),0) -> 0 | I74: =IFERROR(VLOOKUP(A74,'E110'!A:I,9,0),0) -> 0 | J74: =ROUNDUP(SUMIF('E200'!A:A,A74,'E200'!E:E),-1) -> 0 | K74: =ROUNDUP(SUMIF('E300'!A:A,A74,'E300'!J:J),-1) -> 0 | L74: 0 | N74: 0
A75: 52022060 | D75: ค่าพาหนะเดินทางไปปฏิบัติงานต่างท้องที่-ลูกจ้าง | F75: =IFERROR(VLOOKUP(A75,SAP!L:M,2,0),0) -> 832 | G75: =IFERROR(VLOOKUP(A75,SAP!N:Q,4,0),0) -> 678.8571429 | H75: =IFERROR(VLOOKUP(A75,SAP!R:S,2,0),0) -> 0 | I75: =IFERROR(VLOOKUP(A75,'E110'!A:I,9,0),0) -> 32500 | J75: =ROUNDUP(SUMIF('E200'!A:A,A75,'E200'!E:E),-1) -> 0 | K75: =ROUNDUP(SUMIF('E300'!A:A,A75,'E300'!J:J),-1) -> 0 | L75: 32500 | N75: 1
A76: 52022070 | D76: ค่าเบี้ยเลี้ยง-ลูกจ้าง | F76: =IFERROR(VLOOKUP(A76,SAP!L:M,2,0),0) -> 4845 | G76: =IFERROR(VLOOKUP(A76,SAP!N:Q,4,0),0) -> 2622.857143 | H76: =IFERROR(VLOOKUP(A76,SAP!R:S,2,0),0) -> 0 | I76: =IFERROR(VLOOKUP(A76,'E110'!A:I,9,0),0) -> 32500 | J76: =ROUNDUP(SUMIF('E200'!A:A,A76,'E200'!E:E),-1) -> 0 | K76: =ROUNDUP(SUMIF('E300'!A:A,A76,'E300'!J:J),-1) -> 0 | L76: 32500 | N76: 1
A77: 52022080 | D77: ค่าที่พัก-ลูกจ้าง | F77: =IFERROR(VLOOKUP(A77,SAP!L:M,2,0),0) -> 2670 | G77: =IFERROR(VLOOKUP(A77,SAP!N:Q,4,0),0) -> 1525.714286 | H77: =IFERROR(VLOOKUP(A77,SAP!R:S,2,0),0) -> 0 | I77: =IFERROR(VLOOKUP(A77,'E110'!A:I,9,0),0) -> 32500 | J77: =ROUNDUP(SUMIF('E200'!A:A,A77,'E200'!E:E),-1) -> 0 | K77: =ROUNDUP(SUMIF('E300'!A:A,A77,'E300'!J:J),-1) -> 0 | L77: 32500 | N77: 1
C78: ค่าสวัสดิการอื่นๆ | N78: =IF(SUM(N79:N80)>0,1,0) -> 1
A79: 52029010 | D79: ค่าเช่าบ้าน | F79: =IFERROR(VLOOKUP(A79,SAP!L:M,2,0),0) -> 599550 | G79: =IFERROR(VLOOKUP(A79,SAP!N:Q,4,0),0) -> 473142.8571 | H79: =IFERROR(VLOOKUP(A79,SAP!R:S,2,0),0) -> 0 | I79: =IFERROR(VLOOKUP(A79,'E110'!A:I,9,0),0) -> 804000 | J79: =ROUNDUP(SUMIF('E200'!A:A,A79,'E200'!E:E),-1) -> 0 | K79: =ROUNDUP(SUMIF('E300'!A:A,A79,'E300'!J:J),-1) -> 0 | L79: =SUM(I79:K79) -> 804000 | N79: =IF(SUM(F79:K79)>0,1,0) -> 1
A80: 52029990 | D80: ค่าสวัสดิการอื่น ๆ | F80: =IFERROR(VLOOKUP(A80,SAP!L:M,2,0),0) -> 0 | G80: =IFERROR(VLOOKUP(A80,SAP!N:Q,4,0),0) -> 0 | H80: =IFERROR(VLOOKUP(A80,SAP!R:S,2,0),0) -> 0 | I80: =IFERROR(VLOOKUP(A80,'E110'!A:I,9,0),0) -> 0 | J80: =ROUNDUP(SUMIF('E200'!A:A,A80,'E200'!E:E),-1) -> 0 | K80: =ROUNDUP(SUMIF('E300'!A:A,A80,'E300'!J:J),-1) -> 0 | L80: =SUM(I80:K80) -> 0 | N80: =IF(SUM(F80:K80)>0,1,0) -> 0
B81: ค่าใช้จ่ายในการพัฒนาบุคคลากร | N81: =IF(SUM(N82:N84)>0,1,0) -> 1
A82: 52030010 | D82: ค่าใช้จ่ายในการอบรมสัมมนา-ในแผน | F82: =IFERROR(VLOOKUP(A82,SAP!L:M,2,0),0) -> 0 | G82: =IFERROR(VLOOKUP(A82,SAP!N:Q,4,0),0) -> 0 | H82: =IFERROR(VLOOKUP(A82,SAP!R:S,2,0),0) -> 0 | I82: =IFERROR(IF(Head_division2="ฝพบ.",VLOOKUP(A82,'E110'!A:I,9,0),0),0) -> 0 | J82: =IF(Head_division2="ฝพบ.",ROUNDUP(SUMIF('E200'!A:A,A82,'E200'!E:E),-1),0) -> 0 | K82: =IF(Head_division2="ฝพบ.",ROUNDUP(SUMIF('E300'!A:A,A82,'E300'!J:J),-1),0) -> 0 | L82: =SUM(I82:K82) -> 0 | M82: เฉพาะ ฝพบ. เท่านั้น | N82: =IF(SUM(F82:K82)>0,1,0) -> 0
A83: 52030020 | D83: ค่าใช้จ่ายในการอบรมสัมมนา-นอกแผน | F83: =IFERROR(VLOOKUP(A83,SAP!L:M,2,0),0) -> 3183 | G83: =IFERROR(VLOOKUP(A83,SAP!N:Q,4,0),0) -> 9017.142857 | H83: =IFERROR(VLOOKUP(A83,SAP!R:S,2,0),0) -> 0 | I83: =IFERROR(VLOOKUP(A83,'E110'!A:I,9,0),0) -> 224400 | J83: =SUMIF('E200'!$A$33:A51,A83,'E200'!$E$33:E51) -> 0 | K83: =ROUNDUP(SUMIF('E300'!A:A,A83,'E300'!J:J),-1) -> 0 | L83: =SUM(I83:K83) -> 224400 | N83: =IF(SUM(F83:K83)>0,1,0) -> 1
A84: 52030030 | D84: ค่าใช้จ่ายในการประชุมชี้แจง | F84: =IFERROR(VLOOKUP(A84,SAP!L:M,2,0),0) -> 9375 | G84: =IFERROR(VLOOKUP(A84,SAP!N:Q,4,0),0) -> 23811.42857 | H84: =IFERROR(VLOOKUP(A84,SAP!R:S,2,0),0) -> 0 | I84: =IFERROR(VLOOKUP(A84,'E110'!A:I,9,0),0) -> 20000 | J84: ='E220'!F26 -> 0 | K84: =ROUNDUP(SUMIF('E300'!A:A,A84,'E300'!J:J),-1) -> 0 | L84: =SUM(I84:K84) -> 20000 | N84: =IF(SUM(F84:K84)>0,1,0) -> 1
B85: ต้นทุนผลประโยชน์พนักงาน | N85: =IF(SUM(N86:N87)>0,1,0) -> 1
A86: 52040010 | D86: ค่าใช้จ่ายผลประโยชน์พนักงาน-เงินชดเชยตามกฎหมาย | F86: =IFERROR(VLOOKUP(A86,SAP!L:M,2,0),0) -> 5773175 | G86: =IFERROR(VLOOKUP(A86,SAP!N:Q,4,0),0) -> 5246331.84 | H86: =IFERROR(VLOOKUP(A86,SAP!R:S,2,0),0) -> 0 | I86: 0 | J86: 0 | K86: 0 | L86: =SUM(I86:K86) -> 0 | M86: ไม่ต้องตั้งงบประมาณ | N86: =IF(SUM(F86:K86)>0,1,0) -> 1
A87: 52040020 | D87: ค่าใช้จ่ายผลประโยชน์พนักงาน-ค่าของที่ระลึก | F87: =IFERROR(VLOOKUP(A87,SAP!L:M,2,0),0) -> 162709 | G87: =IFERROR(VLOOKUP(A87,SAP!N:Q,4,0),0) -> 139181.04 | H87: =IFERROR(VLOOKUP(A87,SAP!R:S,2,0),0) -> 0 | I87: 0 | J87: 0 | K87: 0 | L87: 0 | M87: ไม่ต้องตั้งงบประมาณ | N87: 1
B88: รวมค่าใช้จ่ายเกี่ยวกับบุคคลากร | F88: =SUBTOTAL(109,F32:F87) -> 88967451.03 | G88: 83995394.76 | H88: 0 | I88: 80440810 | J88: 0 | K88: 0 | L88: =SUBTOTAL(109,L32:L87) -> 80440810 | N88: =N32 -> 1
B89: ค่าใช้จ่ายในการดำเนินงาน | N89: =IF(SUM(N90:N304)>0,1,0) -> 1
B90: ค่าใช้จ่ายตอบแทนบุคคลภายนอก | N90: =IF(SUM(N91:N114)>0,1,0) -> 1
C91: ค่าตอบแทนบุคคลภายนอก-เกี่ยวกับการดำเนินงาน | N91: =IF(SUM(N92:N101)>0,1,0) -> 1
A92: 53010010 | D92: ค่าตอบแทน-การจดหน่วยการใช้ไฟฟ้า | F92: =IFERROR(VLOOKUP(A92,SAP!L:M,2,0),0) -> 0 | G92: =IFERROR(VLOOKUP(A92,SAP!N:Q,4,0),0) -> 0 | H92: =IFERROR(VLOOKUP(A92,SAP!R:S,2,0),0) -> 0 | I92: =IFERROR(VLOOKUP(A92,'E120'!A:J,10,0),0) -> 0 | J92: =ROUNDUP(SUMIF('E200'!A:A,A92,'E200'!E:E),-1) -> 0 | K92: =ROUNDUP(SUMIF('E300'!A:A,A92,'E300'!J:J),-1) -> 0 | L92: =SUM(I92:K92) -> 0 | N92: =IF(SUM(F92:K92)>0,1,0) -> 0
A93: 53010020 | D93: ค่าตอบแทน-การจดหน่วยพร้อมแจ้งค่าไฟฟ้า | F93: =IFERROR(VLOOKUP(A93,SAP!L:M,2,0),0) -> 9267551.2 | G93: =IFERROR(VLOOKUP(A93,SAP!N:Q,4,0),0) -> 8617821.943 | H93: =IFERROR(VLOOKUP(A93,SAP!R:S,2,0),0) -> 0 | I93: =IFERROR(VLOOKUP(A93,'E120'!A:J,10,0),0) -> 10290000 | J93: =ROUNDUP(SUMIF('E200'!A:A,A93,'E200'!E:E),-1) -> 0 | K93: =ROUNDUP(SUMIF('E300'!A:A,A93,'E300'!J:J),-1) -> 0 | L93: 10290000 | N93: 1
A94: 53010030 | D94: ค่าตอบแทน-การเก็บเงินค่าไฟฟ้า | F94: =IFERROR(VLOOKUP(A94,SAP!L:M,2,0),0) -> 0 | G94: =IFERROR(VLOOKUP(A94,SAP!N:Q,4,0),0) -> 0 | H94: =IFERROR(VLOOKUP(A94,SAP!R:S,2,0),0) -> 0 | I94: =IFERROR(VLOOKUP(A94,'E120'!A:J,10,0),0) -> 0 | J94: =ROUNDUP(SUMIF('E200'!A:A,A94,'E200'!E:E),-1) -> 0 | K94: =ROUNDUP(SUMIF('E300'!A:A,A94,'E300'!J:J),-1) -> 0 | L94: 0 | N94: 0
A95: 53010040 | D95: ค่าจ้างเหมางานงดจ่ายไฟและต่อกลับมิเตอร์ | F95: =IFERROR(VLOOKUP(A95,SAP!L:M,2,0),0) -> 121838 | G95: =IFERROR(VLOOKUP(A95,SAP!N:Q,4,0),0) -> 1926502.286 | H95: =IFERROR(VLOOKUP(A95,SAP!R:S,2,0),0) -> 0 | I95: =IFERROR(VLOOKUP(A95,'E120'!A:J,10,0),0) -> 3788000 | J95: =ROUNDUP(SUMIF('E200'!A:A,A95,'E200'!E:E),-1) -> 0 | K95: =ROUNDUP(SUMIF('E300'!A:A,A95,'E300'!J:J),-1) -> 0 | L95: 3788000 | N95: 1
A96: 53010050 | D96: ค่าตอบแทน-บริการโฆษณา | F96: =IFERROR(VLOOKUP(A96,SAP!L:M,2,0),0) -> 0 | G96: =IFERROR(VLOOKUP(A96,SAP!N:Q,4,0),0) -> 0 | H96: =IFERROR(VLOOKUP(A96,SAP!R:S,2,0),0) -> 0 | I96: 0 | J96: 0 | K96: 0 | L96: =SUM(I96:K96) -> 0 | M96: ไม่ต้องตั้งงบประมาณ | N96: 0
A97: 53010060 | D97: ค่าแรงคนงานรายวัน/ค่าจ้างเหมาแรงงานก่อสร้าง | F97: =IFERROR(VLOOKUP(A97,SAP!L:M,2,0),0) -> 0 | G97: =IFERROR(VLOOKUP(A97,SAP!N:Q,4,0),0) -> 0 | H97: =IFERROR(VLOOKUP(A97,SAP!R:S,2,0),0) -> 0 | I97: 0 | J97: 0 | K97: 0 | L97: 0 | M97: ไม่ต้องตั้งงบประมาณ | N97: 0
A98: 53010070 | D98: ค่าแรงคนงานรายวันงานบำรุงรักษา | F98: =IFERROR(VLOOKUP(A98,SAP!L:M,2,0),0) -> 9640247.8 | G98: =IFERROR(VLOOKUP(A98,SAP!N:Q,4,0),0) -> 9695872.457 | H98: =IFERROR(VLOOKUP(A98,SAP!R:S,2,0),0) -> 0 | I98: =IFERROR(VLOOKUP(A98,'E120'!A:J,10,0),0) -> 10200000 | J98: =ROUNDUP(SUMIF('E200'!A:A,A98,'E200'!E:E),-1) -> 0 | K98: =ROUNDUP(SUMIF('E300'!A:A,A98,'E300'!J:J),-1) -> 0 | L98: 10200000 | N98: 1
A99: 53010080 | D99: ค่าแรงคนงานรายวันงานบริการ/ค่าจ้างเหมางานมิเตอร์ | F99: =IFERROR(VLOOKUP(A99,SAP!L:M,2,0),0) -> 2819236 | G99: =IFERROR(VLOOKUP(A99,SAP!N:Q,4,0),0) -> 2713285.714 | H99: =IFERROR(VLOOKUP(A99,SAP!R:S,2,0),0) -> 0 | I99: =IFERROR(VLOOKUP(A99,'E120'!A:J,10,0),0) -> 3085000 | J99: =ROUNDUP(SUMIF('E200'!A:A,A99,'E200'!E:E),-1) -> 0 | K99: =ROUNDUP(SUMIF('E300'!A:A,A99,'E300'!J:J),-1) -> 0 | L99: 3085000 | N99: 1
A100: 53010090 | D100: ค่าแรง/ค่าจ้างเหมาคนงานรายวันทั่วไป | F100: =IFERROR(VLOOKUP(A100,SAP!L:M,2,0),0) -> 5200754.65 | G100: =IFERROR(VLOOKUP(A100,SAP!N:Q,4,0),0) -> 5536444.629 | H100: =IFERROR(VLOOKUP(A100,SAP!R:S,2,0),0) -> 0 | I100: =IFERROR(VLOOKUP(A100,'E120'!A:J,10,0),0) -> 6575000 | J100: =ROUNDUP(SUMIF('E200'!A:A,A100,'E200'!E:E),-1) -> 0 | K100: =ROUNDUP(SUMIF('E300'!A:A,A100,'E300'!J:J),-1) -> 0 | L100: 6575000 | N100: 1
A101: 53010100 | D101: ค่าจ้างส่งหนังสือแจ้งเตือนก่อนงดจ่ายไฟฟ้า | F101: =IFERROR(VLOOKUP(A101,SAP!L:M,2,0),0) -> 2281008.7 | G101: =IFERROR(VLOOKUP(A101,SAP!N:Q,4,0),0) -> 1849934.88 | H101: =IFERROR(VLOOKUP(A101,SAP!R:S,2,0),0) -> 0 | I101: =IFERROR(VLOOKUP(A101,'E120'!A:J,10,0),0) -> 2100000 | J101: =ROUNDUP(SUMIF('E200'!A:A,A101,'E200'!E:E),-1) -> 0 | K101: =ROUNDUP(SUMIF('E300'!A:A,A101,'E300'!J:J),-1) -> 0 | L101: 2100000 | N101: 1
C102: ค่าตอบแทน-ผู้ว่าการ | N102: =IF(SUM(N103:N107)>0,1,0) -> 0
A103: 53011010 | D103: ค่าตอบแทนรายเดือน-ผวก. | F103: =IFERROR(VLOOKUP(A103,SAP!L:M,2,0),0) -> 0 | G103: =IFERROR(VLOOKUP(A103,SAP!N:Q,4,0),0) -> 0 | H103: =IFERROR(VLOOKUP(A103,SAP!R:S,2,0),0) -> 0 | I103: =IFERROR(IF(Head_division2="ผวก.",VLOOKUP(A103,'E120'!A:J,10,0),0),0) -> 0 | J103: =IF(Head_division2="ผวก.",ROUNDUP(SUMIF('E200'!A:A,A103,'E200'!E:E),-1),0) -> 0 | K103: =IF(Head_division2="ผวก.",ROUNDUP(SUMIF('E300'!A:A,A103,'E300'!J:J),-1),0) -> 0 | L103: =SUM(I103:K103) -> 0 | M103: เฉพาะ ผวก. เท่านั้น | N103: =IF(SUM(F103:K103)>0,1,0) -> 0
A104: 53011020 | D104: ค่ารับรอง-ผวก. | F104: =IFERROR(VLOOKUP(A104,SAP!L:M,2,0),0) -> 0 | G104: =IFERROR(VLOOKUP(A104,SAP!N:Q,4,0),0) -> 0 | H104: =IFERROR(VLOOKUP(A104,SAP!R:S,2,0),0) -> 0 | I104: =IFERROR(IF(Head_division2="ผวก.",VLOOKUP(A104,'E120'!A:J,10,0),0),0) -> 0 | J104: =IF(Head_division2="ผวก.",ROUNDUP(SUMIF('E200'!A:A,A104,'E200'!E:E),-1),0) -> 0 | K104: =IF(Head_division2="ผวก.",ROUNDUP(SUMIF('E300'!A:A,A104,'E300'!J:J),-1),0) -> 0 | L104: =SUM(I104:K104) -> 0 | M104: เฉพาะ ผวก. เท่านั้น | N104: 0
A105: 53011030 | D105: ค่าพาหนะเบี้ยเลี้ยงและที่พัก-ผวก. | F105: =IFERROR(VLOOKUP(A105,SAP!L:M,2,0),0) -> 0 | G105: =IFERROR(VLOOKUP(A105,SAP!N:Q,4,0),0) -> 0 | H105: =IFERROR(VLOOKUP(A105,SAP!R:S,2,0),0) -> 0 | I105: =IFERROR(IF(Head_division2="ผวก.",VLOOKUP(A105,'E120'!A:J,10,0),0),0) -> 0 | J105: =IF(Head_division2="ผวก.",ROUNDUP(SUMIF('E200'!A:A,A105,'E200'!E:E),-1),0) -> 0 | K105: =IF(Head_division2="ผวก.",ROUNDUP(SUMIF('E300'!A:A,A105,'E300'!J:J),-1),0) -> 0 | L105: =SUM(I105:K105) -> 0 | M105: เฉพาะ ผวก. เท่านั้น | N105: 0
A106: 53011040 | D106: ค่าใช้จ่ายเกี่ยวกับเครื่องมือสื่อสาร-ผวก. | F106: =IFERROR(VLOOKUP(A106,SAP!L:M,2,0),0) -> 0 | G106: =IFERROR(VLOOKUP(A106,SAP!N:Q,4,0),0) -> 0 | H106: =IFERROR(VLOOKUP(A106,SAP!R:S,2,0),0) -> 0 | I106: =IFERROR(IF(Head_division2="ผวก.",VLOOKUP(A106,'E120'!A:J,10,0),0),0) -> 0 | J106: =IF(Head_division2="ผวก.",ROUNDUP(SUMIF('E200'!A:A,A106,'E200'!E:E),-1),0) -> 0 | K106: =IF(Head_division2="ผวก.",ROUNDUP(SUMIF('E300'!A:A,A106,'E300'!J:J),-1),0) -> 0 | L106: =SUM(I106:K106) -> 0 | M106: เฉพาะ ผวก. เท่านั้น | N106: 0
A107: 53011990 | D107: ค่าตอบแทนอื่น-ผวก. | F107: =IFERROR(VLOOKUP(A107,SAP!L:M,2,0),0) -> 0 | G107: =IFERROR(VLOOKUP(A107,SAP!N:Q,4,0),0) -> 0 | H107: =IFERROR(VLOOKUP(A107,SAP!R:S,2,0),0) -> 0 | I107: =IFERROR(IF(Head_division2="ผวก.",VLOOKUP(A107,'E120'!A:J,10,0),0),0) -> 0 | J107: =IF(Head_division2="ผวก.",ROUNDUP(SUMIF('E200'!A:A,A107,'E200'!E:E),-1),0) -> 0 | K107: =IF(Head_division2="ผวก.",ROUNDUP(SUMIF('E300'!A:A,A107,'E300'!J:J),-1),0) -> 0 | L107: =SUM(I107:K107) -> 0 | M107: เฉพาะ ผวก. เท่านั้น | N107: 0
C108: ค่าตอบแทน-คณะกรรมการ กฟภ. | N108: =IF(SUM(N109:N112)>0,1,0) -> 0
A109: 53012010 | D109: ค่าเบี้ยประชุมคณะกรรมการ กฟภ. | F109: =IFERROR(VLOOKUP(A109,SAP!L:M,2,0),0) -> 0 | G109: =IFERROR(VLOOKUP(A109,SAP!N:Q,4,0),0) -> 0 | H109: =IFERROR(VLOOKUP(A109,SAP!R:S,2,0),0) -> 0 | I109: =IFERROR(IF(HO="HO",VLOOKUP(A109,'E120'!A:J,10,0),0),0) -> 0 | J109: =IF(HO="HO",ROUNDUP(SUMIF('E200'!A:A,A109,'E200'!E:E),-1),0) -> 0 | K109: =IF(HO="HO",ROUNDUP(SUMIF('E300'!A:A,A109,'E300'!J:J),-1),0) -> 0 | L109: =SUM(I109:K109) -> 0 | M109: เฉพาะ สนญ เท่านั้น | N109: =IF(SUM(F109:K109)>0,1,0) -> 0
A110: 53012030 | D110: เงินโบนัสคณะกรรมการ | F110: =IFERROR(VLOOKUP(A110,SAP!L:M,2,0),0) -> 0 | G110: =IFERROR(VLOOKUP(A110,SAP!N:Q,4,0),0) -> 0 | H110: =IFERROR(VLOOKUP(A110,SAP!R:S,2,0),0) -> 0 | I110: =IFERROR(IF(Head_division2="ผวก.",VLOOKUP(A110,'E120'!A:J,10,0),0),0) -> 0 | J110: =IF(Head_division2="ผวก.",ROUNDUP(SUMIF('E200'!A:A,A110,'E200'!E:E),-1),0) -> 0 | K110: =IF(Head_division2="ผวก.",ROUNDUP(SUMIF('E300'!A:A,A110,'E300'!J:J),-1),0) -> 0 | L110: =SUM(I110:K110) -> 0 | M110: เฉพาะ ผวก. เท่านั้น | N110: 0
A111: 53012040 | D111: ค่าตอบแทนรายเดือนคณะกรรมการ กฟภ. | F111: =IFERROR(VLOOKUP(A111,SAP!L:M,2,0),0) -> 0 | G111: =IFERROR(VLOOKUP(A111,SAP!N:Q,4,0),0) -> 0 | H111: =IFERROR(VLOOKUP(A111,SAP!R:S,2,0),0) -> 0 | I111: =IFERROR(IF(HO="HO",VLOOKUP(A111,'E120'!A:J,10,0),0),0) -> 0 | J111: =IF(HO="HO",ROUNDUP(SUMIF('E200'!A:A,A111,'E200'!E:E),-1),0) -> 0 | K111: =IF(HO="HO",ROUNDUP(SUMIF('E300'!A:A,A111,'E300'!J:J),-1),0) -> 0 | L111: =SUM(I111:K111) -> 0 | M111: เฉพาะ สนญ เท่านั้น | N111: 0
A112: 53012990 | D112: ค่าตอบแทนอื่น-คณะกรรมการ กฟภ. | F112: =IFERROR(VLOOKUP(A112,SAP!L:M,2,0),0) -> 0 | G112: =IFERROR(VLOOKUP(A112,SAP!N:Q,4,0),0) -> 0 | H112: =IFERROR(VLOOKUP(A112,SAP!R:S,2,0),0) -> 0 | I112: =IFERROR(IF(HO="HO",VLOOKUP(A112,'E120'!A:J,10,0),0),0) -> 0 | J112: =IF(HO="HO",ROUNDUP(SUMIF('E200'!A:A,A112,'E200'!E:E),-1),0) -> 0 | K112: =IF(HO="HO",ROUNDUP(SUMIF('E300'!A:A,A112,'E300'!J:J),-1),0) -> 0 | L112: =SUM(I112:K112) -> 0 | M112: เฉพาะ สนญ เท่านั้น | N112: 0
C113: ค่าตอบแทนอื่นๆ | N113: =IF(SUM(N114)>0,1,0) -> 1
A114: 53019990 | D114: ค่าตอบแทนอื่น ๆ | F114: =IFERROR(VLOOKUP(A114,SAP!L:M,2,0),0) -> 1500 | G114: =IFERROR(VLOOKUP(A114,SAP!N:Q,4,0),0) -> 0 | H114: =IFERROR(VLOOKUP(A114,SAP!R:S,2,0),0) -> 0 | I114: =IFERROR(VLOOKUP(A114,'E120'!A:J,10,0),0) -> 0 | J114: =ROUNDUP(SUMIF('E200'!A:A,A114,'E200'!E:E),-1) -> 0 | K114: =ROUNDUP(SUMIF('E300'!A:A,A114,'E300'!J:J),-1) -> 0 | L114: =SUM(I114:K114) -> 0 | N114: =IF(SUM(F114:K114)>0,1,0) -> 1
B115: ค่าโฆษณาประชาสัมพันธ์ | N115: =IF(SUM(N116:N119)>0,1,0) -> 1
C116: ค่าประชาสัมพันธ์ | N116: =IF(SUM(N117:N119)>0,1,0) -> 1
A117: 53021010 | D117: ค่าป้ายประชาสัมพันธ์ | F117: =IFERROR(VLOOKUP(A117,SAP!L:M,2,0),0) -> 39066.67 | G117: =IFERROR(VLOOKUP(A117,SAP!N:Q,4,0),0) -> 59919.42857 | H117: =IFERROR(VLOOKUP(A117,SAP!R:S,2,0),0) -> 0 | I117: =IFERROR(VLOOKUP(A117,'E120'!A:J,10,0),0) -> 80000 | J117: ='E230'!F27 -> 0 | K117: =ROUNDUP(SUMIF('E300'!A:A,A117,'E300'!J:J),-1) -> 0 | L117: =SUM(I117:K117) -> 80000 | N117: =IF(SUM(F117:K117)>0,1,0) -> 1
A118: 53021020 | D118: ค่าประชาสัมพันธ์อื่น | F118: =IFERROR(VLOOKUP(A118,SAP!L:M,2,0),0) -> 145289.27 | G118: =IFERROR(VLOOKUP(A118,SAP!N:Q,4,0),0) -> 142636.1486 | H118: =IFERROR(VLOOKUP(A118,SAP!R:S,2,0),0) -> 0 | I118: =IFERROR(VLOOKUP(A118,'E120'!A:J,10,0),0) -> 75000 | J118: ='E230'!G27 -> 0 | K118: =ROUNDUP(SUMIF('E300'!A:A,A118,'E300'!J:J),-1) -> 0 | L118: =SUM(I118:K118) -> 75000 | N118: =IF(SUM(F118:K118)>0,1,0) -> 1
A119: 53021030 | D119: ค่าประชาสัมพันธ์ทางสื่อ | F119: =IFERROR(VLOOKUP(A119,SAP!L:M,2,0),0) -> 0 | G119: =IFERROR(VLOOKUP(A119,SAP!N:Q,4,0),0) -> 36360 | H119: =IFERROR(VLOOKUP(A119,SAP!R:S,2,0),0) -> 0 | I119: =IFERROR(VLOOKUP(A119,'E120'!A:J,10,0),0) -> 20000 | J119: ='E230'!H27 -> 0 | K119: =ROUNDUP(SUMIF('E300'!A:A,A119,'E300'!J:J),-1) -> 0 | L119: =SUM(I119:K119) -> 20000 | N119: =IF(SUM(F119:K119)>0,1,0) -> 1
B120: ค่าใช้จ่ายเกี่ยวกับสำนักงาน | N120: =IF(SUM(N121:N154)>0,1,0) -> 1
C121: ค่าวัสดุใช้ไป | N121: =IF(SUM(N122:N123)>0,1,0) -> 1
A122: 53030010 | D122: ค่าวัสดุสำนักงาน | F122: =IFERROR(VLOOKUP(A122,SAP!L:M,2,0),0) -> 894144.09 | G122: =IFERROR(VLOOKUP(A122,SAP!N:Q,4,0),0) -> 933539.9657 | H122: =IFERROR(VLOOKUP(A122,SAP!R:S,2,0),0) -> 0 | I122: =IFERROR(VLOOKUP(A122,'E120'!A:J,10,0),0) -> 1149000 | J122: =ROUNDUP(SUMIF('E200'!A:A,A122,'E200'!E:E),-1) -> 0 | K122: =ROUNDUP(SUMIF('E300'!A:A,A122,'E300'!J:J),-1) -> 0 | L122: =SUM(I122:K122) -> 1149000 | N122: =IF(SUM(F122:K122)>0,1,0) -> 1
A123: 53030030 | D123: ค่าวัสดุเบ็ดเตล็ดในสำนักงาน | F123: =IFERROR(VLOOKUP(A123,SAP!L:M,2,0),0) -> 197570.46 | G123: =IFERROR(VLOOKUP(A123,SAP!N:Q,4,0),0) -> 138823.4914 | H123: =IFERROR(VLOOKUP(A123,SAP!R:S,2,0),0) -> 0 | I123: =IFERROR(VLOOKUP(A123,'E120'!A:J,10,0),0) -> 252000 | J123: =ROUNDUP(SUMIF('E200'!A:A,A123,'E200'!E:E),-1) -> 0 | K123: =ROUNDUP(SUMIF('E300'!A:A,A123,'E300'!J:J),-1) -> 0 | L123: =SUM(I123:K123) -> 252000 | N123: 1
C124: ค่าสาธารณูปโภค | N124: =IF(SUM(N125:N127)>0,1,0) -> 1
A125: 53031010 | D125: ค่าน้ำดื่ม | F125: =IFERROR(VLOOKUP(A125,SAP!L:M,2,0),0) -> 91630.92 | G125: =IFERROR(VLOOKUP(A125,SAP!N:Q,4,0),0) -> 85865.52 | H125: =IFERROR(VLOOKUP(A125,SAP!R:S,2,0),0) -> 0 | I125: =IFERROR(VLOOKUP(A125,'E120'!A:J,10,0),0) -> 108000 | J125: =ROUNDUP(SUMIF('E200'!A:A,A125,'E200'!E:E),-1) -> 0 | K125: =ROUNDUP(SUMIF('E300'!A:A,A125,'E300'!J:J),-1) -> 0 | L125: =SUM(I125:K125) -> 108000 | N125: =IF(SUM(F125:K125)>0,1,0) -> 1
A126: 53031020 | D126: ค่าน้ำประปา | F126: =IFERROR(VLOOKUP(A126,SAP!L:M,2,0),0) -> 273038.75 | G126: =IFERROR(VLOOKUP(A126,SAP!N:Q,4,0),0) -> 160403.5714 | H126: =IFERROR(VLOOKUP(A126,SAP!R:S,2,0),0) -> 0 | I126: =IFERROR(VLOOKUP(A126,'E120'!A:J,10,0),0) -> 188000 | J126: =ROUNDUP(SUMIF('E200'!A:A,A126,'E200'!E:E),-1) -> 0 | K126: =ROUNDUP(SUMIF('E300'!A:A,A126,'E300'!J:J),-1) -> 0 | L126: =SUM(I126:K126) -> 188000 | N126: 1
A127: 53031030 | D127: ค่าไฟฟ้า | F127: =IFERROR(VLOOKUP(A127,SAP!L:M,2,0),0) -> 856874.47 | G127: =IFERROR(VLOOKUP(A127,SAP!N:Q,4,0),0) -> 956828.9486 | H127: =IFERROR(VLOOKUP(A127,SAP!R:S,2,0),0) -> 0 | I127: =IFERROR(VLOOKUP(A127,'E120'!A:J,10,0),0) -> 1142000 | J127: =ROUNDUP(SUMIF('E200'!A:A,A127,'E200'!E:E),-1) -> 0 | K127: =ROUNDUP(SUMIF('E300'!A:A,A127,'E300'!J:J),-1) -> 0 | L127: =SUM(I127:K127) -> 1142000 | N127: 1
C128: ค่าใช้จ่ายในการติดต่อสื่อสาร | N128: =IF(SUM(N129:N136)>0,1,0) -> 1
A129: 53032010 | D129: ค่าใช้บริการโทรศัพท์ | F129: =IFERROR(VLOOKUP(A129,SAP!L:M,2,0),0) -> 10126.11 | G129: =IFERROR(VLOOKUP(A129,SAP!N:Q,4,0),0) -> 7331.142857 | H129: =IFERROR(VLOOKUP(A129,SAP!R:S,2,0),0) -> 0 | I129: =IFERROR(VLOOKUP(A129,'E120'!A:J,10,0),0) -> 83000 | J129: =ROUNDUP(SUMIF('E200'!A:A,A129,'E200'!E:E),-1) -> 0 | K129: =ROUNDUP(SUMIF('E300'!A:A,A129,'E300'!J:J),-1) -> 0 | L129: =SUM(I129:K129) -> 83000 | N129: =IF(SUM(F129:K129)>0,1,0) -> 1
A130: 53032020 | D130: ค่าบำรุงรักษาคู่สายโทรศัพท์ | F130: =IFERROR(VLOOKUP(A130,SAP!L:M,2,0),0) -> 47464.09 | G130: =IFERROR(VLOOKUP(A130,SAP!N:Q,4,0),0) -> 44211.42857 | H130: =IFERROR(VLOOKUP(A130,SAP!R:S,2,0),0) -> 0 | I130: =IFERROR(VLOOKUP(A130,'E120'!A:J,10,0),0) -> 45000 | J130: =ROUNDUP(SUMIF('E200'!A:A,A130,'E200'!E:E),-1) -> 0 | K130: =ROUNDUP(SUMIF('E300'!A:A,A130,'E300'!J:J),-1) -> 0 | L130: 45000 | N130: 1
A131: 53032030 | D131: ค่าบริการโทรศัพท์เคลื่อนที่ | F131: =IFERROR(VLOOKUP(A131,SAP!L:M,2,0),0) -> 0 | G131: =IFERROR(VLOOKUP(A131,SAP!N:Q,4,0),0) -> 0 | H131: =IFERROR(VLOOKUP(A131,SAP!R:S,2,0),0) -> 0 | I131: =IFERROR(VLOOKUP(A131,'E120'!A:J,10,0),0) -> 0 | J131: =ROUNDUP(SUMIF('E200'!A:A,A131,'E200'!E:E),-1) -> 0 | K131: =ROUNDUP(SUMIF('E300'!A:A,A131,'E300'!J:J),-1) -> 0 | L131: 0 | N131: 0
A132: 53032050 | D132: ค่าเช่าวงจรสื่อสาร | F132: =IFERROR(VLOOKUP(A132,SAP!L:M,2,0),0) -> 9880 | G132: =IFERROR(VLOOKUP(A132,SAP!N:Q,4,0),0) -> 0 | H132: =IFERROR(VLOOKUP(A132,SAP!R:S,2,0),0) -> 0 | I132: =IFERROR(VLOOKUP(A132,'E120'!A:J,10,0),0) -> 5000 | J132: =ROUNDUP(SUMIF('E200'!A:A,A132,'E200'!E:E),-1) -> 0 | K132: =ROUNDUP(SUMIF('E300'!A:A,A132,'E300'!J:J),-1) -> 0 | L132: 5000 | N132: 1
A133: 53032060 | D133: ค่าจัดส่งเอกสารและพัสดุภัณฑ์ | F133: =IFERROR(VLOOKUP(A133,SAP!L:M,2,0),0) -> 127842 | G133: =IFERROR(VLOOKUP(A133,SAP!N:Q,4,0),0) -> 81378.85714 | H133: =IFERROR(VLOOKUP(A133,SAP!R:S,2,0),0) -> 0 | I133: =IFERROR(VLOOKUP(A133,'E120'!A:J,10,0),0) -> 108500 | J133: =ROUNDUP(SUMIF('E200'!A:A,A133,'E200'!E:E),-1) -> 0 | K133: =ROUNDUP(SUMIF('E300'!A:A,A133,'E300'!J:J),-1) -> 0 | L133: 108500 | N133: 1
A134: 53032070 | D134: ค่าติดตั้งอุปกรณ์สื่อสาร | F134: =IFERROR(VLOOKUP(A134,SAP!L:M,2,0),0) -> 0 | G134: =IFERROR(VLOOKUP(A134,SAP!N:Q,4,0),0) -> 0 | H134: =IFERROR(VLOOKUP(A134,SAP!R:S,2,0),0) -> 0 | I134: =IFERROR(VLOOKUP(A134,'E120'!A:J,10,0),0) -> 0 | J134: =ROUNDUP(SUMIF('E200'!A:A,A134,'E200'!E:E),-1) -> 0 | K134: =ROUNDUP(SUMIF('E300'!A:A,A134,'E300'!J:J),-1) -> 0 | L134: 0 | N134: 0
A135: 53032080 | D135: ค่าใช้จ่ายในการใช้อินเตอร์เน็ต | F135: =IFERROR(VLOOKUP(A135,SAP!L:M,2,0),0) -> 38767 | G135: =IFERROR(VLOOKUP(A135,SAP!N:Q,4,0),0) -> 36510.85714 | H135: =IFERROR(VLOOKUP(A135,SAP!R:S,2,0),0) -> 0 | I135: =IFERROR(VLOOKUP(A135,'E120'!A:J,10,0),0) -> 36000 | J135: =ROUNDUP(SUMIF('E200'!A:A,A135,'E200'!E:E),-1) -> 0 | K135: =ROUNDUP(SUMIF('E300'!A:A,A135,'E300'!J:J),-1) -> 0 | L135: 36000 | N135: 1
A136: 53032990 | D136: ค่าใช้จ่ายในการติดต่อสื่อสารประเภทอี่น | F136: =IFERROR(VLOOKUP(A136,SAP!L:M,2,0),0) -> 19950 | G136: =IFERROR(VLOOKUP(A136,SAP!N:Q,4,0),0) -> 16416 | H136: =IFERROR(VLOOKUP(A136,SAP!R:S,2,0),0) -> 0 | I136: =IFERROR(VLOOKUP(A136,'E120'!A:J,10,0),0) -> 10500 | J136: =ROUNDUP(SUMIF('E200'!A:A,A136,'E200'!E:E),-1) -> 0 | K136: =ROUNDUP(SUMIF('E300'!A:A,A136,'E300'!J:J),-1) -> 0 | L136: 10500 | N136: 1
C137: ค่าเช่า | N137: =IF(SUM(N138:N145)>0,1,0) -> 1
A138: 53033010 | D138: ค่าเช่าที่ดิน | F138: =IFERROR(VLOOKUP(A138,SAP!L:M,2,0),0) -> 73000 | G138: =IFERROR(VLOOKUP(A138,SAP!N:Q,4,0),0) -> 41142.85714 | H138: =IFERROR(VLOOKUP(A138,SAP!R:S,2,0),0) -> 0 | I138: =IFERROR(VLOOKUP(A138,'E120'!A:J,10,0),0) -> 0 | J138: =ROUNDUP(SUMIF('E200'!A:A,A138,'E200'!E:E),-1) -> 0 | K138: =ROUNDUP(SUMIF('E300'!A:A,A138,'E300'!J:J),-1) -> 0 | L138: =SUM(I138:K138) -> 0 | N138: =IF(SUM(F138:K138)>0,1,0) -> 1
A139: 53033020 | D139: ค่าเช่าสิ่งปลูกสร้าง | F139: =IFERROR(VLOOKUP(A139,SAP!L:M,2,0),0) -> 0 | G139: =IFERROR(VLOOKUP(A139,SAP!N:Q,4,0),0) -> 0 | H139: =IFERROR(VLOOKUP(A139,SAP!R:S,2,0),0) -> 0 | I139: =IFERROR(VLOOKUP(A139,'E120'!A:J,10,0),0) -> 0 | J139: =ROUNDUP(SUMIF('E200'!A:A,A139,'E200'!E:E),-1) -> 0 | K139: =ROUNDUP(SUMIF('E300'!A:A,A139,'E300'!J:J),-1) -> 0 | L139: 0 | N139: 0
A140: 53033030 | D140: ค่าเช่าเครื่องคอมพิวเตอร์ | F140: =IFERROR(VLOOKUP(A140,SAP!L:M,2,0),0) -> 0 | G140: =IFERROR(VLOOKUP(A140,SAP!N:Q,4,0),0) -> 0 | H140: =IFERROR(VLOOKUP(A140,SAP!R:S,2,0),0) -> 0 | I140: =IFERROR(VLOOKUP(A140,'E120'!A:J,10,0),0) -> 0 | J140: =ROUNDUP(SUMIF('E200'!A:A,A140,'E200'!E:E),-1) -> 0 | K140: =ROUNDUP(SUMIF('E300'!A:A,A140,'E300'!J:J),-1) -> 0 | L140: 0 | N140: 0
A141: 53033040 | D141: ค่าเช่าเครื่องถ่ายเอกสาร | F141: =IFERROR(VLOOKUP(A141,SAP!L:M,2,0),0) -> 0 | G141: =IFERROR(VLOOKUP(A141,SAP!N:Q,4,0),0) -> 0 | H141: =IFERROR(VLOOKUP(A141,SAP!R:S,2,0),0) -> 0 | I141: =IFERROR(VLOOKUP(A141,'E120'!A:J,10,0),0) -> 0 | J141: =ROUNDUP(SUMIF('E200'!A:A,A141,'E200'!E:E),-1) -> 0 | K141: =ROUNDUP(SUMIF('E300'!A:A,A141,'E300'!J:J),-1) -> 0 | L141: 0 | N141: 0
A142: 53033050 | D142: ค่าเช่ายานพาหนะ | F142: =IFERROR(VLOOKUP(A142,SAP!L:M,2,0),0) -> 0 | G142: =IFERROR(VLOOKUP(A142,SAP!N:Q,4,0),0) -> 0 | H142: =IFERROR(VLOOKUP(A142,SAP!R:S,2,0),0) -> 0 | I142: =IFERROR(VLOOKUP(A142,'E120'!A:J,10,0),0) -> 0 | J142: =ROUNDUP(SUMIF('E200'!A:A,A142,'E200'!E:E),-1) -> 0 | K142: =ROUNDUP(SUMIF('E300'!A:A,A142,'E300'!J:J),-1) -> 0 | L142: 0 | N142: 0
A143: 53033060 | D143: ค่าเช่าโปรแกรมสำเร็จรูป | F143: =IFERROR(VLOOKUP(A143,SAP!L:M,2,0),0) -> 0 | G143: =IFERROR(VLOOKUP(A143,SAP!N:Q,4,0),0) -> 0 | H143: =IFERROR(VLOOKUP(A143,SAP!R:S,2,0),0) -> 0 | I143: =IFERROR(VLOOKUP(A143,'E120'!A:J,10,0),0) -> 0 | J143: =ROUNDUP(SUMIF('E200'!A:A,A143,'E200'!E:E),-1) -> 0 | K143: =ROUNDUP(SUMIF('E300'!A:A,A143,'E300'!J:J),-1) -> 0 | L143: 0 | N143: 0
A144: 53033070 | D144: ค่าเช่าเครื่องบันทึกข้อมูลการเดินทางของรถ | F144: =IFERROR(VLOOKUP(A144,SAP!L:M,2,0),0) -> 5000 | G144: =IFERROR(VLOOKUP(A144,SAP!N:Q,4,0),0) -> 6857.142857 | H144: =IFERROR(VLOOKUP(A144,SAP!R:S,2,0),0) -> 0 | I144: =IFERROR(VLOOKUP(A144,'E120'!A:J,10,0),0) -> 6000 | J144: =ROUNDUP(SUMIF('E200'!A:A,A144,'E200'!E:E),-1) -> 0 | K144: =ROUNDUP(SUMIF('E300'!A:A,A144,'E300'!J:J),-1) -> 0 | L144: 6000 | N144: 1
A145: 53033990 | D145: ค่าเช่าสินทรัพย์อื่นๆ | F145: =IFERROR(VLOOKUP(A145,SAP!L:M,2,0),0) -> 0 | G145: =IFERROR(VLOOKUP(A145,SAP!N:Q,4,0),0) -> 0 | H145: =IFERROR(VLOOKUP(A145,SAP!R:S,2,0),0) -> 0 | I145: =IFERROR(VLOOKUP(A145,'E120'!A:J,10,0),0) -> 0 | J145: =ROUNDUP(SUMIF('E200'!A:A,A145,'E200'!E:E),-1) -> 0 | K145: =ROUNDUP(SUMIF('E300'!A:A,A145,'E300'!J:J),-1) -> 0 | L145: 0 | N145: 0
C146: ค่าใช้จ่ายในการดูแลสถานที่ | N146: =IF(SUM(N147:N150)>0,1,0) -> 1
A147: 53034010 | D147: ค่าจ้างเหมาทำความสะอาด | F147: =IFERROR(VLOOKUP(A147,SAP!L:M,2,0),0) -> 609956 | G147: =IFERROR(VLOOKUP(A147,SAP!N:Q,4,0),0) -> 560547.4286 | H147: =IFERROR(VLOOKUP(A147,SAP!R:S,2,0),0) -> 0 | I147: =IFERROR(VLOOKUP(A147,'E120'!A:J,10,0),0) -> 719550 | J147: =ROUNDUP(SUMIF('E200'!A:A,A147,'E200'!E:E),-1) -> 0 | K147: =ROUNDUP(SUMIF('E300'!A:A,A147,'E300'!J:J),-1) -> 0 | L147: =SUM(I147:K147) -> 719550 | N147: =IF(SUM(F147:K147)>0,1,0) -> 1
A148: 53034020 | D148: ค่ารักษาความปลอดภัย | F148: =IFERROR(VLOOKUP(A148,SAP!L:M,2,0),0) -> 2378000 | G148: =IFERROR(VLOOKUP(A148,SAP!N:Q,4,0),0) -> 2249142.857 | H148: =IFERROR(VLOOKUP(A148,SAP!R:S,2,0),0) -> 0 | I148: =IFERROR(VLOOKUP(A148,'E120'!A:J,10,0),0) -> 2468000 | J148: =ROUNDUP(SUMIF('E200'!A:A,A148,'E200'!E:E),-1) -> 0 | K148: =ROUNDUP(SUMIF('E300'!A:A,A148,'E300'!J:J),-1) -> 0 | L148: =SUM(I148:K148) -> 2468000 | N148: 1
A149: 53034030 | D149: ค่าจ้างบำรุงรักษาสวน | F149: =IFERROR(VLOOKUP(A149,SAP!L:M,2,0),0) -> 16285 | G149: =IFERROR(VLOOKUP(A149,SAP!N:Q,4,0),0) -> 14571.42857 | H149: =IFERROR(VLOOKUP(A149,SAP!R:S,2,0),0) -> 0 | I149: =IFERROR(VLOOKUP(A149,'E120'!A:J,10,0),0) -> 64000 | J149: =ROUNDUP(SUMIF('E200'!A:A,A149,'E200'!E:E),-1) -> 0 | K149: =ROUNDUP(SUMIF('E300'!A:A,A149,'E300'!J:J),-1) -> 0 | L149: =SUM(I149:K149) -> 64000 | N149: 1
A150: 53034040 | D150: ค่าบำรุงรักษาบริเวณสำนักงาน | F150: =IFERROR(VLOOKUP(A150,SAP!L:M,2,0),0) -> 143853.01 | G150: =IFERROR(VLOOKUP(A150,SAP!N:Q,4,0),0) -> 207305.9143 | H150: =IFERROR(VLOOKUP(A150,SAP!R:S,2,0),0) -> 0 | I150: =IFERROR(VLOOKUP(A150,'E120'!A:J,10,0),0) -> 220000 | J150: =ROUNDUP(SUMIF('E200'!A:A,A150,'E200'!E:E),-1) -> 0 | K150: =ROUNDUP(SUMIF('E300'!A:A,A150,'E300'!J:J),-1) -> 0 | L150: =SUM(I150:K150) -> 220000 | N150: 1
C151: ค่าใช้จ่ายอื่นเกี่ยวกับสำนักงาน | N151: =IF(SUM(N152:N154)>0,1,0) -> 1
A152: 53039010 | D152: ค่าเชื้อเพลิงยานพาหนะ | F152: =IFERROR(VLOOKUP(A152,SAP!L:M,2,0),0) -> 3846217.63 | G152: =IFERROR(VLOOKUP(A152,SAP!N:Q,4,0),0) -> 4483224.257 | H152: =IFERROR(VLOOKUP(A152,SAP!R:S,2,0),0) -> 0 | I152: =IFERROR(VLOOKUP(A152,'E120'!A:J,10,0),0) -> 7035000 | J152: =ROUNDUP(SUMIF('E200'!A:A,A152,'E200'!E:E),-1) -> 0 | K152: =ROUNDUP(SUMIF('E300'!A:A,A152,'E300'!J:J),-1) -> 0 | L152: =SUM(I152:K152) -> 7035000 | N152: =IF(SUM(F152:K152)>0,1,0) -> 1
A153: 53039020 | D153: ค่าหนังสือและสื่อความรู้ | F153: =IFERROR(VLOOKUP(A153,SAP!L:M,2,0),0) -> 7580 | G153: =IFERROR(VLOOKUP(A153,SAP!N:Q,4,0),0) -> 0 | H153: =IFERROR(VLOOKUP(A153,SAP!R:S,2,0),0) -> 0 | I153: =IFERROR(VLOOKUP(A153,'E120'!A:J,10,0),0) -> 11000 | J153: =ROUNDUP(SUMIF('E200'!A:A,A153,'E200'!E:E),-1) -> 0 | K153: =ROUNDUP(SUMIF('E300'!A:A,A153,'E300'!J:J),-1) -> 0 | L153: =SUM(I153:K153) -> 11000 | N153: 1
A154: 53039990 | D154: ค่าใช้จ่ายเบ็ดเตล็ด | F154: =IFERROR(VLOOKUP(A154,SAP!L:M,2,0),0) -> 135913.54 | G154: =IFERROR(VLOOKUP(A154,SAP!N:Q,4,0),0) -> 60377.67429 | H154: =IFERROR(VLOOKUP(A154,SAP!R:S,2,0),0) -> 0 | I154: =IFERROR(VLOOKUP(A154,'E120'!A:J,10,0),0) -> 100000 | J154: =ROUNDUP(SUMIF('E200'!A:A,A154,'E200'!E:E),-1) -> 0 | K154: =ROUNDUP(SUMIF('E300'!A:A,A154,'E300'!J:J),-1) -> 0 | L154: =SUM(I154:K154) -> 100000 | N154: 1
B155: ค่าใช้จ่ายเพื่อการวิจัย | N155: =IF(SUM(N156:N157)>0,1,0) -> 0
A156: 53040010 | D156: ค่าใช้จ่ายในการวิจัย | F156: =IFERROR(VLOOKUP(A156,SAP!L:M,2,0),0) -> 0 | G156: =IFERROR(VLOOKUP(A156,SAP!N:Q,4,0),0) -> 0 | H156: =IFERROR(VLOOKUP(A156,SAP!R:S,2,0),0) -> 0 | I156: =IFERROR(VLOOKUP(A156,'E120'!A:J,10,0),0) -> 0 | J156: ='E250'!I26 -> 0 | K156: =ROUNDUP(SUMIF('E300'!A:A,A156,'E300'!J:J),-1) -> 0 | L156: =SUM(I156:K156) -> 0 | N156: =IF(SUM(F156:K156)>0,1,0) -> 0
A157: 53040020 | D157: ค่าใช้จ่ายที่ได้รับสนับสนุนจากหน่วยงานภายนอก | F157: =IFERROR(VLOOKUP(A157,SAP!L:M,2,0),0) -> 0 | G157: =IFERROR(VLOOKUP(A157,SAP!N:Q,4,0),0) -> 0 | H157: =IFERROR(VLOOKUP(A157,SAP!R:S,2,0),0) -> 0 | I157: =IFERROR(VLOOKUP(A157,'E120'!A:J,10,0),0) -> 0 | J157: =ROUNDUP(SUMIF('E200'!A:A,A157,'E200'!E:E),-1) -> 0 | K157: =ROUNDUP(SUMIF('E300'!A:A,A157,'E300'!J:J),-1) -> 0 | L157: =SUM(I157:K157) -> 0 | N157: =IF(SUM(F157:K157)>0,1,0) -> 0
B158: ค่าป้องกัน ซ่อมแซมบำรุงรักษา และก่อสร้าง | N158: =IF(SUM(N159:N185)>0,1,0) -> 1
A159: 53050010 | D159: ค่าป้องกันระบบไฟฟ้าและระบบควบคุม | F159: =IFERROR(VLOOKUP(A159,SAP!L:M,2,0),0) -> 1201085 | G159: =IFERROR(VLOOKUP(A159,SAP!N:Q,4,0),0) -> 1924174.286 | H159: =IFERROR(VLOOKUP(A159,SAP!R:S,2,0),0) -> 0 | I159: =IFERROR(VLOOKUP(A159,'E120'!A:J,10,0),0) -> 0 | J159: =ROUNDUP(SUMIF('E200'!A:A,A159,'E200'!E:E),-1) -> 0 | K159: =ROUNDUP(SUMIF('E300'!A:A,A159,'E300'!J:J),-1) -> 0 | L159: =SUM(I159:K159) -> 0 | N159: =IF(SUM(F159:K159)>0,1,0) -> 1
A160: 53050020 | D160: ค่าจ้างเหมาตัดต้นไม้ | F160: =IFERROR(VLOOKUP(A160,SAP!L:M,2,0),0) -> 6882369.3 | G160: =IFERROR(VLOOKUP(A160,SAP!N:Q,4,0),0) -> 6063603 | H160: =IFERROR(VLOOKUP(A160,SAP!R:S,2,0),0) -> 0 | I160: =IFERROR(VLOOKUP(A160,'E120'!A:J,10,0),0) -> 0 | J160: =ROUNDUP(SUMIF('E200'!A:A,A160,'E200'!E:E),-1) -> 0 | K160: =ROUNDUP(SUMIF('E300'!A:A,A160,'E300'!J:J),-1) -> 0 | L160: =SUM(I160:K160) -> 0 | N160: =IF(SUM(F160:K160)>0,1,0) -> 1
C161: ค่าซ่อมแซมบำรุงรักษา | N161: =IF(SUM(N162:N176)>0,1,0) -> 1
A162: 53051010 | D162: ค่าวัสดุเบิกจากคลังเพื่อซ่อมแซม บำรุงรักษาและบริการ | F162: =IFERROR(VLOOKUP(A162,SAP!L:M,2,0),0) -> 3805580.46 | G162: =IFERROR(VLOOKUP(A162,SAP!N:Q,4,0),0) -> 4858388.674 | H162: =IFERROR(VLOOKUP(A162,SAP!R:S,2,0),0) -> 0 | I162: =IFERROR(VLOOKUP(A162,'E120'!A:J,10,0),0) -> 1000000 | J162: =ROUNDUP(SUMIF('E200'!A:A,A162,'E200'!E:E),-1) -> 0 | K162: =ROUNDUP(SUMIF('E300'!A:A,A162,'E300'!J:J),-1) -> 0 | L162: =SUM(I162:K162) -> 1000000 | N162: =IF(SUM(F162:K162)>0,1,0) -> 1
A163: 53051020 | D163: ค่าวัสดุเบิกจากคลังเพื่อเปลี่ยนแทนและก่อสร้าง | F163: =IFERROR(VLOOKUP(A163,SAP!L:M,2,0),0) -> 0 | G163: =IFERROR(VLOOKUP(A163,SAP!N:Q,4,0),0) -> 0 | H163: =IFERROR(VLOOKUP(A163,SAP!R:S,2,0),0) -> 0 | I163: 0 | J163: 0 | K163: 0 | L163: =SUM(I163:K163) -> 0 | M163: ไม่ต้องตั้งงบประมาณ | N163: 0
A164: 53051030 | D164: ค่าซ่อมแซมบำรุงรักษา-ระบบไฟฟ้าและระบบควบคุม | F164: =IFERROR(VLOOKUP(A164,SAP!L:M,2,0),0) -> 392320 | G164: =IFERROR(VLOOKUP(A164,SAP!N:Q,4,0),0) -> 0 | H164: =IFERROR(VLOOKUP(A164,SAP!R:S,2,0),0) -> 0 | I164: =IFERROR(VLOOKUP(A164,'E120'!A:J,10,0),0) -> 105000 | J164: =ROUNDUP(SUMIF('E200'!A:A,A164,'E200'!E:E),-1) -> 0 | K164: =ROUNDUP(SUMIF('E300'!A:A,A164,'E300'!J:J),-1) -> 0 | L164: 105000 | N164: 1
A165: 53051040 | D165: ค่าซ่อมแซมบำรุงรักษา-อาคาร | F165: =IFERROR(VLOOKUP(A165,SAP!L:M,2,0),0) -> 149586.45 | G165: =IFERROR(VLOOKUP(A165,SAP!N:Q,4,0),0) -> 311682.8571 | H165: =IFERROR(VLOOKUP(A165,SAP!R:S,2,0),0) -> 0 | I165: =IFERROR(VLOOKUP(A165,'E120'!A:J,10,0),0) -> 320000 | J165: =ROUNDUP(SUMIF('E200'!A:A,A165,'E200'!E:E),-1) -> 0 | K165: =ROUNDUP(SUMIF('E300'!A:A,A165,'E300'!J:J),-1) -> 0 | L165: 320000 | N165: 1
A166: 53051050 | D166: ค่าซ่อมแซมบำรุงรักษา-ยานพาหนะ | F166: =IFERROR(VLOOKUP(A166,SAP!L:M,2,0),0) -> 1883396.61 | G166: =IFERROR(VLOOKUP(A166,SAP!N:Q,4,0),0) -> 1093366.749 | H166: =IFERROR(VLOOKUP(A166,SAP!R:S,2,0),0) -> 0 | I166: =IFERROR(VLOOKUP(A166,'E120'!A:J,10,0),0) -> 1748000 | J166: =ROUNDUP(SUMIF('E200'!A:A,A166,'E200'!E:E),-1) -> 0 | K166: =ROUNDUP(SUMIF('E300'!A:A,A166,'E300'!J:J),-1) -> 0 | L166: 1748000 | N166: 1
A167: 53051060 | D167: ค่าซ่อมแซมบำรุงรักษา-คอมฯ&อุปกรณ์ต่อพ่วง | F167: =IFERROR(VLOOKUP(A167,SAP!L:M,2,0),0) -> 7965.1 | G167: =IFERROR(VLOOKUP(A167,SAP!N:Q,4,0),0) -> 2239.457143 | H167: =IFERROR(VLOOKUP(A167,SAP!R:S,2,0),0) -> 0 | I167: =IFERROR(VLOOKUP(A167,'E120'!A:J,10,0),0) -> 133920 | J167: =ROUNDUP(SUMIF('E200'!A:A,A167,'E200'!E:E),-1) -> 0 | K167: =ROUNDUP(SUMIF('E300'!A:A,A167,'E300'!J:J),-1) -> 0 | L167: 133920 | N167: 1
A168: 53051070 | D168: ค่าปรับปรุงระบบจำหน่ายที่พระตำหนัก | F168: =IFERROR(VLOOKUP(A168,SAP!L:M,2,0),0) -> 0 | G168: =IFERROR(VLOOKUP(A168,SAP!N:Q,4,0),0) -> 0 | H168: =IFERROR(VLOOKUP(A168,SAP!R:S,2,0),0) -> 0 | I168: =IFERROR(VLOOKUP(A168,'E120'!A:J,10,0),0) -> 0 | J168: =ROUNDUP(SUMIF('E200'!A:A,A168,'E200'!E:E),-1) -> 0 | K168: =ROUNDUP(SUMIF('E300'!A:A,A168,'E300'!J:J),-1) -> 0 | L168: 0 | N168: 0
A169: 53051080 | D169: ค่าวัสดุซื้อตรงเข้างานก่อสร้าง | F169: =IFERROR(VLOOKUP(A169,SAP!L:M,2,0),0) -> 0 | G169: =IFERROR(VLOOKUP(A169,SAP!N:Q,4,0),0) -> 0 | H169: =IFERROR(VLOOKUP(A169,SAP!R:S,2,0),0) -> 0 | I169: 0 | J169: 0 | K169: 0 | L169: =SUM(I169:K169) -> 0 | M169: ไม่ต้องตั้งงบประมาณ | N169: 0
A170: 53051090 | D170: ค่าวัสดุเบ็ดเตล็ดด้านช่าง | F170: =IFERROR(VLOOKUP(A170,SAP!L:M,2,0),0) -> 189997.09 | G170: =IFERROR(VLOOKUP(A170,SAP!N:Q,4,0),0) -> 91251.18857 | H170: =IFERROR(VLOOKUP(A170,SAP!R:S,2,0),0) -> 0 | I170: =IFERROR(VLOOKUP(A170,'E120'!A:J,10,0),0) -> 250000 | J170: =ROUNDUP(SUMIF('E200'!A:A,A170,'E200'!E:E),-1) -> 0 | K170: =ROUNDUP(SUMIF('E300'!A:A,A170,'E300'!J:J),-1) -> 0 | L170: 250000 | N170: 1
A171: 53051100 | D171: ค่าซ่อมแซมบำรุงรักษา-อุปกรณ์ในสำนักงาน | F171: =IFERROR(VLOOKUP(A171,SAP!L:M,2,0),0) -> 296754.72 | G171: =IFERROR(VLOOKUP(A171,SAP!N:Q,4,0),0) -> 84344.29714 | H171: =IFERROR(VLOOKUP(A171,SAP!R:S,2,0),0) -> 0 | I171: =IFERROR(VLOOKUP(A171,'E120'!A:J,10,0),0) -> 297000 | J171: =ROUNDUP(SUMIF('E200'!A:A,A171,'E200'!E:E),-1) -> 0 | K171: =ROUNDUP(SUMIF('E300'!A:A,A171,'E300'!J:J),-1) -> 0 | L171: 297000 | N171: 1
A172: 53051110 | D172: ค่าซ่อมแซมบำรุงรักษา-ระบบสื่อสารเคเบิลใยแก้วนำแสง | F172: =IFERROR(VLOOKUP(A172,SAP!L:M,2,0),0) -> 0 | G172: =IFERROR(VLOOKUP(A172,SAP!N:Q,4,0),0) -> 0 | H172: =IFERROR(VLOOKUP(A172,SAP!R:S,2,0),0) -> 0 | I172: =IFERROR(VLOOKUP(A172,'E120'!A:J,10,0),0) -> 0 | J172: =ROUNDUP(SUMIF('E200'!A:A,A172,'E200'!E:E),-1) -> 0 | K172: =ROUNDUP(SUMIF('E300'!A:A,A172,'E300'!J:J),-1) -> 0 | L172: 0 | N172: 0
A173: 53051120 | D173: ค่าอุปกรณ์ความปลอดภัย | F173: =IFERROR(VLOOKUP(A173,SAP!L:M,2,0),0) -> 0 | G173: =IFERROR(VLOOKUP(A173,SAP!N:Q,4,0),0) -> 0 | H173: =IFERROR(VLOOKUP(A173,SAP!R:S,2,0),0) -> 0 | I173: =IFERROR(VLOOKUP(A173,'E120'!A:J,10,0),0) -> 1300820 | J173: =ROUNDUP(SUMIF('E200'!A:A,A173,'E200'!E:E),-1) -> 0 | K173: =ROUNDUP(SUMIF('E300'!A:A,A173,'E300'!J:J),-1) -> 0 | L173: 1300820 | N173: 1
A174: 53051510 | D174: ค่ามิเตอร์เบิกจากคลังเพื่อติดตั้งหรือเปลี่ยนแทน | F174: =IFERROR(VLOOKUP(A174,SAP!L:M,2,0),0) -> 0 | G174: =IFERROR(VLOOKUP(A174,SAP!N:Q,4,0),0) -> 0 | H174: =IFERROR(VLOOKUP(A174,SAP!R:S,2,0),0) -> 0 | I174: 0 | J174: 0 | K174: 0 | L174: =SUM(I174:K174) -> 0 | M174: ไม่ต้องตั้งงบประมาณ | N174: 0
A175: 53051520 | D175: ค่าอุปกรณ์ ปก.มต. เบิกคลังเพื่อติดตั้งหรือเปลี่ยนแทน | F175: =IFERROR(VLOOKUP(A175,SAP!L:M,2,0),0) -> 0 | G175: =IFERROR(VLOOKUP(A175,SAP!N:Q,4,0),0) -> 0 | H175: =IFERROR(VLOOKUP(A175,SAP!R:S,2,0),0) -> 0 | I175: 0 | J175: 0 | K175: 0 | L175: 0 | M175: ไม่ต้องตั้งงบประมาณ | N175: 0
A176: 53051990 | D176: ค่าซ่อมแซมบำรุงรักษาอื่น ๆ | F176: =IFERROR(VLOOKUP(A176,SAP!L:M,2,0),0) -> 126386.22 | G176: =IFERROR(VLOOKUP(A176,SAP!N:Q,4,0),0) -> 349466.0571 | H176: =IFERROR(VLOOKUP(A176,SAP!R:S,2,0),0) -> 0 | I176: =IFERROR(VLOOKUP(A176,'E120'!A:J,10,0),0) -> 300000 | J176: =ROUNDUP(SUMIF('E200'!A:A,A176,'E200'!E:E),-1) -> 0 | K176: =ROUNDUP(SUMIF('E300'!A:A,A176,'E300'!J:J),-1) -> 0 | L176: 300000 | N176: 1
C177: ค่าใช้จ่ายในการก่อสร้าง | N177: =IF(SUM(N178:N185)>0,1,0) -> 0
A178: 53052010 | D178: ค่าสินทรัพย์พร้อมใช้ตั้งพัก | F178: =IFERROR(VLOOKUP(A178,SAP!L:M,2,0),0) -> 0 | G178: =IFERROR(VLOOKUP(A178,SAP!N:Q,4,0),0) -> 0 | H178: =IFERROR(VLOOKUP(A178,SAP!R:S,2,0),0) -> 0 | I178: 0 | J178: 0 | K178: 0 | L178: =SUM(I178:K178) -> 0 | M178: ไม่ต้องตั้งงบประมาณ | N178: =IF(SUM(F178:K178)>0,1,0) -> 0
A179: 53052020 | D179: ค่าจ้างเหมา Turn Key | F179: =IFERROR(VLOOKUP(A179,SAP!L:M,2,0),0) -> 0 | G179: =IFERROR(VLOOKUP(A179,SAP!N:Q,4,0),0) -> 0 | H179: =IFERROR(VLOOKUP(A179,SAP!R:S,2,0),0) -> 0 | I179: 0 | J179: 0 | K179: 0 | L179: 0 | M179: ไม่ต้องตั้งงบประมาณ | N179: 0
A180: 53052030 | D180: ค่าใช้จ่ายดำเนินการในงานก่อสร้าง | F180: =IFERROR(VLOOKUP(A180,SAP!L:M,2,0),0) -> 0 | G180: =IFERROR(VLOOKUP(A180,SAP!N:Q,4,0),0) -> 0 | H180: =IFERROR(VLOOKUP(A180,SAP!R:S,2,0),0) -> 0 | I180: =IFERROR(VLOOKUP(A180,'E120'!A:J,10,0),0) -> 0 | J180: =ROUNDUP(SUMIF('E200'!A:A,A180,'E200'!E:E),-1) -> 0 | K180: =ROUNDUP(SUMIF('E300'!A:A,A180,'E300'!J:J),-1) -> 0 | L180: =SUM(I180:K180) -> 0 | N180: 0
A181: 53052040 | D181: ค่าควบคุมงานก่อสร้าง | F181: =IFERROR(VLOOKUP(A181,SAP!L:M,2,0),0) -> 0 | G181: =IFERROR(VLOOKUP(A181,SAP!N:Q,4,0),0) -> 0 | H181: =IFERROR(VLOOKUP(A181,SAP!R:S,2,0),0) -> 0 | I181: 0 | J181: 0 | K181: 0 | L181: =SUM(I181:K181) -> 0 | M181: ไม่ต้องตั้งงบประมาณ | N181: 0
A182: 53052050 | D182: ค่าใช้จ่ายประสานงานโครงการ | F182: =IFERROR(VLOOKUP(A182,SAP!L:M,2,0),0) -> 0 | G182: =IFERROR(VLOOKUP(A182,SAP!N:Q,4,0),0) -> 0 | H182: =IFERROR(VLOOKUP(A182,SAP!R:S,2,0),0) -> 0 | I182: 0 | J182: 0 | K182: 0 | L182: 0 | M182: ไม่ต้องตั้งงบประมาณ | N182: 0
A183: 53052060 | D183: ค่าจ้างเหมางานบริการ | F183: =IFERROR(VLOOKUP(A183,SAP!L:M,2,0),0) -> 0 | G183: =IFERROR(VLOOKUP(A183,SAP!N:Q,4,0),0) -> 0 | H183: =IFERROR(VLOOKUP(A183,SAP!R:S,2,0),0) -> 0 | I183: 0 | J183: 0 | K183: 0 | L183: 0 | M183: ไม่ต้องตั้งงบประมาณ | N183: 0
A184: 53052070 | D184: ค่าสิทธิการใช้ตั้งพัก | F184: =IFERROR(VLOOKUP(A184,SAP!L:M,2,0),0) -> 0 | G184: =IFERROR(VLOOKUP(A184,SAP!N:Q,4,0),0) -> 0 | H184: =IFERROR(VLOOKUP(A184,SAP!R:S,2,0),0) -> 0 | I184: 0 | J184: 0 | K184: 0 | L184: 0 | M184: ไม่ต้องตั้งงบประมาณ | N184: 0
A185: 53052080 | D185: ค่าจัดการพลังงาน | F185: =IFERROR(VLOOKUP(A185,SAP!L:M,2,0),0) -> 0 | G185: =IFERROR(VLOOKUP(A185,SAP!N:Q,4,0),0) -> 0 | H185: =IFERROR(VLOOKUP(A185,SAP!R:S,2,0),0) -> 0 | I185: =IFERROR(VLOOKUP(A185,'E120'!A:J,10,0),0) -> 0 | J185: =ROUNDUP(SUMIF('E200'!A:A,A185,'E200'!E:E),-1) -> 0 | K185: =ROUNDUP(SUMIF('E300'!A:A,A185,'E300'!J:J),-1) -> 0 | L185: =SUM(I185:K185) -> 0 | N185: 0
B186: ค่าใช้จ่ายอื่นในการดำเนินงาน | N186: =IF(SUM(N187:N239)>0,1,0) -> 1
C187: หนี้สูญ หนี้สงสัยจะสูญ | N187: =IF(SUM(N188:N189)>0,1,0) -> 1
A188: 53060010 | D188: หนี้สูญ - ทางบัญชี | F188: =IFERROR(VLOOKUP(A188,SAP!L:M,2,0),0) -> 3668.11 | G188: =IFERROR(VLOOKUP(A188,SAP!N:Q,4,0),0) -> 25549.32 | H188: =IFERROR(VLOOKUP(A188,SAP!R:S,2,0),0) -> 0 | I188: 0 | J188: 0 | K188: 0 | L188: =SUM(I188:K188) -> 0 | M188: ไม่ต้องตั้งงบประมาณ | N188: =IF(SUM(F188:K188)>0,1,0) -> 1
A189: 53060020 | D189: ผลขาดทุนด้านเครดิตที่คาดว่าจะเกิดขึ้น | F189: =IFERROR(VLOOKUP(A189,SAP!L:M,2,0),0) -> -1687229.61 | G189: =IFERROR(VLOOKUP(A189,SAP!N:Q,4,0),0) -> 10623190.17 | H189: =IFERROR(VLOOKUP(A189,SAP!R:S,2,0),0) -> 0 | I189: 0 | J189: 0 | K189: 0 | L189: 0 | M189: ไม่ต้องตั้งงบประมาณ | N189: 1
C190: ค่าจ้างที่ปรึกษาและค่าบริการจัดการ | N190: =IF(SUM(N191:N196)>0,1,0) -> 0
A191: 53061010 | D191: ค่าสอบบัญชี | F191: =IFERROR(VLOOKUP(A191,SAP!L:M,2,0),0) -> 0 | G191: =IFERROR(VLOOKUP(A191,SAP!N:Q,4,0),0) -> 0 | H191: =IFERROR(VLOOKUP(A191,SAP!R:S,2,0),0) -> 0 | I191: =IFERROR(VLOOKUP(A191,'E120'!A:J,10,0),0) -> 0 | J191: =ROUNDUP(SUMIF('E200'!A:A,A191,'E200'!E:E),-1) -> 0 | K191: =ROUNDUP(SUMIF('E300'!A:A,A191,'E300'!J:J),-1) -> 0 | L191: =SUM(I191:K191) -> 0 | N191: =IF(SUM(F191:K191)>0,1,0) -> 0
A192: 53061020 | D192: ค่าที่ปรึกษา-ด้านบัญชี การเงิน | F192: =IFERROR(VLOOKUP(A192,SAP!L:M,2,0),0) -> 0 | G192: =IFERROR(VLOOKUP(A192,SAP!N:Q,4,0),0) -> 0 | H192: =IFERROR(VLOOKUP(A192,SAP!R:S,2,0),0) -> 0 | I192: =IFERROR(VLOOKUP(A192,'E120'!A:J,10,0),0) -> 0 | J192: ='E250'!J26 -> 0 | K192: =ROUNDUP(SUMIF('E300'!A:A,A192,'E300'!J:J),-1) -> 0 | L192: =SUM(I192:K192) -> 0 | N192: =IF(SUM(F192:K192)>0,1,0) -> 0
A193: 53061030 | D193: ค่าที่ปรึกษา-ด้านกฏหมาย | F193: =IFERROR(VLOOKUP(A193,SAP!L:M,2,0),0) -> 0 | G193: =IFERROR(VLOOKUP(A193,SAP!N:Q,4,0),0) -> 0 | H193: =IFERROR(VLOOKUP(A193,SAP!R:S,2,0),0) -> 0 | I193: =IFERROR(VLOOKUP(A193,'E120'!A:J,10,0),0) -> 0 | J193: ='E250'!K26 -> 0 | K193: =ROUNDUP(SUMIF('E300'!A:A,A193,'E300'!J:J),-1) -> 0 | L193: =SUM(I193:K193) -> 0 | N193: =IF(SUM(F193:K193)>0,1,0) -> 0
A194: 53061040 | D194: ค่าที่ปรึกษา-ด้านวิศวกรรม | F194: =IFERROR(VLOOKUP(A194,SAP!L:M,2,0),0) -> 0 | G194: =IFERROR(VLOOKUP(A194,SAP!N:Q,4,0),0) -> 0 | H194: =IFERROR(VLOOKUP(A194,SAP!R:S,2,0),0) -> 0 | I194: =IFERROR(VLOOKUP(A194,'E120'!A:J,10,0),0) -> 0 | J194: ='E250'!L26 -> 0 | K194: =ROUNDUP(SUMIF('E300'!A:A,A194,'E300'!J:J),-1) -> 0 | L194: =SUM(I194:K194) -> 0 | N194: =IF(SUM(F194:K194)>0,1,0) -> 0
A195: 53061050 | D195: ค่าที่ปรึกษา-ด้านการพัฒนาระบบสารสนเทศ | F195: =IFERROR(VLOOKUP(A195,SAP!L:M,2,0),0) -> 0 | G195: =IFERROR(VLOOKUP(A195,SAP!N:Q,4,0),0) -> 0 | H195: =IFERROR(VLOOKUP(A195,SAP!R:S,2,0),0) -> 0 | I195: =IFERROR(VLOOKUP(A195,'E120'!A:J,10,0),0) -> 0 | J195: ='E250'!M26 -> 0 | K195: =ROUNDUP(SUMIF('E300'!A:A,A195,'E300'!J:J),-1) -> 0 | L195: =SUM(I195:K195) -> 0 | N195: =IF(SUM(F195:K195)>0,1,0) -> 0
A196: 53061090 | D196: ค่าที่ปรึกษา-ด้านอื่นๆ | F196: =IFERROR(VLOOKUP(A196,SAP!L:M,2,0),0) -> 0 | G196: =IFERROR(VLOOKUP(A196,SAP!N:Q,4,0),0) -> 0 | H196: =IFERROR(VLOOKUP(A196,SAP!R:S,2,0),0) -> 0 | I196: =IFERROR(VLOOKUP(A196,'E120'!A:J,10,0),0) -> 0 | J196: ='E250'!N26 -> 0 | K196: =ROUNDUP(SUMIF('E300'!A:A,A196,'E300'!J:J),-1) -> 0 | L196: =SUM(I196:K196) -> 0 | N196: =IF(SUM(F196:K196)>0,1,0) -> 0
C197: ค่าเบี้ยประกัน | N197: =IF(SUM(N198:N202)>0,1,0) -> 1
A198: 53062010 | D198: ค่าเบี้ยประกัน-พนักงาน | F198: =IFERROR(VLOOKUP(A198,SAP!L:M,2,0),0) -> 0 | G198: =IFERROR(VLOOKUP(A198,SAP!N:Q,4,0),0) -> 0 | H198: =IFERROR(VLOOKUP(A198,SAP!R:S,2,0),0) -> 0 | I198: =IFERROR(VLOOKUP(A198,'E120'!A:J,10,0),0) -> 0 | J198: =ROUNDUP(SUMIF('E200'!A:A,A198,'E200'!E:E),-1) -> 0 | K198: =ROUNDUP(SUMIF('E300'!A:A,A198,'E300'!J:J),-1) -> 0 | L198: =SUM(I198:K198) -> 0 | N198: =IF(SUM(F198:K198)>0,1,0) -> 0
A199: 53062020 | D199: ค่าเบี้ยประกัน-ยานพาหนะ | F199: =IFERROR(VLOOKUP(A199,SAP!L:M,2,0),0) -> 144147.47 | G199: =IFERROR(VLOOKUP(A199,SAP!N:Q,4,0),0) -> 95459.45143 | H199: =IFERROR(VLOOKUP(A199,SAP!R:S,2,0),0) -> 0 | I199: =IFERROR(VLOOKUP(A199,'E120'!A:J,10,0),0) -> 192000 | J199: =ROUNDUP(SUMIF('E200'!A:A,A199,'E200'!E:E),-1) -> 0 | K199: =ROUNDUP(SUMIF('E300'!A:A,A199,'E300'!J:J),-1) -> 0 | L199: =SUM(I199:K199) -> 192000 | N199: 1
A200: 53062030 | D200: ค่าเบี้ยประกัน-สินทรัพย์ | F200: =IFERROR(VLOOKUP(A200,SAP!L:M,2,0),0) -> 0 | G200: =IFERROR(VLOOKUP(A200,SAP!N:Q,4,0),0) -> 0 | H200: =IFERROR(VLOOKUP(A200,SAP!R:S,2,0),0) -> 0 | I200: =IFERROR(VLOOKUP(A200,'E120'!A:J,10,0),0) -> 0 | J200: =ROUNDUP(SUMIF('E200'!A:A,A200,'E200'!E:E),-1) -> 0 | K200: =ROUNDUP(SUMIF('E300'!A:A,A200,'E300'!J:J),-1) -> 0 | L200: =SUM(I200:K200) -> 0 | N200: 0
... 106 more rows

Sheet R100
A1: คำชี้แจงประกอบ | J1: งป. (ท)_1
A2: ="งบประมาณทำการประจำปี "&A_Budget_year -> งบประมาณทำการประจำปี 2567
A3: งานประจำของหน่วยงาน - รายได้และต้นทุนขาย/ บริการ
I4: =Head_division -> เขต: | J4: =Head_division2 -> กฟน.3 - 07
I5: หน่วย: | J5: บาท
A6: รหัสบัญชี | B6: รายการ /รายละเอียด / คำชี้แจงประกอบ | I6: รวม | J6: รวมสุทธิ
M7: 41010010
A8: 41010010 | B8: =IF(A8="","<< กรอกรหัสบัญชี (รายได้)",IFERROR(VLOOKUP(A8,'R001'!A:I,4,0),"ไม่มีรหัสบัญชีนี้")) -> รายได้จากการจำหน่ายไฟฟ้า | H8: =IF(COUNTIF(A:A,A8)>1,"รหัสบัญชีซ้ำ โปรดตรวจสอบ","") ->  | J8: =ROUNDUP(SUBTOTAL(109,I7:I14),-1) -> 2065000000 | M8: 41010020
B9: รายละเอียด | C9: คำนวณเพิ่ม 10% จากยอดประมาณการรายได้เต็มปี ปี 65 | M9: 41011040
C10: กฟอ.หนองไผ่ พิจารณาขอตั้งงบประมาณปี 2567 | I10: 400000000 | M10: 41012010
C11: กฟส.วิเชียรบุรี และ กฟย.พุเตย พิจารณาขอตั้งงบประมาณปี 2567 | I11: 515000000 | M11: 41012020
C12: กฟส.บึงสามพัน พิจารณาขอตั้งงบประมาณปี 2567 | I12: 790000000 | M12: 41030010
C13: กฟส.ศรีเทพ พิจารณาขอตั้งงบประมาณปี 2567 | I13: 360000000 | M13: 41030020
M14: 41030030
M15: 41030040
A16: 41010020 | B16: =IF(A16="","<< กรอกรหัสบัญชี (รายได้)",IFERROR(VLOOKUP(A16,'R001'!A:I,4,0),"ไม่มีรหัสบัญชีนี้")) -> ปรับปรุงรายได้จากการจำหน่ายไฟฟ้า | H16: =IF(COUNTIF(A:A,A16)>1,"รหัสบัญชีซ้ำ โปรดตรวจสอบ","") ->  | J16: =ROUNDUP(SUBTOTAL(109,I15:I22),-1) -> 193500 | M16: 41030050
B17: รายละเอียด | C17: คำนวณเพิ่ม 10% จากยอดประมาณการรายได้เต็มปี ปี 65 | M17: 41030990
C18: กฟอ.หนองไผ่ พิจารณาขอตั้งงบประมาณปี 2567 | I18: 40000 | M18: 41031010
C19: กฟส.วิเชียรบุรี และ กฟย.พุเตย พิจารณาขอตั้งงบประมาณปี 2567 | I19: 5000 | M19: 41031020
C20: กฟส.บึงสามพัน พิจารณาขอตั้งงบประมาณปี 2567 | I20: -1500 | M20: 41031030
C21: กฟส.ศรีเทพ พิจารณาขอตั้งงบประมาณปี 2567 | I21: 150000 | M21: 41031040
M22: 41031050
M23: 41031990
A24: 41011040 | B24: =IF(A24="","<< กรอกรหัสบัญชี (รายได้)",IFERROR(VLOOKUP(A24,'R001'!A:I,4,0),"ไม่มีรหัสบัญชีนี้")) -> รายได้จากการให้บริการสถานีอัดประจุไฟฟ้า | H24: =IF(COUNTIF(A:A,A24)>1,"รหัสบัญชีซ้ำ โปรดตรวจสอบ","") ->  | J24: =ROUNDUP(SUBTOTAL(109,I23:I30),-1) -> 0 | M24: 41032010
B25: รายละเอียด | C25: คำนวณเพิ่ม 10% จากยอดประมาณการรายได้เต็มปี ปี 65 | M25: 41032019
C26: กฟอ.หนองไผ่ พิจารณาขอตั้งงบประมาณปี 2567 | M26: 41032020
C27: กฟส.วิเชียรบุรี และ กฟย.พุเตย พิจารณาขอตั้งงบประมาณปี 2567 | M27: 41032029
C28: กฟส.บึงสามพัน พิจารณาขอตั้งงบประมาณปี 2567 | M28: 41032030
C29: กฟส.ศรีเทพ พิจารณาขอตั้งงบประมาณปี 2567 | M29: 41032039
M30: 41033010
M31: 41033020
A32: 41012010 | B32: =IF(A32="","<< กรอกรหัสบัญชี (รายได้)",IFERROR(VLOOKUP(A32,'R001'!A:I,4,0),"ไม่มีรหัสบัญชีนี้")) -> เงินชดเชยรายได้ | H32: =IF(COUNTIF(A:A,A32)>1,"รหัสบัญชีซ้ำ โปรดตรวจสอบ","") ->  | J32: =ROUNDUP(SUBTOTAL(109,I31:I38),-1) -> 46000000 | M32: 41033029
B33: รายละเอียด | C33: คำนวณเพิ่ม 10% จากยอดประมาณการรายได้เต็มปี ปี 65 | M33: 41034010
C34: กฟอ.หนองไผ่ พิจารณาขอตั้งงบประมาณปี 2567 | I34: 9000000 | M34: 41034020
C35: กฟส.วิเชียรบุรี และ กฟย.พุเตย พิจารณาขอตั้งงบประมาณปี 2567 | I35: 11000000 | M35: 41034030
C36: กฟส.บึงสามพัน พิจารณาขอตั้งงบประมาณปี 2567 | I36: 18000000 | M36: 41034040
C37: กฟส.ศรีเทพ พิจารณาขอตั้งงบประมาณปี 2567 | I37: 8000000 | M37: 41034990
M38: 41035010
M39: 41035019
A40: 41012020 | B40: =IF(A40="","<< กรอกรหัสบัญชี (รายได้)",IFERROR(VLOOKUP(A40,'R001'!A:I,4,0),"ไม่มีรหัสบัญชีนี้")) -> เงินสนับสนุนมาตรการรัฐ | H40: =IF(COUNTIF(A:A,A40)>1,"รหัสบัญชีซ้ำ โปรดตรวจสอบ","") ->  | J40: =ROUNDUP(SUBTOTAL(109,I39:I46),-1) -> 13100000 | M40: 41035020
B41: รายละเอียด | C41: คำนวณเพิ่ม 10% จากยอดประมาณการรายได้เต็มปี ปี 65 | M41: 41036010
C42: กฟอ.หนองไผ่ พิจารณาขอตั้งงบประมาณปี 2567 | I42: 3500000 | M42: 41036020
C43: กฟส.วิเชียรบุรี และ กฟย.พุเตย พิจารณาขอตั้งงบประมาณปี 2567 | I43: 4150000 | M43: 41036030
C44: กฟส.บึงสามพัน พิจารณาขอตั้งงบประมาณปี 2567 | I44: 2900000 | M44: 41037010
C45: กฟส.ศรีเทพ พิจารณาขอตั้งงบประมาณปี 2567 | I45: 2550000 | M45: 41038010
M46: 41039010
M47: 41039020
A48: 41030010 | B48: =IF(A48="","<< กรอกรหัสบัญชี (รายได้)",IFERROR(VLOOKUP(A48,'R001'!A:I,4,0),"ไม่มีรหัสบัญชีนี้")) -> รายได้จากการขายหม้อแปลง | H48: =IF(COUNTIF(A:A,A48)>1,"รหัสบัญชีซ้ำ โปรดตรวจสอบ","") ->  | J48: =ROUNDUP(SUBTOTAL(109,I47:I54),-1) -> 0 | M48: 41039029
B49: รายละเอียด | C49: คำนวณเพิ่ม 10% จากยอดประมาณการรายได้เต็มปี ปี 65 | M49: 41039030
C50: กฟอ.หนองไผ่ พิจารณาขอตั้งงบประมาณปี 2567 | M50: 41039039
C51: กฟส.วิเชียรบุรี และ กฟย.พุเตย พิจารณาขอตั้งงบประมาณปี 2567 | M51: 41039040
C52: กฟส.บึงสามพัน พิจารณาขอตั้งงบประมาณปี 2567 | M52: 41039050
C53: กฟส.ศรีเทพ พิจารณาขอตั้งงบประมาณปี 2567 | M53: 41039060
M54: 41039080
M55: 41039089
A56: 41030020 | B56: =IF(A56="","<< กรอกรหัสบัญชี (รายได้)",IFERROR(VLOOKUP(A56,'R001'!A:I,4,0),"ไม่มีรหัสบัญชีนี้")) -> รายได้จากการขายมิเตอร์ | H56: =IF(COUNTIF(A:A,A56)>1,"รหัสบัญชีซ้ำ โปรดตรวจสอบ","") ->  | J56: =ROUNDUP(SUBTOTAL(109,I55:I62),-1) -> 0 | M56: 41039090
B57: รายละเอียด | C57: คำนวณเพิ่ม 10% จากยอดประมาณการรายได้เต็มปี ปี 65 | M57: 41039099
C58: กฟอ.หนองไผ่ พิจารณาขอตั้งงบประมาณปี 2567 | M58: 41039100
C59: กฟส.วิเชียรบุรี และ กฟย.พุเตย พิจารณาขอตั้งงบประมาณปี 2567 | M59: 41039110
C60: กฟส.บึงสามพัน พิจารณาขอตั้งงบประมาณปี 2567 | M60: 41039120
C61: กฟส.ศรีเทพ พิจารณาขอตั้งงบประมาณปี 2567 | M61: 41039130
M62: 41039140
M63: 41039150
A64: 41030030 | B64: =IF(A64="","<< กรอกรหัสบัญชี (รายได้)",IFERROR(VLOOKUP(A64,'R001'!A:I,4,0),"ไม่มีรหัสบัญชีนี้")) -> รายได้จากการขายคาปาซิเตอร์ | H64: =IF(COUNTIF(A:A,A64)>1,"รหัสบัญชีซ้ำ โปรดตรวจสอบ","") ->  | J64: =ROUNDUP(SUBTOTAL(109,I63:I70),-1) -> 0 | M64: 41039160
B65: รายละเอียด | C65: คำนวณเพิ่ม 10% จากยอดประมาณการรายได้เต็มปี ปี 65 | M65: 41039990
C66: กฟอ.หนองไผ่ พิจารณาขอตั้งงบประมาณปี 2567 | M66: 49010010
C67: กฟส.วิเชียรบุรี และ กฟย.พุเตย พิจารณาขอตั้งงบประมาณปี 2567 | M67: 49019010
C68: กฟส.บึงสามพัน พิจารณาขอตั้งงบประมาณปี 2567 | M68: 49020010
C69: กฟส.ศรีเทพ พิจารณาขอตั้งงบประมาณปี 2567 | M69: 49020020
M70: 49020030
M71: 49020040
A72: 41030040 | B72: =IF(A72="","<< กรอกรหัสบัญชี (รายได้)",IFERROR(VLOOKUP(A72,'R001'!A:I,4,0),"ไม่มีรหัสบัญชีนี้")) -> รายได้จากการขายเสา | H72: =IF(COUNTIF(A:A,A72)>1,"รหัสบัญชีซ้ำ โปรดตรวจสอบ","") ->  | J72: =ROUNDUP(SUBTOTAL(109,I71:I78),-1) -> 0 | M72: 49020050
B73: รายละเอียด | C73: คำนวณเพิ่ม 10% จากยอดประมาณการรายได้เต็มปี ปี 65 | M73: 49020060
C74: กฟอ.หนองไผ่ พิจารณาขอตั้งงบประมาณปี 2567 | M74: 49020990
C75: กฟส.วิเชียรบุรี และ กฟย.พุเตย พิจารณาขอตั้งงบประมาณปี 2567 | M75: 49030010
C76: กฟส.บึงสามพัน พิจารณาขอตั้งงบประมาณปี 2567 | M76: 49040010
C77: กฟส.ศรีเทพ พิจารณาขอตั้งงบประมาณปี 2567 | M77: 49040020
M78: 49040030
M79: 49041010
A80: 41030050 | B80: =IF(A80="","<< กรอกรหัสบัญชี (รายได้)",IFERROR(VLOOKUP(A80,'R001'!A:I,4,0),"ไม่มีรหัสบัญชีนี้")) -> รายได้จากการจัดจำหน่ายผลิตภัณฑ์ | H80: =IF(COUNTIF(A:A,A80)>1,"รหัสบัญชีซ้ำ โปรดตรวจสอบ","") ->  | J80: =ROUNDUP(SUBTOTAL(109,I79:I86),-1) -> 0 | M80: 49041020
B81: รายละเอียด | C81: คำนวณเพิ่ม 10% จากยอดประมาณการรายได้เต็มปี ปี 65 | M81: 49050010
C82: กฟอ.หนองไผ่ พิจารณาขอตั้งงบประมาณปี 2567 | M82: 49050020
C83: กฟส.วิเชียรบุรี และ กฟย.พุเตย พิจารณาขอตั้งงบประมาณปี 2567 | M83: 49050070
C84: กฟส.บึงสามพัน พิจารณาขอตั้งงบประมาณปี 2567 | M84: 49059990
C85: กฟส.ศรีเทพ พิจารณาขอตั้งงบประมาณปี 2567
A88: 41030990 | B88: =IF(A88="","<< กรอกรหัสบัญชี (รายได้)",IFERROR(VLOOKUP(A88,'R001'!A:I,4,0),"ไม่มีรหัสบัญชีนี้")) -> รายได้จากการขายอุปกรณ์ไฟฟ้าอื่น ๆ | H88: =IF(COUNTIF(A:A,A88)>1,"รหัสบัญชีซ้ำ โปรดตรวจสอบ","") ->  | J88: =ROUNDUP(SUBTOTAL(109,I87:I94),-1) -> 0
B89: รายละเอียด | C89: คำนวณเพิ่ม 10% จากยอดประมาณการรายได้เต็มปี ปี 65
C90: กฟอ.หนองไผ่ พิจารณาขอตั้งงบประมาณปี 2567
C91: กฟส.วิเชียรบุรี และ กฟย.พุเตย พิจารณาขอตั้งงบประมาณปี 2567
C92: กฟส.บึงสามพัน พิจารณาขอตั้งงบประมาณปี 2567
C93: กฟส.ศรีเทพ พิจารณาขอตั้งงบประมาณปี 2567
A96: 41031010 | B96: =IF(A96="","<< กรอกรหัสบัญชี (รายได้)",IFERROR(VLOOKUP(A96,'R001'!A:I,4,0),"ไม่มีรหัสบัญชีนี้")) -> รายได้จากการให้ใช้เสาไฟฟ้า | H96: =IF(COUNTIF(A:A,A96)>1,"รหัสบัญชีซ้ำ โปรดตรวจสอบ","") ->  | J96: =ROUNDUP(SUBTOTAL(109,I95:I102),-1) -> 0
B97: รายละเอียด | C97: คำนวณเพิ่ม 10% จากยอดประมาณการรายได้เต็มปี ปี 65
C98: กฟอ.หนองไผ่ พิจารณาขอตั้งงบประมาณปี 2567
C99: กฟส.วิเชียรบุรี และ กฟย.พุเตย พิจารณาขอตั้งงบประมาณปี 2567
C100: กฟส.บึงสามพัน พิจารณาขอตั้งงบประมาณปี 2567
C101: กฟส.ศรีเทพ พิจารณาขอตั้งงบประมาณปี 2567
A104: 41031020 | B104: =IF(A104="","<< กรอกรหัสบัญชี (รายได้)",IFERROR(VLOOKUP(A104,'R001'!A:I,4,0),"ไม่มีรหัสบัญชีนี้")) -> รายได้จากการให้เช่าหม้อแปลง | H104: =IF(COUNTIF(A:A,A104)>1,"รหัสบัญชีซ้ำ โปรดตรวจสอบ","") ->  | J104: =ROUNDUP(SUBTOTAL(109,I103:I110),-1) -> 0
B105: รายละเอียด | C105: คำนวณเพิ่ม 10% จากยอดประมาณการรายได้เต็มปี ปี 65
C106: กฟอ.หนองไผ่ พิจารณาขอตั้งงบประมาณปี 2567
C107: กฟส.วิเชียรบุรี และ กฟย.พุเตย พิจารณาขอตั้งงบประมาณปี 2567
C108: กฟส.บึงสามพัน พิจารณาขอตั้งงบประมาณปี 2567
C109: กฟส.ศรีเทพ พิจารณาขอตั้งงบประมาณปี 2567
A112: 41031030 | B112: =IF(A112="","<< กรอกรหัสบัญชี (รายได้)",IFERROR(VLOOKUP(A112,'R001'!A:I,4,0),"ไม่มีรหัสบัญชีนี้")) -> รายได้จากการให้เช่าชุดเครื่องยนต์กำเนิดไฟฟ้า | H112: =IF(COUNTIF(A:A,A112)>1,"รหัสบัญชีซ้ำ โปรดตรวจสอบ","") ->  | J112: =ROUNDUP(SUBTOTAL(109,I111:I118),-1) -> 0
B113: รายละเอียด | C113: คำนวณเพิ่ม 10% จากยอดประมาณการรายได้เต็มปี ปี 65
C114: กฟอ.หนองไผ่ พิจารณาขอตั้งงบประมาณปี 2567
C115: กฟส.วิเชียรบุรี และ กฟย.พุเตย พิจารณาขอตั้งงบประมาณปี 2567
C116: กฟส.บึงสามพัน พิจารณาขอตั้งงบประมาณปี 2567
C117: กฟส.ศรีเทพ พิจารณาขอตั้งงบประมาณปี 2567
A120: 41031040 | B120: =IF(A120="","<< กรอกรหัสบัญชี (รายได้)",IFERROR(VLOOKUP(A120,'R001'!A:I,4,0),"ไม่มีรหัสบัญชีนี้")) -> รายได้จากการให้ใช้บริการเส้นใยแก้วนำแสง | H120: =IF(COUNTIF(A:A,A120)>1,"รหัสบัญชีซ้ำ โปรดตรวจสอบ","") ->  | J120: =ROUNDUP(SUBTOTAL(109,I119:I126),-1) -> 0
B121: รายละเอียด | C121: คำนวณเพิ่ม 10% จากยอดประมาณการรายได้เต็มปี ปี 65
C122: กฟอ.หนองไผ่ พิจารณาขอตั้งงบประมาณปี 2567
C123: กฟส.วิเชียรบุรี และ กฟย.พุเตย พิจารณาขอตั้งงบประมาณปี 2567
C124: กฟส.บึงสามพัน พิจารณาขอตั้งงบประมาณปี 2567
C125: กฟส.ศรีเทพ พิจารณาขอตั้งงบประมาณปี 2567
A128: 41031050 | B128: =IF(A128="","<< กรอกรหัสบัญชี (รายได้)",IFERROR(VLOOKUP(A128,'R001'!A:I,4,0),"ไม่มีรหัสบัญชีนี้")) -> รายได้จากการให้เช่าอสังหาริมทรัพย์ | H128: =IF(COUNTIF(A:A,A128)>1,"รหัสบัญชีซ้ำ โปรดตรวจสอบ","") ->  | J128: =ROUNDUP(SUBTOTAL(109,I127:I134),-1) -> 0
B129: รายละเอียด | C129: คำนวณเพิ่ม 10% จากยอดประมาณการรายได้เต็มปี ปี 65
C130: กฟอ.หนองไผ่ พิจารณาขอตั้งงบประมาณปี 2567
C131: กฟส.วิเชียรบุรี และ กฟย.พุเตย พิจารณาขอตั้งงบประมาณปี 2567
C132: กฟส.บึงสามพัน พิจารณาขอตั้งงบประมาณปี 2567
C133: กฟส.ศรีเทพ พิจารณาขอตั้งงบประมาณปี 2567
A136: 41031990 | B136: =IF(A136="","<< กรอกรหัสบัญชี (รายได้)",IFERROR(VLOOKUP(A136,'R001'!A:I,4,0),"ไม่มีรหัสบัญชีนี้")) -> รายได้จากการให้เช่าหรือใช้สินทรัพย์อื่น ๆ | H136: =IF(COUNTIF(A:A,A136)>1,"รหัสบัญชีซ้ำ โปรดตรวจสอบ","") ->  | J136: =ROUNDUP(SUBTOTAL(109,I135:I142),-1) -> 0
B137: รายละเอียด | C137: คำนวณเพิ่ม 10% จากยอดประมาณการรายได้เต็มปี ปี 65
C138: กฟอ.หนองไผ่ พิจารณาขอตั้งงบประมาณปี 2567
C139: กฟส.วิเชียรบุรี และ กฟย.พุเตย พิจารณาขอตั้งงบประมาณปี 2567
C140: กฟส.บึงสามพัน พิจารณาขอตั้งงบประมาณปี 2567
C141: กฟส.ศรีเทพ พิจารณาขอตั้งงบประมาณปี 2567
A144: 41032010 | B144: =IF(A144="","<< กรอกรหัสบัญชี (รายได้)",IFERROR(VLOOKUP(A144,'R001'!A:I,4,0),"ไม่มีรหัสบัญชีนี้")) -> รายได้ติดตั้ง ตรวจการติดตั้งมิเตอร์ | H144: =IF(COUNTIF(A:A,A144)>1,"รหัสบัญชีซ้ำ โปรดตรวจสอบ","") ->  | J144: =ROUNDUP(SUBTOTAL(109,I143:I150),-1) -> 2000000
B145: รายละเอียด | C145: คำนวณเพิ่ม 10% จากยอดประมาณการรายได้เต็มปี ปี 65
C146: กฟอ.หนองไผ่ พิจารณาขอตั้งงบประมาณปี 2567 | I146: 600000
C147: กฟส.วิเชียรบุรี และ กฟย.พุเตย พิจารณาขอตั้งงบประมาณปี 2567 | I147: 700000
C148: กฟส.บึงสามพัน พิจารณาขอตั้งงบประมาณปี 2567 | I148: 400000
C149: กฟส.ศรีเทพ พิจารณาขอตั้งงบประมาณปี 2567 | I149: 300000
A152: 41032019 | B152: =IF(A152="","<< กรอกรหัสบัญชี (รายได้)",IFERROR(VLOOKUP(A152,'R001'!A:I,4,0),"ไม่มีรหัสบัญชีนี้")) -> ปรับปรุงรายได้ติดตั้ง ตรวจการติดตั้งมิเตอร์ | H152: =IF(COUNTIF(A:A,A152)>1,"รหัสบัญชีซ้ำ โปรดตรวจสอบ","") ->  | J152: =ROUNDUP(SUBTOTAL(109,I151:I158),-1) -> 83000
B153: รายละเอียด | C153: คำนวณเพิ่ม 10% จากยอดประมาณการรายได้เต็มปี ปี 65
C154: กฟอ.หนองไผ่ พิจารณาขอตั้งงบประมาณปี 2567 | I154: 25000
C155: กฟส.วิเชียรบุรี และ กฟย.พุเตย พิจารณาขอตั้งงบประมาณปี 2567 | I155: 30000
C156: กฟส.บึงสามพัน พิจารณาขอตั้งงบประมาณปี 2567 | I156: 35000
C157: กฟส.ศรีเทพ พิจารณาขอตั้งงบประมาณปี 2567 | I157: -7000
A160: 41032020 | B160: =IF(A160="","<< กรอกรหัสบัญชี (รายได้)",IFERROR(VLOOKUP(A160,'R001'!A:I,4,0),"ไม่มีรหัสบัญชีนี้")) -> รายได้ติดตั้งมิเตอร์ TOU/TOD | H160: =IF(COUNTIF(A:A,A160)>1,"รหัสบัญชีซ้ำ โปรดตรวจสอบ","") ->  | J160: =ROUNDUP(SUBTOTAL(109,I159:I166),-1) -> 580000
B161: รายละเอียด | C161: คำนวณเพิ่ม 10% จากยอดประมาณการรายได้เต็มปี ปี 65
C162: กฟอ.หนองไผ่ พิจารณาขอตั้งงบประมาณปี 2567 | I162: 150000
C163: กฟส.วิเชียรบุรี และ กฟย.พุเตย พิจารณาขอตั้งงบประมาณปี 2567 | I163: 200000
C164: กฟส.บึงสามพัน พิจารณาขอตั้งงบประมาณปี 2567 | I164: 130000
C165: กฟส.ศรีเทพ พิจารณาขอตั้งงบประมาณปี 2567 | I165: 100000
A168: 41032029 | B168: =IF(A168="","<< กรอกรหัสบัญชี (รายได้)",IFERROR(VLOOKUP(A168,'R001'!A:I,4,0),"ไม่มีรหัสบัญชีนี้")) -> ปรับปรุงรายได้ติดตั้งมิเตอร์ TOU/TOD | H168: =IF(COUNTIF(A:A,A168)>1,"รหัสบัญชีซ้ำ โปรดตรวจสอบ","") ->  | J168: =ROUNDUP(SUBTOTAL(109,I167:I174),-1) -> 40000
B169: รายละเอียด | C169: คำนวณเพิ่ม 10% จากยอดประมาณการรายได้เต็มปี ปี 65
C170: กฟอ.หนองไผ่ พิจารณาขอตั้งงบประมาณปี 2567 | I170: 53000
C171: กฟส.วิเชียรบุรี และ กฟย.พุเตย พิจารณาขอตั้งงบประมาณปี 2567 | I171: 22000
C172: กฟส.บึงสามพัน พิจารณาขอตั้งงบประมาณปี 2567 | I172: 60000
C173: กฟส.ศรีเทพ พิจารณาขอตั้งงบประมาณปี 2567 | I173: -95000
A176: 41032030 | B176: =IF(A176="","<< กรอกรหัสบัญชี (รายได้)",IFERROR(VLOOKUP(A176,'R001'!A:I,4,0),"ไม่มีรหัสบัญชีนี้")) -> รายได้ค่าบริการงานด้านฮอทไลน์และเชื่อมสายแรงสูง | H176: =IF(COUNTIF(A:A,A176)>1,"รหัสบัญชีซ้ำ โปรดตรวจสอบ","") ->  | J176: =ROUNDUP(SUBTOTAL(109,I175:I182),-1) -> 0
B177: รายละเอียด | C177: คำนวณเพิ่ม 10% จากยอดประมาณการรายได้เต็มปี ปี 65 | G177: ส
C178: กฟอ.หนองไผ่ พิจารณาขอตั้งงบประมาณปี 2567
C179: กฟส.วิเชียรบุรี และ กฟย.พุเตย พิจารณาขอตั้งงบประมาณปี 2567
C180: กฟส.บึงสามพัน พิจารณาขอตั้งงบประมาณปี 2567
C181: กฟส.ศรีเทพ พิจารณาขอตั้งงบประมาณปี 2567
A184: 41032039 | B184: =IF(A184="","<< กรอกรหัสบัญชี (รายได้)",IFERROR(VLOOKUP(A184,'R001'!A:I,4,0),"ไม่มีรหัสบัญชีนี้")) -> ปรับปรุงรายได้ค่าบริการงานด้านฮอทไลน์และเชื่อมสายแรงสูง | H184: =IF(COUNTIF(A:A,A184)>1,"รหัสบัญชีซ้ำ โปรดตรวจสอบ","") ->  | J184: =ROUNDUP(SUBTOTAL(109,I183:I190),-1) -> 0
B185: รายละเอียด | C185: คำนวณเพิ่ม 10% จากยอดประมาณการรายได้เต็มปี ปี 65 | G185: ส
C186: กฟอ.หนองไผ่ พิจารณาขอตั้งงบประมาณปี 2567
C187: กฟส.วิเชียรบุรี และ กฟย.พุเตย พิจารณาขอตั้งงบประมาณปี 2567
C188: กฟส.บึงสามพัน พิจารณาขอตั้งงบประมาณปี 2567
C189: กฟส.ศรีเทพ พิจารณาขอตั้งงบประมาณปี 2567
A192: 41033010 | B192: =IF(A192="","<< กรอกรหัสบัญชี (รายได้)",IFERROR(VLOOKUP(A192,'R001'!A:I,4,0),"ไม่มีรหัสบัญชีนี้")) -> รายได้ค่าทดสอบผลิตภัณฑ์คอนกรีต | H192: =IF(COUNTIF(A:A,A192)>1,"รหัสบัญชีซ้ำ โปรดตรวจสอบ","") ->  | J192: =ROUNDUP(SUBTOTAL(109,I191:I198),-1) -> 0
B193: รายละเอียด | C193: คำนวณเพิ่ม 10% จากยอดประมาณการรายได้เต็มปี ปี 65
C194: กฟอ.หนองไผ่ พิจารณาขอตั้งงบประมาณปี 2567
C195: กฟส.วิเชียรบุรี และ กฟย.พุเตย พิจารณาขอตั้งงบประมาณปี 2567
C196: กฟส.บึงสามพัน พิจารณาขอตั้งงบประมาณปี 2567
C197: กฟส.ศรีเทพ พิจารณาขอตั้งงบประมาณปี 2567
A200: 41033020 | B200: =IF(A200="","<< กรอกรหัสบัญชี (รายได้)",IFERROR(VLOOKUP(A200,'R001'!A:I,4,0),"ไม่มีรหัสบัญชีนี้")) -> รายได้ค่าทดสอบอุปกรณ์ไฟฟ้า | H200: =IF(COUNTIF(A:A,A200)>1,"รหัสบัญชีซ้ำ โปรดตรวจสอบ","") ->  | J200: =ROUNDUP(SUBTOTAL(109,I199:I206),-1) -> 0
B201: รายละเอียด | C201: คำนวณเพิ่ม 10% จากยอดประมาณการรายได้เต็มปี ปี 65 | H201: ส
C202: กฟอ.หนองไผ่ พิจารณาขอตั้งงบประมาณปี 2567
C203: กฟส.วิเชียรบุรี และ กฟย.พุเตย พิจารณาขอตั้งงบประมาณปี 2567
C204: กฟส.บึงสามพัน พิจารณาขอตั้งงบประมาณปี 2567
C205: กฟส.ศรีเทพ พิจารณาขอตั้งงบประมาณปี 2567
A208: 41033029 | B208: =IF(A208="","<< กรอกรหัสบัญชี (รายได้)",IFERROR(VLOOKUP(A208,'R001'!A:I,4,0),"ไม่มีรหัสบัญชีนี้")) -> ปรับปรุงรายได้ค่าทดสอบอุปกรณ์ไฟฟ้า | H208: =IF(COUNTIF(A:A,A208)>1,"รหัสบัญชีซ้ำ โปรดตรวจสอบ","") ->  | J208: =ROUNDUP(SUBTOTAL(109,I207:I214),-1) -> 0
B209: รายละเอียด
A216: 41034010 | B216: =IF(A216="","<< กรอกรหัสบัญชี (รายได้)",IFERROR(VLOOKUP(A216,'R001'!A:I,4,0),"ไม่มีรหัสบัญชีนี้")) -> รายได้ค่าธรรมเนียมต่อไฟ | H216: =IF(COUNTIF(A:A,A216)>1,"รหัสบัญชีซ้ำ โปรดตรวจสอบ","") ->  | J216: =ROUNDUP(SUBTOTAL(109,I215:I222),-1) -> 0
B217: รายละเอียด
A224: 41034020 | B224: =IF(A224="","<< กรอกรหัสบัญชี (รายได้)",IFERROR(VLOOKUP(A224,'R001'!A:I,4,0),"ไม่มีรหัสบัญชีนี้")) -> รายได้ค่าธรรมเนียมพาดสายสื่อสารฯ | H224: =IF(COUNTIF(A:A,A224)>1,"รหัสบัญชีซ้ำ โปรดตรวจสอบ","") ->  | J224: =ROUNDUP(SUBTOTAL(109,I223:I230),-1) -> 275000
B225: รายละเอียด | C225: คำนวณเพิ่ม 10% จากยอดประมาณการรายได้เต็มปี ปี 65
C226: กฟอ.หนองไผ่ พิจารณาขอตั้งงบประมาณปี 2567 | I226: 55000
C227: กฟส.วิเชียรบุรี และ กฟย.พุเตย พิจารณาขอตั้งงบประมาณปี 2567 | I227: 60000
C228: กฟส.บึงสามพัน พิจารณาขอตั้งงบประมาณปี 2567 | I228: 140000
C229: กฟส.ศรีเทพ พิจารณาขอตั้งงบประมาณปี 2567 | I229: 20000
A232: 41034030 | B232: =IF(A232="","<< กรอกรหัสบัญชี (รายได้)",IFERROR(VLOOKUP(A232,'R001'!A:I,4,0),"ไม่มีรหัสบัญชีนี้")) -> รายได้ค่าต่อกลับมิเตอร์ | H232: =IF(COUNTIF(A:A,A232)>1,"รหัสบัญชีซ้ำ โปรดตรวจสอบ","") ->  | J232: =ROUNDUP(SUBTOTAL(109,I231:I238),-1) -> 1060000
B233: รายละเอียด | C233: คำนวณเพิ่ม 10% จากยอดประมาณการรายได้เต็มปี ปี 65
C234: กฟอ.หนองไผ่ พิจารณาขอตั้งงบประมาณปี 2567 | I234: 320000
C235: กฟส.วิเชียรบุรี และ กฟย.พุเตย พิจารณาขอตั้งงบประมาณปี 2567 | I235: 300000
C236: กฟส.บึงสามพัน พิจารณาขอตั้งงบประมาณปี 2567 | I236: 225000
C237: กฟส.ศรีเทพ พิจารณาขอตั้งงบประมาณปี 2567 | I237: 215000
A240: 41034040 | B240: =IF(A240="","<< กรอกรหัสบัญชี (รายได้)",IFERROR(VLOOKUP(A240,'R001'!A:I,4,0),"ไม่มีรหัสบัญชีนี้")) -> รายได้ขอผ่อนผันการงดจ่ายไฟ | H240: =IF(COUNTIF(A:A,A240)>1,"รหัสบัญชีซ้ำ โปรดตรวจสอบ","") ->  | J240: =ROUNDUP(SUBTOTAL(109,I239:I246),-1) -> 95000
B241: รายละเอียด | C241: คำนวณเพิ่ม 10% จากยอดประมาณการรายได้เต็มปี ปี 65
C242: กฟอ.หนองไผ่ พิจารณาขอตั้งงบประมาณปี 2567 | I242: 30000
C243: กฟส.วิเชียรบุรี และ กฟย.พุเตย พิจารณาขอตั้งงบประมาณปี 2567 | I243: 25000
C244: กฟส.บึงสามพัน พิจารณาขอตั้งงบประมาณปี 2567 | I244: 25000
C245: กฟส.ศรีเทพ พิจารณาขอตั้งงบประมาณปี 2567 | I245: 15000
A248: 41034990 | B248: =IF(A248="","<< กรอกรหัสบัญชี (รายได้)",IFERROR(VLOOKUP(A248,'R001'!A:I,4,0),"ไม่มีรหัสบัญชีนี้")) -> รายได้ค่าธรรมเนียมอื่น ๆ | H248: =IF(COUNTIF(A:A,A248)>1,"รหัสบัญชีซ้ำ โปรดตรวจสอบ","") ->  | J248: =ROUNDUP(SUBTOTAL(109,I247:I254),-1) -> 0
B249: รายละเอียด
A256: 41035010 | B256: =IF(A256="","<< กรอกรหัสบัญชี (รายได้)",IFERROR(VLOOKUP(A256,'R001'!A:I,4,0),"ไม่มีรหัสบัญชีนี้")) -> รายได้จากการก่อสร้างให้ผู้ใช้ไฟ | H256: =IF(COUNTIF(A:A,A256)>1,"รหัสบัญชีซ้ำ โปรดตรวจสอบ","") ->  | J256: =ROUNDUP(SUBTOTAL(109,I255:I262),-1) -> 0
... 296 more rows

Sheet E110
A1: คำชี้แจงประกอบ | I1: งป. (ท)_1
A2: ="งบประมาณทำการประจำปี "&A_Budget_year -> งบประมาณทำการประจำปี 2567
A3: งานประจำของหน่วยงาน - ค่าใช้จ่ายเกี่ยวกับบุคคลากร
H4: =Head_division -> เขต: | I4: =Head_division2 -> กฟน.3 - 07
H5: หน่วย: | I5: บาท
A6: รหัสบัญชี | D6: รายการ /รายละเอียด / คำชี้แจงประกอบ | I6: วงเงิน
A7: 52010010 | B7: =VLOOKUP(A7,'E001'!A:D,4,0) -> เงินเดือนพนักงาน | I7: =ROUNDUP(G36+G43,-1) -> 47812890
B8: ="A) คำนวณประมาณการเงินเดือนพนักงานปี "&A_Budget_year-1 -> A) คำนวณประมาณการเงินเดือนพนักงานปี 2566 | F8: (A)
B9: ="เงินเดือน ก.ค. "&A_Budget_year-2&" จาก SAP (จำนวนพนักงานทั้งหมด "&Cover!C39&" คน)" -> เงินเดือน ก.ค. 2565 จาก SAP (จำนวนพนักงานทั้งหมด 104 คน) | G9: =Cover!C49 -> 3811883
B10: บวก | C10: อัตราเพิ่ม 7.5% | G10: =G9*0.075 -> 285891.225
B11: หัก | C11: ="เงินเดือนของพนักงานที่เกษียณอายุในปี "&A_Budget_year-2&" จำนวน "&Cover!D39&" คน (คูณ 7.5% แล้ว)" -> เงินเดือนของพนักงานที่เกษียณอายุในปี 2565 จำนวน 2 คน (คูณ 7.5% แล้ว) | G11: =-Cover!C50*1.075 -> -295384.2
B12: ="ประมาณการเงินเดือนพนักงาน ปี "&A_Budget_year-1&" (ต่อเดือน)" -> ประมาณการเงินเดือนพนักงาน ปี 2566 (ต่อเดือน) | G12: =SUM(G9:G11) -> 3802390.025 | H12: A
B14: ="B) คำนวณประมาณการเงินเดือนของพนักงานที่เกษียณอายุในปี "&A_Budget_year -> B) คำนวณประมาณการเงินเดือนของพนักงานที่เกษียณอายุในปี 2567 | F14: (B)
B15: ="B1) เงินเดือนเดือน ต.ค. - ธ.ค. "&A_Budget_year&" ของผู้เกษียณอายุ (หลังวันเกษียณอายุ)" -> B1) เงินเดือนเดือน ต.ค. - ธ.ค. 2567 ของผู้เกษียณอายุ (หลังวันเกษียณอายุ) | F15: (B1)
C16: ="เงินเดือน ณ ปี "&A_Budget_year-2&" (จำนวน "&Cover!H39&" คน)" -> เงินเดือน ณ ปี 2565 (จำนวน 3 คน) | G16: =Cover!C52 -> 202040
B17: บวก | C17: อัตราเพิ่ม 7.5% | G17: =+G16*0.075 -> 15153
C18: ="ประมาณการเงินเดือนปี "&A_Budget_year-1 -> ประมาณการเงินเดือนปี 2566 | G18: =SUM(G16:G17) -> 217193
B19: บวก | C19: อัตราเพิ่ม 7.5% | G19: =+G18*0.075 -> 16289.475
C20: ="ประมาณการเงินเดือนปี "&A_Budget_year&" (ต่อเดือน)" -> ประมาณการเงินเดือนปี 2567 (ต่อเดือน) | G20: =SUM(G18:G19) -> 233482.475
C22: ="ประมาณการเงินเดือนปี "&A_Budget_year&" (3 เดือน)" -> ประมาณการเงินเดือนปี 2567 (3 เดือน) | G22: =G20*3 -> 700447.425 | H22: B1
B24: B2) เงินตอบแทนความชอบในการทำงานของผู้เกษียณอายุ
C25: ="6 % ของเงินเดือน ณ ก.ย. "&A_Budget_year&" ("&G20&" x 6%)" -> 6 % ของเงินเดือน ณ ก.ย. 2567 (233482.475 x 6%) | F25: (B2) | G25: =G20*0.06 -> 14008.9485 | H25: B2
B27: ="C) คำนวณประมาณการเงินเดือนพนักงานปี "&A_Budget_year&" (สุทธิ)" -> C) คำนวณประมาณการเงินเดือนพนักงานปี 2567 (สุทธิ) | F27: (C)
B28: ="ประมาณการเงินเดือนพนักงาน ปี "&A_Budget_year-1&" (ต่อเดือน)" -> ประมาณการเงินเดือนพนักงาน ปี 2566 (ต่อเดือน) | G28: =G12 -> 3802390.025 | H28: A
B29: บวก | C29: อัตราเพิ่ม 7.5% (A x 7.5%) | G29: =G28*0.075 -> 285179.2519
B30: หัก | C30: ="เงินเดือนของพนักงานที่เกษียณอายุในปี "&A_Budget_year-1&" จำนวน "&Cover!F39&" คน (บวกอัตราเพิ่ม 7.5% แล้ว)" -> เงินเดือนของพนักงานที่เกษียณอายุในปี 2566 จำนวน 1 คน (บวกอัตราเพิ่ม 7.5% แล้ว) | G30: =-Cover!C51*1.075*1.075 -> -63674.9375
B31: ="ประมาณการเงินเดือนพนักงาน ปี "&A_Budget_year&" (ต่อเดือน)" -> ประมาณการเงินเดือนพนักงาน ปี 2567 (ต่อเดือน) | G31: =SUM(G28:G30) -> 4023894.339 | H31: C
B33: ="ประมาณการเงินเดือนพนักงาน ปี "&A_Budget_year&" (ต่อปี) (C x 12)" -> ประมาณการเงินเดือนพนักงาน ปี 2567 (ต่อปี) (C x 12) | G33: =G31*12 -> 48286732.07
B34: หัก | C34: ="เงินเดือนผู้เกษียณอายุในปี "&A_Budget_year&" เดือน ต.ค. - ธ.ค. "&A_Budget_year -> เงินเดือนผู้เกษียณอายุในปี 2567 เดือน ต.ค. - ธ.ค. 2567 | G34: =-G22 -> -700447.425 | H34: B1
B35: บวก | C35: เงินตอบแทนความชอบในการทำงานของผู้เกษียณอายุ | G35: =+G25 -> 14008.9485 | H35: B2
B36: ="ประมาณการเงินเดือนพนักงาน ปี "&A_Budget_year&" (สุทธิต่อปี)" -> ประมาณการเงินเดือนพนักงาน ปี 2567 (สุทธิต่อปี) | G36: =SUM(G33:G35) -> 47600293.6
B38: ="D คำนวณประมาณการเงินเดือนปี "&A_Budget_year&" ของพนักงานที่เข้าใหม่หลัง 31 ก.ค. "&A_Budget_year-2 -> D คำนวณประมาณการเงินเดือนปี 2567 ของพนักงานที่เข้าใหม่หลัง 31 ก.ค. 2565 | F38: (D)
B39: ="เงินเดือนพนักงานที่เข้าใหม่หลัง 31 ก.ค. "&A_Budget_year-2 -> เงินเดือนพนักงานที่เข้าใหม่หลัง 31 ก.ค. 2565 | G39: =Cover!C57 -> 16480
B40: บวก | C40: อัตราเพิ่ม 7.5% | G40: =G39*0.075 -> 1236
B41: ="ประมาณการเงินเดือนพนักงาน ปี "&A_Budget_year&" ของพนักงานที่เข้าใหม่หลัง 31 ก.ค. "&A_Budget_year-2&" (ต่อเดือน)" -> ประมาณการเงินเดือนพนักงาน ปี 2567 ของพนักงานที่เข้าใหม่หลัง 31 ก.ค. 2565 (ต่อเดือน) | G41: =SUM(G39:G40) -> 17716 | H41: D
B43: ="ประมาณการเงินเดือนพนักงาน ปี "&A_Budget_year&" ของพนักงานที่เข้าใหม่หลัง 31 ก.ค. "&A_Budget_year-2&" (ต่อปี) (D x 12)" -> ประมาณการเงินเดือนพนักงาน ปี 2567 ของพนักงานที่เข้าใหม่หลัง 31 ก.ค. 2565 (ต่อปี) (D x 12) | G43: =G41*12 -> 212592
A46: 52010020 | B46: =VLOOKUP(A46,'E001'!A:D,4,0) -> ค่าจ้างรายเดือนลูกจ้าง | I46: =ROUNDUP(G71,-1) -> 6744160
B47: ="A) คำนวณประมาณการค่าจ้างรายเดือนลูกจ้างปี "&A_Budget_year-1 -> A) คำนวณประมาณการค่าจ้างรายเดือนลูกจ้างปี 2566 | F47: (A)
B48: ="ค่าจ้างรายเดือนลูกจ้าง ก.ค. "&A_Budget_year-2&" จาก SAP (จำนวนลูกจ้างทั้งหมด "&Cover!C73&" คน)" -> ค่าจ้างรายเดือนลูกจ้าง ก.ค. 2565 จาก SAP (จำนวนลูกจ้างทั้งหมด 25 คน) | G48: =Cover!C76 -> 486328
B49: บวก | C49: อัตราเพิ่ม 7.5% | G49: =G48*0.075 -> 36474.6
B50: หัก | C50: ="ค่าจ้างรายเดือนลูกจ้างที่เกษียณอายุในปี "&A_Budget_year-2&" (จำนวน "&Cover!D73&" คน)" -> ค่าจ้างรายเดือนลูกจ้างที่เกษียณอายุในปี 2565 (จำนวน 0 คน) | G50: =-Cover!C77*1.075 -> 0
B51: ="ประมาณการค่าจ้างรายเดือนลูกจ้างปี "&A_Budget_year-1&" (ต่อเดือน)" -> ประมาณการค่าจ้างรายเดือนลูกจ้างปี 2566 (ต่อเดือน) | G51: =SUM(G48:G50) -> 522802.6 | H51: A
B53: ="B) คำนวณประมาณการค่าจ้างรายเดือนลูกจ้างที่เกษียณอายุในปี "&A_Budget_year -> B) คำนวณประมาณการค่าจ้างรายเดือนลูกจ้างที่เกษียณอายุในปี 2567 | F53: (B)
B54: ="ค่าจ้างรายเดือนลูกจ้างเดือน ต.ค. - ธ.ค. "&A_Budget_year&" (หลังวันเกษียณอายุ)" -> ค่าจ้างรายเดือนลูกจ้างเดือน ต.ค. - ธ.ค. 2567 (หลังวันเกษียณอายุ)
C55: ="เงินเดือนลูกจ้างเกษียณ ณ ปี "&A_Budget_year-2 -> เงินเดือนลูกจ้างเกษียณ ณ ปี 2565 | G55: =Cover!C79 -> 0
B56: บวก | C56: อัตราเพิ่ม 7.5% | G56: =+G55*0.075 -> 0
C57: ="ประมาณการเงินเดือนผู้เกษียณปี "&A_Budget_year-1 -> ประมาณการเงินเดือนผู้เกษียณปี 2566 | G57: =SUM(G55:G56) -> 0
B58: บวก | C58: ="อัตราเพิ่ม 7.5% เป็นเงินเดือน ปี "&A_Budget_year -> อัตราเพิ่ม 7.5% เป็นเงินเดือน ปี 2567 | G58: =+G57*0.075 -> 0
C59: ="ประมาณการเงินเดือนผู้เกษียณปี "&A_Budget_year -> ประมาณการเงินเดือนผู้เกษียณปี 2567 | G59: =SUM(G57:G58) -> 0
C61: ="ประมาณการเงินเดือนผู้เกษียณปี "&A_Budget_year&" (3 เดือน)" -> ประมาณการเงินเดือนผู้เกษียณปี 2567 (3 เดือน) | G61: =G59*3 -> 0 | H61: B
B63: ="C) คำนวณประมาณการค่าจ้างรายเดือนลูกจ้างปี "&A_Budget_year&" (สุทธิ)" -> C) คำนวณประมาณการค่าจ้างรายเดือนลูกจ้างปี 2567 (สุทธิ) | F63: (C)
B64: ="ประมาณการค่าจ้างรายเดือนลูกจ้าง ปี "&A_Budget_year-1&" (ต่อเดือน)" -> ประมาณการค่าจ้างรายเดือนลูกจ้าง ปี 2566 (ต่อเดือน) | G64: =G51 -> 522802.6 | H64: A
B65: บวก | C65: อัตราเพิ่ม 7.5% (A x 7.5%) | G65: =G64*0.075 -> 39210.195
B66: หัก | C66: ="ค่าจ้างรายเดือนลูกจ้างที่เกษียณอายุในปี "&A_Budget_year-1&" (จำนวน "&Cover!F73&" คน)" -> ค่าจ้างรายเดือนลูกจ้างที่เกษียณอายุในปี 2566 (จำนวน 0 คน) | G66: =-Cover!C78*1.075*1.075 -> 0
B67: ="ประมาณการค่าจ้างรายเดือนลูกจ้าง ปี "&A_Budget_year&" (ต่อเดือน)" -> ประมาณการค่าจ้างรายเดือนลูกจ้าง ปี 2567 (ต่อเดือน) | G67: =SUM(G64:G66) -> 562012.795 | H67: C
B69: ="ประมาณการค่าจ้างรายเดือนลูกจ้าง ปี "&A_Budget_year&" (ต่อปี) (C x 12)" -> ประมาณการค่าจ้างรายเดือนลูกจ้าง ปี 2567 (ต่อปี) (C x 12) | G69: =G67*12 -> 6744153.54
B70: หัก | C70: ="ค่าจ้างรายเดือนลูกจ้างที่เกษียณอายุในปี "&A_Budget_year&" เดือน ต.ค. - ธ.ค. "&A_Budget_year -> ค่าจ้างรายเดือนลูกจ้างที่เกษียณอายุในปี 2567 เดือน ต.ค. - ธ.ค. 2567 | G70: =-G61 -> 0 | H70: B
B71: ="ประมาณการค่าจ้างรายเดือนลูกจ้าง ปี "&A_Budget_year&" (สุทธิต่อปี)" -> ประมาณการค่าจ้างรายเดือนลูกจ้าง ปี 2567 (สุทธิต่อปี) | G71: =SUM(G69:G70) -> 6744153.54
A74: 52010030 | B74: =VLOOKUP(A74,'E001'!A:D,4,0) -> ค่าล่วงเวลาพนักงาน | I74: =ROUNDUP(G81,-1) -> 700000
B75: หลักเกณฑ์: | C75: จัดทำแผนงานไว้ตามความจำเป็น โดยกำหนดในแต่ละกิจกรรม ว่าควรมีพนักงาน
C76: ระดับใดบ้างที่ต้องอยู่ล่วงเวลา และ คำนวณวงเงิน/ คน/ เดือน/ ปี
C77: กฟอ.หนองไผ่ พิจารณาตามค่าใช้จ่ายจริงของแต่ละแผนก และประมาณการเพิ่มเติมในแผนกที่ใช้เยอะ | G77: 700000
C81: รวม | G81: 700000
A84: 52010040 | B84: =IF(A84="","<< กรอกรหัสบัญชี",IFERROR(VLOOKUP(A84,'E001'!A:D,4,0),"ไม่มีรหัสบัญชีนี้")) -> ค่าตอบแทนอยู่เวรแก้ไฟฟ้าขัดข้อง | G84: =IF(COUNTIF(A:A,A84)>1,"รหัสบัญชีซ้ำ โปรดตรวจสอบ","") ->  | I84: =ROUNDUP(G96,-1) -> 673320
B85: หลักเกณฑ์: | C85: ตามระเบียบ กฟภ. ว่าด้วยการจัดเวรและการจ่ายเงินค่าอยู่เวรแก้ไฟฟ้าขัดข้องพ.ศ. 2560 ประกาศ ณ วันที่ 29 ธ.ค. 2560 | J85: (Rate)
C86: วัน/ เวลา | D86: อัตราค่าตอบแทน | E86: จำนวนผู้ปฏิบัติงาน | F86: จำนวนวัน | G86: จำนวนเงิน
C87: พนักงานช่าง
C88: วันทำการ (16:30 - 8:30) | D88: =Rate!D80 -> 150 | E88: =Cover!C92 -> 4 | F88: =Cover!D92 -> 239 | G88: =Cover!E92*D88 -> 143400
C89: วันหยุดฯ (8:30 - 16:30) | D89: =Rate!D81 -> 175 | E89: =Cover!C93 -> 4 | F89: =Cover!D93 -> 126 | G89: =Cover!E93*D89 -> 88200
C90: วันหยุดฯ (16:30 - 8:30) | D90: =Rate!D82 -> 150 | E90: =Cover!C94 -> 4 | F90: =Cover!D94 -> 126 | G90: =Cover!E94*D90 -> 75600
C92: หัวหน้าชุดงาน
C93: วันทำการ (16:30 - 8:30) | D93: =Rate!E80 -> 180 | E93: =Cover!C97 -> 4 | F93: =Cover!D97 -> 239 | G93: =Cover!E97*D93 -> 172080
C94: วันหยุดฯ (8:30 - 16:30) | D94: =Rate!E81 -> 205 | E94: =Cover!C98 -> 4 | F94: =Cover!D98 -> 126 | G94: =Cover!E98*D94 -> 103320
C95: วันหยุดฯ (16:30 - 8:30) | D95: =Rate!E82 -> 180 | E95: =Cover!C99 -> 4 | F95: =Cover!D99 -> 126 | G95: =Cover!E99*D95 -> 90720
C96: รวม | G96: =SUM(G88:G95) -> 673320
B99: =IF(A99="","<< กรอกรหัสบัญชี",IFERROR(VLOOKUP(A99,'E001'!A:D,4,0),"ไม่มีรหัสบัญชีนี้")) -> << กรอกรหัสบัญชี | G99: =IF(COUNTIF(A:A,A99)>1,"รหัสบัญชีซ้ำ โปรดตรวจสอบ","") ->  | I99: =ROUNDUP(G104,-1) -> 0
B100: รายละเอียด
C104: รวม
A107: 52010070 | B107: =VLOOKUP(A107,'E001'!A:D,4,0) -> สวัสดิการและค่าตอบแทนอื่น- ลูกจ้าง | I107: =ROUNDUP(G111,-1) -> 675000
B108: หลักเกณฑ์: | C108: คนละ 27,000 บาท
C109: จำนวนลูกจ้าง (คน) | G109: =Cover!G73 -> 25
C110: อัตราสวัสดิการลูกจ้าง (บาท/คน) | G110: =Rate!E2 -> 27000 | J110: (Rate)
C111: รวม | G111: =+G109*G110 -> 675000
A114: 52010990 | B114: =VLOOKUP(A114,'E001'!A:D,4,0) -> ค่าตอบแทนอื่น-พนักงาน | I114: =ROUNDUP(G119,-1) -> 24000
B115: **หมายเหตุ ไม่ต้องตั้งงบประมาณสำหรับค่า smart device
B116: หลักเกณฑ์: | C116: ให้พิจารณาจากข้อมูลของปีก่อนหน้า และปัจจุบัน
C117: กฟอ.นผ. มีเงินช่วยเหลือค่าโทรศัพท์สำหรับอ่านหน่วย คนละ 400/เดือน 3 คน และ Key User 1 คน 800/เดือน | G117: 24000
C119: รวม | G119: 24000
A122: 52011020 | B122: =VLOOKUP(A122,'E001'!A:D,4,0) -> เงินสมทบกองทุนสำรองเลี้ยงชีพ | I122: =ROUNDUP(G126,-1) -> 5020360
B123: หลักเกณฑ์: | C123: คำนวณในภาพรวมของหน่วยงาน = 10.5 % ของเงินเดือนที่ขอตั้ง
C124: เงินเดือนที่ขอตั้ง | G124: =I7 -> 47812890
C125: อัตราเงินสมทบกองทุนสำรองเลี้ยงชีพตามหลักเกณฑ์ | G125: =Rate!E3 -> 0.105 | J125: (Rate)
C126: รวม | G126: =+G124*G125 -> 5020353.45
A129: 52012010 | B129: =VLOOKUP(A129,'E001'!A:D,4,0) -> เงินเพิ่มพิเศษวิชาชีพ | I129: =ROUNDUP(G140,-1) -> 114000
B130: หลักเกณฑ์: | C130: สำหรับพนักงานในสาขาวิชาชีพตามรายละเอียดด้านล่าง ระดับ 4 - 11
C131: อัตรา 1,900 บาท/ เดือน/ คน
C133: สาขาวิชาชีพ | E133: จำนวน (คน) | F133: อัตรา (บาท) | G133: ค่าใช้จ่าย
B134: 1 | C134: วิศวกรรมศาสตร์ | E134: =Cover!C63 -> 5 | F134: =Rate!E4 -> 1900 | G134: =+E134*$F$134 -> 9500 | J134: (Rate)
B135: 2 | C135: สถาปัตยกรรมศาสตร์ | E135: =Cover!C64 -> 0 | G135: =+E135*$F$134 -> 0
B136: 3 | C136: คอมพิวเตอร์ | E136: =Cover!C65 -> 0 | G136: =+E136*$F$134 -> 0
C137: รวม/ เดือน | E137: =SUM(E134:E136) -> 5 | G137: =SUM(G134:G136) -> 9500
C139: จำนวนเดือน (เดือน) | G139: 12
B140: รวม | C140: เงินเพิ่มพิเศษวิชาชีพ | G140: =+G137*G139 -> 114000
A143: 52012020 | B143: =IF(A143="","<< กรอกรหัสบัญชี",IFERROR(VLOOKUP(A143,'E001'!A:D,4,0),"ไม่มีรหัสบัญชีนี้")) -> เงินเพิ่มฮอทไลน์ | G143: =IF(COUNTIF(A:A,A143)>1,"รหัสบัญชีซ้ำ โปรดตรวจสอบ","") ->  | I143: =ROUNDUP(G156,-1) -> 636750
B144: หลักเกณฑ์: | C144: คำนวณเป็นรายวัน วันละ 150 บาทในการปฎิบัติงานทุกพื้นที่
C145: (ระเบียบ กฟภ. ว่าด้วยการจ่ายเงินเพิ่มพิเศษให้แก่พนักงานผู้ปฏิบัติงานฮอทไลน์ พ.ศ.2556 ประกาศ ณ วันที่ 9 ส.ค. 2556)
C147: รายละเอียด | D147: จำนวนพนักงาน | E147: วันทำงาน | F147: อัตราเงินเพิ่ม | G147: จำนวนเงิน | J147: (Rate)
C148: พนักงานฮอทไลน์ | D148: =Cover!C104 -> 7 | E148: =Cover!D104 -> 315 | F148: =Rate!D86 -> 150 | G148: =Cover!E104*F148 -> 330750
C149: พนักงานเชื่อมสาย | D149: =Cover!C105 -> 12 | E149: =Cover!D105 -> 170 | F149: =Rate!D87 -> 150 | G149: =Cover!E105*F149 -> 306000
C150: รวม | G150: =SUM(G148:G149) -> 636750
C152: อื่น ๆ (ถ้ามี) | G152: จำนวนเงิน
B153: 1
B154: 2
B155: 3
G156: =SUM(G150,G153:INDIRECT("g"&ROW()-1)) -> 636750
C157: คำอธิบาย
A163: 52012030 | B163: =IF(A163="","<< กรอกรหัสบัญชี",IFERROR(VLOOKUP(A163,'E001'!A:D,4,0),"ไม่มีรหัสบัญชีนี้")) -> เงินเพิ่มสู้รบ (พสร.) | G163: =IF(COUNTIF(A:A,A163)>1,"รหัสบัญชีซ้ำ โปรดตรวจสอบ","") ->  | I163: =ROUNDUP(G168,-1) -> 0
B164: รายละเอียด
C168: รวม
A171: 52012040 | B171: =IF(A171="","<< กรอกรหัสบัญชี",IFERROR(VLOOKUP(A171,'E001'!A:D,4,0),"ไม่มีรหัสบัญชีนี้")) -> เงินยังชีพ (14 จังหวัดภาคใต้) | G171: =IF(COUNTIF(A:A,A171)>1,"รหัสบัญชีซ้ำ โปรดตรวจสอบ","") ->  | I171: =ROUNDUP(G177,-1) -> 0
B172: หลักเกณฑ์: | C172: สำหรับพนักงานที่ปฎิบัติงานอยู่ในเขต14 จังหวัดภาคใต้ ตามอัตราที่กำหนด
C174: อัตราเงินเดือน (บาท) | D174: จำนวนพนักงาน | E174: อัตราเงินยังชีพ (บาท/ เดือน) | F174: จำนวนเดือน | G174: จำนวนเงิน (บาท) | J174: (Rate)
C175: น้อยกว่า 10,440 บาท | D175: =Cover!C110 -> 0 | E175: =Rate!D92 -> 50 | F175: 12 | G175: =D175*E175*F175 -> 0
C176: มากกว่า 10,440 บาท | D176: =Cover!C111 -> 0 | E176: =Rate!D93 -> 100 | F176: 12 | G176: =D176*E176*F176 -> 0
F177: รวม | G177: =SUM(G175:G176) -> 0
A180: 52012050 | B180: =IF(A180="","<< กรอกรหัสบัญชี",IFERROR(VLOOKUP(A180,'E001'!A:D,4,0),"ไม่มีรหัสบัญชีนี้")) -> เงินเพิ่มพิเศษสำหรับผู้ทำงานอยู่กะ | G180: =IF(COUNTIF(A:A,A180)>1,"รหัสบัญชีซ้ำ โปรดตรวจสอบ","") ->  | I180: =ROUNDUP(G185,-1) -> 0
B181: รายละเอียด
C185: รวม
A188: 52012060 | B188: =VLOOKUP(A188,'E001'!A:D,4,0) -> ค่าโทรศัพท์บ้านพัก- ผู้บริหาร | I188: =ROUNDUP(G203,-1) -> 19200
B189: หลักเกณฑ์: | C189: 1) ค่าโทรศัพท์ที่บ้านตามสิทธิ์แบบเหมาจ่ายของผู้บริหารตั้งแต่ระดับรองผู้อำนวยการกองขึ้นไป
C190: 2) ค่าโทรศัพท์ตามสิทธิ์แบบเหมาจ่ายของผู้ช่วยผู้จัดการขึ้นไป
C192: ระดับ/ ตำแหน่ง | G192: รวม (คน)
C193: ผู้บริหารตั้งแต่ระดับ รก. ขึ้นไป (สำนักงานใหญ่) | G193: =SUM(Cover!C13:C18) -> 0
C194: ตำแหน่ง ชจก. และ ผจก. กฟย. ขึ้นไป (ส่วนภูมิภาค) * | G194: =SUM(Cover!C22:C30) -> 7
C195: นักวิชาการระดับ 10 ขึ้นไป | G195: =SUM(Cover!C33:C36) -> 0
B196: หัก | C196: พนักงานที่เลือกเบิกค่าโทรศัพท์บ้านพัก
C197: ในบัญชีค่าโทรศัพท์เคลื่อนที่ (ส่วนภูมิภาค) * | G197: =-SUM(Cover!E45:E46) -> -3
C198: ="พนักงานตำแหน่ง ชก. ที่จะปรับตำแหน่งเป็น รก. ในปี "&A_Budget_year -> พนักงานตำแหน่ง ชก. ที่จะปรับตำแหน่งเป็น รก. ในปี 2567 | G198: 0
C199: รวมผู้มีสิทธิเบิกค่าโทรศัพท์บ้านพัก | G199: =SUM(G193:G198) -> 4
C201: อัตราค่าโทรศัพท์บ้านพัก (บาท/ เดือน) | G201: =Rate!E5 -> 400 | J201: (Rate)
C202: จำนวนเดือน (เดือน) | G202: 12
B203: รวม | C203: ค่าโทรศัพท์บ้านพัก- ผู้บริหาร | G203: =+G199*G201*G202 -> 19200
B204: หมายเหตุ
B205: พนักงานตำแหน่ง ชจก. และ ผจก. กฟย. ให้เลือกค่าโทรศัพท์บ้านพัก หรือ ค่าโทรศัพท์เคลื่อนที่
B206: เพียงบัญชีใดบัญชีหนึ่งเท่านั้น
A209: 52012070 | B209: =VLOOKUP(A209,'E001'!A:D,4,0) -> ค่าโทรศัพท์เคลื่อนที่ -ผู้บริหาร | I209: =ROUNDUP(G221,-1) -> 62400
B210: หลักเกณฑ์: | C210: ค่าโทรศัพท์เคลื่อนที่ตามสิทธิ์แบบเหมาจ่ายของผู้บริหาร
C212: ระดับ/ ตำแหน่ง | E212: จำนวน (คน) | F212: อัตรา (บาท) | G212: ค่าใช้จ่าย (บาท)
B213: 1 | C213: ตำแหน่ง รผก. ผชก. และระดับ 13 | E213: =SUM(Cover!C13:C14,Cover!C22,Cover!C33) -> 0 | F213: =Rate!E15 -> 2000 | G213: =+E213*F213 -> 0 | J213: (Rate)
B214: 2 | C214: ตำแหน่ง อก. ถึง อฝ. และระดับ 12 | E214: =SUM(Cover!C15:C17,Cover!C23:C25,Cover!C34) -> 0 | F214: =Rate!E16 -> 1000 | G214: =+E214*F214 -> 0 | J214: (Rate)
B215: 3 | C215: ตำแหน่ง ผจก.กฟฟ. ชั้น 1,2,3 และ ผจก. กฟส. | E215: =SUM(Cover!C27,Cover!C29) -> 4 | F215: =Rate!E17 -> 1000 | G215: =+E215*F215 -> 4000 | J215: (Rate)
B216: 4 | C216: พนักงานที่เลือกเบิกค่าโทรศัพท์บ้านพัก
C217: ในบัญชีค่าโทรศัพท์เคลื่อนที่ (ส่วนภูมิภาค) * | E217: =SUM(Cover!E45:E46) -> 3 | F217: 400 | G217: =+E217*F217 -> 1200
E218: =SUM(E213:E217) -> 7 | G218: =SUM(G213:G217) -> 5200
C220: จำนวนเดือน (เดือน) | G220: 12
B221: รวม | C221: ค่าโทรศัพท์บ้านพัก- ผู้บริหาร | G221: =+G220*G218 -> 62400
B222: หมายเหตุ
B223: พนักงานตำแหน่ง ชจก. และ ผจก. กฟย. ให้เลือกค่าโทรศัพท์บ้านพัก หรือ ค่าโทรศัพท์เคลื่อนที่
B224: เพียงบัญชีใดบัญชีหนึ่งเท่านั้น
A227: 52012990 | B227: =IF(A227="","<< กรอกรหัสบัญชี",IFERROR(VLOOKUP(A227,'E001'!A:D,4,0),"ไม่มีรหัสบัญชีนี้")) -> เงินเพิ่มพิเศษอื่น | G227: =IF(COUNTIF(A:A,A227)>1,"รหัสบัญชีซ้ำ โปรดตรวจสอบ","") ->  | I227: =ROUNDUP(G232,-1) -> 0
B228: รายละเอียด
C232: รวม
A235: 52020010 | B235: =VLOOKUP(A235,'E001'!A:D,4,0) -> เงินช่วยเหลือค่าไฟฟ้า | I235: =ROUNDUP(G244,-1) -> 9477330
B236: หลักเกณฑ์: | C236: ="อัตราเฉลี่ยของค่ากระแสไฟฟ้า (ข้อมูล ณ ก.ค. "&A_Budget_year&" ) x เงินเดือนที่ขอตั้ง" -> อัตราเฉลี่ยของค่ากระแสไฟฟ้า (ข้อมูล ณ ก.ค. 2567 ) x เงินเดือนที่ขอตั้ง
B240: (A) | C240: เงินช่วยเหลือค่ากระแสไฟฟ้ารวมของหน่วยงาน | G240: =Cover!H86 -> 755579.84
B241: (B) | C241: เงินเดือนพนักงานรวมของหน่วยงาน | G241: =Cover!C49 -> 3811883
C242: อัตราเฉลี่ยของค่ากระแสไฟฟ้า | G242: =IFERROR(G240/G241,0) -> 0.1982169547
C243: เงินเดือนที่ขอตั้ง | G243: =I7 -> 47812890
C244: เงินช่วยเหลือค่าไฟฟ้า | G244: =IFERROR(G242*G243,0) -> 9477325.452
A247: 52020020 | B247: =IF(A247="","<< กรอกรหัสบัญชี",IFERROR(VLOOKUP(A247,'E001'!A:D,4,0),"ไม่มีรหัสบัญชีนี้")) -> เงินช่วยเหลือค่าเครื่องแบบพนักงาน | G247: =IF(COUNTIF(A:A,A247)>1,"รหัสบัญชีซ้ำ โปรดตรวจสอบ","") ->  | I247: =ROUNDUP(G257,-1) -> 12000
B248: หลักเกณฑ์: | C248: 1) สำหรับพนักงานช่าง พนักงาน และลูกจ้างช่างที่เข้าเงื่อนไขมีสิทธิได้รับเงินช่วยเหลือค่าเครื่องแบบและค่ารองเท้า
C249: 2) ได้รับเงินเดือนหรือค่าจ้างต่ำกว่าเดือนละ 15,000 บาท
C250: 3) อัตราคนละ 1,500 บาท/ ปี (ค่าเครื่องแบบ 1,200 บาท ค่ารองเท้า 300 บาท)
C251: (ระเบียบกฟภ. ว่าด้วยหลักเกณฑ์ในการจ่ายเงินช่วยเหลือค่าเครื่องแบบและรองเท้า ให้แก่พนักงานและลูกจ้างช่าง พ.ศ. 2560)
C253: กลุ่ม | E253: จำนวน (คน) | F253: อัตรา | G253: จำนวนเงิน (บาท) | J253: (Rate)
C254: พนักงานช่าง | E254: =Cover!C116 -> 6 | F254: =Rate!C98 -> 1500 | G254: =E254*F254 -> 9000
C255: พนักงาน | E255: =Cover!C117 -> 0 | F255: =Rate!C99 -> 1500 | G255: =E255*F255 -> 0
C256: ลูกจ้างช่าง | E256: =Cover!C118 -> 2 | F256: =Rate!C100 -> 1500 | G256: =E256*F256 -> 3000
C257: รวม | G257: =SUM(G254:G256) -> 12000
A260: 52020030 | B260: =VLOOKUP(A260,'E001'!A:D,4,0) -> เงินช่วยเหลือค่าเล่าเรียนบุตร | I260: =SUBTOTAL(109,I261:I288) -> 603100
B261: หลักเกณฑ์: | C261: ตั้งตามหลักของกรมบัญชีกลาง
B263: ลำดับ | C263: ระดับ | D263: สถานศึกษา | E263: คณะ (ปวช.-เอกชน และ ปวส. เท่านั้น) | F263: จำนวน (คน) | G263: เงินช่วยเหลือ (บาท/ คน) | J263: (Rate)
B264: 1 | C264: AA) อนุบาลหรือเทียบเท่า | D264: A.1) รัฐบาล | G264: =IF(LEFT(C264,1)="A",INDEX(Rate!$B$22:$E$26,MATCH(MID(C264,5,LEN(C264)-4),Rate!$B$22:$B$26,0),MATCH(LEFT(D264,3),Rate!$B$22:$E$22,0)),IF(LEFT(C264,1)="B",IF(LEFT(D264,3)="B.1",4800,INDEX(Rate!$B$33:$E$41,MATCH(E264,Rate!$B$33:$B$41,0),MATCH(LEFT(D264,3),Rate!$B$33:$E$33,0))),IF(LEFT(C264,1)="C",VLOOKUP(E264,Rate!$B$44:$D$52,3,0),IF(LEFT(C264,1)="D",13700,IF(LEFT(C264,1)="E",25000,0))))) -> 5800 | I264: =IFERROR(F264*G264,0) -> 0 | L264: =IF(LEFT(C264,1)="A",INDEX(Rate!$B$22:$E$26,MATCH(MID(C264,5,LEN(C264)-4),Rate!$B$22:$B$26,0),MATCH(LEFT(D264,3),Rate!$B$22:$E$22,0)),IF(LEFT(C264,1)="B",IF(LEFT(D264,3)="B.1",4800,INDEX(Rate!$B$33:$E$41,MATCH(E264,Rate!$B$33:$B$41,0),MATCH(LEFT(D264,3),Rate!$B$33:$E$33,0))),IF(LEFT(C264,1)="C",VLOOKUP(E264,Rate!$B$44:$D$52,3,0),IF(LEFT(C264,1)="D",13700,IF(LEFT(C264,1)="E",25000,0))))) -> 5800 | M264: 1 | N264: =INDEX(Rate!$B$22:$E$26,MATCH(MID(C264,5,LEN(C264)-4),Rate!$B$22:$B$26,0),MATCH(LEFT(D264,3),Rate!$B$22:$E$22,0)) -> 5800 | O264: =MID(C264,5,LEN(C264)-4) -> อนุบาลหรือเทียบเท่า | P264: =MATCH(O264,Rate!$B$22:$B$26,0) -> 2 | Q264: =MATCH(LEFT(D264,3),Rate!B22:E22,0) -> 2
B265: =B264+1 -> 2 | C265: AA) อนุบาลหรือเทียบเท่า | D265: A.2) เอกชนไม่รับงินอุดหนุน | G265: =IF(LEFT(C265,1)="A",INDEX(Rate!$B$22:$E$26,MATCH(MID(C265,5,LEN(C265)-4),Rate!$B$22:$B$26,0),MATCH(LEFT(D265,3),Rate!$B$22:$E$22,0)),IF(LEFT(C265,1)="B",IF(LEFT(D265,3)="B.1",4800,INDEX(Rate!$B$33:$E$41,MATCH(E265,Rate!$B$33:$B$41,0),MATCH(LEFT(D265,3),Rate!$B$33:$E$33,0))),IF(LEFT(C265,1)="C",VLOOKUP(E265,Rate!$B$44:$D$52,3,0),IF(LEFT(C265,1)="D",13700,IF(LEFT(C265,1)="E",25000,0))))) -> 13600 | I265: =IFERROR(F265*G265,0) -> 0 | L265: =IF(LEFT(C264,1)="B",IF(LEFT(D264,3)="B.1",4800,INDEX(Rate!$B$33:$E$41,MATCH(E264,Rate!$B$33:$B$41,0),MATCH(LEFT(D264,3),Rate!$B$33:$E$33,0))),IF(LEFT(C264,1)="C",VLOOKUP(E264,Rate!$B$44:$D$52,3,0),IF(LEFT(C264,1)="D",13700,IF(LEFT(C264,1)="E",25000,0)))) -> 0 | M265: 2 | N265: =IF(LEFT(D265,3)="B.1",4800,INDEX(Rate!$B$33:$E$41,MATCH(E265,Rate!$B$33:$B$41,0),MATCH(LEFT(D265,3),Rate!$B$33:$E$33,0))) ->  | O265: =E265 -> 0 | P265: =MATCH(O265,Rate!B33:B41,0) ->  | Q265: =MATCH(LEFT(D265,3),Rate!B33:E33,0) -> 
B266: 3 | C266: AA) อนุบาลหรือเทียบเท่า | D266: A.3) เอกชนรับเงินอุดหนุน | F266: 3 | G266: =IF(LEFT(C266,1)="A",INDEX(Rate!$B$22:$E$26,MATCH(MID(C266,5,LEN(C266)-4),Rate!$B$22:$B$26,0),MATCH(LEFT(D266,3),Rate!$B$22:$E$22,0)),IF(LEFT(C266,1)="B",IF(LEFT(D266,3)="B.1",4800,INDEX(Rate!$B$33:$E$41,MATCH(E266,Rate!$B$33:$B$41,0),MATCH(LEFT(D266,3),Rate!$B$33:$E$33,0))),IF(LEFT(C266,1)="C",VLOOKUP(E266,Rate!$B$44:$D$52,3,0),IF(LEFT(C266,1)="D",13700,IF(LEFT(C266,1)="E",25000,0))))) -> 4800 | I266: 14400 | L266: =IF(LEFT(C264,1)="C",VLOOKUP(E264,Rate!$B$44:$D$52,3,0),IF(LEFT(C264,1)="D",13700,IF(LEFT(C264,1)="E",25000,0))) -> 0 | M266: 3 | N266: =VLOOKUP(E266,Rate!$B$44:$D$52,3,0) -> 
B267: 4 | C267: AA) ประถมศึกษาหรือเทียบเท่า | D267: A.1) รัฐบาล | F267: 1 | G267: =IF(LEFT(C267,1)="A",INDEX(Rate!$B$22:$E$26,MATCH(MID(C267,5,LEN(C267)-4),Rate!$B$22:$B$26,0),MATCH(LEFT(D267,3),Rate!$B$22:$E$22,0)),IF(LEFT(C267,1)="B",IF(LEFT(D267,3)="B.1",4800,INDEX(Rate!$B$33:$E$41,MATCH(E267,Rate!$B$33:$B$41,0),MATCH(LEFT(D267,3),Rate!$B$33:$E$33,0))),IF(LEFT(C267,1)="C",VLOOKUP(E267,Rate!$B$44:$D$52,3,0),IF(LEFT(C267,1)="D",13700,IF(LEFT(C267,1)="E",25000,0))))) -> 4000 | I267: 4000 | L267: =IF(LEFT(C264,1)="D",13700,IF(LEFT(C264,1)="E",25000,0)) -> 0 | M267: 4 | N267: 13700
B268: 5 | C268: AA) ประถมศึกษาหรือเทียบเท่า | D268: A.2) เอกชนไม่รับงินอุดหนุน | F268: 11 | G268: =IF(LEFT(C268,1)="A",INDEX(Rate!$B$22:$E$26,MATCH(MID(C268,5,LEN(C268)-4),Rate!$B$22:$B$26,0),MATCH(LEFT(D268,3),Rate!$B$22:$E$22,0)),IF(LEFT(C268,1)="B",IF(LEFT(D268,3)="B.1",4800,INDEX(Rate!$B$33:$E$41,MATCH(E268,Rate!$B$33:$B$41,0),MATCH(LEFT(D268,3),Rate!$B$33:$E$33,0))),IF(LEFT(C268,1)="C",VLOOKUP(E268,Rate!$B$44:$D$52,3,0),IF(LEFT(C268,1)="D",13700,IF(LEFT(C268,1)="E",25000,0))))) -> 13200 | I268: 145200 | M268: 5 | N268: 25000
B269: 6 | C269: AA) ประถมศึกษาหรือเทียบเท่า | D269: A.3) เอกชนรับเงินอุดหนุน | F269: 8 | G269: =IF(LEFT(C269,1)="A",INDEX(Rate!$B$22:$E$26,MATCH(MID(C269,5,LEN(C269)-4),Rate!$B$22:$B$26,0),MATCH(LEFT(D269,3),Rate!$B$22:$E$22,0)),IF(LEFT(C269,1)="B",IF(LEFT(D269,3)="B.1",4800,INDEX(Rate!$B$33:$E$41,MATCH(E269,Rate!$B$33:$B$41,0),MATCH(LEFT(D269,3),Rate!$B$33:$E$33,0))),IF(LEFT(C269,1)="C",VLOOKUP(E269,Rate!$B$44:$D$52,3,0),IF(LEFT(C269,1)="D",13700,IF(LEFT(C269,1)="E",25000,0))))) -> 4200 | I269: =IFERROR(F269*G269,0) -> 33600
B270: 7 | C270: AA) มัธยมศึกษาตอนต้นหรือเทียบเท่า | D270: A.1) รัฐบาล | F270: 1 | G270: =IF(LEFT(C270,1)="A",INDEX(Rate!$B$22:$E$26,MATCH(MID(C270,5,LEN(C270)-4),Rate!$B$22:$B$26,0),MATCH(LEFT(D270,3),Rate!$B$22:$E$22,0)),IF(LEFT(C270,1)="B",IF(LEFT(D270,3)="B.1",4800,INDEX(Rate!$B$33:$E$41,MATCH(E270,Rate!$B$33:$B$41,0),MATCH(LEFT(D270,3),Rate!$B$33:$E$33,0))),IF(LEFT(C270,1)="C",VLOOKUP(E270,Rate!$B$44:$D$52,3,0),IF(LEFT(C270,1)="D",13700,IF(LEFT(C270,1)="E",25000,0))))) -> 4800 | I270: 4800
B271: 8 | C271: AA) มัธยมศึกษาตอนต้นหรือเทียบเท่า | D271: A.2) เอกชนไม่รับงินอุดหนุน | F271: 5 | G271: =IF(LEFT(C271,1)="A",INDEX(Rate!$B$22:$E$26,MATCH(MID(C271,5,LEN(C271)-4),Rate!$B$22:$B$26,0),MATCH(LEFT(D271,3),Rate!$B$22:$E$22,0)),IF(LEFT(C271,1)="B",IF(LEFT(D271,3)="B.1",4800,INDEX(Rate!$B$33:$E$41,MATCH(E271,Rate!$B$33:$B$41,0),MATCH(LEFT(D271,3),Rate!$B$33:$E$33,0))),IF(LEFT(C271,1)="C",VLOOKUP(E271,Rate!$B$44:$D$52,3,0),IF(LEFT(C271,1)="D",13700,IF(LEFT(C271,1)="E",25000,0))))) -> 15800 | I271: 79000
B272: 9 | C272: AA) มัธยมศึกษาตอนต้นหรือเทียบเท่า | D272: A.3) เอกชนรับเงินอุดหนุน | F272: 1 | G272: =IF(LEFT(C272,1)="A",INDEX(Rate!$B$22:$E$26,MATCH(MID(C272,5,LEN(C272)-4),Rate!$B$22:$B$26,0),MATCH(LEFT(D272,3),Rate!$B$22:$E$22,0)),IF(LEFT(C272,1)="B",IF(LEFT(D272,3)="B.1",4800,INDEX(Rate!$B$33:$E$41,MATCH(E272,Rate!$B$33:$B$41,0),MATCH(LEFT(D272,3),Rate!$B$33:$E$33,0))),IF(LEFT(C272,1)="C",VLOOKUP(E272,Rate!$B$44:$D$52,3,0),IF(LEFT(C272,1)="D",13700,IF(LEFT(C272,1)="E",25000,0))))) -> 3300 | I272: 3300
B273: 10 | C273: AA) มัธยมศึกษาตอนปลายหรือเทียบเท่า | D273: A.1) รัฐบาล | G273: =IF(LEFT(C273,1)="A",INDEX(Rate!$B$22:$E$26,MATCH(MID(C273,5,LEN(C273)-4),Rate!$B$22:$B$26,0),MATCH(LEFT(D273,3),Rate!$B$22:$E$22,0)),IF(LEFT(C273,1)="B",IF(LEFT(D273,3)="B.1",4800,INDEX(Rate!$B$33:$E$41,MATCH(E273,Rate!$B$33:$B$41,0),MATCH(LEFT(D273,3),Rate!$B$33:$E$33,0))),IF(LEFT(C273,1)="C",VLOOKUP(E273,Rate!$B$44:$D$52,3,0),IF(LEFT(C273,1)="D",13700,IF(LEFT(C273,1)="E",25000,0))))) -> 4800 | I273: 0
B274: 11 | C274: AA) มัธยมศึกษาตอนปลายหรือเทียบเท่า | D274: A.2) เอกชนไม่รับงินอุดหนุน | G274: =IF(LEFT(C274,1)="A",INDEX(Rate!$B$22:$E$26,MATCH(MID(C274,5,LEN(C274)-4),Rate!$B$22:$B$26,0),MATCH(LEFT(D274,3),Rate!$B$22:$E$22,0)),IF(LEFT(C274,1)="B",IF(LEFT(D274,3)="B.1",4800,INDEX(Rate!$B$33:$E$41,MATCH(E274,Rate!$B$33:$B$41,0),MATCH(LEFT(D274,3),Rate!$B$33:$E$33,0))),IF(LEFT(C274,1)="C",VLOOKUP(E274,Rate!$B$44:$D$52,3,0),IF(LEFT(C274,1)="D",13700,IF(LEFT(C274,1)="E",25000,0))))) -> 16200 | I274: 0
B275: 12 | C275: AA) มัธยมศึกษาตอนปลายหรือเทียบเท่า | D275: A.3) เอกชนรับเงินอุดหนุน | G275: =IF(LEFT(C275,1)="A",INDEX(Rate!$B$22:$E$26,MATCH(MID(C275,5,LEN(C275)-4),Rate!$B$22:$B$26,0),MATCH(LEFT(D275,3),Rate!$B$22:$E$22,0)),IF(LEFT(C275,1)="B",IF(LEFT(D275,3)="B.1",4800,INDEX(Rate!$B$33:$E$41,MATCH(E275,Rate!$B$33:$B$41,0),MATCH(LEFT(D275,3),Rate!$B$33:$E$33,0))),IF(LEFT(C275,1)="C",VLOOKUP(E275,Rate!$B$44:$D$52,3,0),IF(LEFT(C275,1)="D",13700,IF(LEFT(C275,1)="E",25000,0))))) -> 3200 | I275: 0
B276: 13 | C276: BB) ปวช. | D276: B.1) รัฐบาล | G276: =IF(LEFT(C276,1)="A",INDEX(Rate!$B$22:$E$26,MATCH(MID(C276,5,LEN(C276)-4),Rate!$B$22:$B$26,0),MATCH(LEFT(D276,3),Rate!$B$22:$E$22,0)),IF(LEFT(C276,1)="B",IF(LEFT(D276,3)="B.1",4800,INDEX(Rate!$B$33:$E$41,MATCH(E276,Rate!$B$33:$B$41,0),MATCH(LEFT(D276,3),Rate!$B$33:$E$33,0))),IF(LEFT(C276,1)="C",VLOOKUP(E276,Rate!$B$44:$D$52,3,0),IF(LEFT(C276,1)="D",13700,IF(LEFT(C276,1)="E",25000,0))))) -> 4800 | I276: 0
B277: 14 | C277: BB) ปวช. | D277: B.2) เอกชนไม่รับงินอุดหนุน | G277: =IF(LEFT(C277,1)="A",INDEX(Rate!$B$22:$E$26,MATCH(MID(C277,5,LEN(C277)-4),Rate!$B$22:$B$26,0),MATCH(LEFT(D277,3),Rate!$B$22:$E$22,0)),IF(LEFT(C277,1)="B",IF(LEFT(D277,3)="B.1",4800,INDEX(Rate!$B$33:$E$41,MATCH(E277,Rate!$B$33:$B$41,0),MATCH(LEFT(D277,3),Rate!$B$33:$E$33,0))),IF(LEFT(C277,1)="C",VLOOKUP(E277,Rate!$B$44:$D$52,3,0),IF(LEFT(C277,1)="D",13700,IF(LEFT(C277,1)="E",25000,0))))) ->  | I277: 0
B278: 15 | C278: BB) ปวช. | D278: B.3) เอกชนรับเงินอุดหนุน | E278: B) พาณิชยกรรม หรือบริหารธุรกิจ | F278: 1 | G278: =IF(LEFT(C278,1)="A",INDEX(Rate!$B$22:$E$26,MATCH(MID(C278,5,LEN(C278)-4),Rate!$B$22:$B$26,0),MATCH(LEFT(D278,3),Rate!$B$22:$E$22,0)),IF(LEFT(C278,1)="B",IF(LEFT(D278,3)="B.1",4800,INDEX(Rate!$B$33:$E$41,MATCH(E278,Rate!$B$33:$B$41,0),MATCH(LEFT(D278,3),Rate!$B$33:$E$33,0))),IF(LEFT(C278,1)="C",VLOOKUP(E278,Rate!$B$44:$D$52,3,0),IF(LEFT(C278,1)="D",13700,IF(LEFT(C278,1)="E",25000,0))))) -> 5100 | I278: 5100
B279: 16 | C279: CC) ปวส. (หรือเทียบเท่า)/ ปวท. | D279: C.1) เอกชน | G279: =IF(LEFT(C279,1)="A",INDEX(Rate!$B$22:$E$26,MATCH(MID(C279,5,LEN(C279)-4),Rate!$B$22:$B$26,0),MATCH(LEFT(D279,3),Rate!$B$22:$E$22,0)),IF(LEFT(C279,1)="B",IF(LEFT(D279,3)="B.1",4800,INDEX(Rate!$B$33:$E$41,MATCH(E279,Rate!$B$33:$B$41,0),MATCH(LEFT(D279,3),Rate!$B$33:$E$33,0))),IF(LEFT(C279,1)="C",VLOOKUP(E279,Rate!$B$44:$D$52,3,0),IF(LEFT(C279,1)="D",13700,IF(LEFT(C279,1)="E",25000,0))))) ->  | I279: 0
B280: 17 | C280: DD) อนุปริญญาหรือเทียบเท่า | D280: D.1) รัฐบาล | F280: 1 | G280: =IF(LEFT(C280,1)="A",INDEX(Rate!$B$22:$E$26,MATCH(MID(C280,5,LEN(C280)-4),Rate!$B$22:$B$26,0),MATCH(LEFT(D280,3),Rate!$B$22:$E$22,0)),IF(LEFT(C280,1)="B",IF(LEFT(D280,3)="B.1",4800,INDEX(Rate!$B$33:$E$41,MATCH(E280,Rate!$B$33:$B$41,0),MATCH(LEFT(D280,3),Rate!$B$33:$E$33,0))),IF(LEFT(C280,1)="C",VLOOKUP(E280,Rate!$B$44:$D$52,3,0),IF(LEFT(C280,1)="D",13700,IF(LEFT(C280,1)="E",25000,0))))) -> 13700 | I280: 13700
B281: 18 | C281: EE) ปริญญาตรี | D281: E.1) รัฐบาล | F281: 1 | G281: =IF(LEFT(C281,1)="A",INDEX(Rate!$B$22:$E$26,MATCH(MID(C281,5,LEN(C281)-4),Rate!$B$22:$B$26,0),MATCH(LEFT(D281,3),Rate!$B$22:$E$22,0)),IF(LEFT(C281,1)="B",IF(LEFT(D281,3)="B.1",4800,INDEX(Rate!$B$33:$E$41,MATCH(E281,Rate!$B$33:$B$41,0),MATCH(LEFT(D281,3),Rate!$B$33:$E$33,0))),IF(LEFT(C281,1)="C",VLOOKUP(E281,Rate!$B$44:$D$52,3,0),IF(LEFT(C281,1)="D",13700,IF(LEFT(C281,1)="E",25000,0))))) -> 25000 | I281: 25000
... 130 more rows

Sheet E120
A1: คำชี้แจงประกอบ | J1: งป. (ท)_1
A2: ="งบประมาณทำการประจำปี "&A_Budget_year -> งบประมาณทำการประจำปี 2567
A3: งานประจำของหน่วยงาน - ค่าใช้จ่ายในการดำเนินงาน
I4: =Head_division -> เขต: | J4: =Head_division2 -> กฟน.3 - 07
I5: หน่วย: | J5: บาท
A6: รหัสบัญชี | B6: รายการ /รายละเอียด / คำชี้แจงประกอบ | I6: รวม | J6: รวมสุทธิ
B8: กลุ่มบัญชี ค่าป้องกันระบบจำหน่ายและค่าตัดต้นไม้ งป.(ท)_1/1 (E121)
A9: 53050010 | B9: =VLOOKUP(A9,'E001'!A:L,4,0) -> ค่าป้องกันระบบไฟฟ้าและระบบควบคุม | H9: =IF(COUNTIF(A:A,A9)>1,"มีรหัสบัญชีซ้ำ โปรดตรวจสอบ","") ->  | J9: =ROUNDUP('E121'!F9,-1) -> 0
A10: 53050020 | B10: =VLOOKUP(A10,'E001'!A:L,4,0) -> ค่าจ้างเหมาตัดต้นไม้ | H10: =IF(COUNTIF(A:A,A10)>1,"มีรหัสบัญชีซ้ำ โปรดตรวจสอบ","") ->  | J10: =ROUNDUP('E121'!F25,-1) -> 0
B12: ="กลุ่มบัญชี ค่าวิจัยและที่ปรึกษา"&" ("&'E250'!N1&") "&" (E250)" -> กลุ่มบัญชี ค่าวิจัยและที่ปรึกษา (งป. (ท) _2/5) (E250)
A13: 53040010 | B13: =VLOOKUP(A13,'E001'!A:L,4,0) -> ค่าใช้จ่ายในการวิจัย | H13: =IF(COUNTIF(A:A,A13)>1,"มีรหัสบัญชีซ้ำ โปรดตรวจสอบ","") ->  | J13: =ROUNDUP('E250'!I14,-1) -> 0
A14: 53061020 | B14: =VLOOKUP(A14,'E001'!A:L,4,0) -> ค่าที่ปรึกษา-ด้านบัญชี การเงิน | J14: =ROUNDUP('E250'!J14,-1) -> 0
A15: 53061030 | B15: =VLOOKUP(A15,'E001'!A:L,4,0) -> ค่าที่ปรึกษา-ด้านกฏหมาย | J15: =ROUNDUP('E250'!K14,-1) -> 0
A16: 53061040 | B16: =VLOOKUP(A16,'E001'!A:L,4,0) -> ค่าที่ปรึกษา-ด้านวิศวกรรม | J16: =ROUNDUP('E250'!L14,-1) -> 0
A17: 53061050 | B17: =VLOOKUP(A17,'E001'!A:L,4,0) -> ค่าที่ปรึกษา-ด้านการพัฒนาระบบสารสนเทศ | J17: =ROUNDUP('E250'!M14,-1) -> 0
A18: 53061090 | B18: =VLOOKUP(A18,'E001'!A:L,4,0) -> ค่าที่ปรึกษา-ด้านอื่นๆ | J18: =ROUNDUP('E250'!N14,-1) -> 0
B20: ="กลุ่มบัญชี ค่ากิจกรรมเพื่อสังคม"&" ("&'E240'!M1&") "&" (E240)" -> กลุ่มบัญชี ค่ากิจกรรมเพื่อสังคม (งป. (ท) _2/4) (E240)
A21: 53065010 | B21: =VLOOKUP(A21,'E001'!A:L,4,0) -> เงินชดเชยเพื่อมนุษยธรรม | H21: =IF(COUNTIF(A:A,A21)>1,"มีรหัสบัญชีซ้ำ โปรดตรวจสอบ","") ->  | J21: =ROUNDUP('E240'!F13,-1) -> 0
A22: 53065020 | B22: =VLOOKUP(A22,'E001'!A:L,4,0) -> ค่าใช้จ่ายเกี่ยวกับไฟสาธารณะ | J22: =ROUNDUP('E240'!G13,-1) -> 0
A23: 53065030 | B23: =VLOOKUP(A23,'E001'!A:L,4,0) -> ค่าใช้จ่ายส่งเสริมการประหยัด/ปลอดภัยในการใช้ไฟฟ้า | J23: =ROUNDUP('E240'!H13,-1) -> 0
A24: 53065040 | B24: =VLOOKUP(A24,'E001'!A:L,4,0) -> ค่าใช้จ่ายอื่นเพื่อผู้ใช้ไฟ | J24: =ROUNDUP('E240'!I13,-1) -> 0
A25: 53065050 | B25: =VLOOKUP(A25,'E001'!A:L,4,0) -> ค่าใช้จ่ายเพื่อสังคมหรือสิ่งแวดล้อม | J25: =ROUNDUP('E240'!J13,-1) -> 0
A26: 53065080 | B26: =VLOOKUP(A26,'E001'!A:L,4,0) -> ค่าผลประโยชน์เงินประกันฯจ่ายคืนผู้ใช้ไฟ - ประเภท 3,4,5 | J26: =ROUNDUP('E240'!K13,-1) -> 0
A27: 53065090 | B27: =VLOOKUP(A27,'E001'!A:L,4,0) -> ค่าผลประโยชน์เงินประกันฯจ่ายคืนผู้ใช้ไฟ - ประเภท 1,2 | J27: =ROUNDUP('E240'!L13,-1) -> 0
A28: 53065990 | B28: =VLOOKUP(A28,'E001'!A:L,4,0) -> ค่าใช้จ่ายเพื่อสาธารณประโยชน์และการกุศล | J28: =ROUNDUP('E240'!M13,-1) -> 0
B30: ="กลุ่มบัญชี ค่าประชาสัมพันธ์"&" ("&'E230'!H1&") "&" (E230)" -> กลุ่มบัญชี ค่าประชาสัมพันธ์ (งป. (ท) _2/3) (E230)
A31: 53021010 | B31: =VLOOKUP(A31,'E001'!A:L,4,0) -> ค่าป้ายประชาสัมพันธ์ | H31: =IF(COUNTIF(A:A,A31)>1,"มีรหัสบัญชีซ้ำ โปรดตรวจสอบ","") ->  | J31: =ROUNDUP('E230'!F15,-1) -> 80000
A32: 53021020 | B32: =VLOOKUP(A32,'E001'!A:L,4,0) -> ค่าประชาสัมพันธ์อื่น | H32: =IF(COUNTIF(A:A,A32)>1,"มีรหัสบัญชีซ้ำ โปรดตรวจสอบ","") ->  | J32: =ROUNDUP('E230'!G15,-1) -> 75000
A33: 53021030 | B33: =VLOOKUP(A33,'E001'!A:L,4,0) -> ค่าประชาสัมพันธ์ทางสื่อ | H33: =IF(COUNTIF(A:A,A33)>1,"มีรหัสบัญชีซ้ำ โปรดตรวจสอบ","") ->  | J33: =ROUNDUP('E230'!H15,-1) -> 20000
A36: 53010010 | B36: =IF(A36="","<< กรอกรหัสบัญชี",IFERROR(VLOOKUP(A36,'E001'!A:L,4,0),"ไม่มีรหัสบัญชีนี้")) -> ค่าตอบแทน-การจดหน่วยการใช้ไฟฟ้า | H36: =IF(COUNTIF(A:A,A36)>1,"รหัสบัญชีซ้ำ โปรดตรวจสอบ","") ->  | J36: =G41 -> 0
B37: หลักเกณฑ์: | C37: ประมาณการจากจำนวนผู้ใช้ไฟ x อัตราค่าตอบแทน x 12 เดือน
C38: จำนวนผู้ใช้ไฟ | G38: =Cover!C133 -> 0 | H38: ราย
C39: อัตราค่าตอบแทน | G39: =Cover!D133 -> 0 | H39: บาท
C40: จำนวนเดือน | G40: 12 | H40: เดือน
C41: รวม | G41: =G38*G39*G40 -> 0
A44: 53010020 | B44: =IF(A44="","<< กรอกรหัสบัญชี",IFERROR(VLOOKUP(A44,'E001'!A:L,4,0),"ไม่มีรหัสบัญชีนี้")) -> ค่าตอบแทน-การจดหน่วยพร้อมแจ้งค่าไฟฟ้า | H44: =IF(COUNTIF(A:A,A44)>1,"รหัสบัญชีซ้ำ โปรดตรวจสอบ","") ->  | J44: =G49 -> 10290000
B45: หลักเกณฑ์: | C45: ประมาณการจากจำนวนผู้ใช้ไฟ x อัตราค่าตอบแทน x 12 เดือน
C46: จำนวนผู้ใช้ไฟ | G46: =Cover!C134 -> 122500 | H46: ราย
C47: อัตราค่าตอบแทน | G47: =Cover!D134 -> 7 | H47: บาท
C48: จำนวนเดือน | G48: 12 | H48: เดือน
C49: รวม | G49: =G46*G47*G48 -> 10290000
A52: 53010030 | B52: =IF(A52="","<< กรอกรหัสบัญชี",IFERROR(VLOOKUP(A52,'E001'!A:L,4,0),"ไม่มีรหัสบัญชีนี้")) -> ค่าตอบแทน-การเก็บเงินค่าไฟฟ้า | H52: =IF(COUNTIF(A:A,A52)>1,"รหัสบัญชีซ้ำ โปรดตรวจสอบ","") ->  | J52: =G57 -> 0
B53: หลักเกณฑ์: | C53: ประมาณการจากจำนวนผู้ใช้ไฟ x อัตราค่าตอบแทน x 12 เดือน
C54: จำนวนผู้ใช้ไฟ | G54: =Cover!C135 -> 0 | H54: ราย
C55: อัตราค่าตอบแทน | G55: =Cover!D135 -> 0 | H55: บาท
C56: จำนวนเดือน | G56: 12 | H56: เดือน
C57: รวม | G57: =G54*G55*G56 -> 0
A60: 53010040 | B60: =IF(A60="","<< กรอกรหัสบัญชี",IFERROR(VLOOKUP(A60,'E001'!A:L,4,0),"ไม่มีรหัสบัญชีนี้")) -> ค่าจ้างเหมางานงดจ่ายไฟและต่อกลับมิเตอร์ | H60: =IF(COUNTIF(A:A,A60)>1,"รหัสบัญชีซ้ำ โปรดตรวจสอบ","") ->  | J60: =ROUNDUP(SUBTOTAL(109,I59:I66),-1) -> 3788000
B61: รายละเอียด
C62: กฟอ.หนองไผ่ พิจารณาเพิ่มขึ้น 5% จากค่าใช้จ่ายปี 65 ประมาณการเต็มปี | I62: 760000
C63: กฟส.วิเชียรบุรี และ กฟย.พุเตย ขอตั้งงบประมาณปี 2567 เดือนละ 1,600 ราย@ 65 บาท | I63: 1248000
C64: กฟส.บึงสามพัน ขอตั้งงบประมาณปี 2567 | I64: 1000000
C65: กฟส.ศรีเทพ ขอตั้งงบประมาณปี 2567 เดือนละ 1,000 ราย@ 65 บาท | I65: 780000
A68: 53010070 | B68: =IF(A68="","<< กรอกรหัสบัญชี",IFERROR(VLOOKUP(A68,'E001'!A:L,4,0),"ไม่มีรหัสบัญชีนี้")) -> ค่าแรงคนงานรายวันงานบำรุงรักษา | H68: =IF(COUNTIF(A:A,A68)>1,"รหัสบัญชีซ้ำ โปรดตรวจสอบ","") ->  | J68: =ROUNDUP(SUBTOTAL(109,I67:I74),-1) -> 10200000
B69: รายละเอียด
C70: กฟอ.หนองไผ่ พิจารณาจากจำนวนคนงาน ผปบ. 17 คน ทำงาน 313 วัน/ปี ตามอัตราประเภทคนงาน | I70: 2700000
C71: กฟส.วิเชียรบุรี และ กฟย.พุเตย ขอตั้งงบประมาณปี 2567 จากค่าใช้จ่าย 65 เพิ่มปีละ 5% | I71: 3600000
C72: กฟส.บึงสามพัน ขอตั้งงบประมาณปี 2567 | I72: 2000000
C73: กฟส.ศรีเทพ ขอตั้งงบประมาณปี 2567 จากค่าใช้จ่าย 65 เพิ่มปีละ 5% | I73: 1900000
A76: 53010080 | B76: =IF(A76="","<< กรอกรหัสบัญชี",IFERROR(VLOOKUP(A76,'E001'!A:L,4,0),"ไม่มีรหัสบัญชีนี้")) -> ค่าแรงคนงานรายวันงานบริการ/ค่าจ้างเหมางานมิเตอร์ | H76: =IF(COUNTIF(A:A,A76)>1,"รหัสบัญชีซ้ำ โปรดตรวจสอบ","") ->  | J76: =ROUNDUP(SUBTOTAL(109,I75:I82),-1) -> 3085000
B77: รายละเอียด
C78: กฟอ.นผ. พิจารณาจากจำนวนคนงาน ผมต. 4 คน ทำงาน 313 วัน/ปี และค่าตอบแทนผู้รับเหมา | I78: 900000
C79: กฟส.วิเชียรบุรี และ กฟย.พุเตย ขอตั้งงบประมาณปี 2567 จากค่าใช้จ่าย 65 เพิ่มปีละ 5% | I79: 1135000
C80: กฟส.บึงสามพัน ขอตั้งงบประมาณปี 2567 | I80: 650000
C81: กฟส.ศรีเทพ ขอตั้งงบประมาณปี 2567 จากค่าใช้จ่าย 65 เพิ่มปีละ 5% | I81: 400000
A84: 53010090 | B84: =IF(A84="","<< กรอกรหัสบัญชี",IFERROR(VLOOKUP(A84,'E001'!A:L,4,0),"ไม่มีรหัสบัญชีนี้")) -> ค่าแรง/ค่าจ้างเหมาคนงานรายวันทั่วไป | H84: =IF(COUNTIF(A:A,A84)>1,"รหัสบัญชีซ้ำ โปรดตรวจสอบ","") ->  | J84: =ROUNDUP(SUBTOTAL(109,I83:I90),-1) -> 6575000
B85: รายละเอียด
C86: กฟอ.หนองไผ่ พิจารณาขอตั้งงบประมาณปี 2567 | I86: 2975000
C87: กฟส.วิเชียรบุรี และ กฟย.พุเตย ขอตั้งงบประมาณปี 2567 จากค่าใช้จ่าย 65 เพิ่มปีละ 5% | I87: 1730000
C88: กฟส.บึงสามพัน ขอตั้งงบประมาณปี 2567 | I88: 970000
C89: กฟส.ศรีเทพ ขอตั้งงบประมาณปี 2567 จากค่าใช้จ่าย 65 เพิ่มปีละ 5% | I89: 900000
A92: 53010100 | B92: =IF(A92="","<< กรอกรหัสบัญชี",IFERROR(VLOOKUP(A92,'E001'!A:L,4,0),"ไม่มีรหัสบัญชีนี้")) -> ค่าจ้างส่งหนังสือแจ้งเตือนก่อนงดจ่ายไฟฟ้า | H92: =IF(COUNTIF(A:A,A92)>1,"รหัสบัญชีซ้ำ โปรดตรวจสอบ","") ->  | J92: =ROUNDUP(SUBTOTAL(109,I91:I98),-1) -> 2100000
B93: รายละเอียด
C94: กฟอ.นผ. พิจารณาของบจากค่าใช้จ่ายปี 65 | I94: 500000
C95: กฟส.วิเชียรบุรี และ กฟย.พุเตย ขอตั้งงบประมาณปี 2567 ประมาณ 4000 รายต่อเดือน @10 บาท | I95: 400000
C96: กฟส.บึงสามพัน ขอตั้งงบประมาณปี 2567 | I96: 600000
C97: กฟส.ศรีเทพ ขอตั้งงบประมาณปี 2567 จากค่าใช้จ่าย 65 เพิ่มปีละ 5% | I97: 600000
A100: 53011010 | B100: =IF(A100="","<< กรอกรหัสบัญชี",IFERROR(VLOOKUP(A100,'E001'!A:L,4,0),"ไม่มีรหัสบัญชีนี้")) -> ค่าตอบแทนรายเดือน-ผวก. | H100: =IF(COUNTIF(A:A,A100)>1,"รหัสบัญชีซ้ำ โปรดตรวจสอบ","") ->  | J100: =ROUNDUP(SUBTOTAL(109,I99:I106),-1) -> 0
B101: รายละเอียด
A108: 53011020 | B108: =IF(A108="","<< กรอกรหัสบัญชี",IFERROR(VLOOKUP(A108,'E001'!A:L,4,0),"ไม่มีรหัสบัญชีนี้")) -> ค่ารับรอง-ผวก. | H108: =IF(COUNTIF(A:A,A108)>1,"รหัสบัญชีซ้ำ โปรดตรวจสอบ","") ->  | J108: =ROUNDUP(SUBTOTAL(109,I107:I114),-1) -> 0
B109: รายละเอียด
A116: 53011030 | B116: =IF(A116="","<< กรอกรหัสบัญชี",IFERROR(VLOOKUP(A116,'E001'!A:L,4,0),"ไม่มีรหัสบัญชีนี้")) -> ค่าพาหนะเบี้ยเลี้ยงและที่พัก-ผวก. | H116: =IF(COUNTIF(A:A,A116)>1,"รหัสบัญชีซ้ำ โปรดตรวจสอบ","") ->  | J116: =ROUNDUP(SUBTOTAL(109,I115:I122),-1) -> 0
B117: รายละเอียด
A124: 53011040 | B124: =IF(A124="","<< กรอกรหัสบัญชี",IFERROR(VLOOKUP(A124,'E001'!A:L,4,0),"ไม่มีรหัสบัญชีนี้")) -> ค่าใช้จ่ายเกี่ยวกับเครื่องมือสื่อสาร-ผวก. | H124: =IF(COUNTIF(A:A,A124)>1,"รหัสบัญชีซ้ำ โปรดตรวจสอบ","") ->  | J124: =ROUNDUP(SUBTOTAL(109,I123:I130),-1) -> 0
B125: รายละเอียด
A132: 53011990 | B132: =IF(A132="","<< กรอกรหัสบัญชี",IFERROR(VLOOKUP(A132,'E001'!A:L,4,0),"ไม่มีรหัสบัญชีนี้")) -> ค่าตอบแทนอื่น-ผวก. | H132: =IF(COUNTIF(A:A,A132)>1,"รหัสบัญชีซ้ำ โปรดตรวจสอบ","") ->  | J132: =ROUNDUP(SUBTOTAL(109,I131:I138),-1) -> 0
B133: รายละเอียด
A140: 53012010 | B140: =IF(A140="","<< กรอกรหัสบัญชี",IFERROR(VLOOKUP(A140,'E001'!A:L,4,0),"ไม่มีรหัสบัญชีนี้")) -> ค่าเบี้ยประชุมคณะกรรมการ กฟภ. | H140: =IF(COUNTIF(A:A,A140)>1,"รหัสบัญชีซ้ำ โปรดตรวจสอบ","") ->  | J140: =ROUNDUP(SUBTOTAL(109,I139:I146),-1) -> 0
B141: รายละเอียด
A148: 53012030 | B148: =IF(A148="","<< กรอกรหัสบัญชี",IFERROR(VLOOKUP(A148,'E001'!A:L,4,0),"ไม่มีรหัสบัญชีนี้")) -> เงินโบนัสคณะกรรมการ | H148: =IF(COUNTIF(A:A,A148)>1,"รหัสบัญชีซ้ำ โปรดตรวจสอบ","") ->  | J148: =ROUNDUP(SUBTOTAL(109,I147:I154),-1) -> 0
B149: รายละเอียด
A156: 53012040 | B156: =IF(A156="","<< กรอกรหัสบัญชี",IFERROR(VLOOKUP(A156,'E001'!A:L,4,0),"ไม่มีรหัสบัญชีนี้")) -> ค่าตอบแทนรายเดือนคณะกรรมการ กฟภ. | H156: =IF(COUNTIF(A:A,A156)>1,"รหัสบัญชีซ้ำ โปรดตรวจสอบ","") ->  | J156: =ROUNDUP(SUBTOTAL(109,I155:I162),-1) -> 0
B157: รายละเอียด
A164: 53012990 | B164: =IF(A164="","<< กรอกรหัสบัญชี",IFERROR(VLOOKUP(A164,'E001'!A:L,4,0),"ไม่มีรหัสบัญชีนี้")) -> ค่าตอบแทนอื่น-คณะกรรมการ กฟภ. | H164: =IF(COUNTIF(A:A,A164)>1,"รหัสบัญชีซ้ำ โปรดตรวจสอบ","") ->  | J164: =ROUNDUP(SUBTOTAL(109,I163:I170),-1) -> 0
B165: รายละเอียด
A172: 53019990 | B172: =IF(A172="","<< กรอกรหัสบัญชี",IFERROR(VLOOKUP(A172,'E001'!A:L,4,0),"ไม่มีรหัสบัญชีนี้")) -> ค่าตอบแทนอื่น ๆ | H172: =IF(COUNTIF(A:A,A172)>1,"รหัสบัญชีซ้ำ โปรดตรวจสอบ","") ->  | J172: =ROUNDUP(SUBTOTAL(109,I171:I178),-1) -> 0
B173: รายละเอียด
A180: 53030010 | B180: =IF(A180="","<< กรอกรหัสบัญชี",IFERROR(VLOOKUP(A180,'E001'!A:L,4,0),"ไม่มีรหัสบัญชีนี้")) -> ค่าวัสดุสำนักงาน | H180: =IF(COUNTIF(A:A,A180)>1,"รหัสบัญชีซ้ำ โปรดตรวจสอบ","") ->  | J180: =ROUNDUP(SUBTOTAL(109,I179:I186),-1) -> 1149000
B181: รายละเอียด
C182: กฟอ.นผ. ประมาการเพิ่ม 10% ของค่าใช้จ่ายเต็มปี ปี 65 | I182: 230000
C183: กฟส.วิเชียรบุรี และ กฟย.พุเตย ขอตั้งงบประมาณปี 2567 จากค่าใช้จ่าย 65 เพิ่มปีละ 5% | I183: 279000
C184: กฟส.บึงสามพัน ขอตั้งงบประมาณปี 2567 | I184: 400000
C185: กฟส.ศรีเทพ ขอตั้งงบประมาณปี 2567 จากค่าใช้จ่าย 65 เพิ่มปีละ 5% | I185: 240000
A188: 53030030 | B188: =IF(A188="","<< กรอกรหัสบัญชี",IFERROR(VLOOKUP(A188,'E001'!A:L,4,0),"ไม่มีรหัสบัญชีนี้")) -> ค่าวัสดุเบ็ดเตล็ดในสำนักงาน | H188: =IF(COUNTIF(A:A,A188)>1,"รหัสบัญชีซ้ำ โปรดตรวจสอบ","") ->  | J188: =ROUNDUP(SUBTOTAL(109,I187:I194),-1) -> 252000
B189: รายละเอียด
C190: กฟอ.นผ. ประมาการเพิ่ม 10% ของค่าใช้จ่ายเต็มปี ปี 65 | I190: 40000
C191: กฟส.วิเชียรบุรี และ กฟย.พุเตย ขอตั้งงบประมาณปี 2567 จากค่าใช้จ่าย 65 เพิ่มปีละ 5% | I191: 52000
C192: กฟส.บึงสามพัน ขอตั้งงบประมาณปี 2567 | I192: 100000
C193: กฟส.ศรีเทพ ขอตั้งงบประมาณปี 2567 จากค่าใช้จ่าย 65 เพิ่มปีละ 5% | I193: 60000
A196: 53031010 | B196: =IF(A196="","<< กรอกรหัสบัญชี",IFERROR(VLOOKUP(A196,'E001'!A:L,4,0),"ไม่มีรหัสบัญชีนี้")) -> ค่าน้ำดื่ม | H196: =IF(COUNTIF(A:A,A196)>1,"รหัสบัญชีซ้ำ โปรดตรวจสอบ","") ->  | J196: =ROUNDUP(SUBTOTAL(109,I195:I202),-1) -> 108000
B197: รายละเอียด
C198: กฟอ.หนองไผ่ พิจารณาขอตั้งงบประมาณปี 2567 | I198: 15000
C199: กฟส.วิเชียรบุรี และ กฟย.พุเตย ขอตั้งงบประมาณปี 2567 ประมาณการจากจำนวนพนักงาน | I199: 26000
C200: กฟส.บึงสามพัน ขอตั้งงบประมาณปี 2567 | I200: 60000
C201: กฟส.ศรีเทพ ขอตั้งงบประมาณปี 2567 จากค่าใช้จ่าย 65 เพิ่มปีละ 5% | I201: 7000
A204: 53031020 | B204: =IF(A204="","<< กรอกรหัสบัญชี",IFERROR(VLOOKUP(A204,'E001'!A:L,4,0),"ไม่มีรหัสบัญชีนี้")) -> ค่าน้ำประปา | H204: =IF(COUNTIF(A:A,A204)>1,"รหัสบัญชีซ้ำ โปรดตรวจสอบ","") ->  | J204: =ROUNDUP(SUBTOTAL(109,I203:I210),-1) -> 188000
B205: รายละเอียด
C206: กฟอ.หนองไผ่ พิจารณาขอตั้งงบประมาณปี 2567 | I206: 100000
C207: กฟส.วิเชียรบุรี และ กฟย.พุเตย ขอตั้งงบประมาณปี 2567 จากค่าใช้จ่าย 65 เพิ่มปีละ 5% | I207: 37000
C208: กฟส.บึงสามพัน ขอตั้งงบประมาณปี 2567 | I208: 36000
C209: กฟส.ศรีเทพ ขอตั้งงบประมาณปี 2567 จากค่าใช้จ่าย 65 เพิ่มปีละ 5% | I209: 15000
A212: 53031030 | B212: =IF(A212="","<< กรอกรหัสบัญชี",IFERROR(VLOOKUP(A212,'E001'!A:L,4,0),"ไม่มีรหัสบัญชีนี้")) -> ค่าไฟฟ้า | H212: =IF(COUNTIF(A:A,A212)>1,"รหัสบัญชีซ้ำ โปรดตรวจสอบ","") ->  | J212: =ROUNDUP(SUBTOTAL(109,I211:I218),-1) -> 1142000
B213: รายละเอียด
C214: กฟอ.หนองไผ่ พิจารณาขอตั้งงบประมาณปี 2567 | I214: 600000
C215: กฟส.วิเชียรบุรี และ กฟย.พุเตย ขอตั้งงบประมาณปี 2567 จากค่าใช้จ่าย 65 เพิ่มปีละ 5% | I215: 260000
C216: กฟส.บึงสามพัน ขอตั้งงบประมาณปี 2567 | I216: 132000
C217: กฟส.ศรีเทพ ขอตั้งงบประมาณปี 2567 จากค่าใช้จ่าย 65 เพิ่มปีละ 5% | I217: 150000
A220: 53032010 | B220: =IF(A220="","<< กรอกรหัสบัญชี",IFERROR(VLOOKUP(A220,'E001'!A:L,4,0),"ไม่มีรหัสบัญชีนี้")) -> ค่าใช้บริการโทรศัพท์ | H220: =IF(COUNTIF(A:A,A220)>1,"รหัสบัญชีซ้ำ โปรดตรวจสอบ","") ->  | J220: =ROUNDUP(SUBTOTAL(109,I219:I226),-1) -> 83000
B221: รายละเอียด
C222: กฟอ.หนองไผ่ พิจารณาขอตั้งงบประมาณปี 2567 | I222: 60000
C223: กฟส.วิเชียรบุรี และ กฟย.พุเตย ขอตั้งงบประมาณปี 2567 จากค่าใช้จ่าย 65 เพิ่มปีละ 5% | I223: 3000
C224: กฟส.บึงสามพัน ขอตั้งงบประมาณปี 2567 | I224: 15000
C225: กฟส.ศรีเทพ ขอตั้งงบประมาณปี 2567 จากค่าใช้จ่าย 65 เพิ่มปีละ 5% | I225: 5000
A228: 53032020 | B228: =IF(A228="","<< กรอกรหัสบัญชี",IFERROR(VLOOKUP(A228,'E001'!A:L,4,0),"ไม่มีรหัสบัญชีนี้")) -> ค่าบำรุงรักษาคู่สายโทรศัพท์ | H228: =IF(COUNTIF(A:A,A228)>1,"รหัสบัญชีซ้ำ โปรดตรวจสอบ","") ->  | J228: =ROUNDUP(SUBTOTAL(109,I227:I234),-1) -> 45000
B229: รายละเอียด
C230: กฟอ.หนองไผ่ พิจารณาขอตั้งงบประมาณปี 2567 | I230: 20000
C231: กฟส.วิเชียรบุรี และ กฟย.พุเตย ขอตั้งงบประมาณปี 2567 จากค่าใช้จ่าย 65 เพิ่มปีละ 5% | I231: 9000
C232: กฟส.บึงสามพัน ขอตั้งงบประมาณปี 2567 | I232: 10000
C233: กฟส.ศรีเทพ ขอตั้งงบประมาณปี 2567 จากค่าใช้จ่าย 65 เพิ่มปีละ 5% | I233: 6000
A236: 53032030 | B236: =IF(A236="","<< กรอกรหัสบัญชี",IFERROR(VLOOKUP(A236,'E001'!A:L,4,0),"ไม่มีรหัสบัญชีนี้")) -> ค่าบริการโทรศัพท์เคลื่อนที่ | H236: =IF(COUNTIF(A:A,A236)>1,"รหัสบัญชีซ้ำ โปรดตรวจสอบ","") ->  | J236: =ROUNDUP(SUBTOTAL(109,I235:I242),-1) -> 0
B237: รายละเอียด
A244: 53032050 | B244: =IF(A244="","<< กรอกรหัสบัญชี",IFERROR(VLOOKUP(A244,'E001'!A:L,4,0),"ไม่มีรหัสบัญชีนี้")) -> ค่าเช่าวงจรสื่อสาร | H244: =IF(COUNTIF(A:A,A244)>1,"รหัสบัญชีซ้ำ โปรดตรวจสอบ","") ->  | J244: =ROUNDUP(SUBTOTAL(109,I243:I250),-1) -> 5000
B245: รายละเอียด
C246: กฟส.ศรีเทพ ขอตั้งงบประมาณปี 2567 ประมาณการจากค่าใช้จ่ายจริงปี 65 | I246: 5000
A252: 53032060 | B252: =IF(A252="","<< กรอกรหัสบัญชี",IFERROR(VLOOKUP(A252,'E001'!A:L,4,0),"ไม่มีรหัสบัญชีนี้")) -> ค่าจัดส่งเอกสารและพัสดุภัณฑ์ | H252: =IF(COUNTIF(A:A,A252)>1,"รหัสบัญชีซ้ำ โปรดตรวจสอบ","") ->  | J252: =ROUNDUP(SUBTOTAL(109,I251:I258),-1) -> 108500
B253: รายละเอียด
C254: กฟอ.หนองไผ่ พิจารณาขอตั้งงบประมาณปี 2567 | I254: 20000
C255: กฟส.วิเชียรบุรี และ กฟย.พุเตย ขอตั้งงบประมาณปี 2567 จากค่าใช้จ่าย 65 เพิ่มปีละ 5% | I255: 13500
C256: กฟส.บึงสามพัน ขอตั้งงบประมาณปี 2567 | I256: 25000
C257: กฟส.ศรีเทพ ขอตั้งงบประมาณปี 2567 | I257: 50000
A260: 53032070 | B260: =IF(A260="","<< กรอกรหัสบัญชี",IFERROR(VLOOKUP(A260,'E001'!A:L,4,0),"ไม่มีรหัสบัญชีนี้")) -> ค่าติดตั้งอุปกรณ์สื่อสาร | H260: =IF(COUNTIF(A:A,A260)>1,"รหัสบัญชีซ้ำ โปรดตรวจสอบ","") ->  | J260: =ROUNDUP(SUBTOTAL(109,I259:I266),-1) -> 0
B261: รายละเอียด
A268: 53032080 | B268: =IF(A268="","<< กรอกรหัสบัญชี",IFERROR(VLOOKUP(A268,'E001'!A:L,4,0),"ไม่มีรหัสบัญชีนี้")) -> ค่าใช้จ่ายในการใช้อินเตอร์เน็ต | H268: =IF(COUNTIF(A:A,A268)>1,"รหัสบัญชีซ้ำ โปรดตรวจสอบ","") ->  | J268: =ROUNDUP(SUBTOTAL(109,I267:I274),-1) -> 36000
B269: รายละเอียด
C270: กฟอ.หนองไผ่ พิจารณาขอตั้งงบประมาณปี 2567 | I270: 8000
C271: กฟส.วิเชียรบุรี และ กฟย.พุเตย ขอตั้งงบประมาณปี 2567 จากค่าใช้จ่าย 65 เพิ่มปีละ 5% | I271: 18000
C272: กฟส.บึงสามพัน ขอตั้งงบประมาณปี 2567 | I272: 0
C273: กฟส.ศรีเทพ ขอตั้งงบประมาณปี 2567 | I273: 10000
A276: 53032990 | B276: =IF(A276="","<< กรอกรหัสบัญชี",IFERROR(VLOOKUP(A276,'E001'!A:L,4,0),"ไม่มีรหัสบัญชีนี้")) -> ค่าใช้จ่ายในการติดต่อสื่อสารประเภทอี่น | H276: =IF(COUNTIF(A:A,A276)>1,"รหัสบัญชีซ้ำ โปรดตรวจสอบ","") ->  | J276: =ROUNDUP(SUBTOTAL(109,I275:I282),-1) -> 10500
B277: รายละเอียด
C278: กฟอ.หนองไผ่ พิจารณาขอตั้งงบประมาณปี 2567 | I278: 0
C279: กฟส.วิเชียรบุรี และ กฟย.พุเตย ขอตั้งงบประมาณปี 2567 จากค่าใช้จ่าย 65 เพิ่มปีละ 5% | I279: 10500
C280: กฟส.บึงสามพัน ขอตั้งงบประมาณปี 2567 | I280: 0
C281: กฟส.ศรีเทพ ขอตั้งงบประมาณปี 2567 | I281: 0
A284: 53033010 | B284: =IF(A284="","<< กรอกรหัสบัญชี",IFERROR(VLOOKUP(A284,'E001'!A:L,4,0),"ไม่มีรหัสบัญชีนี้")) -> ค่าเช่าที่ดิน | H284: =IF(COUNTIF(A:A,A284)>1,"รหัสบัญชีซ้ำ โปรดตรวจสอบ","") ->  | J284: =ROUNDUP(SUBTOTAL(109,I283:I290),-1) -> 0
B285: รายละเอียด
C286: กฟอ.นผ. ไม่ขอตั้งงบประมาณ เพราะเช่าที่ดินกองเสาดำเนินการรูปแบบสัญญาเช่าแล้ว | I286: 0
A292: 53033020 | B292: =IF(A292="","<< กรอกรหัสบัญชี",IFERROR(VLOOKUP(A292,'E001'!A:L,4,0),"ไม่มีรหัสบัญชีนี้")) -> ค่าเช่าสิ่งปลูกสร้าง | H292: =IF(COUNTIF(A:A,A292)>1,"รหัสบัญชีซ้ำ โปรดตรวจสอบ","") ->  | J292: =ROUNDUP(SUBTOTAL(109,I291:I298),-1) -> 0
B293: รายละเอียด
A300: 53033030 | B300: =IF(A300="","<< กรอกรหัสบัญชี",IFERROR(VLOOKUP(A300,'E001'!A:L,4,0),"ไม่มีรหัสบัญชีนี้")) -> ค่าเช่าเครื่องคอมพิวเตอร์ | H300: =IF(COUNTIF(A:A,A300)>1,"รหัสบัญชีซ้ำ โปรดตรวจสอบ","") ->  | J300: =ROUNDUP(SUBTOTAL(109,I299:I306),-1) -> 0
B301: รายละเอียด
A308: 53033040 | B308: =IF(A308="","<< กรอกรหัสบัญชี",IFERROR(VLOOKUP(A308,'E001'!A:L,4,0),"ไม่มีรหัสบัญชีนี้")) -> ค่าเช่าเครื่องถ่ายเอกสาร | H308: =IF(COUNTIF(A:A,A308)>1,"รหัสบัญชีซ้ำ โปรดตรวจสอบ","") ->  | J308: =ROUNDUP(SUBTOTAL(109,I307:I314),-1) -> 0
B309: รายละเอียด
A316: 53033060 | B316: =IF(A316="","<< กรอกรหัสบัญชี",IFERROR(VLOOKUP(A316,'E001'!A:L,4,0),"ไม่มีรหัสบัญชีนี้")) -> ค่าเช่าโปรแกรมสำเร็จรูป | H316: =IF(COUNTIF(A:A,A316)>1,"รหัสบัญชีซ้ำ โปรดตรวจสอบ","") ->  | J316: =ROUNDUP(SUBTOTAL(109,I315:I322),-1) -> 0
B317: รายละเอียด
A324: 53033070 | B324: =IF(A324="","<< กรอกรหัสบัญชี",IFERROR(VLOOKUP(A324,'E001'!A:L,4,0),"ไม่มีรหัสบัญชีนี้")) -> ค่าเช่าเครื่องบันทึกข้อมูลการเดินทางของรถ | H324: =IF(COUNTIF(A:A,A324)>1,"รหัสบัญชีซ้ำ โปรดตรวจสอบ","") ->  | J324: =ROUNDUP(SUBTOTAL(109,I323:I330),-1) -> 6000
B325: รายละเอียด
C326: กฟส.ศรีเทพ ขอตั้งงบประมาณปี 67 สำหรับรถยนต์หมายเลขทะเบียน 80-9221 พช 1 คัน | I326: 6000
A332: 53033990 | B332: =IF(A332="","<< กรอกรหัสบัญชี",IFERROR(VLOOKUP(A332,'E001'!A:L,4,0),"ไม่มีรหัสบัญชีนี้")) -> ค่าเช่าสินทรัพย์อื่นๆ | H332: =IF(COUNTIF(A:A,A332)>1,"รหัสบัญชีซ้ำ โปรดตรวจสอบ","") ->  | J332: =ROUNDUP(SUBTOTAL(109,I331:I338),-1) -> 0
B333: รายละเอียด
A340: 53034010 | B340: =IF(A340="","<< กรอกรหัสบัญชี",IFERROR(VLOOKUP(A340,'E001'!A:L,4,0),"ไม่มีรหัสบัญชีนี้")) -> ค่าจ้างเหมาทำความสะอาด | H340: =IF(COUNTIF(A:A,A340)>1,"รหัสบัญชีซ้ำ โปรดตรวจสอบ","") ->  | J340: =ROUNDUP(SUBTOTAL(109,I339:I346),-1) -> 719550
B341: รายละเอียด
C342: กฟอ.หนองไผ่ พิจารณาขอตั้งงบประมาณปี 2567 | I342: 300000
C343: กฟส.วิเชียรบุรี และ กฟย.พุเตย ขอตั้งงบประมาณปี 2567 จากค่าใช้จ่าย 65 เพิ่มปีละ 5% | I343: 155550
C344: กฟส.บึงสามพัน ขอตั้งงบประมาณปี 2567 | I344: 150000
C345: กฟส.ศรีเทพ ขอตั้งงบประมาณปี 2567 | I345: 114000
A348: 53034020 | B348: =IF(A348="","<< กรอกรหัสบัญชี",IFERROR(VLOOKUP(A348,'E001'!A:L,4,0),"ไม่มีรหัสบัญชีนี้")) -> ค่ารักษาความปลอดภัย | H348: =IF(COUNTIF(A:A,A348)>1,"รหัสบัญชีซ้ำ โปรดตรวจสอบ","") ->  | J348: =ROUNDUP(SUBTOTAL(109,I347:I354),-1) -> 2468000
B349: รายละเอียด
C350: กฟอ.หนองไผ่ พิจารณาขอตั้งงบประมาณปี 2567 | I350: 984000
C351: กฟส.วิเชียรบุรี และ กฟย.พุเตย ขอตั้งงบประมาณปี 2567 | I351: 492000
C352: กฟส.บึงสามพัน ขอตั้งงบประมาณปี 2567 | I352: 500000
C353: กฟส.ศรีเทพ ขอตั้งงบประมาณปี 2567 | I353: 492000
A356: 53034030 | B356: =IF(A356="","<< กรอกรหัสบัญชี",IFERROR(VLOOKUP(A356,'E001'!A:L,4,0),"ไม่มีรหัสบัญชีนี้")) -> ค่าจ้างบำรุงรักษาสวน | H356: =IF(COUNTIF(A:A,A356)>1,"รหัสบัญชีซ้ำ โปรดตรวจสอบ","") ->  | J356: =ROUNDUP(SUBTOTAL(109,I355:I362),-1) -> 64000
B357: รายละเอียด
C358: กฟอ.หนองไผ่ พิจารณาขอตั้งงบประมาณปี 2567 | I358: 20000
C359: กฟส.วิเชียรบุรี และ กฟย.พุเตย ขอตั้งงบประมาณปี 2567 | I359: 10000
C360: กฟส.บึงสามพัน ขอตั้งงบประมาณปี 2567 | I360: 10000
C361: กฟส.ศรีเทพ ขอตั้งงบประมาณปี 2567 | I361: 24000
A364: 53034040 | B364: =IF(A364="","<< กรอกรหัสบัญชี",IFERROR(VLOOKUP(A364,'E001'!A:L,4,0),"ไม่มีรหัสบัญชีนี้")) -> ค่าบำรุงรักษาบริเวณสำนักงาน | H364: =IF(COUNTIF(A:A,A364)>1,"รหัสบัญชีซ้ำ โปรดตรวจสอบ","") ->  | J364: =ROUNDUP(SUBTOTAL(109,I363:I370),-1) -> 220000
B365: รายละเอียด
... 406 more rows

Sheet E121
A1: คำชี้แจงประกอบ | F1: งป. (ท)_1/1
A2: ="งบประมาณทำการที่ขอตั้ง ประจำปี "&A_Budget_year -> งบประมาณทำการที่ขอตั้ง ประจำปี 2567
A3: =IF(A4="HO","งานประจำ (ค่าป้องกันระบบไฟฟ้าและระบบควบคุม)","งานประจำ (งานตัดต้นไม้, ค่าป้องกันระบบไฟฟ้าและระบบควบคุม)") -> งานประจำ (งานตัดต้นไม้, ค่าป้องกันระบบไฟฟ้าและระบบควบคุม)
A4: =HO -> BR | E4: =Head_division -> เขต: | F4: =Head_division2 -> กฟน.3 - 07
E5: หน่วย: | F5: บาท
A6: รหัสบัญชี | B6: รายการ /รายละเอียด / คำชี้แจงประกอบ | F6: วงเงิน
B7: ชื่องาน ค่าป้องกันระบบไฟฟ้าและระบบควบคุม
B8: รายการค่าใช้จ่ายตามรหัสบัญชี
A9: 53050010 | B9: =" - "&VLOOKUP(A9,'E001'!A:D,4,0) -> - ค่าป้องกันระบบไฟฟ้าและระบบควบคุม
B11: คำชี้แจงประกอบงบ
B12: - ให้แจงรายละเอียดในชีท E121A
B14: ชื่องาน ค่าใช้จ่ายในการตัดต้นไม้
B15: รายการค่าใช้จ่ายตามรหัสบัญชี
B16: กรณี จ้างเหมาเอกชนตัดต้นไม้
A17: 53050020 | B17: =" - "&VLOOKUP(A17,'E001'!A:D,4,0) -> - ค่าจ้างเหมาตัดต้นไม้
B18: กรณี ดำเนินการตัดต้นไม้เอง
A19: 52010030 | B19: =" - "&VLOOKUP(A19,'E001'!A:D,4,0) -> - ค่าล่วงเวลาพนักงาน
A20: 52022010 | B20: =" - "&VLOOKUP(A20,'E001'!A:D,4,0) -> - ค่าพาหนะเดินทางไปปฏิบัติงานต่างท้องที่-พนักงาน
A21: 52022020 | B21: =" - "&VLOOKUP(A21,'E001'!A:D,4,0) -> - ค่าเบี้ยเลี้ยง-พนักงาน
A22: 52022030 | B22: =" - "&VLOOKUP(A22,'E001'!A:D,4,0) -> - ค่าที่พัก-พนักงาน
A23: 53039010 | B23: =" - "&VLOOKUP(A23,'E001'!A:D,4,0) -> - ค่าเชื้อเพลิงยานพาหนะ
A24: 53051050 | B24: =" - "&VLOOKUP(A24,'E001'!A:D,4,0) -> - ค่าซ่อมแซมบำรุงรักษา-ยานพาหนะ
B25: รวม งานตัดต้นไม้ (จ้างเหมาเอกชนและดำเนินการตัดต้นไม้เอง) | F25: =SUM(F17:F24) -> 0
B27: คำชี้แจงประกอบงบ
B28: กรณี จ้างเหมาเอกชนตัดต้นไม้
B29: - ให้แจงรายละเอียดในชีท E121B
B30: กรณี ดำเนินการตัดต้นไม้เอง
B31: - ให้แจงรายละเอียดในชีท E121B

Sheet E121A
A1: งบประมาณทำการในส่วนของค่าป้องกันระบบไฟฟ้าและระบบควบคุมปี 2567
A2: ค่าป้องกันระบบไฟฟ้าและระบบควบคุม
A3: ประเภทกิจกรรม | B3: ปริมาณงาน | C3: ค่าใช้จ่าย
A4: 1. ติดตั้งอุปกรณ์ป้องกันสัตว์
A5: 2. ทำป้ายเตือน, พ่นหมายเลขเสาไฟฟ้า, ทาสีเสาไฟฟ้า
A6: 3. ฉีดน้ำล้างลูกถ้วย
A7: 4. อื่นๆ (โปรดระบุ)
A8: รวม | C8: =SUM(C4:C7) -> 0
A10: รายละเอียดแยกตามกิจกรรมต่างๆ
A11: 1. ติดตั้งอุปกรณ์ป้องกันสัตว์
A12: พื้นที่ดำเนินการ | B12: รายละเอียดของงาน | C12: ปริมาณงาน | D12: ราคา/หน่วย | E12: รวมค่าใช้จ่าย
A13: กฟฟ. ................. | B13: ไลน์. ................ | C13: ........ ชุด | D13: ...... บาท | E13: ......... บาท
A21: รวม | C21: =SUM(C13:C20) -> 0 | E21: =SUM(E13:E20) -> 0
A23: 2. ทำป้ายเตือน, พ่นหมายเลขเสาไฟฟ้า, ทาสีเสาไฟฟ้า
A24: พื้นที่ดำเนินการ | B24: รายละเอียดของงาน | C24: ปริมาณงาน | D24: ราคา/หน่วย | E24: รวมค่าใช้จ่าย
A25: กฟฟ. ................. | B25: ไลน์. ................ | C25: ........ ชุด | D25: ...... บาท | E25: ......... บาท
A33: รวม | C33: =SUM(C25:C32) -> 0 | E33: =SUM(E25:E32) -> 0
A35: 3. ฉีดน้ำล้างลูกถ้วย
A36: พื้นที่ดำเนินการ | B36: รายละเอียดของงาน | C36: ปริมาณงาน(ครั้ง) | D36: ราคา/หน่วย | E36: รวมค่าใช้จ่าย
A37: กฟฟ. ................. | B37: ไลน์. ................ | C37: ........ ชุด | D37: ...... บาท | E37: ......... บาท
A45: รวม | C45: =SUM(C37:C44) -> 0 | E45: =SUM(E37:E44) -> 0
A47: 4. อื่นๆ
A48: พื้นที่ดำเนินการ | B48: รายละเอียดของงาน | C48: ปริมาณงาน | D48: ราคา/หน่วย | E48: รวมค่าใช้จ่าย
C49: ........ ชุด | D49: ...... บาท | E49: ......... บาท
A58: รวม | C58: =SUM(C49:C57) -> 0 | E58: =SUM(E49:E57) -> 0

Sheet E121B
A1: คำชี้แจงประกอบงบ
A2: กรณีจ้างเหมาเอกชนตัดต้นไม้
A3: ราคากลางที่ใช้ในปี 2567
A5: ประเภท | B5: ราคากลางในการจ้างเหมาตัดต้นไม้ (บาท/กม.)
B6: 115 เควี + ใต้ไลน์ และการ | D6: 22 เควี, 33 เควี + ใต้ไลน์ | F6: แรงต่ำนอกไลน์แรงสูง
B7: ตัดต้นไม้ทางน้ำ
B8: แบบรายปี | C8: แบบรายครั้ง | D8: แบบรายปี | E8: แบบรายครั้ง | F8: แบบรายปี | G8: แบบรายครั้ง
A9: หนาทึบ
A10: ปานกลาง
A11: เบาบาง
A12: ที่โล่ง
A13: หมายเหตุ - ราคากลางในการจ้งเหมาในปัจจุบันผู้อำนวยการไฟฟ้าเขตมีอำนาจพิจารณาราคากลาง
A15: ปริมาณงาน (วงจร-กม.)
A16: แบบรายปี
A17: ประเภท | B17: ปริมาณงาน (กม.)
B18: 115 เควี + ใต้ไลน์ และการ | D18: 22 เควี, 33 เควี + ใต้ไลน์ | F18: แรงต่ำนอกไลน์แรงสูง
B19: ตัดต้นไม้ทางน้ำ
A20: หนาทึบ (มากกว่า 80 ต้น/กม.)
A21: ปานกลาง (41-80 ต้น/กม.)
A22: เบาบาง (10-40 ต้น/กม.)
A23: ที่โล่ง (น้อยกว่า10 ต้น/กม.)
A25: แบบรายครั้ง
A26: ประเภท | B26: ปริมาณงาน (วงจร-กม.)
B27: 115 เควี + ใต้ไลน์ และการ | D27: 22 เควี, 33 เควี + ใต้ไลน์ | F27: แรงต่ำนอกไลน์แรงสูง
B28: ตัดต้นไม้ทางน้ำ
A29: หนาทึบ (มากกว่า 80 ต้น/กม.)
A30: ปานกลาง (41-80 ต้น/กม.)
A31: เบาบาง (10-40 ต้น/กม.)
A32: ที่โล่ง (น้อยกว่า10 ต้น/กม.)
A37: ค่าใช้จ่ายในการตัดต้นไม้
A38: แบบรายปี
A39: ประเภท | B39: ค่าใช้จ่าย(บาท)
B40: 115 เควี + ใต้ไลน์ และการ | D40: 22 เควี, 33 เควี + ใต้ไลน์ | F40: แรงต่ำนอกไลน์แรงสูง
B41: ตัดต้นไม้ทางน้ำ
A42: หนาทึบ
A43: ปานกลาง
A44: เบาบาง
A45: ที่โล่ง
A46: รวม
A48: แบบรายครั้ง
A49: ประเภท | B49: ค่าใช้จ่าย(บาท)
B50: 115 เควี + ใต้ไลน์ และการ | D50: 22 เควี, 33 เควี + ใต้ไลน์ | F50: แรงต่ำนอกไลน์แรงสูง
B51: ตัดต้นไม้ทางน้ำ
A52: หนาทึบ
A53: ปานกลาง
A54: เบาบาง
A55: ที่โล่ง
A56: รวม
A58: รวมค่าใช้จ่าย
A59: ประเภท | B59: ค่าใช้จ่าย(บาท)
B60: 115 เควี + ใต้ไลน์ และการ | D60: 22 เควี, 33 เควี + ใต้ไลน์ | F60: แรงต่ำนอกไลน์แรงสูง
B61: ตัดต้นไม้ทางน้ำ
A62: หนาทึบ
A63: ปานกลาง
A64: เบาบาง
A65: ที่โล่ง
A66: รวม
A67: ค่าใช้จ่ากรณีต้นไม้พิเศษ
A68: รวมค่าใช้จ่ายทั้งสิ้น
A69: หมายเหตุ - ต้นไม้ที่มีลักษณะพิเศษ เช่น กอไผ่, ต้นไม้ใหญ่ที่ต้องตัดเป็นจำนวนมากหรือต้องล้มหรือ
A70: ทั้งกอ ให้คิดค่าใช้จ่ายตามข้อเท็จจริง
A74: ค่าใช้จ่ายในการขนต้นไม้หรือเศษของต้นไม้ไปทิ้ง (พื้นที่พิเศษที่ต้องขนเศษไม้ไปทิ้งที่อื่น)
A75: พื้นที่ที่มีค่าใช้จ่ายในการขนย้ายต้นไม้ไปทิ้ง
A76: ประเภท | B76: ปริมาณงาน (กม.)
B77: 115 เควี + ใต้ไลน์ และการ | D77: 22 เควี, 33 เควี + ใต้ไลน์ | F77: แรงต่ำนอกไลน์แรงสูง
B78: ตัดต้นไม้ทางน้ำ
A79: หนาทึบ
A80: ปานกลาง
A81: เบาบาง
A82: ที่โล่ง
A84: ค่าใช้จ่ายในการขนต้นไม้หรือเศษของต้นไม้ไปทิ้ง (ให้คิด 10 % ของค่าจ้างเหมาเอกชนตัดต้นไม้)
A86: ประเภท | B86: ค่าใช้จ่าย (บาท)
B87: 115 เควี + ใต้ไลน์ และการ | D87: 22 เควี, 33 เควี + ใต้ไลน์ | F87: แรงต่ำนอกไลน์แรงสูง
B88: ตัดต้นไม้ทางน้ำ
A89: หนาทึบ
A90: ปานกลาง
A91: เบาบาง
A92: ที่โล่ง
A93: รวม
A94: รวมค่าใช้จ่าย
A97: รวมค่าใช้จ่าย = ค่าใช้จ่ายในการตัดต้นไม้ + ค่าใช้จ่ายในการขนต้นไม้หรือเศษของต้นไม้ไปทิ้ง
A101: กรณีดำเนินการตัดต้นไม้เอง
A102: (1) ความยาวของระบบสายส่ง | G102: กม.
A103: (2) ความยาวของระบบจำหน่ายแรงสูง และ/หรือที่มีแรงต่ำใต้ไลน์ | G103: กม.
A104: (3) ความยาวของระบบจำหน่ายแรงต่ำนอกไลน์แรงสูง | G104: กม.
A106: รายละเอียด | D106: ค่าใช้จ่าย (บาท)
A107: ค่าล่วงเวลา
A108: ค่าพาหนะเดินทางไปปฏิบัติงานต่างท้องที่ - พนักงาน
A109: ค่าเบี้ยเลี้ยง - พนักงาน
A110: ค่าที่พัก - พนักงาน
A111: ค่าแรง / ค่าจ้างเหมาคนงานรายวันบำรุงรักษา
A112: ค่าเชื้อเพลิงยานพาหนะ
A113: ค่าซ่อมแซมบำรุงรักษา - ยานพาหนะ
A114: หมายเหตุ - กฟข. รวบรวมปริมาณงานและค่าใช้จ่ายที่จะดำเนินการตัดเองของ กฟฟ. จุดรวมงาน
A117: รายละเอียดประกอบของแต่ละ กฟฟ.จุดรวมงาน กรณีดำเนินการตัดต้นไม้เอง
A118: (1) ความยาวระบบสายส่ง | G118: กม.
A119: (2) ความยาวระบบจำหน่ายแรงสูง และ/หรือที่มีแรงต่ำใต้ไลน์ | G119: กม.
A120: (3) ความยาวระบบจำหน่ายแรงต่ำนอกไลน์แรงสูง | G120: กม.
A121: (4) จำนวนคนงาน | G121: คน
A123: รายละเอียด | C123: ค่าใช้จ่าย (บาท) | E123: หมายเหตุ
A125: ค่าล่วงเวลาพนักงาน
A126: ค่าพาหนะเดินทางไปปฏิบัติงานต่างท้องที่ - พนักงาน
A127: ค่าเบี้ยเลี้ยง - พนักงาน
A128: ค่าที่พัก - พนักงาน
A129: ค่าแรง / ค่าจ้างเหมาคนงานรายวันงานบำรุงรักษา | E129: ค่าแรง = (ค่าแรง/วันxจำนวนวัน/ปีxจำนวนคนงาน/ทีม)
A130: ค่าเชื้อเพลิงยานพาหนะ | E130: เดินทาง...กม/วัน, น้ำมันดีเซล....กม/ลิตร, ค่าน้ำมันดีเซล ... บาท/ลิตร
A131: ค่าซ่อมแซมบำรุงรักษา-ยานพาหนะ
A132: หมายเหตุ - กฟฟ. จุดรวมงานแจงรายละเอียดค่าใช้จ่ายในช่องหมายเหตุ

Sheet E200A
A1: ="งบประมาณทำการประจำปี "&A_Budget_year -> งบประมาณทำการประจำปี 2567 | M1: งป. (ท) _2
A2: สรุปงานตามแผนปฏิบัติแยกตามยุทธศาสตร์
L3: =Head_division -> เขต: | M3: =Head_division2 -> กฟน.3 - 07
L4: หน่วย: | M4: =IF(HO="HO","บาท","ล้านบาท") -> ล้านบาท
A5: ลำดับที่ | B5: ชื่องาน | C5: SO1 ยกระดับการบริหารจัดการระดับสากล เพื่อสร้างความยั่งยืน | G5: SO2 ระบบจำหน่ายที่มีประสิทธิภาพและสร้างความน่าเชื่อถือต่อลูกค้าและทุกกลุ่มผู้มีส่วนได้ส่วนเสีย | I5: SO3 เสริมสร้างศักยภาพด้าน Digital Utiltty และมุ่งสู่การเป็นผู้นำระบบไฟฟ้าในอนาคตระดับภูมิภาค | K5: SO4 ยกระดับผลประกอบการและทิศทางของ PEA Portfolio
C6: 1 | D6: 2 | E6: 3 | F6: 4 | G6: 5 | H6: 6 | I6: 7 | J6: 8 | K6: 9 | L6: 10 | M6: 11
C7: ="S"&C6 -> S1 | D7: ="S"&D6 -> S2 | E7: S3 | F7: S4 | G7: S5 | H7: S6 | I7: S7 | J7: S8 | K7: S9 | L7: S10 | M7: S11
C8: สร้าง กฟภ. ให้เติบโตอย่างยั่งยืน | D8: ยกระดับการบริหารทุนมนุษย์ | E8: ส่งเสริมและพัฒนาขีดความสามารถด้วยเทคโนโลยีดิจิทัล (Digital Technology) ที่มีความมั่นคงปลอดภัย เพื่อการขับเคลื่อนองค์กรอย่างมีประสิทธิภาพ (Digital Transformation) | F8: พัฒนาระบบจัดการนวัตกรรมองค์กร (Corporate InnovationSystem : CIS) | G8: พัฒนาระบบจำหน่ายที่ได้คุณภาพในระดับชั้นนำของภูมิภาค | H8: ยกระดับความพึงพอใจและตวามผูกพันของลูกค้าและกลุ่มผู้มีส่วนได้ส่วนเสีย | I8: ยกระดับ Grid Modernization | J8: ส่งเสริมบทบาท กฟภ. ในการผลักดันบทบาทเพื่อรองรับนโยบายการเปิดไฟฟ้าเสรี | K8: การกำหนดทิศทางเชิงยุทธศาสตร์ระหว่าง กฟภ. และบริษัทในเครือ | L8: การดำเนินงานตามแผนสำคัญสำหรับธุรกิจเกี่ยวเนื่อง และการบริหาร Product Porfolio | M8: การปรับปรุงกฎระเบียบที่เกี่ยวข้อง ให้มีความคล่องตัว และสามารถแข่งขันได้
B34: รวมทั้งสิ้น | C34: =SUM(C9:C33) -> 0 | D34: =SUM(D9:D33) -> 0 | E34: =SUM(E9:E33) -> 0 | F34: 0 | G34: 0 | H34: 0 | I34: 0 | J34: 0 | K34: 0 | L34: 0 | M34: 0

Sheet E200
A1: คำชี้แจงประกอบ | E1: งป. (ท)_2/1
A2: ="งบประมาณทำการประจำปี "&A_Budget_year -> งบประมาณทำการประจำปี 2567
A3: งานตามแผนปฏิบัติ
D4: =Head_division -> เขต: | E4: =Head_division2 -> กฟน.3 - 07
D5: หน่วย: | E5: บาท
A6: รหัสบัญชี | B6: รายการ /รายละเอียด / คำชี้แจงประกอบ | E6: วงเงิน
B8: ="กลุ่มบัญชี ค่าวิจัยและที่ปรึกษา"&" ("&'E250'!N1&") " -> กลุ่มบัญชี ค่าวิจัยและที่ปรึกษา (งป. (ท) _2/5)
A9: 53040010 | B9: =VLOOKUP(A9,'E001'!A:L,4,0) -> ค่าใช้จ่ายในการวิจัย | D9: =IF(COUNTIF(B:B,B9)>1,"โปรดตรวจสอบว่าได้กรอกรายละเอียดใน Sheet E240 แล้ว","") ->  | E9: =ROUNDUP('E250'!I26,-1) -> 0 | F9: E250
A10: 53061020 | B10: =VLOOKUP(A10,'E001'!A:L,4,0) -> ค่าที่ปรึกษา-ด้านบัญชี การเงิน | D10: =IF(COUNTIF(B:B,B10)>1,"มีรหัสบัญชีซ้ำ โปรดตรวจสอบ","") ->  | E10: =ROUNDUP('E250'!J26,-1) -> 0 | F10: E250
A11: 53061030 | B11: =VLOOKUP(A11,'E001'!A:L,4,0) -> ค่าที่ปรึกษา-ด้านกฏหมาย | D11: =IF(COUNTIF(B:B,B11)>1,"มีรหัสบัญชีซ้ำ โปรดตรวจสอบ","") ->  | E11: =ROUNDUP('E250'!K26,-1) -> 0 | F11: E250
A12: 53061040 | B12: =VLOOKUP(A12,'E001'!A:L,4,0) -> ค่าที่ปรึกษา-ด้านวิศวกรรม | D12: =IF(COUNTIF(B:B,B12)>1,"มีรหัสบัญชีซ้ำ โปรดตรวจสอบ","") ->  | E12: =ROUNDUP('E250'!L26,-1) -> 0 | F12: E250
A13: 53061050 | B13: =VLOOKUP(A13,'E001'!A:L,4,0) -> ค่าที่ปรึกษา-ด้านการพัฒนาระบบสารสนเทศ | D13: =IF(COUNTIF(B:B,B13)>1,"มีรหัสบัญชีซ้ำ โปรดตรวจสอบ","") ->  | E13: =ROUNDUP('E250'!M26,-1) -> 0 | F13: E250
A14: 53061090 | B14: =VLOOKUP(A14,'E001'!A:L,4,0) -> ค่าที่ปรึกษา-ด้านอื่นๆ | D14: =IF(COUNTIF(B:B,B14)>1,"มีรหัสบัญชีซ้ำ โปรดตรวจสอบ","") ->  | E14: =ROUNDUP('E250'!N26,-1) -> 0 | F14: E250
B16: ="ค่าใช้จ่ายในการประชุมชี้แจง"&" ("&'E220'!F1&") " -> ค่าใช้จ่ายในการประชุมชี้แจง (งป. (ท) _2/2)
A17: 52030030 | B17: =VLOOKUP(A17,'E001'!A:L,4,0) -> ค่าใช้จ่ายในการประชุมชี้แจง | D17: =IF(COUNTIF(B:B,B17)>1,"มีรหัสบัญชีซ้ำ โปรดตรวจสอบ","") ->  | E17: =ROUNDUP('E220'!F26,-1) -> 0 | F17: E220
B19: ="กลุ่มบัญชี ค่ากิจกรรมเพื่อสังคม"&" ("&'E240'!M1&") " -> กลุ่มบัญชี ค่ากิจกรรมเพื่อสังคม (งป. (ท) _2/4)
A20: 53065010 | B20: =VLOOKUP(A20,'E001'!A:L,4,0) -> เงินชดเชยเพื่อมนุษยธรรม | D20: =IF(COUNTIF(B:B,B20)>1,"มีรหัสบัญชีซ้ำ โปรดตรวจสอบ","") ->  | E20: =ROUNDUP('E240'!F25,-1) -> 0 | F20: E240
A21: 53065020 | B21: =VLOOKUP(A21,'E001'!A:L,4,0) -> ค่าใช้จ่ายเกี่ยวกับไฟสาธารณะ | E21: =ROUNDUP('E240'!G25,-1) -> 0 | F21: E240
A22: 53065030 | B22: =VLOOKUP(A22,'E001'!A:L,4,0) -> ค่าใช้จ่ายส่งเสริมการประหยัด/ปลอดภัยในการใช้ไฟฟ้า | E22: =ROUNDUP('E240'!H25,-1) -> 0 | F22: E240
A23: 53065040 | B23: =VLOOKUP(A23,'E001'!A:L,4,0) -> ค่าใช้จ่ายอื่นเพื่อผู้ใช้ไฟ | E23: =ROUNDUP('E240'!I25,-1) -> 0 | F23: E240
A24: 53065050 | B24: =VLOOKUP(A24,'E001'!A:L,4,0) -> ค่าใช้จ่ายเพื่อสังคมหรือสิ่งแวดล้อม | E24: =ROUNDUP('E240'!J25,-1) -> 0 | F24: E240
A25: 53065080 | B25: =VLOOKUP(A25,'E001'!A:L,4,0) -> ค่าผลประโยชน์เงินประกันฯจ่ายคืนผู้ใช้ไฟ - ประเภท 3,4,5 | E25: =ROUNDUP('E240'!K25,-1) -> 0 | F25: E240
A26: 53065090 | B26: =VLOOKUP(A26,'E001'!A:L,4,0) -> ค่าผลประโยชน์เงินประกันฯจ่ายคืนผู้ใช้ไฟ - ประเภท 1,2 | E26: =ROUNDUP('E240'!L25,-1) -> 0 | F26: E240
A27: 53065990 | B27: =VLOOKUP(A27,'E001'!A:L,4,0) -> ค่าใช้จ่ายเพื่อสาธารณประโยชน์และการกุศล | E27: =ROUNDUP('E240'!M25,-1) -> 0 | F27: E240
B29: ="กลุ่มบัญชี ค่าประชาสัมพันธ์"&" ("&'E230'!H1&") " -> กลุ่มบัญชี ค่าประชาสัมพันธ์ (งป. (ท) _2/3)
A30: 53021010 | B30: =VLOOKUP(A30,'E001'!A:L,4,0) -> ค่าป้ายประชาสัมพันธ์ | D30: =IF(COUNTIF(B:B,B30)>1,"มีรหัสบัญชีซ้ำ โปรดตรวจสอบ","") ->  | E30: =ROUNDUP('E230'!F27,-1) -> 0 | F30: E230
A31: 53021020 | B31: =VLOOKUP(A31,'E001'!A:L,4,0) -> ค่าประชาสัมพันธ์อื่น | D31: =IF(COUNTIF(B:B,B31)>1,"มีรหัสบัญชีซ้ำ โปรดตรวจสอบ","") ->  | E31: =ROUNDUP('E230'!G27,-1) -> 0 | F31: E230
A32: 53021030 | B32: =VLOOKUP(A32,'E001'!A:L,4,0) -> ค่าประชาสัมพันธ์ทางสื่อ | D32: =IF(COUNTIF(B:B,B32)>1,"มีรหัสบัญชีซ้ำ โปรดตรวจสอบ","") ->  | E32: =ROUNDUP('E230'!H27,-1) -> 0 | F32: E230
A35: ="P"&C36 -> P | B35: ชื่องาน: | E35: =SUBTOTAL(109,E36:E50) -> 0
B36: ลำดับที่:
B37: วัตถุประสงค์เชิงยุทธศาสตร์: | D37: =IF(C37="","<< เลือก",IF(C37="SO1",E200A!$C$5,IF(C37="SO2",E200A!$E$5,IF(C37="SO3",E200A!$I$5,IF(C37="SO4",E200A!$K$5,IF(C37="SO5",E200A!#REF!,0)))))) -> << เลือก
B38: ยุทธศาสตร์: | D38: =IF(C38="","<< เลือก",HLOOKUP(C38,E200A!$C$6:$M$8,3,0)) -> << เลือก
B39: วัตถุประสงค์ของงาน:
B40: รายการค่าใช้จ่ายตามรหัสบัญชี
B41: =IF(A41="","<< กรอกรหัสบัญชี",IFERROR(VLOOKUP(A41,'E001'!A:L,4,0),"ไม่มีรหัสบัญชีนี้")) -> << กรอกรหัสบัญชี | D41: =IFERROR("โปรดตรวจสอบว่าได้กรอกรายละเอียดใน Sheet "&VLOOKUP(A41,$A$9:$F$32,6,0)&" แล้ว","") -> 
B42: =IF(A42="","<< กรอกรหัสบัญชี",IFERROR(VLOOKUP(A42,'E001'!A:L,4,0),"ไม่มีรหัสบัญชีนี้")) -> << กรอกรหัสบัญชี | D42: =IFERROR("โปรดตรวจสอบว่าได้กรอกรายละเอียดใน Sheet "&VLOOKUP(A42,$A$9:$F$32,6,0)&" แล้ว","") -> 
B43: =IF(A43="","<< กรอกรหัสบัญชี",IFERROR(VLOOKUP(A43,'E001'!A:L,4,0),"ไม่มีรหัสบัญชีนี้")) -> << กรอกรหัสบัญชี | D43: =IFERROR("โปรดตรวจสอบว่าได้กรอกรายละเอียดใน Sheet "&VLOOKUP(A43,$A$9:$F$32,6,0)&" แล้ว","") -> 
B44: =IF(A44="","<< กรอกรหัสบัญชี",IFERROR(VLOOKUP(A44,'E001'!A:L,4,0),"ไม่มีรหัสบัญชีนี้")) -> << กรอกรหัสบัญชี | D44: =IFERROR("โปรดตรวจสอบว่าได้กรอกรายละเอียดใน Sheet "&VLOOKUP(A44,$A$9:$F$32,6,0)&" แล้ว","") -> 
B45: =IF(A45="","<< กรอกรหัสบัญชี",IFERROR(VLOOKUP(A45,'E001'!A:L,4,0),"ไม่มีรหัสบัญชีนี้")) -> << กรอกรหัสบัญชี | D45: =IFERROR("โปรดตรวจสอบว่าได้กรอกรายละเอียดใน Sheet "&VLOOKUP(A45,$A$9:$F$32,6,0)&" แล้ว","") -> 
B47: คำชี้แจงประกอบ
B48: (เลือกใส่คำชี้แจงประกอบได้ที่นี่ หรือต่อท้ายของแต่ละบัญชีก็ได้)
A50: ="PP"&C36 -> PP
B51: รวมงานตามแผนปฏิบัติ | E51: =SUMIF(A33:INDIRECT("a"&ROW()-1),"<>",E33:INDIRECT("E"&ROW()-1))/2 -> 0
A52: หมายเหตุ | B52: ให้จัดลำดับงานของแต่ละยุทธศาสตร์ โดยเรียงลำดับความสำคัญของงานจากมากไปหาน้อย
A55: ห้ามแก้ไขข้อความหรือกระทำการใดๆ ตั้งแต่บรรทัดนี้เป็นต้นไป
B57: กดปุ่ม "New job" ด้านบนเพื่อเพิ่มงานตามแผนปฏิบัติ
A59: ="P"&C60 -> P | B59: ชื่องาน: | E59: =SUBTOTAL(109,E60:E74) -> 0
B60: ลำดับที่:
B61: วัตถุประสงค์เชิงยุทธศาสตร์: | D61: =IF(C61="","<< เลือก",IF(C61="SO1",E200A!$C$5,IF(C61="SO2",E200A!$E$5,IF(C61="SO3",E200A!$I$5,IF(C61="SO4",E200A!$K$5,IF(C61="SO5",E200A!#REF!,0)))))) -> << เลือก
B62: ยุทธศาสตร์: | D62: =IF(C62="","<< เลือก",HLOOKUP(C62,E200A!$C$6:$M$8,3,0)) -> << เลือก
B63: วัตถุประสงค์ของงาน:
B64: รายการค่าใช้จ่ายตามรหัสบัญชี
B65: =IF(A65="","<< กรอกรหัสบัญชี",IFERROR(VLOOKUP(A65,'E001'!A:L,4,0),"ไม่มีรหัสบัญชีนี้")) -> << กรอกรหัสบัญชี | D65: =IFERROR("โปรดตรวจสอบว่าได้กรอกรายละเอียดใน Sheet "&VLOOKUP(A65,$A$9:$F$32,6,0)&" แล้ว","") -> 
B66: =IF(A66="","<< กรอกรหัสบัญชี",IFERROR(VLOOKUP(A66,'E001'!A:L,4,0),"ไม่มีรหัสบัญชีนี้")) -> << กรอกรหัสบัญชี | D66: =IFERROR("โปรดตรวจสอบว่าได้กรอกรายละเอียดใน Sheet "&VLOOKUP(A66,$A$9:$F$32,6,0)&" แล้ว","") -> 
B67: =IF(A67="","<< กรอกรหัสบัญชี",IFERROR(VLOOKUP(A67,'E001'!A:L,4,0),"ไม่มีรหัสบัญชีนี้")) -> << กรอกรหัสบัญชี | D67: =IFERROR("โปรดตรวจสอบว่าได้กรอกรายละเอียดใน Sheet "&VLOOKUP(A67,$A$9:$F$32,6,0)&" แล้ว","") -> 
B68: =IF(A68="","<< กรอกรหัสบัญชี",IFERROR(VLOOKUP(A68,'E001'!A:L,4,0),"ไม่มีรหัสบัญชีนี้")) -> << กรอกรหัสบัญชี | D68: =IFERROR("โปรดตรวจสอบว่าได้กรอกรายละเอียดใน Sheet "&VLOOKUP(A68,$A$9:$F$32,6,0)&" แล้ว","") -> 
B69: =IF(A69="","<< กรอกรหัสบัญชี",IFERROR(VLOOKUP(A69,'E001'!A:L,4,0),"ไม่มีรหัสบัญชีนี้")) -> << กรอกรหัสบัญชี | D69: =IFERROR("โปรดตรวจสอบว่าได้กรอกรายละเอียดใน Sheet "&VLOOKUP(A69,$A$9:$F$32,6,0)&" แล้ว","") -> 
B71: คำชี้แจงประกอบ
B72: (เลือกใส่คำชี้แจงประกอบได้ที่นี่ หรือต่อท้ายของแต่ละบัญชีก็ได้)
A74: ="PP"&C60 -> PP

Sheet E210 (hidden)
A1: คำชี้แจงประกอบ
A2: ="งบประมาณทำการประจำปี "&A_Budget_year -> งบประมาณทำการประจำปี 2567
A3: บัญชี ค่าใช้จ่ายในการอบรมสัมมนา-นอกแผน #52030020
A4: =RIGHT(CELL("filename",A4),LEN(CELL("filename",A4))-FIND("]",CELL("filename",A4))) -> E210 | E4: =Head_division -> เขต: | F4: =Head_division2 -> กฟน.3 - 07
E5: หน่วย: | F5: บาท
A6: สายงาน | B6: หน่วยงาน/ เขต | C6: รายการ | F6: วงเงิน
A8: =IF(Cover!$C$3=Cover!$N$5,Cover_สายเขต2,"") ->  | B8: =IF(Cover!$C$3=Cover!$N$5,division,Cover_สายเขต2) -> กฟน.3 | C8: งานประจำ
C13: รวมงานประจำ | F13: =SUBTOTAL(109,F7:INDIRECT("D"&ROW()-1)) -> 0
C15: งานตามแผนปฏิบัติ
C16: ชื่องาน: | F16: =SUBTOTAL(109,F17:F24) -> 0
C17: ลำดับที่:
C18: วัตถุประสงค์เชิงยุทธศาสตร์:
C19: ยุทธศาสตร์:
C20: วัตถุประสงค์ของงาน:
C21: คำชี้แจงประกอบ
A24: ="P"&D17 -> P
C25: รวมงานตามแผนปฏิบัติ | F25: =SUBTOTAL(109,F14:INDIRECT("F"&ROW()-1)) -> 0
C26: ="รวม "&B8 -> รวม กฟน.3 | F26: =SUBTOTAL(109,F7:INDIRECT("F"&ROW()-1)) -> 0
A27: หมายเหตุ | C27: ให้จัดลำดับงานของแต่ละยุทธศาสตร์ โดยเรียงลำดับความสำคัญของงานจากมากไปหาน้อย
A30: ห้ามแก้ไขข้อความหรือกระทำการใดๆ ตั้งแต่บรรทัดนี้เป็นต้นไป
C32: กดปุ่ม "New job" ด้านบนเพื่อเพิ่มงานตามแผนปฏิบัติ
C33: ชื่องาน: | F33: =SUBTOTAL(109,F34:F41) -> 0
C34: ลำดับที่:
C35: วัตถุประสงค์เชิงยุทธศาสตร์:
C36: ยุทธศาสตร์:
C37: วัตถุประสงค์ของงาน:
C38: คำชี้แจงประกอบ
A41: ="P"&D34 -> P

Sheet E220
A1: คำชี้แจงประกอบ | F1: งป. (ท) _2/2
A2: ="งบประมาณทำการประจำปี "&A_Budget_year -> งบประมาณทำการประจำปี 2567
A3: บัญชี ค่าใช้จ่ายในการประชุมชี้แจง (งานประจำและงานตามแผนปฏิบัติ) #52030030
E4: =Head_division -> เขต: | F4: =Head_division2 -> กฟน.3 - 07
E5: หน่วย: | F5: บาท
A6: สายงาน | B6: หน่วยงาน/ เขต | C6: รายการ | F6: วงเงิน
A8: =IF(Cover!$C$3=Cover!$N$5,Cover_สายเขต2,"") ->  | B8: =IF(Cover!$C$3=Cover!$N$5,division,Cover_สายเขต2) -> กฟน.3 | C8: งานประจำ
C9: กรุณาอย่าเพิ่มบรรทัดที่บรรทัดนี้ เนื่องจากจะติดการป้องกัน cell จากบรรทัดบน (ข้อความนี้ลบได้)
C10: กฟอ.หนองไผ่ มีการจัดประชุมประจำเดือนทุกเดือน ผู้เข้าร่วมประชุมประมาณ 30 คน *35 บาท *12 เดือน เป็น 12,600 บาท | F10: 13000
C11: พิจารณาของบประมาณสำรองไว้สำหรับการประชุมติดตามงานอื่นๆ นอกเหนือจากประชุมประจำเดือน | F11: 7000
C13: ให้เพิ่มบรรทัดจากบรรทัดนี้แทน (ข้อความนี้ลบได้)
C14: รวมงานประจำ | F14: =SUBTOTAL(109,F7:INDIRECT("F"&ROW()-1)) -> 20000
C16: งานตามแผนปฏิบัติ
C17: ชื่องาน: | F17: =SUBTOTAL(109,F18:F25) -> 0
C18: ลำดับที่:
C19: วัตถุประสงค์เชิงยุทธศาสตร์:
C20: ยุทธศาสตร์:
C21: วัตถุประสงค์ของงาน:
C22: คำชี้แจงประกอบ
A25: ="P"&D18 -> P
C26: รวมงานตามแผนปฏิบัติ | F26: =SUBTOTAL(109,F15:INDIRECT("F"&ROW()-1)) -> 0
C27: ="รวม "&B8 -> รวม กฟน.3 | F27: =SUBTOTAL(109,F7:INDIRECT("F"&ROW()-1)) -> 20000
A28: หมายเหตุ | C28: ให้จัดลำดับงานของแต่ละยุทธศาสตร์ โดยเรียงลำดับความสำคัญของงานจากมากไปหาน้อย
A31: ห้ามแก้ไขข้อความหรือกระทำการใดๆ ตั้งแต่บรรทัดนี้เป็นต้นไป
C33: กดปุ่ม "New job" ด้านบนเพื่อเพิ่มงานตามแผนปฏิบัติ
C34: ชื่องาน: | F34: =SUBTOTAL(109,F35:F42) -> 0
C35: ลำดับที่:
C36: วัตถุประสงค์เชิงยุทธศาสตร์:
C37: ยุทธศาสตร์:
C38: วัตถุประสงค์ของงาน:
C39: คำชี้แจงประกอบ
A42: ="P"&D35 -> P

Sheet E230
A1: คำชี้แจงประกอบ | H1: งป. (ท) _2/3
A2: ="งบประมาณทำการที่ขอตั้ง ประจำปี "&A_Budget_year -> งบประมาณทำการที่ขอตั้ง ประจำปี 2567
A3: กลุ่มบัญชี ค่าประชาสัมพันธ์ (งานประจำและงานตามแผนปฏิบัติ)
G4: =Head_division -> เขต: | H4: =Head_division2 -> กฟน.3 - 07
G5: หน่วย: | H5: บาท
A6: สายงาน | B6: หน่วยงาน/ เขต | C6: รายการ | F6: 53021010 ค่าป้ายประชาสัมพันธ์ | G6: 53021020 ค่าประชาสัมพันธ์อื่น | H6: 53021030 ค่าประชาสัมพันธ์ทางสื่อ
A8: =IF(Cover!$C$3=Cover!$N$5,Cover_สายเขต2,"") ->  | B8: =IF(Cover!$C$3=Cover!$N$5,division,Cover_สายเขต2) -> กฟน.3 | C8: งานประจำ
C9: กรุณาอย่าเพิ่มบรรทัดที่บรรทัดนี้ เนื่องจากจะติดการป้องกัน cell จากบรรทัดบน (ข้อความนี้ลบได้)
C10: กฟอ.หนองไผ่ | F10: 20000 | G10: 15000 | H10: 0
C11: กฟส.วิเชียรบุรี และ กฟย.พุเตย | F11: 30000 | G11: 30000 | H11: 20000
C12: กฟส.บึงสามพัน | F12: 10000 | G12: 10000 | H12: 0
C13: กฟส.ศรีเทพ | F13: 20000 | G13: 20000 | H13: 0
C14: ให้เพิ่มบรรทัดจากบรรทัดนี้แทน (ข้อความนี้ลบได้)
C15: รวมงานประจำ | F15: =SUBTOTAL(109,F7:INDIRECT(SUBSTITUTE(ADDRESS(1,COLUMN(),4),"1","")&ROW()-1)) -> 80000 | G15: =SUBTOTAL(109,G7:INDIRECT(SUBSTITUTE(ADDRESS(1,COLUMN(),4),"1","")&ROW()-1)) -> 75000 | H15: =SUBTOTAL(109,H7:INDIRECT(SUBSTITUTE(ADDRESS(1,COLUMN(),4),"1","")&ROW()-1)) -> 20000
C17: งานตามแผนปฏิบัติ
C18: ชื่องาน: | F18: =SUBTOTAL(109,F19:F26) -> 0 | G18: =SUBTOTAL(109,G19:G26) -> 0 | H18: 0
C19: ลำดับที่:
C20: วัตถุประสงค์เชิงยุทธศาสตร์:
C21: ยุทธศาสตร์:
C22: วัตถุประสงค์ของงาน:
C23: คำชี้แจงประกอบ
A26: ="P"&D19 -> P
C27: รวมงานตามแผนปฏิบัติ | F27: =SUBTOTAL(109,F16:INDIRECT(SUBSTITUTE(ADDRESS(1,COLUMN(),4),"1","")&ROW()-1)) -> 0 | G27: =SUBTOTAL(109,G16:INDIRECT(SUBSTITUTE(ADDRESS(1,COLUMN(),4),"1","")&ROW()-1)) -> 0 | H27: =SUBTOTAL(109,H16:INDIRECT(SUBSTITUTE(ADDRESS(1,COLUMN(),4),"1","")&ROW()-1)) -> 0
C28: ="รวม "&B8 -> รวม กฟน.3 | F28: =SUBTOTAL(109,F7:INDIRECT(SUBSTITUTE(ADDRESS(1,COLUMN(),4),"1","")&ROW()-1)) -> 80000 | G28: =SUBTOTAL(109,G7:INDIRECT(SUBSTITUTE(ADDRESS(1,COLUMN(),4),"1","")&ROW()-1)) -> 75000 | H28: =SUBTOTAL(109,H7:INDIRECT(SUBSTITUTE(ADDRESS(1,COLUMN(),4),"1","")&ROW()-1)) -> 20000
A29: หมายเหตุ | C29: ให้จัดลำดับงานของแต่ละยุทธศาสตร์ โดยเรียงลำดับความสำคัญของงานจากมากไปหาน้อย
A32: ห้ามแก้ไขข้อความหรือกระทำการใดๆ ตั้งแต่บรรทัดนี้เป็นต้นไป
C34: กดปุ่ม "New job" ด้านบนเพื่อเพิ่มงานตามแผนปฏิบัติ
C35: ชื่องาน: | F35: =SUBTOTAL(109,F36:F43) -> 0 | G35: =SUBTOTAL(109,G36:G43) -> 0 | H35: 0
C36: ลำดับที่:
C37: วัตถุประสงค์เชิงยุทธศาสตร์:
C38: ยุทธศาสตร์:
C39: วัตถุประสงค์ของงาน:
C40: คำชี้แจงประกอบ
A43: ="P"&D36 -> P

Sheet E240
A1: คำชี้แจงประกอบ | M1: งป. (ท) _2/4
A2: ="งบประมาณทำการประจำปี "&A_Budget_year -> งบประมาณทำการประจำปี 2567
A3: กลุ่มบัญชี ค่ากิจกรรมเพื่อสังคม (งานประจำและงานตามแผนปฏิบัติ)
A4: =RIGHT(CELL("filename",A4),LEN(CELL("filename",A4))-FIND("]",CELL("filename",A4))) -> E240 | L4: =Head_division -> เขต: | M4: =Head_division2 -> กฟน.3 - 07
J5: หน่วย: | L5: หน่วย: | M5: บาท
A6: สายงาน | B6: หน่วยงาน/ เขต | C6: รายการ | F6: 53065010 เงินชดเชยเพื่อมนุษยธรรม | G6: 53065020 ค่าใช้จ่ายเกี่ยวกับไฟสาธารณะ | H6: 53065030 คชจ.ส่งเสริมการประหยัด/ปลอดภัยในการใช้ไฟฟ้า | I6: 53065040 ค่าใช้จ่ายอื่นเพื่อผู้ใช้ไฟ | J6: 53065050 ค่าใช้จ่ายเพื่อสังคมหรือสิ่งแวดล้อม | K6: 53065080 ค่าผลประโยชน์เงินประกันฯจ่ายคืนผู้ใช้ไฟ - ประเภท 3,4,5 | L6: 53065090 ค่าผลประโยชน์เงินประกันฯจ่ายคืนผู้ใช้ไฟ - ประเภท 1,2 | M6: 53065990 ค่าใช้จ่ายเพื่อสาธารณประโยชน์และการกุศล
A8: =IF(Cover!$C$3=Cover!$N$5,Cover_สายเขต2,"") ->  | B8: =IF(Cover!$C$3=Cover!$N$5,division,Cover_สายเขต2) -> กฟน.3 | C8: งานประจำ
C9: กรุณาอย่าเพิ่มบรรทัดที่บรรทัดนี้ เนื่องจากจะติดการป้องกัน cell จากบรรทัดบน (ข้อความนี้ลบได้)
C12: ให้เพิ่มบรรทัดจากบรรทัดนี้แทน (ข้อความนี้ลบได้)
C13: รวมงานประจำ | F13: =SUBTOTAL(109,F7:INDIRECT(SUBSTITUTE(ADDRESS(1,COLUMN(),4),"1","")&ROW()-1)) -> 0 | G13: =SUBTOTAL(109,G7:INDIRECT(SUBSTITUTE(ADDRESS(1,COLUMN(),4),"1","")&ROW()-1)) -> 0 | H13: =SUBTOTAL(109,H7:INDIRECT(SUBSTITUTE(ADDRESS(1,COLUMN(),4),"1","")&ROW()-1)) -> 0 | I13: =SUBTOTAL(109,I7:INDIRECT(SUBSTITUTE(ADDRESS(1,COLUMN(),4),"1","")&ROW()-1)) -> 0 | J13: =SUBTOTAL(109,J7:INDIRECT(SUBSTITUTE(ADDRESS(1,COLUMN(),4),"1","")&ROW()-1)) -> 0 | K13: =SUBTOTAL(109,K7:INDIRECT(SUBSTITUTE(ADDRESS(1,COLUMN(),4),"1","")&ROW()-1)) -> 0 | L13: =SUBTOTAL(109,L7:INDIRECT(SUBSTITUTE(ADDRESS(1,COLUMN(),4),"1","")&ROW()-1)) -> 0 | M13: =SUBTOTAL(109,M7:INDIRECT(SUBSTITUTE(ADDRESS(1,COLUMN(),4),"1","")&ROW()-1)) -> 0
C15: งานตามแผนปฏิบัติ
C16: ชื่องาน: | F16: =SUBTOTAL(109,F17:F24) -> 0 | G16: =SUBTOTAL(109,G17:G24) -> 0 | H16: 0 | I16: 0 | J16: 0 | K16: 0 | L16: 0 | M16: 0
C17: ลำดับที่:
C18: วัตถุประสงค์เชิงยุทธศาสตร์:
C19: ยุทธศาสตร์:
C20: วัตถุประสงค์ของงาน:
C21: คำชี้แจงประกอบ
A24: ="P"&D17 -> P
C25: รวมงานตามแผนปฏิบัติ | F25: =SUBTOTAL(109,F14:INDIRECT(SUBSTITUTE(ADDRESS(1,COLUMN(),4),"1","")&ROW()-1)) -> 0 | G25: =SUBTOTAL(109,G14:INDIRECT(SUBSTITUTE(ADDRESS(1,COLUMN(),4),"1","")&ROW()-1)) -> 0 | H25: =SUBTOTAL(109,H14:INDIRECT(SUBSTITUTE(ADDRESS(1,COLUMN(),4),"1","")&ROW()-1)) -> 0 | I25: =SUBTOTAL(109,I14:INDIRECT(SUBSTITUTE(ADDRESS(1,COLUMN(),4),"1","")&ROW()-1)) -> 0 | J25: =SUBTOTAL(109,J14:INDIRECT(SUBSTITUTE(ADDRESS(1,COLUMN(),4),"1","")&ROW()-1)) -> 0 | K25: =SUBTOTAL(109,K14:INDIRECT(SUBSTITUTE(ADDRESS(1,COLUMN(),4),"1","")&ROW()-1)) -> 0 | L25: =SUBTOTAL(109,L14:INDIRECT(SUBSTITUTE(ADDRESS(1,COLUMN(),4),"1","")&ROW()-1)) -> 0 | M25: =SUBTOTAL(109,M14:INDIRECT(SUBSTITUTE(ADDRESS(1,COLUMN(),4),"1","")&ROW()-1)) -> 0
C26: ="รวม "&B8 -> รวม กฟน.3 | F26: =SUBTOTAL(109,F7:INDIRECT(SUBSTITUTE(ADDRESS(1,COLUMN(),4),"1","")&ROW()-1)) -> 0 | G26: =SUBTOTAL(109,G7:INDIRECT(SUBSTITUTE(ADDRESS(1,COLUMN(),4),"1","")&ROW()-1)) -> 0 | H26: =SUBTOTAL(109,H7:INDIRECT(SUBSTITUTE(ADDRESS(1,COLUMN(),4),"1","")&ROW()-1)) -> 0 | I26: =SUBTOTAL(109,I7:INDIRECT(SUBSTITUTE(ADDRESS(1,COLUMN(),4),"1","")&ROW()-1)) -> 0 | J26: =SUBTOTAL(109,J7:INDIRECT(SUBSTITUTE(ADDRESS(1,COLUMN(),4),"1","")&ROW()-1)) -> 0 | K26: =SUBTOTAL(109,K7:INDIRECT(SUBSTITUTE(ADDRESS(1,COLUMN(),4),"1","")&ROW()-1)) -> 0 | L26: =SUBTOTAL(109,L7:INDIRECT(SUBSTITUTE(ADDRESS(1,COLUMN(),4),"1","")&ROW()-1)) -> 0 | M26: =SUBTOTAL(109,M7:INDIRECT(SUBSTITUTE(ADDRESS(1,COLUMN(),4),"1","")&ROW()-1)) -> 0
A27: หมายเหตุ | C27: ให้จัดลำดับงานของแต่ละยุทธศาสตร์ โดยเรียงลำดับความสำคัญของงานจากมากไปหาน้อย
A30: ห้ามแก้ไขข้อความหรือกระทำการใดๆ ตั้งแต่บรรทัดนี้เป็นต้นไป
C32: กดปุ่ม "New job" ด้านบนเพื่อเพิ่มงานตามแผนปฏิบัติ
C33: ชื่องาน: | F33: =SUBTOTAL(109,F34:F41) -> 0 | G33: =SUBTOTAL(109,G34:G41) -> 0 | H33: 0 | I33: 0 | J33: 0 | K33: 0 | L33: 0 | M33: 0
C34: ลำดับที่:
C35: วัตถุประสงค์เชิงยุทธศาสตร์:
C36: ยุทธศาสตร์:
C37: วัตถุประสงค์ของงาน:
C38: คำชี้แจงประกอบ
A41: ="P"&D34 -> P

Sheet E250
A1: คำชี้แจงประกอบ | N1: งป. (ท) _2/5
A2: ="งบประมาณทำการประจำปี "&A_Budget_year -> งบประมาณทำการประจำปี 2567
A3: กลุ่มบัญชี ค่าวิจัยและที่ปรึกษา (งานประจำและงานตามแผนปฏิบัติ)
M4: =Head_division -> เขต: | N4: =Head_division2 -> กฟน.3 - 07
M5: หน่วย: | N5: บาท
A6: ="** หมายเหตุ สำหรับงานต่อเนื่อง โปรดกรอกช่องค่าใช้จ่ายจริง และประมาณจ่ายปี "&A_Budget_year-1&" ให้ครบถ้วนด้วย" -> ** หมายเหตุ สำหรับงานต่อเนื่อง โปรดกรอกช่องค่าใช้จ่ายจริง และประมาณจ่ายปี 2566 ให้ครบถ้วนด้วย | I6: ="ประมาณจ่ายปี "&A_Budget_year&" (ขอตั้ง)" -> ประมาณจ่ายปี 2567 (ขอตั้ง)
A7: สายงาน | B7: หน่วยงาน/ เขต | C7: รายการ | F7: วงเงินรวม | G7: ="จ่ายจริงปีเริ่มต้น - "&A_Budget_year-2&" (งานต่อเนื่อง)" -> จ่ายจริงปีเริ่มต้น - 2565 (งานต่อเนื่อง) | H7: ="ประมาณจ่ายปี "&A_Budget_year-1&" (งานต่อเนื่อง)" -> ประมาณจ่ายปี 2566 (งานต่อเนื่อง) | I7: 53040010 ค่าใช้จ่ายในการวิจัย | J7: 53061020 ค่าที่ปรึกษา-ด้านบัญชีการเงิน | K7: 53061030 ค่าที่ปรึกษา-ด้านกฏหมาย | L7: 53061040 ค่าที่ปรึกษา-ด้านวิศวกรรม | M7: 53061050 ค่าที่ปรึกษา-ด้านการพัฒนาระบบสารสนเทศ | N7: 53061090 ค่าที่ปรึกษา-ด้านอื่นๆ
A9: =IF(Cover!$C$3=Cover!$N$5,Cover_สายเขต2,"") ->  | B9: =IF(Cover!$C$3=Cover!$N$5,division,Cover_สายเขต2) -> กฟน.3 | C9: งานประจำ
C10: กรุณาอย่าเพิ่มบรรทัดที่บรรทัดนี้ เนื่องจากจะติดการป้องกัน cell จากบรรทัดบน (ข้อความนี้ลบได้)
C13: ให้เพิ่มบรรทัดจากบรรทัดนี้แทน (ข้อความนี้ลบได้)
C14: รวมงานประจำ | I14: =SUBTOTAL(109,I8:INDIRECT(SUBSTITUTE(ADDRESS(1,COLUMN(),4),"1","")&ROW()-1)) -> 0 | J14: =SUBTOTAL(109,J8:INDIRECT(SUBSTITUTE(ADDRESS(1,COLUMN(),4),"1","")&ROW()-1)) -> 0 | K14: =SUBTOTAL(109,K8:INDIRECT(SUBSTITUTE(ADDRESS(1,COLUMN(),4),"1","")&ROW()-1)) -> 0 | L14: =SUBTOTAL(109,L8:INDIRECT(SUBSTITUTE(ADDRESS(1,COLUMN(),4),"1","")&ROW()-1)) -> 0 | M14: =SUBTOTAL(109,M8:INDIRECT(SUBSTITUTE(ADDRESS(1,COLUMN(),4),"1","")&ROW()-1)) -> 0 | N14: =SUBTOTAL(109,N8:INDIRECT(SUBSTITUTE(ADDRESS(1,COLUMN(),4),"1","")&ROW()-1)) -> 0
C16: งานตามแผนปฏิบัติ
C17: ชื่องาน: | I17: =SUBTOTAL(109,I18:I25) -> 0 | J17: =SUBTOTAL(109,J18:J25) -> 0 | K17: 0 | L17: 0 | M17: 0 | N17: 0
C18: ลำดับที่:
C19: วัตถุประสงค์เชิงยุทธศาสตร์:
C20: ยุทธศาสตร์:
C21: วัตถุประสงค์ของงาน:
C22: คำชี้แจงประกอบ
A25: ="P"&D18 -> P
C26: รวมงานตามแผนปฏิบัติ | I26: =SUBTOTAL(109,I15:INDIRECT(SUBSTITUTE(ADDRESS(1,COLUMN(),4),"1","")&ROW()-1)) -> 0 | J26: =SUBTOTAL(109,J15:INDIRECT(SUBSTITUTE(ADDRESS(1,COLUMN(),4),"1","")&ROW()-1)) -> 0 | K26: =SUBTOTAL(109,K15:INDIRECT(SUBSTITUTE(ADDRESS(1,COLUMN(),4),"1","")&ROW()-1)) -> 0 | L26: =SUBTOTAL(109,L15:INDIRECT(SUBSTITUTE(ADDRESS(1,COLUMN(),4),"1","")&ROW()-1)) -> 0 | M26: =SUBTOTAL(109,M15:INDIRECT(SUBSTITUTE(ADDRESS(1,COLUMN(),4),"1","")&ROW()-1)) -> 0 | N26: =SUBTOTAL(109,N15:INDIRECT(SUBSTITUTE(ADDRESS(1,COLUMN(),4),"1","")&ROW()-1)) -> 0
C27: ="รวม "&B9 -> รวม กฟน.3 | I27: =SUBTOTAL(109,I8:INDIRECT(SUBSTITUTE(ADDRESS(1,COLUMN(),4),"1","")&ROW()-1)) -> 0 | J27: =SUBTOTAL(109,J8:INDIRECT(SUBSTITUTE(ADDRESS(1,COLUMN(),4),"1","")&ROW()-1)) -> 0 | K27: =SUBTOTAL(109,K8:INDIRECT(SUBSTITUTE(ADDRESS(1,COLUMN(),4),"1","")&ROW()-1)) -> 0 | L27: =SUBTOTAL(109,L8:INDIRECT(SUBSTITUTE(ADDRESS(1,COLUMN(),4),"1","")&ROW()-1)) -> 0 | M27: =SUBTOTAL(109,M8:INDIRECT(SUBSTITUTE(ADDRESS(1,COLUMN(),4),"1","")&ROW()-1)) -> 0 | N27: =SUBTOTAL(109,N8:INDIRECT(SUBSTITUTE(ADDRESS(1,COLUMN(),4),"1","")&ROW()-1)) -> 0
A28: หมายเหตุ | C28: ให้จัดลำดับงานของแต่ละยุทธศาสตร์ โดยเรียงลำดับความสำคัญของงานจากมากไปหาน้อย
A31: ห้ามแก้ไขข้อความหรือกระทำการใดๆ ตั้งแต่บรรทัดนี้เป็นต้นไป
C33: กดปุ่ม "New job" ด้านบนเพื่อเพิ่มงานตามแผนปฏิบัติ
C34: ชื่องาน: | I34: =SUBTOTAL(109,I35:I42) -> 0 | J34: =SUBTOTAL(109,J35:J42) -> 0 | K34: 0 | L34: 0 | M34: 0 | N34: 0
C35: ลำดับที่:
C36: วัตถุประสงค์เชิงยุทธศาสตร์:
C37: ยุทธศาสตร์:
C38: วัตถุประสงค์ของงาน:
C39: คำชี้แจงประกอบ
A42: ="P"&D35 -> P

Sheet E300
A1: =IF(A4="HO","สำนักงานใหญ่ไม่ใช้แบบฟอร์มนี้","คำชี้แจงประกอบ") -> คำชี้แจงประกอบ | J1: งป.(ท)_3
A2: =IF(A4="HO","สำนักงานใหญ่ไม่ใช้แบบฟอร์มนี้","งบประมาณทำการที่ขอตั้ง ประจำปี "&A_Budget_year) -> งบประมาณทำการที่ขอตั้ง ประจำปี 2567
A3: =IF(A4="HO","สำนักงานใหญ่ไม่ใช้แบบฟอร์มนี้","งานธุรกิจเสริม") -> งานธุรกิจเสริม
A4: =HO -> BR | I4: =Head_division -> เขต: | J4: =Head_division2 -> กฟน.3 - 07
I5: หน่วย: | J5: บาท
A6: รหัสบัญชี | B6: รายการ / รายละเอียด / คำชี้แจงประกอบ | J6: วงเงิน
B7: งานธุรกิจเสริม (งานที่ ...)
C8: =IF(A8="","<< โปรดกรอกรหัสบัญชี",IFERROR(VLOOKUP(A8,'R001'!A:I,4,0),"ไม่มีรหัสบัญชีนี้")) -> << โปรดกรอกรหัสบัญชี
C12: ="ปี "&A_Budget_year&" ขอตั้งงบประมาณ" -> ปี 2567 ขอตั้งงบประมาณ
B14: ="ต้นทุนงานบริการที่เกี่ยวข้อง ปี "&A_Budget_year -> ต้นทุนงานบริการที่เกี่ยวข้อง ปี 2567
C15: =IF(A15="","<< โปรดกรอกรหัสบัญชี",IFERROR(VLOOKUP(A15,'E001'!A:L,4,0),"ไม่มีรหัสบัญชีนี้")) -> << โปรดกรอกรหัสบัญชี
C16: =IF(A16="","<< โปรดกรอกรหัสบัญชี",IFERROR(VLOOKUP(A16,'E001'!A:L,4,0),"ไม่มีรหัสบัญชีนี้")) -> << โปรดกรอกรหัสบัญชี
C17: =IF(A17="","<< โปรดกรอกรหัสบัญชี",IFERROR(VLOOKUP(A17,'E001'!A:L,4,0),"ไม่มีรหัสบัญชีนี้")) -> << โปรดกรอกรหัสบัญชี
C18: =IF(A18="","<< โปรดกรอกรหัสบัญชี",IFERROR(VLOOKUP(A18,'E001'!A:L,4,0),"ไม่มีรหัสบัญชีนี้")) -> << โปรดกรอกรหัสบัญชี
C19: =IF(A19="","<< โปรดกรอกรหัสบัญชี",IFERROR(VLOOKUP(A19,'E001'!A:L,4,0),"ไม่มีรหัสบัญชีนี้")) -> << โปรดกรอกรหัสบัญชี
C20: =IF(A20="","<< โปรดกรอกรหัสบัญชี",IFERROR(VLOOKUP(A20,'E001'!A:L,4,0),"ไม่มีรหัสบัญชีนี้")) -> << โปรดกรอกรหัสบัญชี
C21: =IF(A21="","<< โปรดกรอกรหัสบัญชี",IFERROR(VLOOKUP(A21,'E001'!A:L,4,0),"ไม่มีรหัสบัญชีนี้")) -> << โปรดกรอกรหัสบัญชี
C22: =IF(A22="","<< โปรดกรอกรหัสบัญชี",IFERROR(VLOOKUP(A22,'E001'!A:L,4,0),"ไม่มีรหัสบัญชีนี้")) -> << โปรดกรอกรหัสบัญชี
C23: =IF(A23="","<< โปรดกรอกรหัสบัญชี",IFERROR(VLOOKUP(A23,'E001'!A:L,4,0),"ไม่มีรหัสบัญชีนี้")) -> << โปรดกรอกรหัสบัญชี
C24: =IF(A24="","<< โปรดกรอกรหัสบัญชี",IFERROR(VLOOKUP(A24,'E001'!A:L,4,0),"ไม่มีรหัสบัญชีนี้")) -> << โปรดกรอกรหัสบัญชี
I26: รวม | J26: =SUM(J15:J25) -> 0
B27: รายละเอียดประกอบ
A35: ห้ามแก้ไขข้อความหรือกระทำการใดๆ ตั้งแต่บรรทัดนี้เป็นต้นไป
B37: กดปุ่ม "New job" ด้านบนเพื่อเพิ่มงานตามแผนปฏิบัติ
B38: งานธุรกิจเสริม (งานที่ ...)
C39: =IF(A39="","<< โปรดกรอกรหัสบัญชี",IFERROR(VLOOKUP(A39,'R001'!A:I,4,0),"ไม่มีรหัสบัญชีนี้")) -> << โปรดกรอกรหัสบัญชี
C43: ="ปี "&A_Budget_year&" ขอตั้งงบประมาณ" -> ปี 2567 ขอตั้งงบประมาณ
B45: ="ต้นทุนงานบริการที่เกี่ยวข้อง ปี "&A_Budget_year -> ต้นทุนงานบริการที่เกี่ยวข้อง ปี 2567
C46: =IF(A46="","<< โปรดกรอกรหัสบัญชี",IFERROR(VLOOKUP(A46,'E001'!A:L,4,0),"ไม่มีรหัสบัญชีนี้")) -> << โปรดกรอกรหัสบัญชี
C47: =IF(A47="","<< โปรดกรอกรหัสบัญชี",IFERROR(VLOOKUP(A47,'E001'!A:L,4,0),"ไม่มีรหัสบัญชีนี้")) -> << โปรดกรอกรหัสบัญชี
C48: =IF(A48="","<< โปรดกรอกรหัสบัญชี",IFERROR(VLOOKUP(A48,'E001'!A:L,4,0),"ไม่มีรหัสบัญชีนี้")) -> << โปรดกรอกรหัสบัญชี
C49: =IF(A49="","<< โปรดกรอกรหัสบัญชี",IFERROR(VLOOKUP(A49,'E001'!A:L,4,0),"ไม่มีรหัสบัญชีนี้")) -> << โปรดกรอกรหัสบัญชี
C50: =IF(A50="","<< โปรดกรอกรหัสบัญชี",IFERROR(VLOOKUP(A50,'E001'!A:L,4,0),"ไม่มีรหัสบัญชีนี้")) -> << โปรดกรอกรหัสบัญชี
C51: =IF(A51="","<< โปรดกรอกรหัสบัญชี",IFERROR(VLOOKUP(A51,'E001'!A:L,4,0),"ไม่มีรหัสบัญชีนี้")) -> << โปรดกรอกรหัสบัญชี
C52: =IF(A52="","<< โปรดกรอกรหัสบัญชี",IFERROR(VLOOKUP(A52,'E001'!A:L,4,0),"ไม่มีรหัสบัญชีนี้")) -> << โปรดกรอกรหัสบัญชี
C53: =IF(A53="","<< โปรดกรอกรหัสบัญชี",IFERROR(VLOOKUP(A53,'E001'!A:L,4,0),"ไม่มีรหัสบัญชีนี้")) -> << โปรดกรอกรหัสบัญชี
C54: =IF(A54="","<< โปรดกรอกรหัสบัญชี",IFERROR(VLOOKUP(A54,'E001'!A:L,4,0),"ไม่มีรหัสบัญชีนี้")) -> << โปรดกรอกรหัสบัญชี
C55: =IF(A55="","<< โปรดกรอกรหัสบัญชี",IFERROR(VLOOKUP(A55,'E001'!A:L,4,0),"ไม่มีรหัสบัญชีนี้")) -> << โปรดกรอกรหัสบัญชี
I57: รวม | J57: =SUM(J46:J56) -> 0
B58: รายละเอียดประกอบ
